Workbook

Sheet Hoja1 (hidden)
A1: Dependencia | B1: Inciativa | C1: Meta | D1: Hito | E1: Obetivo estrategico | F1: % incidencia en la meta | G1: Enero Prog | H1: Enero Ejec | I1: Febrero Prog | J1: Febrero Ejec | K1: Marzo Prog | L1: Marzo Ejec | M1: Abril Prog | N1: Abril Ejec | O1: Mayo Prog | P1: Mayo Ejec | Q1: Junio Prog | R1: Junio Ejec | S1: Julio Prog | T1: Julio Ejec | U1: Agosto Prog | V1: Agosto Ejec | W1: Septiembre Prog | X1: Septiembre Ejec | Y1: Octubre Prog | Z1: Octubre Ejec | AA1: Noviembre Prog | AB1: Noviembre Ejec | AC1: Diciembre Prog | AD1: Diciembre Ejec | AE1: Fecha de Inicio
A2: =CONCATENATE('PLAN DE ACCIÓN INSTITUCIONAL'!B6) -> OFICINA ASESORA DE PLANEACIÓN - (OAP) | B2: =CONCATENATE('PLAN DE ACCIÓN INSTITUCIONAL'!$C$6) -> Fortalecer los estándares de transparencia y de acceso a la información pública | C2: =CONCATENATE('PLAN DE ACCIÓN INSTITUCIONAL'!D6) -> Mantener y/o disminuir el nivel del riesgo del índice de transparencia a de Bogotá D.C. | D2: =CONCATENATE('PLAN DE ACCIÓN INSTITUCIONAL'!F6) -> Cumplir con los estándares del índice de transparencia de Bogotá | E2: =CONCATENATE('PLAN DE ACCIÓN INSTITUCIONAL'!M6) -> Fortalecimiento Institucional: Consolidar una entidad moderna y efectiva constituida por un equipo comprometido con el logro de los objetivos institucionales | F2: =CONCATENATE('PLAN DE ACCIÓN INSTITUCIONAL'!G6)*1 -> 1 | G2: =CONCATENATE('PLAN DE ACCIÓN INSTITUCIONAL'!S6)*1 ->  | H2: =CONCATENATE('PLAN DE ACCIÓN INSTITUCIONAL'!T6)*1 -> 0 | I2: =CONCATENATE('PLAN DE ACCIÓN INSTITUCIONAL'!V6)*1 ->  | J2: =CONCATENATE('PLAN DE ACCIÓN INSTITUCIONAL'!W6)*1 -> 0 | K2: =CONCATENATE('PLAN DE ACCIÓN INSTITUCIONAL'!Y6)*1 -> 0.3 | L2: =CONCATENATE('PLAN DE ACCIÓN INSTITUCIONAL'!Z6)*1 -> 0.3 | M2: =CONCATENATE('PLAN DE ACCIÓN INSTITUCIONAL'!AB6)*1 -> 0.14 | N2: =CONCATENATE('PLAN DE ACCIÓN INSTITUCIONAL'!AC6)*1 -> 0 | O2: =CONCATENATE('PLAN DE ACCIÓN INSTITUCIONAL'!AE6)*1 ->  | P2: =CONCATENATE('PLAN DE ACCIÓN INSTITUCIONAL'!AF6)*1 -> 0 | Q2: =CONCATENATE('PLAN DE ACCIÓN INSTITUCIONAL'!AH6)*1 -> 0.14 | R2: =CONCATENATE('PLAN DE ACCIÓN INSTITUCIONAL'!AI6)*1 -> 0 | S2: =CONCATENATE('PLAN DE ACCIÓN INSTITUCIONAL'!AK6)*1 ->  | T2: =CONCATENATE('PLAN DE ACCIÓN INSTITUCIONAL'!AL6)*1 -> 0 | U2: =CONCATENATE('PLAN DE ACCIÓN INSTITUCIONAL'!AN6)*1 -> 0.14 | V2: =CONCATENATE('PLAN DE ACCIÓN INSTITUCIONAL'!AO6)*1 -> 0 | W2: =CONCATENATE('PLAN DE ACCIÓN INSTITUCIONAL'!AQ6)*1 ->  | X2: =CONCATENATE('PLAN DE ACCIÓN INSTITUCIONAL'!AR6)*1 -> 0 | Y2: =CONCATENATE('PLAN DE ACCIÓN INSTITUCIONAL'!AT6)*1 -> 0.14 | Z2: =CONCATENATE('PLAN DE ACCIÓN INSTITUCIONAL'!AU6)*1 -> 0 | AA2: =CONCATENATE('PLAN DE ACCIÓN INSTITUCIONAL'!AW6)*1 ->  | AB2: =CONCATENATE('PLAN DE ACCIÓN INSTITUCIONAL'!AX6)*1 -> 0 | AC2: =CONCATENATE('PLAN DE ACCIÓN INSTITUCIONAL'!AZ6)*1 -> 0.14 | AD2: =CONCATENATE('PLAN DE ACCIÓN INSTITUCIONAL'!BA6)*1 -> 0 | AE2: =+'PLAN DE ACCIÓN INSTITUCIONAL'!H6 -> 2020-01-01
A3: =CONCATENATE('PLAN DE ACCIÓN INSTITUCIONAL'!B7) -> OFICINA ASESORA DE PLANEACIÓN - (OAP) | B3: =CONCATENATE('PLAN DE ACCIÓN INSTITUCIONAL'!$C$6) -> Fortalecer los estándares de transparencia y de acceso a la información pública | C3: =CONCATENATE('PLAN DE ACCIÓN INSTITUCIONAL'!D7) -> Cumplimiento del 100% de la estrategia de rendición de cuentas | D3: =CONCATENATE('PLAN DE ACCIÓN INSTITUCIONAL'!F7) -> Formular, implementar y realizar seguimiento a la estrategia de rendición de cuentas | E3: =CONCATENATE('PLAN DE ACCIÓN INSTITUCIONAL'!M7) -> Fortalecimiento Institucional: Consolidar una entidad moderna y efectiva constituida por un equipo comprometido con el logro de los objetivos institucionales | F3: =CONCATENATE('PLAN DE ACCIÓN INSTITUCIONAL'!G7)*1 -> 1 | G3: =CONCATENATE('PLAN DE ACCIÓN INSTITUCIONAL'!S7)*1 ->  | H3: =CONCATENATE('PLAN DE ACCIÓN INSTITUCIONAL'!T7)*1 -> 0 | I3: =CONCATENATE('PLAN DE ACCIÓN INSTITUCIONAL'!V7)*1 ->  | J3: =CONCATENATE('PLAN DE ACCIÓN INSTITUCIONAL'!W7)*1 -> 0 | K3: =CONCATENATE('PLAN DE ACCIÓN INSTITUCIONAL'!Y7)*1 -> 0.25 | L3: =CONCATENATE('PLAN DE ACCIÓN INSTITUCIONAL'!Z7)*1 -> 0.25 | M3: =CONCATENATE('PLAN DE ACCIÓN INSTITUCIONAL'!AB7)*1 ->  | N3: =CONCATENATE('PLAN DE ACCIÓN INSTITUCIONAL'!AC7)*1 -> 0 | O3: =CONCATENATE('PLAN DE ACCIÓN INSTITUCIONAL'!AE7)*1 ->  | P3: =CONCATENATE('PLAN DE ACCIÓN INSTITUCIONAL'!AF7)*1 -> 0 | Q3: =CONCATENATE('PLAN DE ACCIÓN INSTITUCIONAL'!AH7)*1 -> 0.25 | R3: =CONCATENATE('PLAN DE ACCIÓN INSTITUCIONAL'!AI7)*1 -> 0 | S3: =CONCATENATE('PLAN DE ACCIÓN INSTITUCIONAL'!AK7)*1 ->  | T3: =CONCATENATE('PLAN DE ACCIÓN INSTITUCIONAL'!AL7)*1 -> 0 | U3: =CONCATENATE('PLAN DE ACCIÓN INSTITUCIONAL'!AN7)*1 ->  | V3: =CONCATENATE('PLAN DE ACCIÓN INSTITUCIONAL'!AO7)*1 -> 0 | W3: =CONCATENATE('PLAN DE ACCIÓN INSTITUCIONAL'!AQ7)*1 -> 0.25 | X3: =CONCATENATE('PLAN DE ACCIÓN INSTITUCIONAL'!AR7)*1 -> 0 | Y3: =CONCATENATE('PLAN DE ACCIÓN INSTITUCIONAL'!AT7)*1 ->  | Z3: =CONCATENATE('PLAN DE ACCIÓN INSTITUCIONAL'!AU7)*1 -> 0 | AA3: =CONCATENATE('PLAN DE ACCIÓN INSTITUCIONAL'!AW7)*1 ->  | AB3: =CONCATENATE('PLAN DE ACCIÓN INSTITUCIONAL'!AX7)*1 -> 0 | AC3: =CONCATENATE('PLAN DE ACCIÓN INSTITUCIONAL'!AZ7)*1 -> 0.25 | AD3: =CONCATENATE('PLAN DE ACCIÓN INSTITUCIONAL'!BA7)*1 -> 0 | AE3: =+'PLAN DE ACCIÓN INSTITUCIONAL'!H7 -> 2020-01-01
A4: =CONCATENATE('PLAN DE ACCIÓN INSTITUCIONAL'!B8) -> OFICINA ASESORA DE PLANEACIÓN - (OAP) | B4: =CONCATENATE('PLAN DE ACCIÓN INSTITUCIONAL'!$C$6) -> Fortalecer los estándares de transparencia y de acceso a la información pública | C4: =CONCATENATE('PLAN DE ACCIÓN INSTITUCIONAL'!D8) -> Fortalecer la implementación del PAAC | D4: =CONCATENATE('PLAN DE ACCIÓN INSTITUCIONAL'!F8) -> Formular y monitorear el Plan Anticorrupción y Atención al Ciudadano | E4: =CONCATENATE('PLAN DE ACCIÓN INSTITUCIONAL'!M8) -> Fortalecimiento Institucional: Consolidar una entidad moderna y efectiva constituida por un equipo comprometido con el logro de los objetivos institucionales | F4: =CONCATENATE('PLAN DE ACCIÓN INSTITUCIONAL'!G8)*1 -> 1 | G4: =CONCATENATE('PLAN DE ACCIÓN INSTITUCIONAL'!S8)*1 ->  | H4: =CONCATENATE('PLAN DE ACCIÓN INSTITUCIONAL'!T8)*1 -> 0 | I4: =CONCATENATE('PLAN DE ACCIÓN INSTITUCIONAL'!V8)*1 -> 0.3 | J4: =CONCATENATE('PLAN DE ACCIÓN INSTITUCIONAL'!W8)*1 -> 0.3 | K4: =CONCATENATE('PLAN DE ACCIÓN INSTITUCIONAL'!Y8)*1 ->  | L4: =CONCATENATE('PLAN DE ACCIÓN INSTITUCIONAL'!Z8)*1 -> 0 | M4: =CONCATENATE('PLAN DE ACCIÓN INSTITUCIONAL'!AB8)*1 -> 0.14 | N4: =CONCATENATE('PLAN DE ACCIÓN INSTITUCIONAL'!AC8)*1 -> 0.25 | O4: =CONCATENATE('PLAN DE ACCIÓN INSTITUCIONAL'!AE8)*1 ->  | P4: =CONCATENATE('PLAN DE ACCIÓN INSTITUCIONAL'!AF8)*1 -> 0 | Q4: =CONCATENATE('PLAN DE ACCIÓN INSTITUCIONAL'!AH8)*1 -> 0.14 | R4: =CONCATENATE('PLAN DE ACCIÓN INSTITUCIONAL'!AI8)*1 -> 0 | S4: =CONCATENATE('PLAN DE ACCIÓN INSTITUCIONAL'!AK8)*1 ->  | T4: =CONCATENATE('PLAN DE ACCIÓN INSTITUCIONAL'!AL8)*1 -> 0 | U4: =CONCATENATE('PLAN DE ACCIÓN INSTITUCIONAL'!AN8)*1 -> 0.14 | V4: =CONCATENATE('PLAN DE ACCIÓN INSTITUCIONAL'!AO8)*1 -> 0 | W4: =CONCATENATE('PLAN DE ACCIÓN INSTITUCIONAL'!AQ8)*1 ->  | X4: =CONCATENATE('PLAN DE ACCIÓN INSTITUCIONAL'!AR8)*1 -> 0 | Y4: =CONCATENATE('PLAN DE ACCIÓN INSTITUCIONAL'!AT8)*1 -> 0.14 | Z4: =CONCATENATE('PLAN DE ACCIÓN INSTITUCIONAL'!AU8)*1 -> 0 | AA4: =CONCATENATE('PLAN DE ACCIÓN INSTITUCIONAL'!AW8)*1 ->  | AB4: =CONCATENATE('PLAN DE ACCIÓN INSTITUCIONAL'!AX8)*1 -> 0 | AC4: =CONCATENATE('PLAN DE ACCIÓN INSTITUCIONAL'!AZ8)*1 -> 0.14 | AD4: =CONCATENATE('PLAN DE ACCIÓN INSTITUCIONAL'!BA8)*1 -> 0 | AE4: =+'PLAN DE ACCIÓN INSTITUCIONAL'!H8 -> 2020-01-01
A5: =CONCATENATE('PLAN DE ACCIÓN INSTITUCIONAL'!B9) -> OFICINA ASESORA DE PLANEACIÓN - (OAP) | B5: =CONCATENATE('PLAN DE ACCIÓN INSTITUCIONAL'!$C$6) -> Fortalecer los estándares de transparencia y de acceso a la información pública | C5: =CONCATENATE('PLAN DE ACCIÓN INSTITUCIONAL'!D9) -> Fortalecer la participación ciudadana de la entidad . | D5: =CONCATENATE('PLAN DE ACCIÓN INSTITUCIONAL'!F9) -> Formular, implementar y realizar seguimiento al Plan de Acción de Participación Ciudadana. | E5: =CONCATENATE('PLAN DE ACCIÓN INSTITUCIONAL'!M9) -> Fortalecimiento Institucional: Consolidar una entidad moderna y efectiva constituida por un equipo comprometido con el logro de los objetivos institucionales | F5: =CONCATENATE('PLAN DE ACCIÓN INSTITUCIONAL'!G9)*1 -> 1 | G5: =CONCATENATE('PLAN DE ACCIÓN INSTITUCIONAL'!S9)*1 ->  | H5: =CONCATENATE('PLAN DE ACCIÓN INSTITUCIONAL'!T9)*1 -> 0 | I5: =CONCATENATE('PLAN DE ACCIÓN INSTITUCIONAL'!V9)*1 ->  | J5: =CONCATENATE('PLAN DE ACCIÓN INSTITUCIONAL'!W9)*1 -> 0 | K5: =CONCATENATE('PLAN DE ACCIÓN INSTITUCIONAL'!Y9)*1 ->  | L5: =CONCATENATE('PLAN DE ACCIÓN INSTITUCIONAL'!Z9)*1 -> 0 | M5: =CONCATENATE('PLAN DE ACCIÓN INSTITUCIONAL'!AB9)*1 -> 0.25 | N5: =CONCATENATE('PLAN DE ACCIÓN INSTITUCIONAL'!AC9)*1 -> 0 | O5: =CONCATENATE('PLAN DE ACCIÓN INSTITUCIONAL'!AE9)*1 ->  | P5: =CONCATENATE('PLAN DE ACCIÓN INSTITUCIONAL'!AF9)*1 -> 0 | Q5: =CONCATENATE('PLAN DE ACCIÓN INSTITUCIONAL'!AH9)*1 ->  | R5: =CONCATENATE('PLAN DE ACCIÓN INSTITUCIONAL'!AI9)*1 -> 0 | S5: =CONCATENATE('PLAN DE ACCIÓN INSTITUCIONAL'!AK9)*1 -> 0.25 | T5: =CONCATENATE('PLAN DE ACCIÓN INSTITUCIONAL'!AL9)*1 -> 0 | U5: =CONCATENATE('PLAN DE ACCIÓN INSTITUCIONAL'!AN9)*1 ->  | V5: =CONCATENATE('PLAN DE ACCIÓN INSTITUCIONAL'!AO9)*1 -> 0 | W5: =CONCATENATE('PLAN DE ACCIÓN INSTITUCIONAL'!AQ9)*1 ->  | X5: =CONCATENATE('PLAN DE ACCIÓN INSTITUCIONAL'!AR9)*1 -> 0 | Y5: =CONCATENATE('PLAN DE ACCIÓN INSTITUCIONAL'!AT9)*1 -> 0.25 | Z5: =CONCATENATE('PLAN DE ACCIÓN INSTITUCIONAL'!AU9)*1 -> 0 | AA5: =CONCATENATE('PLAN DE ACCIÓN INSTITUCIONAL'!AW9)*1 ->  | AB5: =CONCATENATE('PLAN DE ACCIÓN INSTITUCIONAL'!AX9)*1 -> 0 | AC5: =CONCATENATE('PLAN DE ACCIÓN INSTITUCIONAL'!AZ9)*1 -> 0.25 | AD5: =CONCATENATE('PLAN DE ACCIÓN INSTITUCIONAL'!BA9)*1 -> 0 | AE5: =+'PLAN DE ACCIÓN INSTITUCIONAL'!H9 -> 2020-01-01
A6: =CONCATENATE('PLAN DE ACCIÓN INSTITUCIONAL'!B10) -> OFICINA ASESORA DE PLANEACIÓN - (OAP) | B6: =CONCATENATE('PLAN DE ACCIÓN INSTITUCIONAL'!$C$10) -> Fortalecer el Modelo de Transformación Organizacional articulado con el Modelo Integrado de Planeación y Gestión (MIPG) | C6: =CONCATENATE('PLAN DE ACCIÓN INSTITUCIONAL'!D$10) -> Implementación de MIPG en la UAESP de acuerdo con el Plan de Desarrollo de la Vigencia | D6: =CONCATENATE('PLAN DE ACCIÓN INSTITUCIONAL'!F10) -> Seguimiento a la implementación de las 17 políticas de gestión y desempeño institucional | E6: =CONCATENATE('PLAN DE ACCIÓN INSTITUCIONAL'!M10) -> Fortalecimiento Institucional: Consolidar una entidad moderna y efectiva constituida por un equipo comprometido con el logro de los objetivos institucionales | F6: =CONCATENATE('PLAN DE ACCIÓN INSTITUCIONAL'!G10)*1 -> 0.5 | G6: =CONCATENATE('PLAN DE ACCIÓN INSTITUCIONAL'!S10)*1 ->  | H6: =CONCATENATE('PLAN DE ACCIÓN INSTITUCIONAL'!T10)*1 -> 0 | I6: =CONCATENATE('PLAN DE ACCIÓN INSTITUCIONAL'!V10)*1 ->  | J6: =CONCATENATE('PLAN DE ACCIÓN INSTITUCIONAL'!W10)*1 -> 0 | K6: =CONCATENATE('PLAN DE ACCIÓN INSTITUCIONAL'!Y10)*1 -> 0.25 | L6: =CONCATENATE('PLAN DE ACCIÓN INSTITUCIONAL'!Z10)*1 -> 0.25 | M6: =CONCATENATE('PLAN DE ACCIÓN INSTITUCIONAL'!AB10)*1 ->  | N6: =CONCATENATE('PLAN DE ACCIÓN INSTITUCIONAL'!AC10)*1 -> 0 | O6: =CONCATENATE('PLAN DE ACCIÓN INSTITUCIONAL'!AE10)*1 ->  | P6: =CONCATENATE('PLAN DE ACCIÓN INSTITUCIONAL'!AF10)*1 -> 0 | Q6: =CONCATENATE('PLAN DE ACCIÓN INSTITUCIONAL'!AH10)*1 -> 0.25 | R6: =CONCATENATE('PLAN DE ACCIÓN INSTITUCIONAL'!AI10)*1 -> 0 | S6: =CONCATENATE('PLAN DE ACCIÓN INSTITUCIONAL'!AK10)*1 ->  | T6: =CONCATENATE('PLAN DE ACCIÓN INSTITUCIONAL'!AL10)*1 -> 0 | U6: =CONCATENATE('PLAN DE ACCIÓN INSTITUCIONAL'!AN10)*1 ->  | V6: =CONCATENATE('PLAN DE ACCIÓN INSTITUCIONAL'!AO10)*1 -> 0 | W6: =CONCATENATE('PLAN DE ACCIÓN INSTITUCIONAL'!AQ10)*1 -> 0.25 | X6: =CONCATENATE('PLAN DE ACCIÓN INSTITUCIONAL'!AR10)*1 -> 0 | Y6: =CONCATENATE('PLAN DE ACCIÓN INSTITUCIONAL'!AT10)*1 ->  | Z6: =CONCATENATE('PLAN DE ACCIÓN INSTITUCIONAL'!AU10)*1 -> 0 | AA6: =CONCATENATE('PLAN DE ACCIÓN INSTITUCIONAL'!AW10)*1 ->  | AB6: =CONCATENATE('PLAN DE ACCIÓN INSTITUCIONAL'!AX10)*1 -> 0 | AC6: =CONCATENATE('PLAN DE ACCIÓN INSTITUCIONAL'!AZ10)*1 -> 0.25 | AD6: =CONCATENATE('PLAN DE ACCIÓN INSTITUCIONAL'!BA10)*1 -> 0 | AE6: =+'PLAN DE ACCIÓN INSTITUCIONAL'!H10 -> 2020-01-02
A7: =CONCATENATE('PLAN DE ACCIÓN INSTITUCIONAL'!B11) -> OFICINA ASESORA DE PLANEACIÓN - (OAP) | B7: =CONCATENATE('PLAN DE ACCIÓN INSTITUCIONAL'!$C$10) -> Fortalecer el Modelo de Transformación Organizacional articulado con el Modelo Integrado de Planeación y Gestión (MIPG) | C7: =CONCATENATE('PLAN DE ACCIÓN INSTITUCIONAL'!D$10) -> Implementación de MIPG en la UAESP de acuerdo con el Plan de Desarrollo de la Vigencia | D7: =CONCATENATE('PLAN DE ACCIÓN INSTITUCIONAL'!F11) -> Divulgar los avances de la implementación del MIPG | E7: =CONCATENATE('PLAN DE ACCIÓN INSTITUCIONAL'!M11) -> Fortalecimiento Institucional: Consolidar una entidad moderna y efectiva constituida por un equipo comprometido con el logro de los objetivos institucionales | F7: =CONCATENATE('PLAN DE ACCIÓN INSTITUCIONAL'!G11)*1 -> 0.5 | G7: =CONCATENATE('PLAN DE ACCIÓN INSTITUCIONAL'!S11)*1 ->  | H7: =CONCATENATE('PLAN DE ACCIÓN INSTITUCIONAL'!T11)*1 -> 0 | I7: =CONCATENATE('PLAN DE ACCIÓN INSTITUCIONAL'!V11)*1 ->  | J7: =CONCATENATE('PLAN DE ACCIÓN INSTITUCIONAL'!W11)*1 -> 0 | K7: =CONCATENATE('PLAN DE ACCIÓN INSTITUCIONAL'!Y11)*1 -> 0.25 | L7: =CONCATENATE('PLAN DE ACCIÓN INSTITUCIONAL'!Z11)*1 -> 0.25 | M7: =CONCATENATE('PLAN DE ACCIÓN INSTITUCIONAL'!AB11)*1 ->  | N7: =CONCATENATE('PLAN DE ACCIÓN INSTITUCIONAL'!AC11)*1 -> 0 | O7: =CONCATENATE('PLAN DE ACCIÓN INSTITUCIONAL'!AE11)*1 ->  | P7: =CONCATENATE('PLAN DE ACCIÓN INSTITUCIONAL'!AF11)*1 -> 0 | Q7: =CONCATENATE('PLAN DE ACCIÓN INSTITUCIONAL'!AH11)*1 -> 0.25 | R7: =CONCATENATE('PLAN DE ACCIÓN INSTITUCIONAL'!AI11)*1 -> 0 | S7: =CONCATENATE('PLAN DE ACCIÓN INSTITUCIONAL'!AK11)*1 ->  | T7: =CONCATENATE('PLAN DE ACCIÓN INSTITUCIONAL'!AL11)*1 -> 0 | U7: =CONCATENATE('PLAN DE ACCIÓN INSTITUCIONAL'!AN11)*1 ->  | V7: =CONCATENATE('PLAN DE ACCIÓN INSTITUCIONAL'!AO11)*1 -> 0 | W7: =CONCATENATE('PLAN DE ACCIÓN INSTITUCIONAL'!AQ11)*1 -> 0.25 | X7: =CONCATENATE('PLAN DE ACCIÓN INSTITUCIONAL'!AR11)*1 -> 0 | Y7: =CONCATENATE('PLAN DE ACCIÓN INSTITUCIONAL'!AT11)*1 ->  | Z7: =CONCATENATE('PLAN DE ACCIÓN INSTITUCIONAL'!AU11)*1 -> 0 | AA7: =CONCATENATE('PLAN DE ACCIÓN INSTITUCIONAL'!AW11)*1 ->  | AB7: =CONCATENATE('PLAN DE ACCIÓN INSTITUCIONAL'!AX11)*1 -> 0 | AC7: =CONCATENATE('PLAN DE ACCIÓN INSTITUCIONAL'!AZ11)*1 -> 0.25 | AD7: =CONCATENATE('PLAN DE ACCIÓN INSTITUCIONAL'!BA11)*1 -> 0 | AE7: =+'PLAN DE ACCIÓN INSTITUCIONAL'!H11 -> 2020-01-02
A8: =CONCATENATE('PLAN DE ACCIÓN INSTITUCIONAL'!B12) -> OFICINA ASESORA DE PLANEACIÓN - (OAP) | B8: =CONCATENATE('PLAN DE ACCIÓN INSTITUCIONAL'!$C$10) -> Fortalecer el Modelo de Transformación Organizacional articulado con el Modelo Integrado de Planeación y Gestión (MIPG) | C8: =CONCATENATE('PLAN DE ACCIÓN INSTITUCIONAL'!D12) -> Sostenibilidad del MTO | D8: =CONCATENATE('PLAN DE ACCIÓN INSTITUCIONAL'!F12) -> Seguimiento a la ejecución de las actividades establecidad en el Plan de Sostenibilidad del MTO | E8: =CONCATENATE('PLAN DE ACCIÓN INSTITUCIONAL'!M12) -> Fortalecimiento Institucional: Consolidar una entidad moderna y efectiva constituida por un equipo comprometido con el logro de los objetivos institucionales | F8: =CONCATENATE('PLAN DE ACCIÓN INSTITUCIONAL'!G12)*1 -> 1 | G8: =CONCATENATE('PLAN DE ACCIÓN INSTITUCIONAL'!S12)*1 ->  | H8: =CONCATENATE('PLAN DE ACCIÓN INSTITUCIONAL'!T12)*1 -> 0 | I8: =CONCATENATE('PLAN DE ACCIÓN INSTITUCIONAL'!V12)*1 -> 0.08 | J8: =CONCATENATE('PLAN DE ACCIÓN INSTITUCIONAL'!W12)*1 -> 0 | K8: =CONCATENATE('PLAN DE ACCIÓN INSTITUCIONAL'!Y12)*1 -> 0.08 | L8: =CONCATENATE('PLAN DE ACCIÓN INSTITUCIONAL'!Z12)*1 -> 0.104 | M8: =CONCATENATE('PLAN DE ACCIÓN INSTITUCIONAL'!AB12)*1 -> 0.08 | N8: =CONCATENATE('PLAN DE ACCIÓN INSTITUCIONAL'!AC12)*1 -> 0 | O8: =CONCATENATE('PLAN DE ACCIÓN INSTITUCIONAL'!AE12)*1 -> 0.08 | P8: =CONCATENATE('PLAN DE ACCIÓN INSTITUCIONAL'!AF12)*1 -> 0 | Q8: =CONCATENATE('PLAN DE ACCIÓN INSTITUCIONAL'!AH12)*1 -> 0.08 | R8: =CONCATENATE('PLAN DE ACCIÓN INSTITUCIONAL'!AI12)*1 -> 0 | S8: =CONCATENATE('PLAN DE ACCIÓN INSTITUCIONAL'!AK12)*1 -> 0.08 | T8: =CONCATENATE('PLAN DE ACCIÓN INSTITUCIONAL'!AL12)*1 -> 0 | U8: =CONCATENATE('PLAN DE ACCIÓN INSTITUCIONAL'!AN12)*1 -> 0.08 | V8: =CONCATENATE('PLAN DE ACCIÓN INSTITUCIONAL'!AO12)*1 -> 0 | W8: =CONCATENATE('PLAN DE ACCIÓN INSTITUCIONAL'!AQ12)*1 -> 0.08 | X8: =CONCATENATE('PLAN DE ACCIÓN INSTITUCIONAL'!AR12)*1 -> 0 | Y8: =CONCATENATE('PLAN DE ACCIÓN INSTITUCIONAL'!AT12)*1 -> 0.08 | Z8: =CONCATENATE('PLAN DE ACCIÓN INSTITUCIONAL'!AU12)*1 -> 0 | AA8: =CONCATENATE('PLAN DE ACCIÓN INSTITUCIONAL'!AW12)*1 -> 0.08 | AB8: =CONCATENATE('PLAN DE ACCIÓN INSTITUCIONAL'!AX12)*1 -> 0 | AC8: =CONCATENATE('PLAN DE ACCIÓN INSTITUCIONAL'!AZ12)*1 -> 0.2 | AD8: =CONCATENATE('PLAN DE ACCIÓN INSTITUCIONAL'!BA12)*1 -> 0 | AE8: =+'PLAN DE ACCIÓN INSTITUCIONAL'!H12 -> 2020-02-01
A9: =CONCATENATE('PLAN DE ACCIÓN INSTITUCIONAL'!B13) -> OFICINA DE CONTROL INTERNO - (OCI) | B9: =CONCATENATE('PLAN DE ACCIÓN INSTITUCIONAL'!C$13) -> Soporte estratégico para la toma de decisiones, agregando valor al desempeño institucional | C9: =CONCATENATE('PLAN DE ACCIÓN INSTITUCIONAL'!D$13) -> Incrementar en 5 puntos porcentuales los resultado de medición en FURAG | D9: =CONCATENATE('PLAN DE ACCIÓN INSTITUCIONAL'!F13) -> 100% Informes de auditoría interna realizados y divulgados | E9: =CONCATENATE('PLAN DE ACCIÓN INSTITUCIONAL'!M13) -> Fortalecimiento Institucional: Consolidar una entidad moderna y efectiva constituida por un equipo comprometido con el logro de los objetivos institucionales | F9: =CONCATENATE('PLAN DE ACCIÓN INSTITUCIONAL'!G13)*1 -> 0.5 | G9: =CONCATENATE('PLAN DE ACCIÓN INSTITUCIONAL'!S13)*1 ->  | H9: =CONCATENATE('PLAN DE ACCIÓN INSTITUCIONAL'!T13)*1 -> 0 | I9: =CONCATENATE('PLAN DE ACCIÓN INSTITUCIONAL'!V13)*1 -> 0.166 | J9: =CONCATENATE('PLAN DE ACCIÓN INSTITUCIONAL'!W13)*1 -> 0.17 | K9: =CONCATENATE('PLAN DE ACCIÓN INSTITUCIONAL'!Y13)*1 ->  | L9: =CONCATENATE('PLAN DE ACCIÓN INSTITUCIONAL'!Z13)*1 -> 0 | M9: =CONCATENATE('PLAN DE ACCIÓN INSTITUCIONAL'!AB13)*1 -> 0.166 | N9: =CONCATENATE('PLAN DE ACCIÓN INSTITUCIONAL'!AC13)*1 -> 0.17 | O9: =CONCATENATE('PLAN DE ACCIÓN INSTITUCIONAL'!AE13)*1 ->  | P9: =CONCATENATE('PLAN DE ACCIÓN INSTITUCIONAL'!AF13)*1 -> 0 | Q9: =CONCATENATE('PLAN DE ACCIÓN INSTITUCIONAL'!AH13)*1 -> 0.166 | R9: =CONCATENATE('PLAN DE ACCIÓN INSTITUCIONAL'!AI13)*1 -> 0 | S9: =CONCATENATE('PLAN DE ACCIÓN INSTITUCIONAL'!AK13)*1 ->  | T9: =CONCATENATE('PLAN DE ACCIÓN INSTITUCIONAL'!AL13)*1 -> 0 | U9: =CONCATENATE('PLAN DE ACCIÓN INSTITUCIONAL'!AN13)*1 -> 0.166 | V9: =CONCATENATE('PLAN DE ACCIÓN INSTITUCIONAL'!AO13)*1 -> 0 | W9: =CONCATENATE('PLAN DE ACCIÓN INSTITUCIONAL'!AQ13)*1 ->  | X9: =CONCATENATE('PLAN DE ACCIÓN INSTITUCIONAL'!AR13)*1 -> 0 | Y9: =CONCATENATE('PLAN DE ACCIÓN INSTITUCIONAL'!AT13)*1 -> 0.166 | Z9: =CONCATENATE('PLAN DE ACCIÓN INSTITUCIONAL'!AU13)*1 -> 0 | AA9: =CONCATENATE('PLAN DE ACCIÓN INSTITUCIONAL'!AW13)*1 ->  | AB9: =CONCATENATE('PLAN DE ACCIÓN INSTITUCIONAL'!AX13)*1 -> 0 | AC9: =CONCATENATE('PLAN DE ACCIÓN INSTITUCIONAL'!AZ13)*1 -> 0.1667 | AD9: =CONCATENATE('PLAN DE ACCIÓN INSTITUCIONAL'!BA13)*1 -> 0 | AE9: =+'PLAN DE ACCIÓN INSTITUCIONAL'!H13 -> 2020-01-02
A10: =CONCATENATE('PLAN DE ACCIÓN INSTITUCIONAL'!B14) -> OFICINA DE CONTROL INTERNO - (OCI) | B10: =CONCATENATE('PLAN DE ACCIÓN INSTITUCIONAL'!C$13) -> Soporte estratégico para la toma de decisiones, agregando valor al desempeño institucional | C10: =CONCATENATE('PLAN DE ACCIÓN INSTITUCIONAL'!D$13) -> Incrementar en 5 puntos porcentuales los resultado de medición en FURAG | D10: =CONCATENATE('PLAN DE ACCIÓN INSTITUCIONAL'!F14) -> Documentos relacionados con el procedimiento de Auditoría Interna, analizados y actualizados | E10: =CONCATENATE('PLAN DE ACCIÓN INSTITUCIONAL'!M14) -> Fortalecimiento Institucional: Consolidar una entidad moderna y efectiva constituida por un equipo comprometido con el logro de los objetivos institucionales | F10: =CONCATENATE('PLAN DE ACCIÓN INSTITUCIONAL'!G14)*1 -> 0.15 | G10: =CONCATENATE('PLAN DE ACCIÓN INSTITUCIONAL'!S14)*1 ->  | H10: =CONCATENATE('PLAN DE ACCIÓN INSTITUCIONAL'!T14)*1 -> 0 | I10: =CONCATENATE('PLAN DE ACCIÓN INSTITUCIONAL'!V14)*1 -> 0 | J10: =CONCATENATE('PLAN DE ACCIÓN INSTITUCIONAL'!W14)*1 -> 0 | K10: =CONCATENATE('PLAN DE ACCIÓN INSTITUCIONAL'!Y14)*1 ->  | L10: =CONCATENATE('PLAN DE ACCIÓN INSTITUCIONAL'!Z14)*1 -> 0 | M10: =CONCATENATE('PLAN DE ACCIÓN INSTITUCIONAL'!AB14)*1 -> 0.2 | N10: =CONCATENATE('PLAN DE ACCIÓN INSTITUCIONAL'!AC14)*1 -> 0.2 | O10: =CONCATENATE('PLAN DE ACCIÓN INSTITUCIONAL'!AE14)*1 ->  | P10: =CONCATENATE('PLAN DE ACCIÓN INSTITUCIONAL'!AF14)*1 -> 0 | Q10: =CONCATENATE('PLAN DE ACCIÓN INSTITUCIONAL'!AH14)*1 -> 0.3 | R10: =CONCATENATE('PLAN DE ACCIÓN INSTITUCIONAL'!AI14)*1 -> 0 | S10: =CONCATENATE('PLAN DE ACCIÓN INSTITUCIONAL'!AK14)*1 ->  | T10: =CONCATENATE('PLAN DE ACCIÓN INSTITUCIONAL'!AL14)*1 -> 0 | U10: =CONCATENATE('PLAN DE ACCIÓN INSTITUCIONAL'!AN14)*1 ->  | V10: =CONCATENATE('PLAN DE ACCIÓN INSTITUCIONAL'!AO14)*1 -> 0 | W10: =CONCATENATE('PLAN DE ACCIÓN INSTITUCIONAL'!AQ14)*1 ->  | X10: =CONCATENATE('PLAN DE ACCIÓN INSTITUCIONAL'!AR14)*1 -> 0 | Y10: =CONCATENATE('PLAN DE ACCIÓN INSTITUCIONAL'!AT14)*1 -> 0.5 | Z10: =CONCATENATE('PLAN DE ACCIÓN INSTITUCIONAL'!AU14)*1 -> 0 | AA10: =CONCATENATE('PLAN DE ACCIÓN INSTITUCIONAL'!AW14)*1 ->  | AB10: =CONCATENATE('PLAN DE ACCIÓN INSTITUCIONAL'!AX14)*1 -> 0 | AC10: =CONCATENATE('PLAN DE ACCIÓN INSTITUCIONAL'!AZ14)*1 ->  | AD10: =CONCATENATE('PLAN DE ACCIÓN INSTITUCIONAL'!BA14)*1 -> 0 | AE10: =+'PLAN DE ACCIÓN INSTITUCIONAL'!H14 -> 2020-01-02
A11: =CONCATENATE('PLAN DE ACCIÓN INSTITUCIONAL'!B15) -> OFICINA DE CONTROL INTERNO - (OCI) | B11: =CONCATENATE('PLAN DE ACCIÓN INSTITUCIONAL'!C$13) -> Soporte estratégico para la toma de decisiones, agregando valor al desempeño institucional | C11: =CONCATENATE('PLAN DE ACCIÓN INSTITUCIONAL'!D$13) -> Incrementar en 5 puntos porcentuales los resultado de medición en FURAG | D11: =CONCATENATE('PLAN DE ACCIÓN INSTITUCIONAL'!F15) -> "Mapa de Aseguramiento" basado en las tres líneas de defensa, propuesto. | E11: =CONCATENATE('PLAN DE ACCIÓN INSTITUCIONAL'!M15) -> Fortalecimiento Institucional: Consolidar una entidad moderna y efectiva constituida por un equipo comprometido con el logro de los objetivos institucionales | F11: =CONCATENATE('PLAN DE ACCIÓN INSTITUCIONAL'!G15)*1 -> 0.2 | G11: =CONCATENATE('PLAN DE ACCIÓN INSTITUCIONAL'!S15)*1 ->  | H11: =CONCATENATE('PLAN DE ACCIÓN INSTITUCIONAL'!T15)*1 -> 0 | I11: =CONCATENATE('PLAN DE ACCIÓN INSTITUCIONAL'!V15)*1 -> 0 | J11: =CONCATENATE('PLAN DE ACCIÓN INSTITUCIONAL'!W15)*1 -> 0 | K11: =CONCATENATE('PLAN DE ACCIÓN INSTITUCIONAL'!Y15)*1 ->  | L11: =CONCATENATE('PLAN DE ACCIÓN INSTITUCIONAL'!Z15)*1 -> 0 | M11: =CONCATENATE('PLAN DE ACCIÓN INSTITUCIONAL'!AB15)*1 -> 0.1 | N11: =CONCATENATE('PLAN DE ACCIÓN INSTITUCIONAL'!AC15)*1 -> 0.1 | O11: =CONCATENATE('PLAN DE ACCIÓN INSTITUCIONAL'!AE15)*1 ->  | P11: =CONCATENATE('PLAN DE ACCIÓN INSTITUCIONAL'!AF15)*1 -> 0 | Q11: =CONCATENATE('PLAN DE ACCIÓN INSTITUCIONAL'!AH15)*1 -> 0.2 | R11: =CONCATENATE('PLAN DE ACCIÓN INSTITUCIONAL'!AI15)*1 -> 0 | S11: =CONCATENATE('PLAN DE ACCIÓN INSTITUCIONAL'!AK15)*1 ->  | T11: =CONCATENATE('PLAN DE ACCIÓN INSTITUCIONAL'!AL15)*1 -> 0 | U11: =CONCATENATE('PLAN DE ACCIÓN INSTITUCIONAL'!AN15)*1 -> 0.3 | V11: =CONCATENATE('PLAN DE ACCIÓN INSTITUCIONAL'!AO15)*1 -> 0 | W11: =CONCATENATE('PLAN DE ACCIÓN INSTITUCIONAL'!AQ15)*1 ->  | X11: =CONCATENATE('PLAN DE ACCIÓN INSTITUCIONAL'!AR15)*1 -> 0 | Y11: =CONCATENATE('PLAN DE ACCIÓN INSTITUCIONAL'!AT15)*1 -> 0.3 | Z11: =CONCATENATE('PLAN DE ACCIÓN INSTITUCIONAL'!AU15)*1 -> 0 | AA11: =CONCATENATE('PLAN DE ACCIÓN INSTITUCIONAL'!AW15)*1 ->  | AB11: =CONCATENATE('PLAN DE ACCIÓN INSTITUCIONAL'!AX15)*1 -> 0 | AC11: =CONCATENATE('PLAN DE ACCIÓN INSTITUCIONAL'!AZ15)*1 -> 0.1 | AD11: =CONCATENATE('PLAN DE ACCIÓN INSTITUCIONAL'!BA15)*1 -> 0 | AE11: =+'PLAN DE ACCIÓN INSTITUCIONAL'!H15 -> 2020-04-01
A12: =CONCATENATE('PLAN DE ACCIÓN INSTITUCIONAL'!B16) -> OFICINA DE CONTROL INTERNO - (OCI) | B12: =CONCATENATE('PLAN DE ACCIÓN INSTITUCIONAL'!C$13) -> Soporte estratégico para la toma de decisiones, agregando valor al desempeño institucional | C12: =CONCATENATE('PLAN DE ACCIÓN INSTITUCIONAL'!D$13) -> Incrementar en 5 puntos porcentuales los resultado de medición en FURAG | D12: =CONCATENATE('PLAN DE ACCIÓN INSTITUCIONAL'!F16) -> Plan de mejoramiento institucional operando de forma sistematizada | E12: =CONCATENATE('PLAN DE ACCIÓN INSTITUCIONAL'!M16) -> Fortalecimiento Institucional: Consolidar una entidad moderna y efectiva constituida por un equipo comprometido con el logro de los objetivos institucionales | F12: =CONCATENATE('PLAN DE ACCIÓN INSTITUCIONAL'!G16)*1 -> 0.15 | G12: =CONCATENATE('PLAN DE ACCIÓN INSTITUCIONAL'!S16)*1 ->  | H12: =CONCATENATE('PLAN DE ACCIÓN INSTITUCIONAL'!T16)*1 -> 0 | I12: =CONCATENATE('PLAN DE ACCIÓN INSTITUCIONAL'!V16)*1 -> 0.166 | J12: =CONCATENATE('PLAN DE ACCIÓN INSTITUCIONAL'!W16)*1 -> 0.167 | K12: =CONCATENATE('PLAN DE ACCIÓN INSTITUCIONAL'!Y16)*1 ->  | L12: =CONCATENATE('PLAN DE ACCIÓN INSTITUCIONAL'!Z16)*1 -> 0 | M12: =CONCATENATE('PLAN DE ACCIÓN INSTITUCIONAL'!AB16)*1 -> 0.166 | N12: =CONCATENATE('PLAN DE ACCIÓN INSTITUCIONAL'!AC16)*1 -> 0 | O12: =CONCATENATE('PLAN DE ACCIÓN INSTITUCIONAL'!AE16)*1 ->  | P12: =CONCATENATE('PLAN DE ACCIÓN INSTITUCIONAL'!AF16)*1 -> 0 | Q12: =CONCATENATE('PLAN DE ACCIÓN INSTITUCIONAL'!AH16)*1 -> 0.166 | R12: =CONCATENATE('PLAN DE ACCIÓN INSTITUCIONAL'!AI16)*1 -> 0 | S12: =CONCATENATE('PLAN DE ACCIÓN INSTITUCIONAL'!AK16)*1 ->  | T12: =CONCATENATE('PLAN DE ACCIÓN INSTITUCIONAL'!AL16)*1 -> 0 | U12: =CONCATENATE('PLAN DE ACCIÓN INSTITUCIONAL'!AN16)*1 -> 0.166 | V12: =CONCATENATE('PLAN DE ACCIÓN INSTITUCIONAL'!AO16)*1 -> 0 | W12: =CONCATENATE('PLAN DE ACCIÓN INSTITUCIONAL'!AQ16)*1 ->  | X12: =CONCATENATE('PLAN DE ACCIÓN INSTITUCIONAL'!AR16)*1 -> 0 | Y12: =CONCATENATE('PLAN DE ACCIÓN INSTITUCIONAL'!AT16)*1 -> 0.166 | Z12: =CONCATENATE('PLAN DE ACCIÓN INSTITUCIONAL'!AU16)*1 -> 0 | AA12: =CONCATENATE('PLAN DE ACCIÓN INSTITUCIONAL'!AW16)*1 ->  | AB12: =CONCATENATE('PLAN DE ACCIÓN INSTITUCIONAL'!AX16)*1 -> 0 | AC12: =CONCATENATE('PLAN DE ACCIÓN INSTITUCIONAL'!AZ16)*1 -> 0.1667 | AD12: =CONCATENATE('PLAN DE ACCIÓN INSTITUCIONAL'!BA16)*1 -> 0 | AE12: =+'PLAN DE ACCIÓN INSTITUCIONAL'!H16 -> 2020-02-01
A13: =CONCATENATE('PLAN DE ACCIÓN INSTITUCIONAL'!B17) -> OFICINA DE CONTROL INTERNO - (OCI) | B13: =CONCATENATE('PLAN DE ACCIÓN INSTITUCIONAL'!C$17) -> Asesoría y formulación de recomendaciones con alcance preventivo y de fomento a la cultura del control | C13: =CONCATENATE('PLAN DE ACCIÓN INSTITUCIONAL'!D$17) -> 80% de actividades de prevención desarrolladas | D13: =CONCATENATE('PLAN DE ACCIÓN INSTITUCIONAL'!F17) -> 80% de No Conformidades tratadas por los procesos de la Entidad. | E13: =CONCATENATE('PLAN DE ACCIÓN INSTITUCIONAL'!M17) -> Fortalecimiento Institucional: Consolidar una entidad moderna y efectiva constituida por un equipo comprometido con el logro de los objetivos institucionales | F13: =CONCATENATE('PLAN DE ACCIÓN INSTITUCIONAL'!G17)*1 -> 0.25 | G13: =CONCATENATE('PLAN DE ACCIÓN INSTITUCIONAL'!S17)*1 ->  | H13: =CONCATENATE('PLAN DE ACCIÓN INSTITUCIONAL'!T17)*1 -> 0 | I13: =CONCATENATE('PLAN DE ACCIÓN INSTITUCIONAL'!V17)*1 -> 0.166 | J13: =CONCATENATE('PLAN DE ACCIÓN INSTITUCIONAL'!W17)*1 -> 0.155 | K13: =CONCATENATE('PLAN DE ACCIÓN INSTITUCIONAL'!Y17)*1 ->  | L13: =CONCATENATE('PLAN DE ACCIÓN INSTITUCIONAL'!Z17)*1 -> 0 | M13: =CONCATENATE('PLAN DE ACCIÓN INSTITUCIONAL'!AB17)*1 -> 0.166 | N13: =CONCATENATE('PLAN DE ACCIÓN INSTITUCIONAL'!AC17)*1 -> 0.15 | O13: =CONCATENATE('PLAN DE ACCIÓN INSTITUCIONAL'!AE17)*1 ->  | P13: =CONCATENATE('PLAN DE ACCIÓN INSTITUCIONAL'!AF17)*1 -> 0 | Q13: =CONCATENATE('PLAN DE ACCIÓN INSTITUCIONAL'!AH17)*1 -> 0.166 | R13: =CONCATENATE('PLAN DE ACCIÓN INSTITUCIONAL'!AI17)*1 -> 0 | S13: =CONCATENATE('PLAN DE ACCIÓN INSTITUCIONAL'!AK17)*1 ->  | T13: =CONCATENATE('PLAN DE ACCIÓN INSTITUCIONAL'!AL17)*1 -> 0 | U13: =CONCATENATE('PLAN DE ACCIÓN INSTITUCIONAL'!AN17)*1 -> 0.166 | V13: =CONCATENATE('PLAN DE ACCIÓN INSTITUCIONAL'!AO17)*1 -> 0 | W13: =CONCATENATE('PLAN DE ACCIÓN INSTITUCIONAL'!AQ17)*1 ->  | X13: =CONCATENATE('PLAN DE ACCIÓN INSTITUCIONAL'!AR17)*1 -> 0 | Y13: =CONCATENATE('PLAN DE ACCIÓN INSTITUCIONAL'!AT17)*1 -> 0.166 | Z13: =CONCATENATE('PLAN DE ACCIÓN INSTITUCIONAL'!AU17)*1 -> 0 | AA13: =CONCATENATE('PLAN DE ACCIÓN INSTITUCIONAL'!AW17)*1 ->  | AB13: =CONCATENATE('PLAN DE ACCIÓN INSTITUCIONAL'!AX17)*1 -> 0 | AC13: =CONCATENATE('PLAN DE ACCIÓN INSTITUCIONAL'!AZ17)*1 -> 0.1667 | AD13: =CONCATENATE('PLAN DE ACCIÓN INSTITUCIONAL'!BA17)*1 -> 0 | AE13: =+'PLAN DE ACCIÓN INSTITUCIONAL'!H17 -> 2019-01-02
A14: =CONCATENATE('PLAN DE ACCIÓN INSTITUCIONAL'!B18) -> OFICINA DE CONTROL INTERNO - (OCI) | B14: =CONCATENATE('PLAN DE ACCIÓN INSTITUCIONAL'!C$17) -> Asesoría y formulación de recomendaciones con alcance preventivo y de fomento a la cultura del control | C14: =CONCATENATE('PLAN DE ACCIÓN INSTITUCIONAL'!D$17) -> 80% de actividades de prevención desarrolladas | D14: =CONCATENATE('PLAN DE ACCIÓN INSTITUCIONAL'!F18) -> “80% de las Acciones Correctivas evaluadas como cerradas, respecto a programación de cierre, producto de auditorias internas y externas”. | E14: =CONCATENATE('PLAN DE ACCIÓN INSTITUCIONAL'!M18) -> Fortalecimiento Institucional: Consolidar una entidad moderna y efectiva constituida por un equipo comprometido con el logro de los objetivos institucionales | F14: =CONCATENATE('PLAN DE ACCIÓN INSTITUCIONAL'!G18)*1 -> 0.25 | G14: =CONCATENATE('PLAN DE ACCIÓN INSTITUCIONAL'!S18)*1 ->  | H14: =CONCATENATE('PLAN DE ACCIÓN INSTITUCIONAL'!T18)*1 -> 0 | I14: =CONCATENATE('PLAN DE ACCIÓN INSTITUCIONAL'!V18)*1 -> 0.166 | J14: =CONCATENATE('PLAN DE ACCIÓN INSTITUCIONAL'!W18)*1 -> 0 | K14: =CONCATENATE('PLAN DE ACCIÓN INSTITUCIONAL'!Y18)*1 ->  | L14: =CONCATENATE('PLAN DE ACCIÓN INSTITUCIONAL'!Z18)*1 -> 0 | M14: =CONCATENATE('PLAN DE ACCIÓN INSTITUCIONAL'!AB18)*1 -> 0.166 | N14: =CONCATENATE('PLAN DE ACCIÓN INSTITUCIONAL'!AC18)*1 -> 0.11 | O14: =CONCATENATE('PLAN DE ACCIÓN INSTITUCIONAL'!AE18)*1 ->  | P14: =CONCATENATE('PLAN DE ACCIÓN INSTITUCIONAL'!AF18)*1 -> 0 | Q14: =CONCATENATE('PLAN DE ACCIÓN INSTITUCIONAL'!AH18)*1 -> 0.166 | R14: =CONCATENATE('PLAN DE ACCIÓN INSTITUCIONAL'!AI18)*1 -> 0 | S14: =CONCATENATE('PLAN DE ACCIÓN INSTITUCIONAL'!AK18)*1 ->  | T14: =CONCATENATE('PLAN DE ACCIÓN INSTITUCIONAL'!AL18)*1 -> 0 | U14: =CONCATENATE('PLAN DE ACCIÓN INSTITUCIONAL'!AN18)*1 -> 0.166 | V14: =CONCATENATE('PLAN DE ACCIÓN INSTITUCIONAL'!AO18)*1 -> 0 | W14: =CONCATENATE('PLAN DE ACCIÓN INSTITUCIONAL'!AQ18)*1 ->  | X14: =CONCATENATE('PLAN DE ACCIÓN INSTITUCIONAL'!AR18)*1 -> 0 | Y14: =CONCATENATE('PLAN DE ACCIÓN INSTITUCIONAL'!AT18)*1 -> 0.166 | Z14: =CONCATENATE('PLAN DE ACCIÓN INSTITUCIONAL'!AU18)*1 -> 0 | AA14: =CONCATENATE('PLAN DE ACCIÓN INSTITUCIONAL'!AW18)*1 ->  | AB14: =CONCATENATE('PLAN DE ACCIÓN INSTITUCIONAL'!AX18)*1 -> 0 | AC14: =CONCATENATE('PLAN DE ACCIÓN INSTITUCIONAL'!AZ18)*1 -> 0.1667 | AD14: =CONCATENATE('PLAN DE ACCIÓN INSTITUCIONAL'!BA18)*1 -> 0 | AE14: =+'PLAN DE ACCIÓN INSTITUCIONAL'!H18 -> 2019-01-02
A15: =CONCATENATE('PLAN DE ACCIÓN INSTITUCIONAL'!B19) -> OFICINA DE CONTROL INTERNO - (OCI) | B15: =CONCATENATE('PLAN DE ACCIÓN INSTITUCIONAL'!C$17) -> Asesoría y formulación de recomendaciones con alcance preventivo y de fomento a la cultura del control | C15: =CONCATENATE('PLAN DE ACCIÓN INSTITUCIONAL'!D$17) -> 80% de actividades de prevención desarrolladas | D15: =CONCATENATE('PLAN DE ACCIÓN INSTITUCIONAL'!F19) -> 80% Acompañamientos efectuados, según solicitud y demanda. | E15: =CONCATENATE('PLAN DE ACCIÓN INSTITUCIONAL'!M19) -> Fortalecimiento Institucional: Consolidar una entidad moderna y efectiva constituida por un equipo comprometido con el logro de los objetivos institucionales | F15: =CONCATENATE('PLAN DE ACCIÓN INSTITUCIONAL'!G19)*1 -> 0.15 | G15: =CONCATENATE('PLAN DE ACCIÓN INSTITUCIONAL'!S19)*1 ->  | H15: =CONCATENATE('PLAN DE ACCIÓN INSTITUCIONAL'!T19)*1 -> 0 | I15: =CONCATENATE('PLAN DE ACCIÓN INSTITUCIONAL'!V19)*1 -> 0.166 | J15: =CONCATENATE('PLAN DE ACCIÓN INSTITUCIONAL'!W19)*1 -> 0.166 | K15: =CONCATENATE('PLAN DE ACCIÓN INSTITUCIONAL'!Y19)*1 ->  | L15: =CONCATENATE('PLAN DE ACCIÓN INSTITUCIONAL'!Z19)*1 -> 0 | M15: =CONCATENATE('PLAN DE ACCIÓN INSTITUCIONAL'!AB19)*1 -> 0.166 | N15: =CONCATENATE('PLAN DE ACCIÓN INSTITUCIONAL'!AC19)*1 -> 0.17 | O15: =CONCATENATE('PLAN DE ACCIÓN INSTITUCIONAL'!AE19)*1 ->  | P15: =CONCATENATE('PLAN DE ACCIÓN INSTITUCIONAL'!AF19)*1 -> 0 | Q15: =CONCATENATE('PLAN DE ACCIÓN INSTITUCIONAL'!AH19)*1 -> 0.166 | R15: =CONCATENATE('PLAN DE ACCIÓN INSTITUCIONAL'!AI19)*1 -> 0 | S15: =CONCATENATE('PLAN DE ACCIÓN INSTITUCIONAL'!AK19)*1 ->  | T15: =CONCATENATE('PLAN DE ACCIÓN INSTITUCIONAL'!AL19)*1 -> 0 | U15: =CONCATENATE('PLAN DE ACCIÓN INSTITUCIONAL'!AN19)*1 -> 0.166 | V15: =CONCATENATE('PLAN DE ACCIÓN INSTITUCIONAL'!AO19)*1 -> 0 | W15: =CONCATENATE('PLAN DE ACCIÓN INSTITUCIONAL'!AQ19)*1 ->  | X15: =CONCATENATE('PLAN DE ACCIÓN INSTITUCIONAL'!AR19)*1 -> 0 | Y15: =CONCATENATE('PLAN DE ACCIÓN INSTITUCIONAL'!AT19)*1 -> 0.166 | Z15: =CONCATENATE('PLAN DE ACCIÓN INSTITUCIONAL'!AU19)*1 -> 0 | AA15: =CONCATENATE('PLAN DE ACCIÓN INSTITUCIONAL'!AW19)*1 ->  | AB15: =CONCATENATE('PLAN DE ACCIÓN INSTITUCIONAL'!AX19)*1 -> 0 | AC15: =CONCATENATE('PLAN DE ACCIÓN INSTITUCIONAL'!AZ19)*1 -> 0.1667 | AD15: =CONCATENATE('PLAN DE ACCIÓN INSTITUCIONAL'!BA19)*1 -> 0 | AE15: =+'PLAN DE ACCIÓN INSTITUCIONAL'!H19 -> 2019-01-02
A16: =CONCATENATE('PLAN DE ACCIÓN INSTITUCIONAL'!B20) -> OFICINA DE CONTROL INTERNO - (OCI) | B16: =CONCATENATE('PLAN DE ACCIÓN INSTITUCIONAL'!C$17) -> Asesoría y formulación de recomendaciones con alcance preventivo y de fomento a la cultura del control | C16: =CONCATENATE('PLAN DE ACCIÓN INSTITUCIONAL'!D$17) -> 80% de actividades de prevención desarrolladas | D16: =CONCATENATE('PLAN DE ACCIÓN INSTITUCIONAL'!F20) -> 100% Actividades de prevención y fomento de la cultura del control realizados. | E16: =CONCATENATE('PLAN DE ACCIÓN INSTITUCIONAL'!M20) -> Fortalecimiento Institucional: Consolidar una entidad moderna y efectiva constituida por un equipo comprometido con el logro de los objetivos institucionales | F16: =CONCATENATE('PLAN DE ACCIÓN INSTITUCIONAL'!G20)*1 -> 0.15 | G16: =CONCATENATE('PLAN DE ACCIÓN INSTITUCIONAL'!S20)*1 ->  | H16: =CONCATENATE('PLAN DE ACCIÓN INSTITUCIONAL'!T20)*1 -> 0 | I16: =CONCATENATE('PLAN DE ACCIÓN INSTITUCIONAL'!V20)*1 -> 0.166 | J16: =CONCATENATE('PLAN DE ACCIÓN INSTITUCIONAL'!W20)*1 -> 0.166 | K16: =CONCATENATE('PLAN DE ACCIÓN INSTITUCIONAL'!Y20)*1 ->  | L16: =CONCATENATE('PLAN DE ACCIÓN INSTITUCIONAL'!Z20)*1 -> 0 | M16: =CONCATENATE('PLAN DE ACCIÓN INSTITUCIONAL'!AB20)*1 -> 0.166 | N16: =CONCATENATE('PLAN DE ACCIÓN INSTITUCIONAL'!AC20)*1 -> 0.17 | O16: =CONCATENATE('PLAN DE ACCIÓN INSTITUCIONAL'!AE20)*1 ->  | P16: =CONCATENATE('PLAN DE ACCIÓN INSTITUCIONAL'!AF20)*1 -> 0 | Q16: =CONCATENATE('PLAN DE ACCIÓN INSTITUCIONAL'!AH20)*1 -> 0.166 | R16: =CONCATENATE('PLAN DE ACCIÓN INSTITUCIONAL'!AI20)*1 -> 0 | S16: =CONCATENATE('PLAN DE ACCIÓN INSTITUCIONAL'!AK20)*1 ->  | T16: =CONCATENATE('PLAN DE ACCIÓN INSTITUCIONAL'!AL20)*1 -> 0 | U16: =CONCATENATE('PLAN DE ACCIÓN INSTITUCIONAL'!AN20)*1 -> 0.166 | V16: =CONCATENATE('PLAN DE ACCIÓN INSTITUCIONAL'!AO20)*1 -> 0 | W16: =CONCATENATE('PLAN DE ACCIÓN INSTITUCIONAL'!AQ20)*1 ->  | X16: =CONCATENATE('PLAN DE ACCIÓN INSTITUCIONAL'!AR20)*1 -> 0 | Y16: =CONCATENATE('PLAN DE ACCIÓN INSTITUCIONAL'!AT20)*1 -> 0.166 | Z16: =CONCATENATE('PLAN DE ACCIÓN INSTITUCIONAL'!AU20)*1 -> 0 | AA16: =CONCATENATE('PLAN DE ACCIÓN INSTITUCIONAL'!AW20)*1 ->  | AB16: =CONCATENATE('PLAN DE ACCIÓN INSTITUCIONAL'!AX20)*1 -> 0 | AC16: =CONCATENATE('PLAN DE ACCIÓN INSTITUCIONAL'!AZ20)*1 -> 0.1667 | AD16: =CONCATENATE('PLAN DE ACCIÓN INSTITUCIONAL'!BA20)*1 -> 0 | AE16: =+'PLAN DE ACCIÓN INSTITUCIONAL'!H20 -> 2019-01-02
A17: =CONCATENATE('PLAN DE ACCIÓN INSTITUCIONAL'!B21) -> OFICINA DE CONTROL INTERNO - (OCI) | B17: =CONCATENATE('PLAN DE ACCIÓN INSTITUCIONAL'!C$17) -> Asesoría y formulación de recomendaciones con alcance preventivo y de fomento a la cultura del control | C17: =CONCATENATE('PLAN DE ACCIÓN INSTITUCIONAL'!D$17) -> 80% de actividades de prevención desarrolladas | D17: =CONCATENATE('PLAN DE ACCIÓN INSTITUCIONAL'!F21) -> 100% de requerimientos de entes externos de control gestionados. | E17: =CONCATENATE('PLAN DE ACCIÓN INSTITUCIONAL'!M21) -> Fortalecimiento Institucional: Consolidar una entidad moderna y efectiva constituida por un equipo comprometido con el logro de los objetivos institucionales | F17: =CONCATENATE('PLAN DE ACCIÓN INSTITUCIONAL'!G21)*1 -> 0.2 | G17: =CONCATENATE('PLAN DE ACCIÓN INSTITUCIONAL'!S21)*1 ->  | H17: =CONCATENATE('PLAN DE ACCIÓN INSTITUCIONAL'!T21)*1 -> 0 | I17: =CONCATENATE('PLAN DE ACCIÓN INSTITUCIONAL'!V21)*1 -> 0.166 | J17: =CONCATENATE('PLAN DE ACCIÓN INSTITUCIONAL'!W21)*1 -> 0.17 | K17: =CONCATENATE('PLAN DE ACCIÓN INSTITUCIONAL'!Y21)*1 ->  | L17: =CONCATENATE('PLAN DE ACCIÓN INSTITUCIONAL'!Z21)*1 -> 0 | M17: =CONCATENATE('PLAN DE ACCIÓN INSTITUCIONAL'!AB21)*1 -> 0.166 | N17: =CONCATENATE('PLAN DE ACCIÓN INSTITUCIONAL'!AC21)*1 -> 0.17 | O17: =CONCATENATE('PLAN DE ACCIÓN INSTITUCIONAL'!AE21)*1 ->  | P17: =CONCATENATE('PLAN DE ACCIÓN INSTITUCIONAL'!AF21)*1 -> 0 | Q17: =CONCATENATE('PLAN DE ACCIÓN INSTITUCIONAL'!AH21)*1 -> 0.166 | R17: =CONCATENATE('PLAN DE ACCIÓN INSTITUCIONAL'!AI21)*1 -> 0 | S17: =CONCATENATE('PLAN DE ACCIÓN INSTITUCIONAL'!AK21)*1 ->  | T17: =CONCATENATE('PLAN DE ACCIÓN INSTITUCIONAL'!AL21)*1 -> 0 | U17: =CONCATENATE('PLAN DE ACCIÓN INSTITUCIONAL'!AN21)*1 -> 0.166 | V17: =CONCATENATE('PLAN DE ACCIÓN INSTITUCIONAL'!AO21)*1 -> 0 | W17: =CONCATENATE('PLAN DE ACCIÓN INSTITUCIONAL'!AQ21)*1 ->  | X17: =CONCATENATE('PLAN DE ACCIÓN INSTITUCIONAL'!AR21)*1 -> 0 | Y17: =CONCATENATE('PLAN DE ACCIÓN INSTITUCIONAL'!AT21)*1 -> 0.166 | Z17: =CONCATENATE('PLAN DE ACCIÓN INSTITUCIONAL'!AU21)*1 -> 0 | AA17: =CONCATENATE('PLAN DE ACCIÓN INSTITUCIONAL'!AW21)*1 ->  | AB17: =CONCATENATE('PLAN DE ACCIÓN INSTITUCIONAL'!AX21)*1 -> 0 | AC17: =CONCATENATE('PLAN DE ACCIÓN INSTITUCIONAL'!AZ21)*1 -> 0.1667 | AD17: =CONCATENATE('PLAN DE ACCIÓN INSTITUCIONAL'!BA21)*1 -> 0 | AE17: =+'PLAN DE ACCIÓN INSTITUCIONAL'!H21 -> 2019-01-02
A18: =CONCATENATE('PLAN DE ACCIÓN INSTITUCIONAL'!B22) -> OFICINA ASESORA DE TECNOLOGÍAS DE LA INFORMACIÓN - (TIC) | B18: =CONCATENATE('PLAN DE ACCIÓN INSTITUCIONAL'!C$22) -> Fortalecer la gestión de las plataformas tecnológicas de la entidad (hardware y software) | C18: =CONCATENATE('PLAN DE ACCIÓN INSTITUCIONAL'!D$22) -> Atender las necesidades tecnológicas de la entidad | D18: =CONCATENATE('PLAN DE ACCIÓN INSTITUCIONAL'!F22) -> Cumplimiento de la Resolución 2710 de 2017 (Viene de 2019) | E18: =CONCATENATE('PLAN DE ACCIÓN INSTITUCIONAL'!M22) -> Fortalecimiento Institucional: Consolidar una entidad moderna y efectiva constituida por un equipo comprometido con el logro de los objetivos institucionales | F18: =CONCATENATE('PLAN DE ACCIÓN INSTITUCIONAL'!G22)*1 -> 0.1 | G18: =CONCATENATE('PLAN DE ACCIÓN INSTITUCIONAL'!S22)*1 ->  | H18: =CONCATENATE('PLAN DE ACCIÓN INSTITUCIONAL'!T22)*1 -> 0 | I18: =CONCATENATE('PLAN DE ACCIÓN INSTITUCIONAL'!V22)*1 -> 0.3 | J18: =CONCATENATE('PLAN DE ACCIÓN INSTITUCIONAL'!W22)*1 -> 0.3 | K18: =CONCATENATE('PLAN DE ACCIÓN INSTITUCIONAL'!Y22)*1 ->  | L18: =CONCATENATE('PLAN DE ACCIÓN INSTITUCIONAL'!Z22)*1 -> 0 | M18: =CONCATENATE('PLAN DE ACCIÓN INSTITUCIONAL'!AB22)*1 ->  | N18: =CONCATENATE('PLAN DE ACCIÓN INSTITUCIONAL'!AC22)*1 -> 0 | O18: =CONCATENATE('PLAN DE ACCIÓN INSTITUCIONAL'!AE22)*1 -> 0.3 | P18: =CONCATENATE('PLAN DE ACCIÓN INSTITUCIONAL'!AF22)*1 -> 0 | Q18: =CONCATENATE('PLAN DE ACCIÓN INSTITUCIONAL'!AH22)*1 -> 0 | R18: =CONCATENATE('PLAN DE ACCIÓN INSTITUCIONAL'!AI22)*1 -> 0 | S18: =CONCATENATE('PLAN DE ACCIÓN INSTITUCIONAL'!AK22)*1 ->  | T18: =CONCATENATE('PLAN DE ACCIÓN INSTITUCIONAL'!AL22)*1 -> 0 | U18: =CONCATENATE('PLAN DE ACCIÓN INSTITUCIONAL'!AN22)*1 ->  | V18: =CONCATENATE('PLAN DE ACCIÓN INSTITUCIONAL'!AO22)*1 -> 0 | W18: =CONCATENATE('PLAN DE ACCIÓN INSTITUCIONAL'!AQ22)*1 -> 0.3 | X18: =CONCATENATE('PLAN DE ACCIÓN INSTITUCIONAL'!AR22)*1 -> 0 | Y18: =CONCATENATE('PLAN DE ACCIÓN INSTITUCIONAL'!AT22)*1 ->  | Z18: =CONCATENATE('PLAN DE ACCIÓN INSTITUCIONAL'!AU22)*1 -> 0 | AA18: =CONCATENATE('PLAN DE ACCIÓN INSTITUCIONAL'!AW22)*1 ->  | AB18: =CONCATENATE('PLAN DE ACCIÓN INSTITUCIONAL'!AX22)*1 -> 0 | AC18: =CONCATENATE('PLAN DE ACCIÓN INSTITUCIONAL'!AZ22)*1 -> 0.1 | AD18: =CONCATENATE('PLAN DE ACCIÓN INSTITUCIONAL'!BA22)*1 -> 0 | AE18: =+'PLAN DE ACCIÓN INSTITUCIONAL'!H22 -> 2020-02-01
A19: =CONCATENATE('PLAN DE ACCIÓN INSTITUCIONAL'!B23) -> OFICINA ASESORA DE TECNOLOGÍAS DE LA INFORMACIÓN - (TIC) | B19: =CONCATENATE('PLAN DE ACCIÓN INSTITUCIONAL'!C$22) -> Fortalecer la gestión de las plataformas tecnológicas de la entidad (hardware y software) | C19: =CONCATENATE('PLAN DE ACCIÓN INSTITUCIONAL'!D$22) -> Atender las necesidades tecnológicas de la entidad | D19: =CONCATENATE('PLAN DE ACCIÓN INSTITUCIONAL'!F23) -> Garantizar el servicio de conectividad de la Entidad | E19: =CONCATENATE('PLAN DE ACCIÓN INSTITUCIONAL'!M23) -> Fortalecimiento Institucional: Consolidar una entidad moderna y efectiva constituida por un equipo comprometido con el logro de los objetivos institucionales | F19: =CONCATENATE('PLAN DE ACCIÓN INSTITUCIONAL'!G23)*1 -> 0.2 | G19: =CONCATENATE('PLAN DE ACCIÓN INSTITUCIONAL'!S23)*1 ->  | H19: =CONCATENATE('PLAN DE ACCIÓN INSTITUCIONAL'!T23)*1 -> 0 | I19: =CONCATENATE('PLAN DE ACCIÓN INSTITUCIONAL'!V23)*1 -> 0.05 | J19: =CONCATENATE('PLAN DE ACCIÓN INSTITUCIONAL'!W23)*1 -> 0.05 | K19: =CONCATENATE('PLAN DE ACCIÓN INSTITUCIONAL'!Y23)*1 -> 0.05 | L19: =CONCATENATE('PLAN DE ACCIÓN INSTITUCIONAL'!Z23)*1 -> 0.05 | M19: =CONCATENATE('PLAN DE ACCIÓN INSTITUCIONAL'!AB23)*1 -> 0.1 | N19: =CONCATENATE('PLAN DE ACCIÓN INSTITUCIONAL'!AC23)*1 -> 0.1 | O19: =CONCATENATE('PLAN DE ACCIÓN INSTITUCIONAL'!AE23)*1 -> 0.1 | P19: =CONCATENATE('PLAN DE ACCIÓN INSTITUCIONAL'!AF23)*1 -> 0 | Q19: =CONCATENATE('PLAN DE ACCIÓN INSTITUCIONAL'!AH23)*1 -> 0.1 | R19: =CONCATENATE('PLAN DE ACCIÓN INSTITUCIONAL'!AI23)*1 -> 0 | S19: =CONCATENATE('PLAN DE ACCIÓN INSTITUCIONAL'!AK23)*1 -> 0.1 | T19: =CONCATENATE('PLAN DE ACCIÓN INSTITUCIONAL'!AL23)*1 -> 0 | U19: =CONCATENATE('PLAN DE ACCIÓN INSTITUCIONAL'!AN23)*1 -> 0.1 | V19: =CONCATENATE('PLAN DE ACCIÓN INSTITUCIONAL'!AO23)*1 -> 0 | W19: =CONCATENATE('PLAN DE ACCIÓN INSTITUCIONAL'!AQ23)*1 -> 0.1 | X19: =CONCATENATE('PLAN DE ACCIÓN INSTITUCIONAL'!AR23)*1 -> 0 | Y19: =CONCATENATE('PLAN DE ACCIÓN INSTITUCIONAL'!AT23)*1 -> 0.1 | Z19: =CONCATENATE('PLAN DE ACCIÓN INSTITUCIONAL'!AU23)*1 -> 0 | AA19: =CONCATENATE('PLAN DE ACCIÓN INSTITUCIONAL'!AW23)*1 -> 0.1 | AB19: =CONCATENATE('PLAN DE ACCIÓN INSTITUCIONAL'!AX23)*1 -> 0 | AC19: =CONCATENATE('PLAN DE ACCIÓN INSTITUCIONAL'!AZ23)*1 -> 0.1 | AD19: =CONCATENATE('PLAN DE ACCIÓN INSTITUCIONAL'!BA23)*1 -> 0 | AE19: =+'PLAN DE ACCIÓN INSTITUCIONAL'!H23 -> 2020-01-01
A20: =CONCATENATE('PLAN DE ACCIÓN INSTITUCIONAL'!B24) -> OFICINA ASESORA DE TECNOLOGÍAS DE LA INFORMACIÓN - (TIC) | B20: =CONCATENATE('PLAN DE ACCIÓN INSTITUCIONAL'!C$22) -> Fortalecer la gestión de las plataformas tecnológicas de la entidad (hardware y software) | C20: =CONCATENATE('PLAN DE ACCIÓN INSTITUCIONAL'!D$22) -> Atender las necesidades tecnológicas de la entidad | D20: =CONCATENATE('PLAN DE ACCIÓN INSTITUCIONAL'!F24) -> Garantizar el suministro tecnológica de la entidad | E20: =CONCATENATE('PLAN DE ACCIÓN INSTITUCIONAL'!M24) -> Fortalecimiento Institucional: Consolidar una entidad moderna y efectiva constituida por un equipo comprometido con el logro de los objetivos institucionales | F20: =CONCATENATE('PLAN DE ACCIÓN INSTITUCIONAL'!G24)*1 -> 0.2 | G20: =CONCATENATE('PLAN DE ACCIÓN INSTITUCIONAL'!S24)*1 ->  | H20: =CONCATENATE('PLAN DE ACCIÓN INSTITUCIONAL'!T24)*1 -> 0 | I20: =CONCATENATE('PLAN DE ACCIÓN INSTITUCIONAL'!V24)*1 -> 0.05 | J20: =CONCATENATE('PLAN DE ACCIÓN INSTITUCIONAL'!W24)*1 -> 0.05 | K20: =CONCATENATE('PLAN DE ACCIÓN INSTITUCIONAL'!Y24)*1 -> 0.05 | L20: =CONCATENATE('PLAN DE ACCIÓN INSTITUCIONAL'!Z24)*1 -> 0.05 | M20: =CONCATENATE('PLAN DE ACCIÓN INSTITUCIONAL'!AB24)*1 -> 0.1 | N20: =CONCATENATE('PLAN DE ACCIÓN INSTITUCIONAL'!AC24)*1 -> 0.1 | O20: =CONCATENATE('PLAN DE ACCIÓN INSTITUCIONAL'!AE24)*1 -> 0.1 | P20: =CONCATENATE('PLAN DE ACCIÓN INSTITUCIONAL'!AF24)*1 -> 0 | Q20: =CONCATENATE('PLAN DE ACCIÓN INSTITUCIONAL'!AH24)*1 -> 0.1 | R20: =CONCATENATE('PLAN DE ACCIÓN INSTITUCIONAL'!AI24)*1 -> 0 | S20: =CONCATENATE('PLAN DE ACCIÓN INSTITUCIONAL'!AK24)*1 -> 0.1 | T20: =CONCATENATE('PLAN DE ACCIÓN INSTITUCIONAL'!AL24)*1 -> 0 | U20: =CONCATENATE('PLAN DE ACCIÓN INSTITUCIONAL'!AN24)*1 -> 0.1 | V20: =CONCATENATE('PLAN DE ACCIÓN INSTITUCIONAL'!AO24)*1 -> 0 | W20: =CONCATENATE('PLAN DE ACCIÓN INSTITUCIONAL'!AQ24)*1 -> 0.1 | X20: =CONCATENATE('PLAN DE ACCIÓN INSTITUCIONAL'!AR24)*1 -> 0 | Y20: =CONCATENATE('PLAN DE ACCIÓN INSTITUCIONAL'!AT24)*1 -> 0.1 | Z20: =CONCATENATE('PLAN DE ACCIÓN INSTITUCIONAL'!AU24)*1 -> 0 | AA20: =CONCATENATE('PLAN DE ACCIÓN INSTITUCIONAL'!AW24)*1 -> 0.1 | AB20: =CONCATENATE('PLAN DE ACCIÓN INSTITUCIONAL'!AX24)*1 -> 0 | AC20: =CONCATENATE('PLAN DE ACCIÓN INSTITUCIONAL'!AZ24)*1 -> 0.1 | AD20: =CONCATENATE('PLAN DE ACCIÓN INSTITUCIONAL'!BA24)*1 -> 0 | AE20: =+'PLAN DE ACCIÓN INSTITUCIONAL'!H24 -> 2020-02-01
A21: =CONCATENATE('PLAN DE ACCIÓN INSTITUCIONAL'!B25) -> OFICINA ASESORA DE TECNOLOGÍAS DE LA INFORMACIÓN - (TIC) | B21: =CONCATENATE('PLAN DE ACCIÓN INSTITUCIONAL'!C$22) -> Fortalecer la gestión de las plataformas tecnológicas de la entidad (hardware y software) | C21: =CONCATENATE('PLAN DE ACCIÓN INSTITUCIONAL'!D$22) -> Atender las necesidades tecnológicas de la entidad | D21: =CONCATENATE('PLAN DE ACCIÓN INSTITUCIONAL'!F25) -> Implementación de esquema de replicación de servidores críticos | E21: =CONCATENATE('PLAN DE ACCIÓN INSTITUCIONAL'!M25) -> Fortalecimiento Institucional: Consolidar una entidad moderna y efectiva constituida por un equipo comprometido con el logro de los objetivos institucionales | F21: =CONCATENATE('PLAN DE ACCIÓN INSTITUCIONAL'!G25)*1 -> 0.3 | G21: =CONCATENATE('PLAN DE ACCIÓN INSTITUCIONAL'!S25)*1 ->  | H21: =CONCATENATE('PLAN DE ACCIÓN INSTITUCIONAL'!T25)*1 -> 0 | I21: =CONCATENATE('PLAN DE ACCIÓN INSTITUCIONAL'!V25)*1 ->  | J21: =CONCATENATE('PLAN DE ACCIÓN INSTITUCIONAL'!W25)*1 -> 0 | K21: =CONCATENATE('PLAN DE ACCIÓN INSTITUCIONAL'!Y25)*1 ->  | L21: =CONCATENATE('PLAN DE ACCIÓN INSTITUCIONAL'!Z25)*1 -> 0 | M21: =CONCATENATE('PLAN DE ACCIÓN INSTITUCIONAL'!AB25)*1 ->  | N21: =CONCATENATE('PLAN DE ACCIÓN INSTITUCIONAL'!AC25)*1 -> 0 | O21: =CONCATENATE('PLAN DE ACCIÓN INSTITUCIONAL'!AE25)*1 -> 0.1 | P21: =CONCATENATE('PLAN DE ACCIÓN INSTITUCIONAL'!AF25)*1 -> 0 | Q21: =CONCATENATE('PLAN DE ACCIÓN INSTITUCIONAL'!AH25)*1 -> 0.1 | R21: =CONCATENATE('PLAN DE ACCIÓN INSTITUCIONAL'!AI25)*1 -> 0 | S21: =CONCATENATE('PLAN DE ACCIÓN INSTITUCIONAL'!AK25)*1 -> 0.1 | T21: =CONCATENATE('PLAN DE ACCIÓN INSTITUCIONAL'!AL25)*1 -> 0 | U21: =CONCATENATE('PLAN DE ACCIÓN INSTITUCIONAL'!AN25)*1 ->  | V21: =CONCATENATE('PLAN DE ACCIÓN INSTITUCIONAL'!AO25)*1 -> 0 | W21: =CONCATENATE('PLAN DE ACCIÓN INSTITUCIONAL'!AQ25)*1 -> 0.4 | X21: =CONCATENATE('PLAN DE ACCIÓN INSTITUCIONAL'!AR25)*1 -> 0 | Y21: =CONCATENATE('PLAN DE ACCIÓN INSTITUCIONAL'!AT25)*1 ->  | Z21: =CONCATENATE('PLAN DE ACCIÓN INSTITUCIONAL'!AU25)*1 -> 0 | AA21: =CONCATENATE('PLAN DE ACCIÓN INSTITUCIONAL'!AW25)*1 ->  | AB21: =CONCATENATE('PLAN DE ACCIÓN INSTITUCIONAL'!AX25)*1 -> 0 | AC21: =CONCATENATE('PLAN DE ACCIÓN INSTITUCIONAL'!AZ25)*1 -> 0.3 | AD21: =CONCATENATE('PLAN DE ACCIÓN INSTITUCIONAL'!BA25)*1 -> 0 | AE21: =+'PLAN DE ACCIÓN INSTITUCIONAL'!H25 -> 2020-05-01
A22: =CONCATENATE('PLAN DE ACCIÓN INSTITUCIONAL'!B26) -> OFICINA ASESORA DE TECNOLOGÍAS DE LA INFORMACIÓN - (TIC) | B22: =CONCATENATE('PLAN DE ACCIÓN INSTITUCIONAL'!C$22) -> Fortalecer la gestión de las plataformas tecnológicas de la entidad (hardware y software) | C22: =CONCATENATE('PLAN DE ACCIÓN INSTITUCIONAL'!D$22) -> Atender las necesidades tecnológicas de la entidad | D22: =CONCATENATE('PLAN DE ACCIÓN INSTITUCIONAL'!F26) -> Mantenimiento de infraestructura | E22: =CONCATENATE('PLAN DE ACCIÓN INSTITUCIONAL'!M26) -> Fortalecimiento Institucional: Consolidar una entidad moderna y efectiva constituida por un equipo comprometido con el logro de los objetivos institucionales | F22: =CONCATENATE('PLAN DE ACCIÓN INSTITUCIONAL'!G26)*1 -> 0.2 | G22: =CONCATENATE('PLAN DE ACCIÓN INSTITUCIONAL'!S26)*1 ->  | H22: =CONCATENATE('PLAN DE ACCIÓN INSTITUCIONAL'!T26)*1 -> 0 | I22: =CONCATENATE('PLAN DE ACCIÓN INSTITUCIONAL'!V26)*1 ->  | J22: =CONCATENATE('PLAN DE ACCIÓN INSTITUCIONAL'!W26)*1 -> 0 | K22: =CONCATENATE('PLAN DE ACCIÓN INSTITUCIONAL'!Y26)*1 ->  | L22: =CONCATENATE('PLAN DE ACCIÓN INSTITUCIONAL'!Z26)*1 -> 0 | M22: =CONCATENATE('PLAN DE ACCIÓN INSTITUCIONAL'!AB26)*1 -> 0.1 | N22: =CONCATENATE('PLAN DE ACCIÓN INSTITUCIONAL'!AC26)*1 -> 0.1 | O22: =CONCATENATE('PLAN DE ACCIÓN INSTITUCIONAL'!AE26)*1 -> 0.1 | P22: =CONCATENATE('PLAN DE ACCIÓN INSTITUCIONAL'!AF26)*1 -> 0 | Q22: =CONCATENATE('PLAN DE ACCIÓN INSTITUCIONAL'!AH26)*1 -> 0.1 | R22: =CONCATENATE('PLAN DE ACCIÓN INSTITUCIONAL'!AI26)*1 -> 0 | S22: =CONCATENATE('PLAN DE ACCIÓN INSTITUCIONAL'!AK26)*1 -> 0.1 | T22: =CONCATENATE('PLAN DE ACCIÓN INSTITUCIONAL'!AL26)*1 -> 0 | U22: =CONCATENATE('PLAN DE ACCIÓN INSTITUCIONAL'!AN26)*1 ->  | V22: =CONCATENATE('PLAN DE ACCIÓN INSTITUCIONAL'!AO26)*1 -> 0 | W22: =CONCATENATE('PLAN DE ACCIÓN INSTITUCIONAL'!AQ26)*1 ->  | X22: =CONCATENATE('PLAN DE ACCIÓN INSTITUCIONAL'!AR26)*1 -> 0 | Y22: =CONCATENATE('PLAN DE ACCIÓN INSTITUCIONAL'!AT26)*1 -> 0.3 | Z22: =CONCATENATE('PLAN DE ACCIÓN INSTITUCIONAL'!AU26)*1 -> 0 | AA22: =CONCATENATE('PLAN DE ACCIÓN INSTITUCIONAL'!AW26)*1 ->  | AB22: =CONCATENATE('PLAN DE ACCIÓN INSTITUCIONAL'!AX26)*1 -> 0 | AC22: =CONCATENATE('PLAN DE ACCIÓN INSTITUCIONAL'!AZ26)*1 -> 0.3 | AD22: =CONCATENATE('PLAN DE ACCIÓN INSTITUCIONAL'!BA26)*1 -> 0 | AE22: =+'PLAN DE ACCIÓN INSTITUCIONAL'!H26 -> 2020-04-01
A23: =CONCATENATE('PLAN DE ACCIÓN INSTITUCIONAL'!B27) -> OFICINA ASESORA DE TECNOLOGÍAS DE LA INFORMACIÓN - (TIC) | B23: =CONCATENATE('PLAN DE ACCIÓN INSTITUCIONAL'!C$22) -> Fortalecer la gestión de las plataformas tecnológicas de la entidad (hardware y software) | C23: =CONCATENATE('PLAN DE ACCIÓN INSTITUCIONAL'!D27) -> Fortalecer el servicio de la mesa de ayuda de la entidad | D23: =CONCATENATE('PLAN DE ACCIÓN INSTITUCIONAL'!F27) -> Sensibilizar el 100% en el uso de la herramienta HELP PEOPLE al personal de la entidad. | E23: =CONCATENATE('PLAN DE ACCIÓN INSTITUCIONAL'!M27) -> Fortalecimiento Institucional: Consolidar una entidad moderna y efectiva constituida por un equipo comprometido con el logro de los objetivos institucionales | F23: =CONCATENATE('PLAN DE ACCIÓN INSTITUCIONAL'!G27)*1 -> 1 | G23: =CONCATENATE('PLAN DE ACCIÓN INSTITUCIONAL'!S27)*1 ->  | H23: =CONCATENATE('PLAN DE ACCIÓN INSTITUCIONAL'!T27)*1 -> 0 | I23: =CONCATENATE('PLAN DE ACCIÓN INSTITUCIONAL'!V27)*1 -> 0.05 | J23: =CONCATENATE('PLAN DE ACCIÓN INSTITUCIONAL'!W27)*1 -> 0.05 | K23: =CONCATENATE('PLAN DE ACCIÓN INSTITUCIONAL'!Y27)*1 -> 0.05 | L23: =CONCATENATE('PLAN DE ACCIÓN INSTITUCIONAL'!Z27)*1 -> 0.05 | M23: =CONCATENATE('PLAN DE ACCIÓN INSTITUCIONAL'!AB27)*1 -> 0.1 | N23: =CONCATENATE('PLAN DE ACCIÓN INSTITUCIONAL'!AC27)*1 -> 0.1 | O23: =CONCATENATE('PLAN DE ACCIÓN INSTITUCIONAL'!AE27)*1 -> 0.1 | P23: =CONCATENATE('PLAN DE ACCIÓN INSTITUCIONAL'!AF27)*1 -> 0 | Q23: =CONCATENATE('PLAN DE ACCIÓN INSTITUCIONAL'!AH27)*1 -> 0.1 | R23: =CONCATENATE('PLAN DE ACCIÓN INSTITUCIONAL'!AI27)*1 -> 0 | S23: =CONCATENATE('PLAN DE ACCIÓN INSTITUCIONAL'!AK27)*1 -> 0.1 | T23: =CONCATENATE('PLAN DE ACCIÓN INSTITUCIONAL'!AL27)*1 -> 0 | U23: =CONCATENATE('PLAN DE ACCIÓN INSTITUCIONAL'!AN27)*1 -> 0.1 | V23: =CONCATENATE('PLAN DE ACCIÓN INSTITUCIONAL'!AO27)*1 -> 0 | W23: =CONCATENATE('PLAN DE ACCIÓN INSTITUCIONAL'!AQ27)*1 -> 0.1 | X23: =CONCATENATE('PLAN DE ACCIÓN INSTITUCIONAL'!AR27)*1 -> 0 | Y23: =CONCATENATE('PLAN DE ACCIÓN INSTITUCIONAL'!AT27)*1 -> 0.1 | Z23: =CONCATENATE('PLAN DE ACCIÓN INSTITUCIONAL'!AU27)*1 -> 0 | AA23: =CONCATENATE('PLAN DE ACCIÓN INSTITUCIONAL'!AW27)*1 -> 0.1 | AB23: =CONCATENATE('PLAN DE ACCIÓN INSTITUCIONAL'!AX27)*1 -> 0 | AC23: =CONCATENATE('PLAN DE ACCIÓN INSTITUCIONAL'!AZ27)*1 -> 0.1 | AD23: =CONCATENATE('PLAN DE ACCIÓN INSTITUCIONAL'!BA27)*1 -> 0 | AE23: =+'PLAN DE ACCIÓN INSTITUCIONAL'!H27 -> 2020-02-02
A24: =CONCATENATE('PLAN DE ACCIÓN INSTITUCIONAL'!B28) -> OFICINA ASESORA DE TECNOLOGÍAS DE LA INFORMACIÓN - (TIC) | B24: =CONCATENATE('PLAN DE ACCIÓN INSTITUCIONAL'!C28) -> Implementar los lineamientos que fortalezcan la política de Gobierno Digital en la entidad | C24: =CONCATENATE('PLAN DE ACCIÓN INSTITUCIONAL'!D28) -> Aumentar en un 10% con respecto a la vigencia anterior al cumplimiento del Modelo de Privacidad y Seguridad de la Información-MSPI | D24: =CONCATENATE('PLAN DE ACCIÓN INSTITUCIONAL'!F28) -> Implementación del MSPI dentro de la Entidad | E24: =CONCATENATE('PLAN DE ACCIÓN INSTITUCIONAL'!M28) -> Fortalecimiento Institucional: Consolidar una entidad moderna y efectiva constituida por un equipo comprometido con el logro de los objetivos institucionales | F24: =CONCATENATE('PLAN DE ACCIÓN INSTITUCIONAL'!G28)*1 -> 1 | G24: =CONCATENATE('PLAN DE ACCIÓN INSTITUCIONAL'!S28)*1 ->  | H24: =CONCATENATE('PLAN DE ACCIÓN INSTITUCIONAL'!T28)*1 -> 0 | I24: =CONCATENATE('PLAN DE ACCIÓN INSTITUCIONAL'!V28)*1 -> 0.05 | J24: =CONCATENATE('PLAN DE ACCIÓN INSTITUCIONAL'!W28)*1 -> 0.05 | K24: =CONCATENATE('PLAN DE ACCIÓN INSTITUCIONAL'!Y28)*1 -> 0.05 | L24: =CONCATENATE('PLAN DE ACCIÓN INSTITUCIONAL'!Z28)*1 -> 0.05 | M24: =CONCATENATE('PLAN DE ACCIÓN INSTITUCIONAL'!AB28)*1 -> 0.1 | N24: =CONCATENATE('PLAN DE ACCIÓN INSTITUCIONAL'!AC28)*1 -> 0.1 | O24: =CONCATENATE('PLAN DE ACCIÓN INSTITUCIONAL'!AE28)*1 -> 0.1 | P24: =CONCATENATE('PLAN DE ACCIÓN INSTITUCIONAL'!AF28)*1 -> 0 | Q24: =CONCATENATE('PLAN DE ACCIÓN INSTITUCIONAL'!AH28)*1 -> 0.1 | R24: =CONCATENATE('PLAN DE ACCIÓN INSTITUCIONAL'!AI28)*1 -> 0 | S24: =CONCATENATE('PLAN DE ACCIÓN INSTITUCIONAL'!AK28)*1 -> 0.1 | T24: =CONCATENATE('PLAN DE ACCIÓN INSTITUCIONAL'!AL28)*1 -> 0 | U24: =CONCATENATE('PLAN DE ACCIÓN INSTITUCIONAL'!AN28)*1 -> 0.1 | V24: =CONCATENATE('PLAN DE ACCIÓN INSTITUCIONAL'!AO28)*1 -> 0 | W24: =CONCATENATE('PLAN DE ACCIÓN INSTITUCIONAL'!AQ28)*1 -> 0.1 | X24: =CONCATENATE('PLAN DE ACCIÓN INSTITUCIONAL'!AR28)*1 -> 0 | Y24: =CONCATENATE('PLAN DE ACCIÓN INSTITUCIONAL'!AT28)*1 -> 0.1 | Z24: =CONCATENATE('PLAN DE ACCIÓN INSTITUCIONAL'!AU28)*1 -> 0 | AA24: =CONCATENATE('PLAN DE ACCIÓN INSTITUCIONAL'!AW28)*1 -> 0.1 | AB24: =CONCATENATE('PLAN DE ACCIÓN INSTITUCIONAL'!AX28)*1 -> 0 | AC24: =CONCATENATE('PLAN DE ACCIÓN INSTITUCIONAL'!AZ28)*1 -> 0.1 | AD24: =CONCATENATE('PLAN DE ACCIÓN INSTITUCIONAL'!BA28)*1 -> 0 | AE24: =+'PLAN DE ACCIÓN INSTITUCIONAL'!H28 -> 2020-02-01
A25: =CONCATENATE('PLAN DE ACCIÓN INSTITUCIONAL'!B29) -> OFICINA ASESORA DE COMUNICACIONES - (OAC) | B25: =CONCATENATE('PLAN DE ACCIÓN INSTITUCIONAL'!C$29) -> Mantener el reconocimiento institucional | C25: =CONCATENATE('PLAN DE ACCIÓN INSTITUCIONAL'!D$29) -> Fortalecer la imagen de la entidad | D25: =CONCATENATE('PLAN DE ACCIÓN INSTITUCIONAL'!F29) -> Implementar el Plan de Comunicaciones | E25: =CONCATENATE('PLAN DE ACCIÓN INSTITUCIONAL'!M29) -> Fortalecimiento Institucional: Consolidar una entidad moderna y efectiva constituida por un equipo comprometido con el logro de los objetivos institucionales | F25: =CONCATENATE('PLAN DE ACCIÓN INSTITUCIONAL'!G29)*1 -> 0.5 | G25: =CONCATENATE('PLAN DE ACCIÓN INSTITUCIONAL'!S29)*1 ->  | H25: =CONCATENATE('PLAN DE ACCIÓN INSTITUCIONAL'!T29)*1 -> 0 | I25: =CONCATENATE('PLAN DE ACCIÓN INSTITUCIONAL'!V29)*1 ->  | J25: =CONCATENATE('PLAN DE ACCIÓN INSTITUCIONAL'!W29)*1 -> 0 | K25: =CONCATENATE('PLAN DE ACCIÓN INSTITUCIONAL'!Y29)*1 -> 0.25 | L25: =CONCATENATE('PLAN DE ACCIÓN INSTITUCIONAL'!Z29)*1 -> 0.25 | M25: =CONCATENATE('PLAN DE ACCIÓN INSTITUCIONAL'!AB29)*1 ->  | N25: =CONCATENATE('PLAN DE ACCIÓN INSTITUCIONAL'!AC29)*1 -> 0 | O25: =CONCATENATE('PLAN DE ACCIÓN INSTITUCIONAL'!AE29)*1 ->  | P25: =CONCATENATE('PLAN DE ACCIÓN INSTITUCIONAL'!AF29)*1 -> 0 | Q25: =CONCATENATE('PLAN DE ACCIÓN INSTITUCIONAL'!AH29)*1 -> 0.25 | R25: =CONCATENATE('PLAN DE ACCIÓN INSTITUCIONAL'!AI29)*1 -> 0 | S25: =CONCATENATE('PLAN DE ACCIÓN INSTITUCIONAL'!AK29)*1 ->  | T25: =CONCATENATE('PLAN DE ACCIÓN INSTITUCIONAL'!AL29)*1 -> 0 | U25: =CONCATENATE('PLAN DE ACCIÓN INSTITUCIONAL'!AN29)*1 ->  | V25: =CONCATENATE('PLAN DE ACCIÓN INSTITUCIONAL'!AO29)*1 -> 0 | W25: =CONCATENATE('PLAN DE ACCIÓN INSTITUCIONAL'!AQ29)*1 -> 0.25 | X25: =CONCATENATE('PLAN DE ACCIÓN INSTITUCIONAL'!AR29)*1 -> 0 | Y25: =CONCATENATE('PLAN DE ACCIÓN INSTITUCIONAL'!AT29)*1 ->  | Z25: =CONCATENATE('PLAN DE ACCIÓN INSTITUCIONAL'!AU29)*1 -> 0 | AA25: =CONCATENATE('PLAN DE ACCIÓN INSTITUCIONAL'!AW29)*1 ->  | AB25: =CONCATENATE('PLAN DE ACCIÓN INSTITUCIONAL'!AX29)*1 -> 0 | AC25: =CONCATENATE('PLAN DE ACCIÓN INSTITUCIONAL'!AZ29)*1 -> 0.25 | AD25: =CONCATENATE('PLAN DE ACCIÓN INSTITUCIONAL'!BA29)*1 -> 0 | AE25: =+'PLAN DE ACCIÓN INSTITUCIONAL'!H29 -> 2020-01-01
A26: =CONCATENATE('PLAN DE ACCIÓN INSTITUCIONAL'!B30) -> OFICINA ASESORA DE COMUNICACIONES - (OAC) | B26: =CONCATENATE('PLAN DE ACCIÓN INSTITUCIONAL'!C$29) -> Mantener el reconocimiento institucional | C26: =CONCATENATE('PLAN DE ACCIÓN INSTITUCIONAL'!D$29) -> Fortalecer la imagen de la entidad | D26: =CONCATENATE('PLAN DE ACCIÓN INSTITUCIONAL'!F30) -> Generar contenidos de los planes programas y proyectos de la entidad de acuerdo con la programación establecida. | E26: =CONCATENATE('PLAN DE ACCIÓN INSTITUCIONAL'!M30) -> Fortalecimiento Institucional: Consolidar una entidad moderna y efectiva constituida por un equipo comprometido con el logro de los objetivos institucionales | F26: =CONCATENATE('PLAN DE ACCIÓN INSTITUCIONAL'!G30)*1 -> 0.5 | G26: =CONCATENATE('PLAN DE ACCIÓN INSTITUCIONAL'!S30)*1 ->  | H26: =CONCATENATE('PLAN DE ACCIÓN INSTITUCIONAL'!T30)*1 -> 0 | I26: =CONCATENATE('PLAN DE ACCIÓN INSTITUCIONAL'!V30)*1 ->  | J26: =CONCATENATE('PLAN DE ACCIÓN INSTITUCIONAL'!W30)*1 -> 0 | K26: =CONCATENATE('PLAN DE ACCIÓN INSTITUCIONAL'!Y30)*1 -> 0.25 | L26: =CONCATENATE('PLAN DE ACCIÓN INSTITUCIONAL'!Z30)*1 -> 0.25 | M26: =CONCATENATE('PLAN DE ACCIÓN INSTITUCIONAL'!AB30)*1 ->  | N26: =CONCATENATE('PLAN DE ACCIÓN INSTITUCIONAL'!AC30)*1 -> 0 | O26: =CONCATENATE('PLAN DE ACCIÓN INSTITUCIONAL'!AE30)*1 ->  | P26: =CONCATENATE('PLAN DE ACCIÓN INSTITUCIONAL'!AF30)*1 -> 0 | Q26: =CONCATENATE('PLAN DE ACCIÓN INSTITUCIONAL'!AH30)*1 -> 0.25 | R26: =CONCATENATE('PLAN DE ACCIÓN INSTITUCIONAL'!AI30)*1 -> 0 | S26: =CONCATENATE('PLAN DE ACCIÓN INSTITUCIONAL'!AK30)*1 ->  | T26: =CONCATENATE('PLAN DE ACCIÓN INSTITUCIONAL'!AL30)*1 -> 0 | U26: =CONCATENATE('PLAN DE ACCIÓN INSTITUCIONAL'!AN30)*1 ->  | V26: =CONCATENATE('PLAN DE ACCIÓN INSTITUCIONAL'!AO30)*1 -> 0 | W26: =CONCATENATE('PLAN DE ACCIÓN INSTITUCIONAL'!AQ30)*1 -> 0.25 | X26: =CONCATENATE('PLAN DE ACCIÓN INSTITUCIONAL'!AR30)*1 -> 0 | Y26: =CONCATENATE('PLAN DE ACCIÓN INSTITUCIONAL'!AT30)*1 ->  | Z26: =CONCATENATE('PLAN DE ACCIÓN INSTITUCIONAL'!AU30)*1 -> 0 | AA26: =CONCATENATE('PLAN DE ACCIÓN INSTITUCIONAL'!AW30)*1 ->  | AB26: =CONCATENATE('PLAN DE ACCIÓN INSTITUCIONAL'!AX30)*1 -> 0 | AC26: =CONCATENATE('PLAN DE ACCIÓN INSTITUCIONAL'!AZ30)*1 -> 0.25 | AD26: =CONCATENATE('PLAN DE ACCIÓN INSTITUCIONAL'!BA30)*1 -> 0 | AE26: =+'PLAN DE ACCIÓN INSTITUCIONAL'!H30 -> 2020-01-01
A27: =CONCATENATE('PLAN DE ACCIÓN INSTITUCIONAL'!B31) -> SUBDIRECCIÓN DE ASUNTOS LEGALES - (SAL) | B27: =CONCATENATE('PLAN DE ACCIÓN INSTITUCIONAL'!C$31) -> Asegurar en lo jurídico el fortalecimiento del modelo de transformación organizacional | C27: =CONCATENATE('PLAN DE ACCIÓN INSTITUCIONAL'!D31) -> Publicar el 100% de las actuaciones derivadas de los contratos suscritos por la Unidad | D27: =CONCATENATE('PLAN DE ACCIÓN INSTITUCIONAL'!F31) -> Publicación de los procesos de contratación en el sistema de compra pública. | E27: =CONCATENATE('PLAN DE ACCIÓN INSTITUCIONAL'!M31) -> Fortalecimiento Institucional: Consolidar una entidad moderna y efectiva constituida por un equipo comprometido con el logro de los objetivos institucionales | F27: =CONCATENATE('PLAN DE ACCIÓN INSTITUCIONAL'!G31)*1 -> 1 | G27: =CONCATENATE('PLAN DE ACCIÓN INSTITUCIONAL'!S31)*1 -> 0.0833 | H27: =CONCATENATE('PLAN DE ACCIÓN INSTITUCIONAL'!T31)*1 -> 0.0833 | I27: =CONCATENATE('PLAN DE ACCIÓN INSTITUCIONAL'!V31)*1 -> 0.0833 | J27: =CONCATENATE('PLAN DE ACCIÓN INSTITUCIONAL'!W31)*1 -> 0.0833 | K27: =CONCATENATE('PLAN DE ACCIÓN INSTITUCIONAL'!Y31)*1 -> 0.0833 | L27: =CONCATENATE('PLAN DE ACCIÓN INSTITUCIONAL'!Z31)*1 -> 0.0833 | M27: =CONCATENATE('PLAN DE ACCIÓN INSTITUCIONAL'!AB31)*1 -> 0.0833 | N27: =CONCATENATE('PLAN DE ACCIÓN INSTITUCIONAL'!AC31)*1 -> 0.0833 | O27: =CONCATENATE('PLAN DE ACCIÓN INSTITUCIONAL'!AE31)*1 -> 0.0833 | P27: =CONCATENATE('PLAN DE ACCIÓN INSTITUCIONAL'!AF31)*1 -> 0 | Q27: =CONCATENATE('PLAN DE ACCIÓN INSTITUCIONAL'!AH31)*1 -> 0.0833 | R27: =CONCATENATE('PLAN DE ACCIÓN INSTITUCIONAL'!AI31)*1 -> 0 | S27: =CONCATENATE('PLAN DE ACCIÓN INSTITUCIONAL'!AK31)*1 -> 0.0833 | T27: =CONCATENATE('PLAN DE ACCIÓN INSTITUCIONAL'!AL31)*1 -> 0 | U27: =CONCATENATE('PLAN DE ACCIÓN INSTITUCIONAL'!AN31)*1 -> 0.0833 | V27: =CONCATENATE('PLAN DE ACCIÓN INSTITUCIONAL'!AO31)*1 -> 0 | W27: =CONCATENATE('PLAN DE ACCIÓN INSTITUCIONAL'!AQ31)*1 -> 0.0833 | X27: =CONCATENATE('PLAN DE ACCIÓN INSTITUCIONAL'!AR31)*1 -> 0 | Y27: =CONCATENATE('PLAN DE ACCIÓN INSTITUCIONAL'!AT31)*1 -> 0.0833 | Z27: =CONCATENATE('PLAN DE ACCIÓN INSTITUCIONAL'!AU31)*1 -> 0 | AA27: =CONCATENATE('PLAN DE ACCIÓN INSTITUCIONAL'!AW31)*1 -> 0.0833 | AB27: =CONCATENATE('PLAN DE ACCIÓN INSTITUCIONAL'!AX31)*1 -> 0 | AC27: =CONCATENATE('PLAN DE ACCIÓN INSTITUCIONAL'!AZ31)*1 -> 0.0833 | AD27: =CONCATENATE('PLAN DE ACCIÓN INSTITUCIONAL'!BA31)*1 -> 0 | AE27: =+'PLAN DE ACCIÓN INSTITUCIONAL'!H31 -> 2020-01-01
A28: =CONCATENATE('PLAN DE ACCIÓN INSTITUCIONAL'!B32) -> SUBDIRECCIÓN DE ASUNTOS LEGALES - (SAL) | B28: =CONCATENATE('PLAN DE ACCIÓN INSTITUCIONAL'!C$31) -> Asegurar en lo jurídico el fortalecimiento del modelo de transformación organizacional | C28: =CONCATENATE('PLAN DE ACCIÓN INSTITUCIONAL'!D32) -> Plan de trabajo para la implementación de las políticas de prevención del daño antijurídico ejecutado al 100% | D28: =CONCATENATE('PLAN DE ACCIÓN INSTITUCIONAL'!F32) -> Formulación de un plan de trabajo de implementación de las políticas. | E28: =CONCATENATE('PLAN DE ACCIÓN INSTITUCIONAL'!M32) -> Fortalecimiento Institucional: Consolidar una entidad moderna y efectiva constituida por un equipo comprometido con el logro de los objetivos institucionales | F28: =CONCATENATE('PLAN DE ACCIÓN INSTITUCIONAL'!G32)*1 -> 1 | G28: =CONCATENATE('PLAN DE ACCIÓN INSTITUCIONAL'!S32)*1 ->  | H28: =CONCATENATE('PLAN DE ACCIÓN INSTITUCIONAL'!T32)*1 -> 0 | I28: =CONCATENATE('PLAN DE ACCIÓN INSTITUCIONAL'!V32)*1 -> 0.3 | J28: =CONCATENATE('PLAN DE ACCIÓN INSTITUCIONAL'!W32)*1 -> 0.3 | K28: =CONCATENATE('PLAN DE ACCIÓN INSTITUCIONAL'!Y32)*1 -> 0.3 | L28: =CONCATENATE('PLAN DE ACCIÓN INSTITUCIONAL'!Z32)*1 -> 0.3 | M28: =CONCATENATE('PLAN DE ACCIÓN INSTITUCIONAL'!AB32)*1 ->  | N28: =CONCATENATE('PLAN DE ACCIÓN INSTITUCIONAL'!AC32)*1 -> 0 | O28: =CONCATENATE('PLAN DE ACCIÓN INSTITUCIONAL'!AE32)*1 ->  | P28: =CONCATENATE('PLAN DE ACCIÓN INSTITUCIONAL'!AF32)*1 -> 0 | Q28: =CONCATENATE('PLAN DE ACCIÓN INSTITUCIONAL'!AH32)*1 -> 0.4 | R28: =CONCATENATE('PLAN DE ACCIÓN INSTITUCIONAL'!AI32)*1 -> 0 | S28: =CONCATENATE('PLAN DE ACCIÓN INSTITUCIONAL'!AK32)*1 ->  | T28: =CONCATENATE('PLAN DE ACCIÓN INSTITUCIONAL'!AL32)*1 -> 0 | U28: =CONCATENATE('PLAN DE ACCIÓN INSTITUCIONAL'!AN32)*1 ->  | V28: =CONCATENATE('PLAN DE ACCIÓN INSTITUCIONAL'!AO32)*1 -> 0 | W28: =CONCATENATE('PLAN DE ACCIÓN INSTITUCIONAL'!AQ32)*1 -> 0.3 | X28: =CONCATENATE('PLAN DE ACCIÓN INSTITUCIONAL'!AR32)*1 -> 0 | Y28: =CONCATENATE('PLAN DE ACCIÓN INSTITUCIONAL'!AT32)*1 ->  | Z28: =CONCATENATE('PLAN DE ACCIÓN INSTITUCIONAL'!AU32)*1 -> 0 | AA28: =CONCATENATE('PLAN DE ACCIÓN INSTITUCIONAL'!AW32)*1 ->  | AB28: =CONCATENATE('PLAN DE ACCIÓN INSTITUCIONAL'!AX32)*1 -> 0 | AC28: =CONCATENATE('PLAN DE ACCIÓN INSTITUCIONAL'!AZ32)*1 ->  | AD28: =CONCATENATE('PLAN DE ACCIÓN INSTITUCIONAL'!BA32)*1 -> 0 | AE28: =+'PLAN DE ACCIÓN INSTITUCIONAL'!H32 -> 2020-01-01
A29: =CONCATENATE('PLAN DE ACCIÓN INSTITUCIONAL'!B33) -> SUBDIRECCIÓN DE ASUNTOS LEGALES - (SAL) | B29: =CONCATENATE('PLAN DE ACCIÓN INSTITUCIONAL'!C$31) -> Asegurar en lo jurídico el fortalecimiento del modelo de transformación organizacional | C29: =CONCATENATE('PLAN DE ACCIÓN INSTITUCIONAL'!D33) -> Atender el 100% de los procesos judiciales y arbitrales en los que la Entidad sea demandada o convocada, fortaleciendo la defensa jurídica de la UAESP | D29: =CONCATENATE('PLAN DE ACCIÓN INSTITUCIONAL'!F33) -> Actualización permanente del SIPROJ | E29: =CONCATENATE('PLAN DE ACCIÓN INSTITUCIONAL'!M33) -> Fortalecimiento Institucional: Consolidar una entidad moderna y efectiva constituida por un equipo comprometido con el logro de los objetivos institucionales | F29: =CONCATENATE('PLAN DE ACCIÓN INSTITUCIONAL'!G33)*1 -> 1 | G29: =CONCATENATE('PLAN DE ACCIÓN INSTITUCIONAL'!S33)*1 -> 0.0833 | H29: =CONCATENATE('PLAN DE ACCIÓN INSTITUCIONAL'!T33)*1 -> 0 | I29: =CONCATENATE('PLAN DE ACCIÓN INSTITUCIONAL'!V33)*1 -> 0.0833 | J29: =CONCATENATE('PLAN DE ACCIÓN INSTITUCIONAL'!W33)*1 -> 0.17 | K29: =CONCATENATE('PLAN DE ACCIÓN INSTITUCIONAL'!Y33)*1 -> 0.0833 | L29: =CONCATENATE('PLAN DE ACCIÓN INSTITUCIONAL'!Z33)*1 -> 0.0833 | M29: =CONCATENATE('PLAN DE ACCIÓN INSTITUCIONAL'!AB33)*1 -> 0.0833 | N29: =CONCATENATE('PLAN DE ACCIÓN INSTITUCIONAL'!AC33)*1 -> 0.0833 | O29: =CONCATENATE('PLAN DE ACCIÓN INSTITUCIONAL'!AE33)*1 -> 0.0833 | P29: =CONCATENATE('PLAN DE ACCIÓN INSTITUCIONAL'!AF33)*1 -> 0 | Q29: =CONCATENATE('PLAN DE ACCIÓN INSTITUCIONAL'!AH33)*1 -> 0.0833 | R29: =CONCATENATE('PLAN DE ACCIÓN INSTITUCIONAL'!AI33)*1 -> 0 | S29: =CONCATENATE('PLAN DE ACCIÓN INSTITUCIONAL'!AK33)*1 -> 0.0833 | T29: =CONCATENATE('PLAN DE ACCIÓN INSTITUCIONAL'!AL33)*1 -> 0 | U29: =CONCATENATE('PLAN DE ACCIÓN INSTITUCIONAL'!AN33)*1 -> 0.0833 | V29: =CONCATENATE('PLAN DE ACCIÓN INSTITUCIONAL'!AO33)*1 -> 0 | W29: =CONCATENATE('PLAN DE ACCIÓN INSTITUCIONAL'!AQ33)*1 -> 0.0833 | X29: =CONCATENATE('PLAN DE ACCIÓN INSTITUCIONAL'!AR33)*1 -> 0 | Y29: =CONCATENATE('PLAN DE ACCIÓN INSTITUCIONAL'!AT33)*1 -> 0.0833 | Z29: =CONCATENATE('PLAN DE ACCIÓN INSTITUCIONAL'!AU33)*1 -> 0 | AA29: =CONCATENATE('PLAN DE ACCIÓN INSTITUCIONAL'!AW33)*1 -> 0.0833 | AB29: =CONCATENATE('PLAN DE ACCIÓN INSTITUCIONAL'!AX33)*1 -> 0 | AC29: =CONCATENATE('PLAN DE ACCIÓN INSTITUCIONAL'!AZ33)*1 -> 0.0833 | AD29: =CONCATENATE('PLAN DE ACCIÓN INSTITUCIONAL'!BA33)*1 -> 0 | AE29: =+'PLAN DE ACCIÓN INSTITUCIONAL'!H33 -> 2020-01-01
A30: =CONCATENATE('PLAN DE ACCIÓN INSTITUCIONAL'!B34) -> SUBDIRECCIÓN DE ASUNTOS LEGALES - (SAL) | B30: =CONCATENATE('PLAN DE ACCIÓN INSTITUCIONAL'!C$31) -> Asegurar en lo jurídico el fortalecimiento del modelo de transformación organizacional | C30: =CONCATENATE('PLAN DE ACCIÓN INSTITUCIONAL'!D34) -> Políticas de la Dirección Distrital de Asuntos Disciplinarios, socializadas al interior de la UAESP | D30: =CONCATENATE('PLAN DE ACCIÓN INSTITUCIONAL'!F34) -> Socializar a través de diferentes estrategias las políticas emanadas por la Dirección Distrital de Asuntos Disciplinarios de la Alcaldía Mayor de Bogotá D.C, frente al ejercicio de la función disciplinaria, conforme a la normatividad vigente. | E30: =CONCATENATE('PLAN DE ACCIÓN INSTITUCIONAL'!M34) -> Fortalecimiento Institucional: Consolidar una entidad moderna y efectiva constituida por un equipo comprometido con el logro de los objetivos institucionales | F30: =CONCATENATE('PLAN DE ACCIÓN INSTITUCIONAL'!G34)*1 -> 1 | G30: =CONCATENATE('PLAN DE ACCIÓN INSTITUCIONAL'!S34)*1 ->  | H30: =CONCATENATE('PLAN DE ACCIÓN INSTITUCIONAL'!T34)*1 -> 0 | I30: =CONCATENATE('PLAN DE ACCIÓN INSTITUCIONAL'!V34)*1 ->  | J30: =CONCATENATE('PLAN DE ACCIÓN INSTITUCIONAL'!W34)*1 -> 0 | K30: =CONCATENATE('PLAN DE ACCIÓN INSTITUCIONAL'!Y34)*1 -> 0 | L30: =CONCATENATE('PLAN DE ACCIÓN INSTITUCIONAL'!Z34)*1 -> 0 | M30: =CONCATENATE('PLAN DE ACCIÓN INSTITUCIONAL'!AB34)*1 ->  | N30: =CONCATENATE('PLAN DE ACCIÓN INSTITUCIONAL'!AC34)*1 -> 0 | O30: =CONCATENATE('PLAN DE ACCIÓN INSTITUCIONAL'!AE34)*1 ->  | P30: =CONCATENATE('PLAN DE ACCIÓN INSTITUCIONAL'!AF34)*1 -> 0 | Q30: =CONCATENATE('PLAN DE ACCIÓN INSTITUCIONAL'!AH34)*1 -> 0.5 | R30: =CONCATENATE('PLAN DE ACCIÓN INSTITUCIONAL'!AI34)*1 -> 0 | S30: =CONCATENATE('PLAN DE ACCIÓN INSTITUCIONAL'!AK34)*1 ->  | T30: =CONCATENATE('PLAN DE ACCIÓN INSTITUCIONAL'!AL34)*1 -> 0 | U30: =CONCATENATE('PLAN DE ACCIÓN INSTITUCIONAL'!AN34)*1 ->  | V30: =CONCATENATE('PLAN DE ACCIÓN INSTITUCIONAL'!AO34)*1 -> 0 | W30: =CONCATENATE('PLAN DE ACCIÓN INSTITUCIONAL'!AQ34)*1 -> 0 | X30: =CONCATENATE('PLAN DE ACCIÓN INSTITUCIONAL'!AR34)*1 -> 0 | Y30: =CONCATENATE('PLAN DE ACCIÓN INSTITUCIONAL'!AT34)*1 ->  | Z30: =CONCATENATE('PLAN DE ACCIÓN INSTITUCIONAL'!AU34)*1 -> 0 | AA30: =CONCATENATE('PLAN DE ACCIÓN INSTITUCIONAL'!AW34)*1 ->  | AB30: =CONCATENATE('PLAN DE ACCIÓN INSTITUCIONAL'!AX34)*1 -> 0 | AC30: =CONCATENATE('PLAN DE ACCIÓN INSTITUCIONAL'!AZ34)*1 -> 0.5 | AD30: =CONCATENATE('PLAN DE ACCIÓN INSTITUCIONAL'!BA34)*1 -> 0 | AE30: =+'PLAN DE ACCIÓN INSTITUCIONAL'!H34 -> 2020-01-01
A31: =CONCATENATE('PLAN DE ACCIÓN INSTITUCIONAL'!B35) -> SUBDIRECCIÓN ADMINISTRATIVA Y FINANCIERA (SAF) | B31: =CONCATENATE('PLAN DE ACCIÓN INSTITUCIONAL'!C$35) -> Foralecer la Gestión documental integral | C31: =CONCATENATE('PLAN DE ACCIÓN INSTITUCIONAL'!D$35) -> Revisar y actualizar los instrumentos archivísticos en cumplimiento del Decreto 1080 del 2015. | D31: =CONCATENATE('PLAN DE ACCIÓN INSTITUCIONAL'!F35) -> Revisión y actualización de los instrumentos archivísticos de acuerdo con los lineamientos del plan de gestión documental aprobado y publicado | E31: =CONCATENATE('PLAN DE ACCIÓN INSTITUCIONAL'!M35) -> Fortalecimiento Institucional: Consolidar una entidad moderna y efectiva constituida por un equipo comprometido con el logro de los objetivos institucionales | F31: =CONCATENATE('PLAN DE ACCIÓN INSTITUCIONAL'!G35)*1 -> 1 | G31: =CONCATENATE('PLAN DE ACCIÓN INSTITUCIONAL'!S35)*1 ->  | H31: =CONCATENATE('PLAN DE ACCIÓN INSTITUCIONAL'!T35)*1 -> 0 | I31: =CONCATENATE('PLAN DE ACCIÓN INSTITUCIONAL'!V35)*1 ->  | J31: =CONCATENATE('PLAN DE ACCIÓN INSTITUCIONAL'!W35)*1 -> 0 | K31: =CONCATENATE('PLAN DE ACCIÓN INSTITUCIONAL'!Y35)*1 -> 0.15 | L31: =CONCATENATE('PLAN DE ACCIÓN INSTITUCIONAL'!Z35)*1 -> 0.15 | M31: =CONCATENATE('PLAN DE ACCIÓN INSTITUCIONAL'!AB35)*1 ->  | N31: =CONCATENATE('PLAN DE ACCIÓN INSTITUCIONAL'!AC35)*1 -> 0 | O31: =CONCATENATE('PLAN DE ACCIÓN INSTITUCIONAL'!AE35)*1 ->  | P31: =CONCATENATE('PLAN DE ACCIÓN INSTITUCIONAL'!AF35)*1 -> 0 | Q31: =CONCATENATE('PLAN DE ACCIÓN INSTITUCIONAL'!AH35)*1 -> 0.2 | R31: =CONCATENATE('PLAN DE ACCIÓN INSTITUCIONAL'!AI35)*1 -> 0 | S31: =CONCATENATE('PLAN DE ACCIÓN INSTITUCIONAL'!AK35)*1 ->  | T31: =CONCATENATE('PLAN DE ACCIÓN INSTITUCIONAL'!AL35)*1 -> 0 | U31: =CONCATENATE('PLAN DE ACCIÓN INSTITUCIONAL'!AN35)*1 ->  | V31: =CONCATENATE('PLAN DE ACCIÓN INSTITUCIONAL'!AO35)*1 -> 0 | W31: =CONCATENATE('PLAN DE ACCIÓN INSTITUCIONAL'!AQ35)*1 -> 0.2 | X31: =CONCATENATE('PLAN DE ACCIÓN INSTITUCIONAL'!AR35)*1 -> 0 | Y31: =CONCATENATE('PLAN DE ACCIÓN INSTITUCIONAL'!AT35)*1 ->  | Z31: =CONCATENATE('PLAN DE ACCIÓN INSTITUCIONAL'!AU35)*1 -> 0 | AA31: =CONCATENATE('PLAN DE ACCIÓN INSTITUCIONAL'!AW35)*1 ->  | AB31: =CONCATENATE('PLAN DE ACCIÓN INSTITUCIONAL'!AX35)*1 -> 0 | AC31: =CONCATENATE('PLAN DE ACCIÓN INSTITUCIONAL'!AZ35)*1 -> 0.45 | AD31: =CONCATENATE('PLAN DE ACCIÓN INSTITUCIONAL'!BA35)*1 -> 0 | AE31: =+'PLAN DE ACCIÓN INSTITUCIONAL'!H35 -> 2020-01-01
A32: =CONCATENATE('PLAN DE ACCIÓN INSTITUCIONAL'!B36) -> SUBDIRECCIÓN ADMINISTRATIVA Y FINANCIERA (SAF) | B32: =CONCATENATE('PLAN DE ACCIÓN INSTITUCIONAL'!C$35) -> Foralecer la Gestión documental integral | C32: =CONCATENATE('PLAN DE ACCIÓN INSTITUCIONAL'!D$35) -> Revisar y actualizar los instrumentos archivísticos en cumplimiento del Decreto 1080 del 2015. | D32: =CONCATENATE('PLAN DE ACCIÓN INSTITUCIONAL'!F36) -> Formulación de las Tablas de valoración documental (TVD) | E32: =CONCATENATE('PLAN DE ACCIÓN INSTITUCIONAL'!M36) -> Fortalecimiento Institucional: Consolidar una entidad moderna y efectiva constituida por un equipo comprometido con el logro de los objetivos institucionales | F32: =CONCATENATE('PLAN DE ACCIÓN INSTITUCIONAL'!G36)*1 -> 1 | G32: =CONCATENATE('PLAN DE ACCIÓN INSTITUCIONAL'!S36)*1 ->  | H32: =CONCATENATE('PLAN DE ACCIÓN INSTITUCIONAL'!T36)*1 -> 0 | I32: =CONCATENATE('PLAN DE ACCIÓN INSTITUCIONAL'!V36)*1 ->  | J32: =CONCATENATE('PLAN DE ACCIÓN INSTITUCIONAL'!W36)*1 -> 0 | K32: =CONCATENATE('PLAN DE ACCIÓN INSTITUCIONAL'!Y36)*1 ->  | L32: =CONCATENATE('PLAN DE ACCIÓN INSTITUCIONAL'!Z36)*1 -> 0 | M32: =CONCATENATE('PLAN DE ACCIÓN INSTITUCIONAL'!AB36)*1 ->  | N32: =CONCATENATE('PLAN DE ACCIÓN INSTITUCIONAL'!AC36)*1 -> 0 | O32: =CONCATENATE('PLAN DE ACCIÓN INSTITUCIONAL'!AE36)*1 ->  | P32: =CONCATENATE('PLAN DE ACCIÓN INSTITUCIONAL'!AF36)*1 -> 0 | Q32: =CONCATENATE('PLAN DE ACCIÓN INSTITUCIONAL'!AH36)*1 ->  | R32: =CONCATENATE('PLAN DE ACCIÓN INSTITUCIONAL'!AI36)*1 -> 0 | S32: =CONCATENATE('PLAN DE ACCIÓN INSTITUCIONAL'!AK36)*1 ->  | T32: =CONCATENATE('PLAN DE ACCIÓN INSTITUCIONAL'!AL36)*1 -> 0 | U32: =CONCATENATE('PLAN DE ACCIÓN INSTITUCIONAL'!AN36)*1 ->  | V32: =CONCATENATE('PLAN DE ACCIÓN INSTITUCIONAL'!AO36)*1 -> 0 | W32: =CONCATENATE('PLAN DE ACCIÓN INSTITUCIONAL'!AQ36)*1 -> 0.5 | X32: =CONCATENATE('PLAN DE ACCIÓN INSTITUCIONAL'!AR36)*1 -> 0 | Y32: =CONCATENATE('PLAN DE ACCIÓN INSTITUCIONAL'!AT36)*1 ->  | Z32: =CONCATENATE('PLAN DE ACCIÓN INSTITUCIONAL'!AU36)*1 -> 0 | AA32: =CONCATENATE('PLAN DE ACCIÓN INSTITUCIONAL'!AW36)*1 ->  | AB32: =CONCATENATE('PLAN DE ACCIÓN INSTITUCIONAL'!AX36)*1 -> 0 | AC32: =CONCATENATE('PLAN DE ACCIÓN INSTITUCIONAL'!AZ36)*1 -> 0.5 | AD32: =CONCATENATE('PLAN DE ACCIÓN INSTITUCIONAL'!BA36)*1 -> 0 | AE32: =+'PLAN DE ACCIÓN INSTITUCIONAL'!H36 -> 2020-05-01
A33: =CONCATENATE('PLAN DE ACCIÓN INSTITUCIONAL'!B37) -> SUBDIRECCIÓN ADMINISTRATIVA Y FINANCIERA (SAF) | B33: =CONCATENATE('PLAN DE ACCIÓN INSTITUCIONAL'!C$35) -> Foralecer la Gestión documental integral | C33: =CONCATENATE('PLAN DE ACCIÓN INSTITUCIONAL'!D37) -> Contar con la digitalización del 100% de los documentos de Archivo de las vigencias 2016 en adelante | D33: =CONCATENATE('PLAN DE ACCIÓN INSTITUCIONAL'!F37) -> Plan de trabajo que garantice el cumplimiento de la meta | E33: =CONCATENATE('PLAN DE ACCIÓN INSTITUCIONAL'!M37) -> Fortalecimiento Institucional: Consolidar una entidad moderna y efectiva constituida por un equipo comprometido con el logro de los objetivos institucionales | F33: =CONCATENATE('PLAN DE ACCIÓN INSTITUCIONAL'!G37)*1 -> 1 | G33: =CONCATENATE('PLAN DE ACCIÓN INSTITUCIONAL'!S37)*1 ->  | H33: =CONCATENATE('PLAN DE ACCIÓN INSTITUCIONAL'!T37)*1 -> 0 | I33: =CONCATENATE('PLAN DE ACCIÓN INSTITUCIONAL'!V37)*1 ->  | J33: =CONCATENATE('PLAN DE ACCIÓN INSTITUCIONAL'!W37)*1 -> 0 | K33: =CONCATENATE('PLAN DE ACCIÓN INSTITUCIONAL'!Y37)*1 -> 0.1 | L33: =CONCATENATE('PLAN DE ACCIÓN INSTITUCIONAL'!Z37)*1 -> 0.1 | M33: =CONCATENATE('PLAN DE ACCIÓN INSTITUCIONAL'!AB37)*1 -> 0.1 | N33: =CONCATENATE('PLAN DE ACCIÓN INSTITUCIONAL'!AC37)*1 -> 0 | O33: =CONCATENATE('PLAN DE ACCIÓN INSTITUCIONAL'!AE37)*1 -> 0.1 | P33: =CONCATENATE('PLAN DE ACCIÓN INSTITUCIONAL'!AF37)*1 -> 0 | Q33: =CONCATENATE('PLAN DE ACCIÓN INSTITUCIONAL'!AH37)*1 -> 0.1 | R33: =CONCATENATE('PLAN DE ACCIÓN INSTITUCIONAL'!AI37)*1 -> 0 | S33: =CONCATENATE('PLAN DE ACCIÓN INSTITUCIONAL'!AK37)*1 -> 0.1 | T33: =CONCATENATE('PLAN DE ACCIÓN INSTITUCIONAL'!AL37)*1 -> 0 | U33: =CONCATENATE('PLAN DE ACCIÓN INSTITUCIONAL'!AN37)*1 -> 0.1 | V33: =CONCATENATE('PLAN DE ACCIÓN INSTITUCIONAL'!AO37)*1 -> 0 | W33: =CONCATENATE('PLAN DE ACCIÓN INSTITUCIONAL'!AQ37)*1 -> 0.1 | X33: =CONCATENATE('PLAN DE ACCIÓN INSTITUCIONAL'!AR37)*1 -> 0 | Y33: =CONCATENATE('PLAN DE ACCIÓN INSTITUCIONAL'!AT37)*1 -> 0.1 | Z33: =CONCATENATE('PLAN DE ACCIÓN INSTITUCIONAL'!AU37)*1 -> 0 | AA33: =CONCATENATE('PLAN DE ACCIÓN INSTITUCIONAL'!AW37)*1 -> 0.1 | AB33: =CONCATENATE('PLAN DE ACCIÓN INSTITUCIONAL'!AX37)*1 -> 0 | AC33: =CONCATENATE('PLAN DE ACCIÓN INSTITUCIONAL'!AZ37)*1 -> 0.1 | AD33: =CONCATENATE('PLAN DE ACCIÓN INSTITUCIONAL'!BA37)*1 -> 0 | AE33: =+'PLAN DE ACCIÓN INSTITUCIONAL'!H37 -> 2020-03-01
A34: =CONCATENATE('PLAN DE ACCIÓN INSTITUCIONAL'!B38) -> SUBDIRECCIÓN ADMINISTRATIVA Y FINANCIERA (SAF) | B34: =CONCATENATE('PLAN DE ACCIÓN INSTITUCIONAL'!C$35) -> Foralecer la Gestión documental integral | C34: =CONCATENATE('PLAN DE ACCIÓN INSTITUCIONAL'!D38) -> Integración del Sistema de Gestión Documental Orfeo con Bogotá te Escucha Sistema distrital de quejas y soluciones circular 007 de 2019 | D34: =CONCATENATE('PLAN DE ACCIÓN INSTITUCIONAL'!F38) -> Implementación de la primera Fase que consiste en la radicación web | E34: =CONCATENATE('PLAN DE ACCIÓN INSTITUCIONAL'!M38) -> Fortalecimiento Institucional: Consolidar una entidad moderna y efectiva constituida por un equipo comprometido con el logro de los objetivos institucionales | F34: =CONCATENATE('PLAN DE ACCIÓN INSTITUCIONAL'!G38)*1 -> 1 | G34: =CONCATENATE('PLAN DE ACCIÓN INSTITUCIONAL'!S38)*1 ->  | H34: =CONCATENATE('PLAN DE ACCIÓN INSTITUCIONAL'!T38)*1 -> 0 | I34: =CONCATENATE('PLAN DE ACCIÓN INSTITUCIONAL'!V38)*1 ->  | J34: =CONCATENATE('PLAN DE ACCIÓN INSTITUCIONAL'!W38)*1 -> 0 | K34: =CONCATENATE('PLAN DE ACCIÓN INSTITUCIONAL'!Y38)*1 ->  | L34: =CONCATENATE('PLAN DE ACCIÓN INSTITUCIONAL'!Z38)*1 -> 0 | M34: =CONCATENATE('PLAN DE ACCIÓN INSTITUCIONAL'!AB38)*1 ->  | N34: =CONCATENATE('PLAN DE ACCIÓN INSTITUCIONAL'!AC38)*1 -> 0 | O34: =CONCATENATE('PLAN DE ACCIÓN INSTITUCIONAL'!AE38)*1 ->  | P34: =CONCATENATE('PLAN DE ACCIÓN INSTITUCIONAL'!AF38)*1 -> 0 | Q34: =CONCATENATE('PLAN DE ACCIÓN INSTITUCIONAL'!AH38)*1 ->  | R34: =CONCATENATE('PLAN DE ACCIÓN INSTITUCIONAL'!AI38)*1 -> 0 | S34: =CONCATENATE('PLAN DE ACCIÓN INSTITUCIONAL'!AK38)*1 ->  | T34: =CONCATENATE('PLAN DE ACCIÓN INSTITUCIONAL'!AL38)*1 -> 0 | U34: =CONCATENATE('PLAN DE ACCIÓN INSTITUCIONAL'!AN38)*1 ->  | V34: =CONCATENATE('PLAN DE ACCIÓN INSTITUCIONAL'!AO38)*1 -> 0 | W34: =CONCATENATE('PLAN DE ACCIÓN INSTITUCIONAL'!AQ38)*1 ->  | X34: =CONCATENATE('PLAN DE ACCIÓN INSTITUCIONAL'!AR38)*1 -> 0 | Y34: =CONCATENATE('PLAN DE ACCIÓN INSTITUCIONAL'!AT38)*1 ->  | Z34: =CONCATENATE('PLAN DE ACCIÓN INSTITUCIONAL'!AU38)*1 -> 0 | AA34: =CONCATENATE('PLAN DE ACCIÓN INSTITUCIONAL'!AW38)*1 ->  | AB34: =CONCATENATE('PLAN DE ACCIÓN INSTITUCIONAL'!AX38)*1 -> 0 | AC34: =CONCATENATE('PLAN DE ACCIÓN INSTITUCIONAL'!AZ38)*1 -> 1 | AD34: =CONCATENATE('PLAN DE ACCIÓN INSTITUCIONAL'!BA38)*1 -> 0 | AE34: =+'PLAN DE ACCIÓN INSTITUCIONAL'!H38 -> 2020-01-01
A35: =CONCATENATE('PLAN DE ACCIÓN INSTITUCIONAL'!B39) -> SUBDIRECCIÓN ADMINISTRATIVA Y FINANCIERA (SAF) | B35: =CONCATENATE('PLAN DE ACCIÓN INSTITUCIONAL'!C39) -> Fortalecer la Gestión de atención al ciudadano | C35: =CONCATENATE('PLAN DE ACCIÓN INSTITUCIONAL'!D39) -> Establecer una línea base de percepción ciudadana frente a la atención de PQRS | D35: =CONCATENATE('PLAN DE ACCIÓN INSTITUCIONAL'!F39) -> Implementación de la encuesta de percepción en el canal telefónico. (viene 2019) | E35: =CONCATENATE('PLAN DE ACCIÓN INSTITUCIONAL'!M39) -> Fortalecimiento Institucional: Consolidar una entidad moderna y efectiva constituida por un equipo comprometido con el logro de los objetivos institucionales | F35: =CONCATENATE('PLAN DE ACCIÓN INSTITUCIONAL'!G39)*1 -> 1 | G35: =CONCATENATE('PLAN DE ACCIÓN INSTITUCIONAL'!S39)*1 ->  | H35: =CONCATENATE('PLAN DE ACCIÓN INSTITUCIONAL'!T39)*1 -> 0 | I35: =CONCATENATE('PLAN DE ACCIÓN INSTITUCIONAL'!V39)*1 ->  | J35: =CONCATENATE('PLAN DE ACCIÓN INSTITUCIONAL'!W39)*1 -> 0 | K35: =CONCATENATE('PLAN DE ACCIÓN INSTITUCIONAL'!Y39)*1 ->  | L35: =CONCATENATE('PLAN DE ACCIÓN INSTITUCIONAL'!Z39)*1 -> 0 | M35: =CONCATENATE('PLAN DE ACCIÓN INSTITUCIONAL'!AB39)*1 -> 0.3 | N35: =CONCATENATE('PLAN DE ACCIÓN INSTITUCIONAL'!AC39)*1 -> 0 | O35: =CONCATENATE('PLAN DE ACCIÓN INSTITUCIONAL'!AE39)*1 ->  | P35: =CONCATENATE('PLAN DE ACCIÓN INSTITUCIONAL'!AF39)*1 -> 0 | Q35: =CONCATENATE('PLAN DE ACCIÓN INSTITUCIONAL'!AH39)*1 ->  | R35: =CONCATENATE('PLAN DE ACCIÓN INSTITUCIONAL'!AI39)*1 -> 0 | S35: =CONCATENATE('PLAN DE ACCIÓN INSTITUCIONAL'!AK39)*1 -> 0.3 | T35: =CONCATENATE('PLAN DE ACCIÓN INSTITUCIONAL'!AL39)*1 -> 0 | U35: =CONCATENATE('PLAN DE ACCIÓN INSTITUCIONAL'!AN39)*1 ->  | V35: =CONCATENATE('PLAN DE ACCIÓN INSTITUCIONAL'!AO39)*1 -> 0 | W35: =CONCATENATE('PLAN DE ACCIÓN INSTITUCIONAL'!AQ39)*1 ->  | X35: =CONCATENATE('PLAN DE ACCIÓN INSTITUCIONAL'!AR39)*1 -> 0 | Y35: =CONCATENATE('PLAN DE ACCIÓN INSTITUCIONAL'!AT39)*1 ->  | Z35: =CONCATENATE('PLAN DE ACCIÓN INSTITUCIONAL'!AU39)*1 -> 0 | AA35: =CONCATENATE('PLAN DE ACCIÓN INSTITUCIONAL'!AW39)*1 ->  | AB35: =CONCATENATE('PLAN DE ACCIÓN INSTITUCIONAL'!AX39)*1 -> 0 | AC35: =CONCATENATE('PLAN DE ACCIÓN INSTITUCIONAL'!AZ39)*1 -> 0.4 | AD35: =CONCATENATE('PLAN DE ACCIÓN INSTITUCIONAL'!BA39)*1 -> 0 | AE35: =+'PLAN DE ACCIÓN INSTITUCIONAL'!H39 -> 2020-01-01
A36: =CONCATENATE('PLAN DE ACCIÓN INSTITUCIONAL'!B40) -> SUBDIRECCIÓN ADMINISTRATIVA Y FINANCIERA (SAF) | B36: =CONCATENATE('PLAN DE ACCIÓN INSTITUCIONAL'!C$40) -> Fortalecer el Sistema Integrado de Gestión Financiera SI-CAPITAL. | C36: =CONCATENATE('PLAN DE ACCIÓN INSTITUCIONAL'!D$40) -> Optimizar la utilización de los módulos que conforman el aplicativo SI-CAPITAL | D36: =CONCATENATE('PLAN DE ACCIÓN INSTITUCIONAL'!F40) -> Seguimiento a la integración de los módulos que conforman el aplicativo SI-CAPITAL | E36: =CONCATENATE('PLAN DE ACCIÓN INSTITUCIONAL'!M40) -> Fortalecimiento Institucional: Consolidar una entidad moderna y efectiva constituida por un equipo comprometido con el logro de los objetivos institucionales | F36: =CONCATENATE('PLAN DE ACCIÓN INSTITUCIONAL'!G40)*1 -> 0.7 | G36: =CONCATENATE('PLAN DE ACCIÓN INSTITUCIONAL'!S40)*1 -> 0.08 | H36: =CONCATENATE('PLAN DE ACCIÓN INSTITUCIONAL'!T40)*1 -> 0.08 | I36: =CONCATENATE('PLAN DE ACCIÓN INSTITUCIONAL'!V40)*1 -> 0.08 | J36: =CONCATENATE('PLAN DE ACCIÓN INSTITUCIONAL'!W40)*1 -> 0.08 | K36: =CONCATENATE('PLAN DE ACCIÓN INSTITUCIONAL'!Y40)*1 -> 0.08 | L36: =CONCATENATE('PLAN DE ACCIÓN INSTITUCIONAL'!Z40)*1 -> 0 | M36: =CONCATENATE('PLAN DE ACCIÓN INSTITUCIONAL'!AB40)*1 -> 0.08 | N36: =CONCATENATE('PLAN DE ACCIÓN INSTITUCIONAL'!AC40)*1 -> 0 | O36: =CONCATENATE('PLAN DE ACCIÓN INSTITUCIONAL'!AE40)*1 -> 0.08 | P36: =CONCATENATE('PLAN DE ACCIÓN INSTITUCIONAL'!AF40)*1 -> 0 | Q36: =CONCATENATE('PLAN DE ACCIÓN INSTITUCIONAL'!AH40)*1 -> 0.08 | R36: =CONCATENATE('PLAN DE ACCIÓN INSTITUCIONAL'!AI40)*1 -> 0 | S36: =CONCATENATE('PLAN DE ACCIÓN INSTITUCIONAL'!AK40)*1 -> 0.08 | T36: =CONCATENATE('PLAN DE ACCIÓN INSTITUCIONAL'!AL40)*1 -> 0 | U36: =CONCATENATE('PLAN DE ACCIÓN INSTITUCIONAL'!AN40)*1 -> 0.08 | V36: =CONCATENATE('PLAN DE ACCIÓN INSTITUCIONAL'!AO40)*1 -> 0 | W36: =CONCATENATE('PLAN DE ACCIÓN INSTITUCIONAL'!AQ40)*1 -> 0.08 | X36: =CONCATENATE('PLAN DE ACCIÓN INSTITUCIONAL'!AR40)*1 -> 0 | Y36: =CONCATENATE('PLAN DE ACCIÓN INSTITUCIONAL'!AT40)*1 -> 0.08 | Z36: =CONCATENATE('PLAN DE ACCIÓN INSTITUCIONAL'!AU40)*1 -> 0 | AA36: =CONCATENATE('PLAN DE ACCIÓN INSTITUCIONAL'!AW40)*1 -> 0.08 | AB36: =CONCATENATE('PLAN DE ACCIÓN INSTITUCIONAL'!AX40)*1 -> 0 | AC36: =CONCATENATE('PLAN DE ACCIÓN INSTITUCIONAL'!AZ40)*1 -> 0.12 | AD36: =CONCATENATE('PLAN DE ACCIÓN INSTITUCIONAL'!BA40)*1 -> 0 | AE36: =+'PLAN DE ACCIÓN INSTITUCIONAL'!H40 -> 2020-01-01
A37: =CONCATENATE('PLAN DE ACCIÓN INSTITUCIONAL'!B41) -> SUBDIRECCIÓN ADMINISTRATIVA Y FINANCIERA (SAF) | B37: =CONCATENATE('PLAN DE ACCIÓN INSTITUCIONAL'!C$40) -> Fortalecer el Sistema Integrado de Gestión Financiera SI-CAPITAL. | C37: =CONCATENATE('PLAN DE ACCIÓN INSTITUCIONAL'!D$40) -> Optimizar la utilización de los módulos que conforman el aplicativo SI-CAPITAL | D37: =CONCATENATE('PLAN DE ACCIÓN INSTITUCIONAL'!F41) -> Dos desarrollos de funcionalidades del aplicativo SI-CAPITAL que optimice la gestión financiera de la entidad | E37: =CONCATENATE('PLAN DE ACCIÓN INSTITUCIONAL'!M41) -> Fortalecimiento Institucional: Consolidar una entidad moderna y efectiva constituida por un equipo comprometido con el logro de los objetivos institucionales | F37: =CONCATENATE('PLAN DE ACCIÓN INSTITUCIONAL'!G41)*1 -> 0.3 | G37: =CONCATENATE('PLAN DE ACCIÓN INSTITUCIONAL'!S41)*1 ->  | H37: =CONCATENATE('PLAN DE ACCIÓN INSTITUCIONAL'!T41)*1 -> 0 | I37: =CONCATENATE('PLAN DE ACCIÓN INSTITUCIONAL'!V41)*1 ->  | J37: =CONCATENATE('PLAN DE ACCIÓN INSTITUCIONAL'!W41)*1 -> 0 | K37: =CONCATENATE('PLAN DE ACCIÓN INSTITUCIONAL'!Y41)*1 ->  | L37: =CONCATENATE('PLAN DE ACCIÓN INSTITUCIONAL'!Z41)*1 -> 0 | M37: =CONCATENATE('PLAN DE ACCIÓN INSTITUCIONAL'!AB41)*1 ->  | N37: =CONCATENATE('PLAN DE ACCIÓN INSTITUCIONAL'!AC41)*1 -> 0 | O37: =CONCATENATE('PLAN DE ACCIÓN INSTITUCIONAL'!AE41)*1 ->  | P37: =CONCATENATE('PLAN DE ACCIÓN INSTITUCIONAL'!AF41)*1 -> 0 | Q37: =CONCATENATE('PLAN DE ACCIÓN INSTITUCIONAL'!AH41)*1 ->  | R37: =CONCATENATE('PLAN DE ACCIÓN INSTITUCIONAL'!AI41)*1 -> 0 | S37: =CONCATENATE('PLAN DE ACCIÓN INSTITUCIONAL'!AK41)*1 ->  | T37: =CONCATENATE('PLAN DE ACCIÓN INSTITUCIONAL'!AL41)*1 -> 0 | U37: =CONCATENATE('PLAN DE ACCIÓN INSTITUCIONAL'!AN41)*1 ->  | V37: =CONCATENATE('PLAN DE ACCIÓN INSTITUCIONAL'!AO41)*1 -> 0 | W37: =CONCATENATE('PLAN DE ACCIÓN INSTITUCIONAL'!AQ41)*1 ->  | X37: =CONCATENATE('PLAN DE ACCIÓN INSTITUCIONAL'!AR41)*1 -> 0 | Y37: =CONCATENATE('PLAN DE ACCIÓN INSTITUCIONAL'!AT41)*1 ->  | Z37: =CONCATENATE('PLAN DE ACCIÓN INSTITUCIONAL'!AU41)*1 -> 0 | AA37: =CONCATENATE('PLAN DE ACCIÓN INSTITUCIONAL'!AW41)*1 ->  | AB37: =CONCATENATE('PLAN DE ACCIÓN INSTITUCIONAL'!AX41)*1 -> 0 | AC37: =CONCATENATE('PLAN DE ACCIÓN INSTITUCIONAL'!AZ41)*1 -> 1 | AD37: =CONCATENATE('PLAN DE ACCIÓN INSTITUCIONAL'!BA41)*1 -> 0 | AE37: =+'PLAN DE ACCIÓN INSTITUCIONAL'!H41 -> 2020-01-01
A38: =CONCATENATE('PLAN DE ACCIÓN INSTITUCIONAL'!B42) -> SUBDIRECCIÓN ADMINISTRATIVA Y FINANCIERA (SAF) | B38: =CONCATENATE('PLAN DE ACCIÓN INSTITUCIONAL'!C$42) -> Hacer de la UAESP un referente en el Distrito, por su ambiente laboral | C38: =CONCATENATE('PLAN DE ACCIÓN INSTITUCIONAL'!D$42) -> Fortalecer el ambiente laboral de la entidad | D38: =CONCATENATE('PLAN DE ACCIÓN INSTITUCIONAL'!F42) -> Ejecutar el plan de intervención para el mejoramiento del clima laboral. | E38: =CONCATENATE('PLAN DE ACCIÓN INSTITUCIONAL'!M42) -> Fortalecimiento Institucional: Consolidar una entidad moderna y efectiva constituida por un equipo comprometido con el logro de los objetivos institucionales | F38: =CONCATENATE('PLAN DE ACCIÓN INSTITUCIONAL'!G42)*1 -> 0.3 | G38: =CONCATENATE('PLAN DE ACCIÓN INSTITUCIONAL'!S42)*1 ->  | H38: =CONCATENATE('PLAN DE ACCIÓN INSTITUCIONAL'!T42)*1 -> 0 | I38: =CONCATENATE('PLAN DE ACCIÓN INSTITUCIONAL'!V42)*1 ->  | J38: =CONCATENATE('PLAN DE ACCIÓN INSTITUCIONAL'!W42)*1 -> 0 | K38: =CONCATENATE('PLAN DE ACCIÓN INSTITUCIONAL'!Y42)*1 -> 0.25 | L38: =CONCATENATE('PLAN DE ACCIÓN INSTITUCIONAL'!Z42)*1 -> 0 | M38: =CONCATENATE('PLAN DE ACCIÓN INSTITUCIONAL'!AB42)*1 ->  | N38: =CONCATENATE('PLAN DE ACCIÓN INSTITUCIONAL'!AC42)*1 -> 0 | O38: =CONCATENATE('PLAN DE ACCIÓN INSTITUCIONAL'!AE42)*1 ->  | P38: =CONCATENATE('PLAN DE ACCIÓN INSTITUCIONAL'!AF42)*1 -> 0 | Q38: =CONCATENATE('PLAN DE ACCIÓN INSTITUCIONAL'!AH42)*1 -> 0.25 | R38: =CONCATENATE('PLAN DE ACCIÓN INSTITUCIONAL'!AI42)*1 -> 0 | S38: =CONCATENATE('PLAN DE ACCIÓN INSTITUCIONAL'!AK42)*1 ->  | T38: =CONCATENATE('PLAN DE ACCIÓN INSTITUCIONAL'!AL42)*1 -> 0 | U38: =CONCATENATE('PLAN DE ACCIÓN INSTITUCIONAL'!AN42)*1 ->  | V38: =CONCATENATE('PLAN DE ACCIÓN INSTITUCIONAL'!AO42)*1 -> 0 | W38: =CONCATENATE('PLAN DE ACCIÓN INSTITUCIONAL'!AQ42)*1 -> 0.25 | X38: =CONCATENATE('PLAN DE ACCIÓN INSTITUCIONAL'!AR42)*1 -> 0 | Y38: =CONCATENATE('PLAN DE ACCIÓN INSTITUCIONAL'!AT42)*1 ->  | Z38: =CONCATENATE('PLAN DE ACCIÓN INSTITUCIONAL'!AU42)*1 -> 0 | AA38: =CONCATENATE('PLAN DE ACCIÓN INSTITUCIONAL'!AW42)*1 ->  | AB38: =CONCATENATE('PLAN DE ACCIÓN INSTITUCIONAL'!AX42)*1 -> 0 | AC38: =CONCATENATE('PLAN DE ACCIÓN INSTITUCIONAL'!AZ42)*1 -> 0.25 | AD38: =CONCATENATE('PLAN DE ACCIÓN INSTITUCIONAL'!BA42)*1 -> 0 | AE38: =+'PLAN DE ACCIÓN INSTITUCIONAL'!H42 -> 2020-02-03
A39: =CONCATENATE('PLAN DE ACCIÓN INSTITUCIONAL'!B43) -> SUBDIRECCIÓN ADMINISTRATIVA Y FINANCIERA (SAF) | B39: =CONCATENATE('PLAN DE ACCIÓN INSTITUCIONAL'!C$42) -> Hacer de la UAESP un referente en el Distrito, por su ambiente laboral | C39: =CONCATENATE('PLAN DE ACCIÓN INSTITUCIONAL'!D$42) -> Fortalecer el ambiente laboral de la entidad | D39: =CONCATENATE('PLAN DE ACCIÓN INSTITUCIONAL'!F43) -> Fortalecer la modalidad de teletrabajo | E39: =CONCATENATE('PLAN DE ACCIÓN INSTITUCIONAL'!M43) -> Fortalecimiento Institucional: Consolidar una entidad moderna y efectiva constituida por un equipo comprometido con el logro de los objetivos institucionales | F39: =CONCATENATE('PLAN DE ACCIÓN INSTITUCIONAL'!G43)*1 -> 0.1 | G39: =CONCATENATE('PLAN DE ACCIÓN INSTITUCIONAL'!S43)*1 ->  | H39: =CONCATENATE('PLAN DE ACCIÓN INSTITUCIONAL'!T43)*1 -> 0 | I39: =CONCATENATE('PLAN DE ACCIÓN INSTITUCIONAL'!V43)*1 ->  | J39: =CONCATENATE('PLAN DE ACCIÓN INSTITUCIONAL'!W43)*1 -> 0 | K39: =CONCATENATE('PLAN DE ACCIÓN INSTITUCIONAL'!Y43)*1 -> 0.25 | L39: =CONCATENATE('PLAN DE ACCIÓN INSTITUCIONAL'!Z43)*1 -> 0 | M39: =CONCATENATE('PLAN DE ACCIÓN INSTITUCIONAL'!AB43)*1 ->  | N39: =CONCATENATE('PLAN DE ACCIÓN INSTITUCIONAL'!AC43)*1 -> 0 | O39: =CONCATENATE('PLAN DE ACCIÓN INSTITUCIONAL'!AE43)*1 ->  | P39: =CONCATENATE('PLAN DE ACCIÓN INSTITUCIONAL'!AF43)*1 -> 0 | Q39: =CONCATENATE('PLAN DE ACCIÓN INSTITUCIONAL'!AH43)*1 -> 0.25 | R39: =CONCATENATE('PLAN DE ACCIÓN INSTITUCIONAL'!AI43)*1 -> 0 | S39: =CONCATENATE('PLAN DE ACCIÓN INSTITUCIONAL'!AK43)*1 ->  | T39: =CONCATENATE('PLAN DE ACCIÓN INSTITUCIONAL'!AL43)*1 -> 0 | U39: =CONCATENATE('PLAN DE ACCIÓN INSTITUCIONAL'!AN43)*1 ->  | V39: =CONCATENATE('PLAN DE ACCIÓN INSTITUCIONAL'!AO43)*1 -> 0 | W39: =CONCATENATE('PLAN DE ACCIÓN INSTITUCIONAL'!AQ43)*1 -> 0.25 | X39: =CONCATENATE('PLAN DE ACCIÓN INSTITUCIONAL'!AR43)*1 -> 0 | Y39: =CONCATENATE('PLAN DE ACCIÓN INSTITUCIONAL'!AT43)*1 ->  | Z39: =CONCATENATE('PLAN DE ACCIÓN INSTITUCIONAL'!AU43)*1 -> 0 | AA39: =CONCATENATE('PLAN DE ACCIÓN INSTITUCIONAL'!AW43)*1 ->  | AB39: =CONCATENATE('PLAN DE ACCIÓN INSTITUCIONAL'!AX43)*1 -> 0 | AC39: =CONCATENATE('PLAN DE ACCIÓN INSTITUCIONAL'!AZ43)*1 -> 0.25 | AD39: =CONCATENATE('PLAN DE ACCIÓN INSTITUCIONAL'!BA43)*1 -> 0 | AE39: =+'PLAN DE ACCIÓN INSTITUCIONAL'!H43 -> 2020-02-03
A40: =CONCATENATE('PLAN DE ACCIÓN INSTITUCIONAL'!B44) -> SUBDIRECCIÓN ADMINISTRATIVA Y FINANCIERA (SAF) | B40: =CONCATENATE('PLAN DE ACCIÓN INSTITUCIONAL'!C$42) -> Hacer de la UAESP un referente en el Distrito, por su ambiente laboral | C40: =CONCATENATE('PLAN DE ACCIÓN INSTITUCIONAL'!D$42) -> Fortalecer el ambiente laboral de la entidad | D40: =CONCATENATE('PLAN DE ACCIÓN INSTITUCIONAL'!F44) -> Formular y ejecutar el Plan Institucional de Capacitación de la entidad en un 90% | E40: =CONCATENATE('PLAN DE ACCIÓN INSTITUCIONAL'!M44) -> Fortalecimiento Institucional: Consolidar una entidad moderna y efectiva constituida por un equipo comprometido con el logro de los objetivos institucionales | F40: =CONCATENATE('PLAN DE ACCIÓN INSTITUCIONAL'!G44)*1 -> 0.3 | G40: =CONCATENATE('PLAN DE ACCIÓN INSTITUCIONAL'!S44)*1 ->  | H40: =CONCATENATE('PLAN DE ACCIÓN INSTITUCIONAL'!T44)*1 -> 0 | I40: =CONCATENATE('PLAN DE ACCIÓN INSTITUCIONAL'!V44)*1 ->  | J40: =CONCATENATE('PLAN DE ACCIÓN INSTITUCIONAL'!W44)*1 -> 0 | K40: =CONCATENATE('PLAN DE ACCIÓN INSTITUCIONAL'!Y44)*1 -> 0.25 | L40: =CONCATENATE('PLAN DE ACCIÓN INSTITUCIONAL'!Z44)*1 -> 0 | M40: =CONCATENATE('PLAN DE ACCIÓN INSTITUCIONAL'!AB44)*1 ->  | N40: =CONCATENATE('PLAN DE ACCIÓN INSTITUCIONAL'!AC44)*1 -> 0 | O40: =CONCATENATE('PLAN DE ACCIÓN INSTITUCIONAL'!AE44)*1 ->  | P40: =CONCATENATE('PLAN DE ACCIÓN INSTITUCIONAL'!AF44)*1 -> 0 | Q40: =CONCATENATE('PLAN DE ACCIÓN INSTITUCIONAL'!AH44)*1 -> 0.25 | R40: =CONCATENATE('PLAN DE ACCIÓN INSTITUCIONAL'!AI44)*1 -> 0 | S40: =CONCATENATE('PLAN DE ACCIÓN INSTITUCIONAL'!AK44)*1 ->  | T40: =CONCATENATE('PLAN DE ACCIÓN INSTITUCIONAL'!AL44)*1 -> 0 | U40: =CONCATENATE('PLAN DE ACCIÓN INSTITUCIONAL'!AN44)*1 ->  | V40: =CONCATENATE('PLAN DE ACCIÓN INSTITUCIONAL'!AO44)*1 -> 0 | W40: =CONCATENATE('PLAN DE ACCIÓN INSTITUCIONAL'!AQ44)*1 -> 0.25 | X40: =CONCATENATE('PLAN DE ACCIÓN INSTITUCIONAL'!AR44)*1 -> 0 | Y40: =CONCATENATE('PLAN DE ACCIÓN INSTITUCIONAL'!AT44)*1 ->  | Z40: =CONCATENATE('PLAN DE ACCIÓN INSTITUCIONAL'!AU44)*1 -> 0 | AA40: =CONCATENATE('PLAN DE ACCIÓN INSTITUCIONAL'!AW44)*1 ->  | AB40: =CONCATENATE('PLAN DE ACCIÓN INSTITUCIONAL'!AX44)*1 -> 0 | AC40: =CONCATENATE('PLAN DE ACCIÓN INSTITUCIONAL'!AZ44)*1 -> 0.25 | AD40: =CONCATENATE('PLAN DE ACCIÓN INSTITUCIONAL'!BA44)*1 -> 0 | AE40: =+'PLAN DE ACCIÓN INSTITUCIONAL'!H44 -> 2020-02-03
A41: =CONCATENATE('PLAN DE ACCIÓN INSTITUCIONAL'!B45) -> SUBDIRECCIÓN ADMINISTRATIVA Y FINANCIERA (SAF) | B41: =CONCATENATE('PLAN DE ACCIÓN INSTITUCIONAL'!C$42) -> Hacer de la UAESP un referente en el Distrito, por su ambiente laboral | C41: =CONCATENATE('PLAN DE ACCIÓN INSTITUCIONAL'!D$42) -> Fortalecer el ambiente laboral de la entidad | D41: =CONCATENATE('PLAN DE ACCIÓN INSTITUCIONAL'!F45) -> Ejecutar el Plan de Bienestar e incentivos de la entidad al 90% | E41: =CONCATENATE('PLAN DE ACCIÓN INSTITUCIONAL'!M45) -> Fortalecimiento Institucional: Consolidar una entidad moderna y efectiva constituida por un equipo comprometido con el logro de los objetivos institucionales | F41: =CONCATENATE('PLAN DE ACCIÓN INSTITUCIONAL'!G45)*1 -> 0.3 | G41: =CONCATENATE('PLAN DE ACCIÓN INSTITUCIONAL'!S45)*1 ->  | H41: =CONCATENATE('PLAN DE ACCIÓN INSTITUCIONAL'!T45)*1 -> 0 | I41: =CONCATENATE('PLAN DE ACCIÓN INSTITUCIONAL'!V45)*1 ->  | J41: =CONCATENATE('PLAN DE ACCIÓN INSTITUCIONAL'!W45)*1 -> 0 | K41: =CONCATENATE('PLAN DE ACCIÓN INSTITUCIONAL'!Y45)*1 -> 0.25 | L41: =CONCATENATE('PLAN DE ACCIÓN INSTITUCIONAL'!Z45)*1 -> 0 | M41: =CONCATENATE('PLAN DE ACCIÓN INSTITUCIONAL'!AB45)*1 ->  | N41: =CONCATENATE('PLAN DE ACCIÓN INSTITUCIONAL'!AC45)*1 -> 0 | O41: =CONCATENATE('PLAN DE ACCIÓN INSTITUCIONAL'!AE45)*1 ->  | P41: =CONCATENATE('PLAN DE ACCIÓN INSTITUCIONAL'!AF45)*1 -> 0 | Q41: =CONCATENATE('PLAN DE ACCIÓN INSTITUCIONAL'!AH45)*1 -> 0.25 | R41: =CONCATENATE('PLAN DE ACCIÓN INSTITUCIONAL'!AI45)*1 -> 0 | S41: =CONCATENATE('PLAN DE ACCIÓN INSTITUCIONAL'!AK45)*1 ->  | T41: =CONCATENATE('PLAN DE ACCIÓN INSTITUCIONAL'!AL45)*1 -> 0 | U41: =CONCATENATE('PLAN DE ACCIÓN INSTITUCIONAL'!AN45)*1 ->  | V41: =CONCATENATE('PLAN DE ACCIÓN INSTITUCIONAL'!AO45)*1 -> 0 | W41: =CONCATENATE('PLAN DE ACCIÓN INSTITUCIONAL'!AQ45)*1 -> 0.25 | X41: =CONCATENATE('PLAN DE ACCIÓN INSTITUCIONAL'!AR45)*1 -> 0 | Y41: =CONCATENATE('PLAN DE ACCIÓN INSTITUCIONAL'!AT45)*1 ->  | Z41: =CONCATENATE('PLAN DE ACCIÓN INSTITUCIONAL'!AU45)*1 -> 0 | AA41: =CONCATENATE('PLAN DE ACCIÓN INSTITUCIONAL'!AW45)*1 ->  | AB41: =CONCATENATE('PLAN DE ACCIÓN INSTITUCIONAL'!AX45)*1 -> 0 | AC41: =CONCATENATE('PLAN DE ACCIÓN INSTITUCIONAL'!AZ45)*1 -> 0.25 | AD41: =CONCATENATE('PLAN DE ACCIÓN INSTITUCIONAL'!BA45)*1 -> 0 | AE41: =+'PLAN DE ACCIÓN INSTITUCIONAL'!H45 -> 2020-02-03
A42: =CONCATENATE('PLAN DE ACCIÓN INSTITUCIONAL'!B46) -> SUBDIRECCIÓN ADMINISTRATIVA Y FINANCIERA (SAF) | B42: =CONCATENATE('PLAN DE ACCIÓN INSTITUCIONAL'!C$42) -> Hacer de la UAESP un referente en el Distrito, por su ambiente laboral | C42: =CONCATENATE('PLAN DE ACCIÓN INSTITUCIONAL'!D46) -> Implementar en un 90% el Sistema de Gestión de Seguridad y Salud en el Trabajo (SGSST). | D42: =CONCATENATE('PLAN DE ACCIÓN INSTITUCIONAL'!F46) -> Actividades ejecutadas hasta cumplir con el % programado. | E42: =CONCATENATE('PLAN DE ACCIÓN INSTITUCIONAL'!M46) -> Fortalecimiento Institucional: Consolidar una entidad moderna y efectiva constituida por un equipo comprometido con el logro de los objetivos institucionales | F42: =CONCATENATE('PLAN DE ACCIÓN INSTITUCIONAL'!G46)*1 -> 1 | G42: =CONCATENATE('PLAN DE ACCIÓN INSTITUCIONAL'!S46)*1 ->  | H42: =CONCATENATE('PLAN DE ACCIÓN INSTITUCIONAL'!T46)*1 -> 0 | I42: =CONCATENATE('PLAN DE ACCIÓN INSTITUCIONAL'!V46)*1 ->  | J42: =CONCATENATE('PLAN DE ACCIÓN INSTITUCIONAL'!W46)*1 -> 0 | K42: =CONCATENATE('PLAN DE ACCIÓN INSTITUCIONAL'!Y46)*1 ->  | L42: =CONCATENATE('PLAN DE ACCIÓN INSTITUCIONAL'!Z46)*1 -> 0 | M42: =CONCATENATE('PLAN DE ACCIÓN INSTITUCIONAL'!AB46)*1 ->  | N42: =CONCATENATE('PLAN DE ACCIÓN INSTITUCIONAL'!AC46)*1 -> 0 | O42: =CONCATENATE('PLAN DE ACCIÓN INSTITUCIONAL'!AE46)*1 ->  | P42: =CONCATENATE('PLAN DE ACCIÓN INSTITUCIONAL'!AF46)*1 -> 0 | Q42: =CONCATENATE('PLAN DE ACCIÓN INSTITUCIONAL'!AH46)*1 -> 0.5 | R42: =CONCATENATE('PLAN DE ACCIÓN INSTITUCIONAL'!AI46)*1 -> 0 | S42: =CONCATENATE('PLAN DE ACCIÓN INSTITUCIONAL'!AK46)*1 ->  | T42: =CONCATENATE('PLAN DE ACCIÓN INSTITUCIONAL'!AL46)*1 -> 0 | U42: =CONCATENATE('PLAN DE ACCIÓN INSTITUCIONAL'!AN46)*1 ->  | V42: =CONCATENATE('PLAN DE ACCIÓN INSTITUCIONAL'!AO46)*1 -> 0 | W42: =CONCATENATE('PLAN DE ACCIÓN INSTITUCIONAL'!AQ46)*1 ->  | X42: =CONCATENATE('PLAN DE ACCIÓN INSTITUCIONAL'!AR46)*1 -> 0 | Y42: =CONCATENATE('PLAN DE ACCIÓN INSTITUCIONAL'!AT46)*1 ->  | Z42: =CONCATENATE('PLAN DE ACCIÓN INSTITUCIONAL'!AU46)*1 -> 0 | AA42: =CONCATENATE('PLAN DE ACCIÓN INSTITUCIONAL'!AW46)*1 ->  | AB42: =CONCATENATE('PLAN DE ACCIÓN INSTITUCIONAL'!AX46)*1 -> 0 | AC42: =CONCATENATE('PLAN DE ACCIÓN INSTITUCIONAL'!AZ46)*1 -> 0.5 | AD42: =CONCATENATE('PLAN DE ACCIÓN INSTITUCIONAL'!BA46)*1 -> 0 | AE42: =+'PLAN DE ACCIÓN INSTITUCIONAL'!H46 -> 2020-02-03
A43: =CONCATENATE('PLAN DE ACCIÓN INSTITUCIONAL'!B47) -> SUBDIRECCIÓN ADMINISTRATIVA Y FINANCIERA (SAF) | B43: =CONCATENATE('PLAN DE ACCIÓN INSTITUCIONAL'!C47) -> Fortalecer la Infraestructura de todas las sedes que estén a cargo de la entidad en el marco de los requisitos legales. | C43: =CONCATENATE('PLAN DE ACCIÓN INSTITUCIONAL'!D47) -> Atender el 100% de las necesidades definidas y autorizadas. | D43: =CONCATENATE('PLAN DE ACCIÓN INSTITUCIONAL'!F47) -> Formulación y ejecución del plan de mantenimiento. | E43: =CONCATENATE('PLAN DE ACCIÓN INSTITUCIONAL'!M47) -> Fortalecimiento Institucional: Consolidar una entidad moderna y efectiva constituida por un equipo comprometido con el logro de los objetivos institucionales | F43: =CONCATENATE('PLAN DE ACCIÓN INSTITUCIONAL'!G47)*1 ->  | G43: =CONCATENATE('PLAN DE ACCIÓN INSTITUCIONAL'!S47)*1 ->  | H43: =CONCATENATE('PLAN DE ACCIÓN INSTITUCIONAL'!T47)*1 -> 0 | I43: =CONCATENATE('PLAN DE ACCIÓN INSTITUCIONAL'!V47)*1 ->  | J43: =CONCATENATE('PLAN DE ACCIÓN INSTITUCIONAL'!W47)*1 -> 0 | K43: =CONCATENATE('PLAN DE ACCIÓN INSTITUCIONAL'!Y47)*1 ->  | L43: =CONCATENATE('PLAN DE ACCIÓN INSTITUCIONAL'!Z47)*1 -> 0 | M43: =CONCATENATE('PLAN DE ACCIÓN INSTITUCIONAL'!AB47)*1 ->  | N43: =CONCATENATE('PLAN DE ACCIÓN INSTITUCIONAL'!AC47)*1 -> 0 | O43: =CONCATENATE('PLAN DE ACCIÓN INSTITUCIONAL'!AE47)*1 ->  | P43: =CONCATENATE('PLAN DE ACCIÓN INSTITUCIONAL'!AF47)*1 -> 0 | Q43: =CONCATENATE('PLAN DE ACCIÓN INSTITUCIONAL'!AH47)*1 ->  | R43: =CONCATENATE('PLAN DE ACCIÓN INSTITUCIONAL'!AI47)*1 -> 0 | S43: =CONCATENATE('PLAN DE ACCIÓN INSTITUCIONAL'!AK47)*1 -> 0.5 | T43: =CONCATENATE('PLAN DE ACCIÓN INSTITUCIONAL'!AL47)*1 -> 0 | U43: =CONCATENATE('PLAN DE ACCIÓN INSTITUCIONAL'!AN47)*1 ->  | V43: =CONCATENATE('PLAN DE ACCIÓN INSTITUCIONAL'!AO47)*1 -> 0 | W43: =CONCATENATE('PLAN DE ACCIÓN INSTITUCIONAL'!AQ47)*1 ->  | X43: =CONCATENATE('PLAN DE ACCIÓN INSTITUCIONAL'!AR47)*1 -> 0 | Y43: =CONCATENATE('PLAN DE ACCIÓN INSTITUCIONAL'!AT47)*1 ->  | Z43: =CONCATENATE('PLAN DE ACCIÓN INSTITUCIONAL'!AU47)*1 -> 0 | AA43: =CONCATENATE('PLAN DE ACCIÓN INSTITUCIONAL'!AW47)*1 ->  | AB43: =CONCATENATE('PLAN DE ACCIÓN INSTITUCIONAL'!AX47)*1 -> 0 | AC43: =CONCATENATE('PLAN DE ACCIÓN INSTITUCIONAL'!AZ47)*1 -> 0.5 | AD43: =CONCATENATE('PLAN DE ACCIÓN INSTITUCIONAL'!BA47)*1 -> 0 | AE43: =+'PLAN DE ACCIÓN INSTITUCIONAL'!H47 -> 2020-02-01
A44: =CONCATENATE('PLAN DE ACCIÓN INSTITUCIONAL'!B48) -> SUBDIRECCIÓN ADMINISTRATIVA Y FINANCIERA (SAF) | B44: =CONCATENATE('PLAN DE ACCIÓN INSTITUCIONAL'!C48) -> Coordinar acciones que promuevan la austeridad en el gasto | C44: =CONCATENATE('PLAN DE ACCIÓN INSTITUCIONAL'!D48) -> Plan de austeridad del gasto | D44: =CONCATENATE('PLAN DE ACCIÓN INSTITUCIONAL'!F48) -> Elaborar el plan de austeridad del gasto y realizar el seguimiento al mismo Separalo | E44: =CONCATENATE('PLAN DE ACCIÓN INSTITUCIONAL'!M48) -> Fortalecimiento Institucional: Consolidar una entidad moderna y efectiva constituida por un equipo comprometido con el logro de los objetivos institucionales | F44: =CONCATENATE('PLAN DE ACCIÓN INSTITUCIONAL'!G48)*1 -> 1 | G44: =CONCATENATE('PLAN DE ACCIÓN INSTITUCIONAL'!S48)*1 ->  | H44: =CONCATENATE('PLAN DE ACCIÓN INSTITUCIONAL'!T48)*1 -> 0 | I44: =CONCATENATE('PLAN DE ACCIÓN INSTITUCIONAL'!V48)*1 ->  | J44: =CONCATENATE('PLAN DE ACCIÓN INSTITUCIONAL'!W48)*1 -> 0 | K44: =CONCATENATE('PLAN DE ACCIÓN INSTITUCIONAL'!Y48)*1 ->  | L44: =CONCATENATE('PLAN DE ACCIÓN INSTITUCIONAL'!Z48)*1 -> 0 | M44: =CONCATENATE('PLAN DE ACCIÓN INSTITUCIONAL'!AB48)*1 ->  | N44: =CONCATENATE('PLAN DE ACCIÓN INSTITUCIONAL'!AC48)*1 -> 0 | O44: =CONCATENATE('PLAN DE ACCIÓN INSTITUCIONAL'!AE48)*1 ->  | P44: =CONCATENATE('PLAN DE ACCIÓN INSTITUCIONAL'!AF48)*1 -> 0 | Q44: =CONCATENATE('PLAN DE ACCIÓN INSTITUCIONAL'!AH48)*1 -> 0.5 | R44: =CONCATENATE('PLAN DE ACCIÓN INSTITUCIONAL'!AI48)*1 -> 0 | S44: =CONCATENATE('PLAN DE ACCIÓN INSTITUCIONAL'!AK48)*1 ->  | T44: =CONCATENATE('PLAN DE ACCIÓN INSTITUCIONAL'!AL48)*1 -> 0 | U44: =CONCATENATE('PLAN DE ACCIÓN INSTITUCIONAL'!AN48)*1 ->  | V44: =CONCATENATE('PLAN DE ACCIÓN INSTITUCIONAL'!AO48)*1 -> 0 | W44: =CONCATENATE('PLAN DE ACCIÓN INSTITUCIONAL'!AQ48)*1 ->  | X44: =CONCATENATE('PLAN DE ACCIÓN INSTITUCIONAL'!AR48)*1 -> 0 | Y44: =CONCATENATE('PLAN DE ACCIÓN INSTITUCIONAL'!AT48)*1 ->  | Z44: =CONCATENATE('PLAN DE ACCIÓN INSTITUCIONAL'!AU48)*1 -> 0 | AA44: =CONCATENATE('PLAN DE ACCIÓN INSTITUCIONAL'!AW48)*1 ->  | AB44: =CONCATENATE('PLAN DE ACCIÓN INSTITUCIONAL'!AX48)*1 -> 0 | AC44: =CONCATENATE('PLAN DE ACCIÓN INSTITUCIONAL'!AZ48)*1 -> 0.5 | AD44: =CONCATENATE('PLAN DE ACCIÓN INSTITUCIONAL'!BA48)*1 -> 0 | AE44: =+'PLAN DE ACCIÓN INSTITUCIONAL'!H48 -> 2020-02-01
A45: =CONCATENATE('PLAN DE ACCIÓN INSTITUCIONAL'!B49) -> SUBDIRECCIÓN DE RECOLECCIÓN BARRIDO Y LIMPIEZA (SRBL) | B45: =CONCATENATE('PLAN DE ACCIÓN INSTITUCIONAL'!C49) -> Establecer altos estándares de limpieza integral en el Distrito Capital | C45: =CONCATENATE('PLAN DE ACCIÓN INSTITUCIONAL'!D49) -> Ejecutar las obligaciones de hacer financiadas y programadas para la vigencia | D45: =CONCATENATE('PLAN DE ACCIÓN INSTITUCIONAL'!F49) -> Contar con los contratos para ejecutar las obligaciones de hacer. | E45: =CONCATENATE('PLAN DE ACCIÓN INSTITUCIONAL'!M49) -> Modelo Integral de Prestación del Servicio Garantizar los más altos estándares de calidad en la prestación sostenible y efectiva de los servicios | F45: =CONCATENATE('PLAN DE ACCIÓN INSTITUCIONAL'!G49)*1 -> 1 | G45: =CONCATENATE('PLAN DE ACCIÓN INSTITUCIONAL'!S49)*1 ->  | H45: =CONCATENATE('PLAN DE ACCIÓN INSTITUCIONAL'!T49)*1 -> 0 | I45: =CONCATENATE('PLAN DE ACCIÓN INSTITUCIONAL'!V49)*1 ->  | J45: =CONCATENATE('PLAN DE ACCIÓN INSTITUCIONAL'!W49)*1 -> 0 | K45: =CONCATENATE('PLAN DE ACCIÓN INSTITUCIONAL'!Y49)*1 -> 0.25 | L45: =CONCATENATE('PLAN DE ACCIÓN INSTITUCIONAL'!Z49)*1 -> 0.25 | M45: =CONCATENATE('PLAN DE ACCIÓN INSTITUCIONAL'!AB49)*1 ->  | N45: =CONCATENATE('PLAN DE ACCIÓN INSTITUCIONAL'!AC49)*1 -> 0 | O45: =CONCATENATE('PLAN DE ACCIÓN INSTITUCIONAL'!AE49)*1 ->  | P45: =CONCATENATE('PLAN DE ACCIÓN INSTITUCIONAL'!AF49)*1 -> 0 | Q45: =CONCATENATE('PLAN DE ACCIÓN INSTITUCIONAL'!AH49)*1 -> 0.25 | R45: =CONCATENATE('PLAN DE ACCIÓN INSTITUCIONAL'!AI49)*1 -> 0 | S45: =CONCATENATE('PLAN DE ACCIÓN INSTITUCIONAL'!AK49)*1 ->  | T45: =CONCATENATE('PLAN DE ACCIÓN INSTITUCIONAL'!AL49)*1 -> 0 | U45: =CONCATENATE('PLAN DE ACCIÓN INSTITUCIONAL'!AN49)*1 ->  | V45: =CONCATENATE('PLAN DE ACCIÓN INSTITUCIONAL'!AO49)*1 -> 0 | W45: =CONCATENATE('PLAN DE ACCIÓN INSTITUCIONAL'!AQ49)*1 -> 0.25 | X45: =CONCATENATE('PLAN DE ACCIÓN INSTITUCIONAL'!AR49)*1 -> 0 | Y45: =CONCATENATE('PLAN DE ACCIÓN INSTITUCIONAL'!AT49)*1 ->  | Z45: =CONCATENATE('PLAN DE ACCIÓN INSTITUCIONAL'!AU49)*1 -> 0 | AA45: =CONCATENATE('PLAN DE ACCIÓN INSTITUCIONAL'!AW49)*1 ->  | AB45: =CONCATENATE('PLAN DE ACCIÓN INSTITUCIONAL'!AX49)*1 -> 0 | AC45: =CONCATENATE('PLAN DE ACCIÓN INSTITUCIONAL'!AZ49)*1 -> 0.25 | AD45: =CONCATENATE('PLAN DE ACCIÓN INSTITUCIONAL'!BA49)*1 -> 0 | AE45: =+'PLAN DE ACCIÓN INSTITUCIONAL'!H49 -> 2020-01-01
A46: =CONCATENATE('PLAN DE ACCIÓN INSTITUCIONAL'!B50) -> SUBDIRECCIÓN DE RECOLECCIÓN BARRIDO Y LIMPIEZA (SRBL) | B46: =CONCATENATE('PLAN DE ACCIÓN INSTITUCIONAL'!C$50) -> Garantizar una adecuada prestación del servicio de aseo | C46: =CONCATENATE('PLAN DE ACCIÓN INSTITUCIONAL'!D50) -> Cumplir con las obligaciones y reglamentación del esquema de aseo de Bogotá D.C. | D46: =CONCATENATE('PLAN DE ACCIÓN INSTITUCIONAL'!F50) -> Contar con el plan de supervisión y control del servicio de aseo aprobado y ejecución del plan de supervisión y control | E46: =CONCATENATE('PLAN DE ACCIÓN INSTITUCIONAL'!M50) -> Modelo Integral de Prestación del Servicio Garantizar los más altos estándares de calidad en la prestación sostenible y efectiva de los servicios | F46: =CONCATENATE('PLAN DE ACCIÓN INSTITUCIONAL'!G50)*1 -> 1 | G46: =CONCATENATE('PLAN DE ACCIÓN INSTITUCIONAL'!S50)*1 -> 0.12 | H46: =CONCATENATE('PLAN DE ACCIÓN INSTITUCIONAL'!T50)*1 -> 0.12 | I46: =CONCATENATE('PLAN DE ACCIÓN INSTITUCIONAL'!V50)*1 -> 0.08 | J46: =CONCATENATE('PLAN DE ACCIÓN INSTITUCIONAL'!W50)*1 -> 0.08 | K46: =CONCATENATE('PLAN DE ACCIÓN INSTITUCIONAL'!Y50)*1 -> 0.08 | L46: =CONCATENATE('PLAN DE ACCIÓN INSTITUCIONAL'!Z50)*1 -> 0.08 | M46: =CONCATENATE('PLAN DE ACCIÓN INSTITUCIONAL'!AB50)*1 -> 0.08 | N46: =CONCATENATE('PLAN DE ACCIÓN INSTITUCIONAL'!AC50)*1 -> 0.08 | O46: =CONCATENATE('PLAN DE ACCIÓN INSTITUCIONAL'!AE50)*1 -> 0.08 | P46: =CONCATENATE('PLAN DE ACCIÓN INSTITUCIONAL'!AF50)*1 -> 0 | Q46: =CONCATENATE('PLAN DE ACCIÓN INSTITUCIONAL'!AH50)*1 -> 0.08 | R46: =CONCATENATE('PLAN DE ACCIÓN INSTITUCIONAL'!AI50)*1 -> 0 | S46: =CONCATENATE('PLAN DE ACCIÓN INSTITUCIONAL'!AK50)*1 -> 0.08 | T46: =CONCATENATE('PLAN DE ACCIÓN INSTITUCIONAL'!AL50)*1 -> 0 | U46: =CONCATENATE('PLAN DE ACCIÓN INSTITUCIONAL'!AN50)*1 -> 0.08 | V46: =CONCATENATE('PLAN DE ACCIÓN INSTITUCIONAL'!AO50)*1 -> 0 | W46: =CONCATENATE('PLAN DE ACCIÓN INSTITUCIONAL'!AQ50)*1 -> 0.08 | X46: =CONCATENATE('PLAN DE ACCIÓN INSTITUCIONAL'!AR50)*1 -> 0 | Y46: =CONCATENATE('PLAN DE ACCIÓN INSTITUCIONAL'!AT50)*1 -> 0.08 | Z46: =CONCATENATE('PLAN DE ACCIÓN INSTITUCIONAL'!AU50)*1 -> 0 | AA46: =CONCATENATE('PLAN DE ACCIÓN INSTITUCIONAL'!AW50)*1 -> 0.08 | AB46: =CONCATENATE('PLAN DE ACCIÓN INSTITUCIONAL'!AX50)*1 -> 0 | AC46: =CONCATENATE('PLAN DE ACCIÓN INSTITUCIONAL'!AZ50)*1 -> 0.08 | AD46: =CONCATENATE('PLAN DE ACCIÓN INSTITUCIONAL'!BA50)*1 -> 0 | AE46: =+'PLAN DE ACCIÓN INSTITUCIONAL'!H50 -> 2020-01-01
A47: =CONCATENATE('PLAN DE ACCIÓN INSTITUCIONAL'!B51) -> SUBDIRECCIÓN DE RECOLECCIÓN BARRIDO Y LIMPIEZA (SRBL) | B47: =CONCATENATE('PLAN DE ACCIÓN INSTITUCIONAL'!C$50) -> Garantizar una adecuada prestación del servicio de aseo | C47: =CONCATENATE('PLAN DE ACCIÓN INSTITUCIONAL'!D51) -> Cumplir con las obligaciones y reglamentación del servicio de residuos hospitalarios | D47: =CONCATENATE('PLAN DE ACCIÓN INSTITUCIONAL'!F51) -> Contar con el plan de supervisión y control del servicio de hospitalarios aprobado y ejecución del plan de supervisión y control del servicio de hospitalarios. | E47: =CONCATENATE('PLAN DE ACCIÓN INSTITUCIONAL'!M51) -> Modelo Integral de Prestación del Servicio Garantizar los más altos estándares de calidad en la prestación sostenible y efectiva de los servicios | F47: =CONCATENATE('PLAN DE ACCIÓN INSTITUCIONAL'!G51)*1 -> 1 | G47: =CONCATENATE('PLAN DE ACCIÓN INSTITUCIONAL'!S51)*1 -> 0.12 | H47: =CONCATENATE('PLAN DE ACCIÓN INSTITUCIONAL'!T51)*1 -> 0.12 | I47: =CONCATENATE('PLAN DE ACCIÓN INSTITUCIONAL'!V51)*1 -> 0.08 | J47: =CONCATENATE('PLAN DE ACCIÓN INSTITUCIONAL'!W51)*1 -> 0.08 | K47: =CONCATENATE('PLAN DE ACCIÓN INSTITUCIONAL'!Y51)*1 -> 0.08 | L47: =CONCATENATE('PLAN DE ACCIÓN INSTITUCIONAL'!Z51)*1 -> 0.08 | M47: =CONCATENATE('PLAN DE ACCIÓN INSTITUCIONAL'!AB51)*1 -> 0.08 | N47: =CONCATENATE('PLAN DE ACCIÓN INSTITUCIONAL'!AC51)*1 -> 0.08 | O47: =CONCATENATE('PLAN DE ACCIÓN INSTITUCIONAL'!AE51)*1 -> 0.08 | P47: =CONCATENATE('PLAN DE ACCIÓN INSTITUCIONAL'!AF51)*1 -> 0 | Q47: =CONCATENATE('PLAN DE ACCIÓN INSTITUCIONAL'!AH51)*1 -> 0.08 | R47: =CONCATENATE('PLAN DE ACCIÓN INSTITUCIONAL'!AI51)*1 -> 0 | S47: =CONCATENATE('PLAN DE ACCIÓN INSTITUCIONAL'!AK51)*1 -> 0.08 | T47: =CONCATENATE('PLAN DE ACCIÓN INSTITUCIONAL'!AL51)*1 -> 0 | U47: =CONCATENATE('PLAN DE ACCIÓN INSTITUCIONAL'!AN51)*1 -> 0.08 | V47: =CONCATENATE('PLAN DE ACCIÓN INSTITUCIONAL'!AO51)*1 -> 0 | W47: =CONCATENATE('PLAN DE ACCIÓN INSTITUCIONAL'!AQ51)*1 -> 0.08 | X47: =CONCATENATE('PLAN DE ACCIÓN INSTITUCIONAL'!AR51)*1 -> 0 | Y47: =CONCATENATE('PLAN DE ACCIÓN INSTITUCIONAL'!AT51)*1 -> 0.08 | Z47: =CONCATENATE('PLAN DE ACCIÓN INSTITUCIONAL'!AU51)*1 -> 0 | AA47: =CONCATENATE('PLAN DE ACCIÓN INSTITUCIONAL'!AW51)*1 -> 0.08 | AB47: =CONCATENATE('PLAN DE ACCIÓN INSTITUCIONAL'!AX51)*1 -> 0 | AC47: =CONCATENATE('PLAN DE ACCIÓN INSTITUCIONAL'!AZ51)*1 -> 0.08 | AD47: =CONCATENATE('PLAN DE ACCIÓN INSTITUCIONAL'!BA51)*1 -> 0 | AE47: =+'PLAN DE ACCIÓN INSTITUCIONAL'!H51 -> 2020-01-01
A48: =CONCATENATE('PLAN DE ACCIÓN INSTITUCIONAL'!B52) -> SUBDIRECCIÓN DE RECOLECCIÓN BARRIDO Y LIMPIEZA (SRBL) | B48: =CONCATENATE('PLAN DE ACCIÓN INSTITUCIONAL'!C52) -> Garantizar el cumplimiento de las Instancias de Coordinación enfocadas en el desarrollo del Decreto Distrital 190 de 2006 (PMIRS) y sus modificaciones | C48: =CONCATENATE('PLAN DE ACCIÓN INSTITUCIONAL'!D52) -> Cumplimiento de la Resolución 233 de 2018 de la Secretaría General | D48: =CONCATENATE('PLAN DE ACCIÓN INSTITUCIONAL'!F52) -> Cumplimiento al seguimiento del Plan Maestro Integral de Residuos Sólidos | E48: =CONCATENATE('PLAN DE ACCIÓN INSTITUCIONAL'!M52) -> Modelo Integral de Prestación del Servicio Garantizar los más altos estándares de calidad en la prestación sostenible y efectiva de los servicios | F48: =CONCATENATE('PLAN DE ACCIÓN INSTITUCIONAL'!G52)*1 -> 1 | G48: =CONCATENATE('PLAN DE ACCIÓN INSTITUCIONAL'!S52)*1 ->  | H48: =CONCATENATE('PLAN DE ACCIÓN INSTITUCIONAL'!T52)*1 -> 0 | I48: =CONCATENATE('PLAN DE ACCIÓN INSTITUCIONAL'!V52)*1 ->  | J48: =CONCATENATE('PLAN DE ACCIÓN INSTITUCIONAL'!W52)*1 -> 0 | K48: =CONCATENATE('PLAN DE ACCIÓN INSTITUCIONAL'!Y52)*1 ->  | L48: =CONCATENATE('PLAN DE ACCIÓN INSTITUCIONAL'!Z52)*1 -> 0 | M48: =CONCATENATE('PLAN DE ACCIÓN INSTITUCIONAL'!AB52)*1 ->  | N48: =CONCATENATE('PLAN DE ACCIÓN INSTITUCIONAL'!AC52)*1 -> 0 | O48: =CONCATENATE('PLAN DE ACCIÓN INSTITUCIONAL'!AE52)*1 ->  | P48: =CONCATENATE('PLAN DE ACCIÓN INSTITUCIONAL'!AF52)*1 -> 0 | Q48: =CONCATENATE('PLAN DE ACCIÓN INSTITUCIONAL'!AH52)*1 -> 0.5 | R48: =CONCATENATE('PLAN DE ACCIÓN INSTITUCIONAL'!AI52)*1 -> 0 | S48: =CONCATENATE('PLAN DE ACCIÓN INSTITUCIONAL'!AK52)*1 ->  | T48: =CONCATENATE('PLAN DE ACCIÓN INSTITUCIONAL'!AL52)*1 -> 0 | U48: =CONCATENATE('PLAN DE ACCIÓN INSTITUCIONAL'!AN52)*1 ->  | V48: =CONCATENATE('PLAN DE ACCIÓN INSTITUCIONAL'!AO52)*1 -> 0 | W48: =CONCATENATE('PLAN DE ACCIÓN INSTITUCIONAL'!AQ52)*1 -> 0.5 | X48: =CONCATENATE('PLAN DE ACCIÓN INSTITUCIONAL'!AR52)*1 -> 0 | Y48: =CONCATENATE('PLAN DE ACCIÓN INSTITUCIONAL'!AT52)*1 ->  | Z48: =CONCATENATE('PLAN DE ACCIÓN INSTITUCIONAL'!AU52)*1 -> 0 | AA48: =CONCATENATE('PLAN DE ACCIÓN INSTITUCIONAL'!AW52)*1 ->  | AB48: =CONCATENATE('PLAN DE ACCIÓN INSTITUCIONAL'!AX52)*1 -> 0 | AC48: =CONCATENATE('PLAN DE ACCIÓN INSTITUCIONAL'!AZ52)*1 ->  | AD48: =CONCATENATE('PLAN DE ACCIÓN INSTITUCIONAL'!BA52)*1 -> 0 | AE48: =+'PLAN DE ACCIÓN INSTITUCIONAL'!H52 -> 2020-03-01
A49: =CONCATENATE('PLAN DE ACCIÓN INSTITUCIONAL'!B53) -> SUBDIRECCIÓN DE DISPOSICIÓN FINAL - (SDF) | B49: =CONCATENATE('PLAN DE ACCIÓN INSTITUCIONAL'!C$53) -> Fortalecer la gestión de la operación del Relleno Sanitario Doña Juana (RSDJ) | C49: =CONCATENATE('PLAN DE ACCIÓN INSTITUCIONAL'!D$53) -> Realizar el 100% del seguimiento a la operación del R.S.D.J | D49: =CONCATENATE('PLAN DE ACCIÓN INSTITUCIONAL'!F53) -> Seguimiento al trámite de licencia ambiental para optimización del RSDJ | E49: =CONCATENATE('PLAN DE ACCIÓN INSTITUCIONAL'!M53) -> Modelo Integral de Prestación del Servicio Garantizar los más altos estándares de calidad en la prestación sostenible y efectiva de los servicios | F49: =CONCATENATE('PLAN DE ACCIÓN INSTITUCIONAL'!G53)*1 -> 0.1 | G49: =CONCATENATE('PLAN DE ACCIÓN INSTITUCIONAL'!S53)*1 -> 0.08 | H49: =CONCATENATE('PLAN DE ACCIÓN INSTITUCIONAL'!T53)*1 -> 0.08 | I49: =CONCATENATE('PLAN DE ACCIÓN INSTITUCIONAL'!V53)*1 -> 0.08 | J49: =CONCATENATE('PLAN DE ACCIÓN INSTITUCIONAL'!W53)*1 -> 0 | K49: =CONCATENATE('PLAN DE ACCIÓN INSTITUCIONAL'!Y53)*1 -> 0.08 | L49: =CONCATENATE('PLAN DE ACCIÓN INSTITUCIONAL'!Z53)*1 -> 0 | M49: =CONCATENATE('PLAN DE ACCIÓN INSTITUCIONAL'!AB53)*1 -> 0.08 | N49: =CONCATENATE('PLAN DE ACCIÓN INSTITUCIONAL'!AC53)*1 -> 0 | O49: =CONCATENATE('PLAN DE ACCIÓN INSTITUCIONAL'!AE53)*1 -> 0.08 | P49: =CONCATENATE('PLAN DE ACCIÓN INSTITUCIONAL'!AF53)*1 -> 0 | Q49: =CONCATENATE('PLAN DE ACCIÓN INSTITUCIONAL'!AH53)*1 -> 0.08 | R49: =CONCATENATE('PLAN DE ACCIÓN INSTITUCIONAL'!AI53)*1 -> 0 | S49: =CONCATENATE('PLAN DE ACCIÓN INSTITUCIONAL'!AK53)*1 -> 0.08 | T49: =CONCATENATE('PLAN DE ACCIÓN INSTITUCIONAL'!AL53)*1 -> 0 | U49: =CONCATENATE('PLAN DE ACCIÓN INSTITUCIONAL'!AN53)*1 -> 0.08 | V49: =CONCATENATE('PLAN DE ACCIÓN INSTITUCIONAL'!AO53)*1 -> 0 | W49: =CONCATENATE('PLAN DE ACCIÓN INSTITUCIONAL'!AQ53)*1 -> 0.08 | X49: =CONCATENATE('PLAN DE ACCIÓN INSTITUCIONAL'!AR53)*1 -> 0 | Y49: =CONCATENATE('PLAN DE ACCIÓN INSTITUCIONAL'!AT53)*1 -> 0.08 | Z49: =CONCATENATE('PLAN DE ACCIÓN INSTITUCIONAL'!AU53)*1 -> 0 | AA49: =CONCATENATE('PLAN DE ACCIÓN INSTITUCIONAL'!AW53)*1 -> 0.1 | AB49: =CONCATENATE('PLAN DE ACCIÓN INSTITUCIONAL'!AX53)*1 -> 0 | AC49: =CONCATENATE('PLAN DE ACCIÓN INSTITUCIONAL'!AZ53)*1 -> 0.1 | AD49: =CONCATENATE('PLAN DE ACCIÓN INSTITUCIONAL'!BA53)*1 -> 0 | AE49: =+'PLAN DE ACCIÓN INSTITUCIONAL'!H53 -> 2020-01-01
A50: =CONCATENATE('PLAN DE ACCIÓN INSTITUCIONAL'!B54) -> SUBDIRECCIÓN DE DISPOSICIÓN FINAL - (SDF) | B50: =CONCATENATE('PLAN DE ACCIÓN INSTITUCIONAL'!C$53) -> Fortalecer la gestión de la operación del Relleno Sanitario Doña Juana (RSDJ) | C50: =CONCATENATE('PLAN DE ACCIÓN INSTITUCIONAL'!D$53) -> Realizar el 100% del seguimiento a la operación del R.S.D.J | D50: =CONCATENATE('PLAN DE ACCIÓN INSTITUCIONAL'!F54) -> Seguimiento al cumplimiento del laudo arbitral por parte del operador del RSDJ | E50: =CONCATENATE('PLAN DE ACCIÓN INSTITUCIONAL'!M54) -> Modelo Integral de Prestación del Servicio Garantizar los más altos estándares de calidad en la prestación sostenible y efectiva de los servicios | F50: =CONCATENATE('PLAN DE ACCIÓN INSTITUCIONAL'!G54)*1 -> 0.3 | G50: =CONCATENATE('PLAN DE ACCIÓN INSTITUCIONAL'!S54)*1 -> 0.08 | H50: =CONCATENATE('PLAN DE ACCIÓN INSTITUCIONAL'!T54)*1 -> 0.08 | I50: =CONCATENATE('PLAN DE ACCIÓN INSTITUCIONAL'!V54)*1 -> 0.08 | J50: =CONCATENATE('PLAN DE ACCIÓN INSTITUCIONAL'!W54)*1 -> 0.08 | K50: =CONCATENATE('PLAN DE ACCIÓN INSTITUCIONAL'!Y54)*1 -> 0.08 | L50: =CONCATENATE('PLAN DE ACCIÓN INSTITUCIONAL'!Z54)*1 -> 0.08 | M50: =CONCATENATE('PLAN DE ACCIÓN INSTITUCIONAL'!AB54)*1 -> 0.08 | N50: =CONCATENATE('PLAN DE ACCIÓN INSTITUCIONAL'!AC54)*1 -> 0.08 | O50: =CONCATENATE('PLAN DE ACCIÓN INSTITUCIONAL'!AE54)*1 -> 0.08 | P50: =CONCATENATE('PLAN DE ACCIÓN INSTITUCIONAL'!AF54)*1 -> 0 | Q50: =CONCATENATE('PLAN DE ACCIÓN INSTITUCIONAL'!AH54)*1 -> 0.08 | R50: =CONCATENATE('PLAN DE ACCIÓN INSTITUCIONAL'!AI54)*1 -> 0 | S50: =CONCATENATE('PLAN DE ACCIÓN INSTITUCIONAL'!AK54)*1 -> 0.08 | T50: =CONCATENATE('PLAN DE ACCIÓN INSTITUCIONAL'!AL54)*1 -> 0 | U50: =CONCATENATE('PLAN DE ACCIÓN INSTITUCIONAL'!AN54)*1 -> 0.08 | V50: =CONCATENATE('PLAN DE ACCIÓN INSTITUCIONAL'!AO54)*1 -> 0 | W50: =CONCATENATE('PLAN DE ACCIÓN INSTITUCIONAL'!AQ54)*1 -> 0.08 | X50: =CONCATENATE('PLAN DE ACCIÓN INSTITUCIONAL'!AR54)*1 -> 0 | Y50: =CONCATENATE('PLAN DE ACCIÓN INSTITUCIONAL'!AT54)*1 -> 0.08 | Z50: =CONCATENATE('PLAN DE ACCIÓN INSTITUCIONAL'!AU54)*1 -> 0 | AA50: =CONCATENATE('PLAN DE ACCIÓN INSTITUCIONAL'!AW54)*1 -> 0.1 | AB50: =CONCATENATE('PLAN DE ACCIÓN INSTITUCIONAL'!AX54)*1 -> 0 | AC50: =CONCATENATE('PLAN DE ACCIÓN INSTITUCIONAL'!AZ54)*1 -> 0.1 | AD50: =CONCATENATE('PLAN DE ACCIÓN INSTITUCIONAL'!BA54)*1 -> 0 | AE50: =+'PLAN DE ACCIÓN INSTITUCIONAL'!H54 -> 2020-01-01
A51: =CONCATENATE('PLAN DE ACCIÓN INSTITUCIONAL'!B55) -> SUBDIRECCIÓN DE DISPOSICIÓN FINAL - (SDF) | B51: =CONCATENATE('PLAN DE ACCIÓN INSTITUCIONAL'!C$53) -> Fortalecer la gestión de la operación del Relleno Sanitario Doña Juana (RSDJ) | C51: =CONCATENATE('PLAN DE ACCIÓN INSTITUCIONAL'!D$53) -> Realizar el 100% del seguimiento a la operación del R.S.D.J | D51: =CONCATENATE('PLAN DE ACCIÓN INSTITUCIONAL'!F55) -> Presentación informe supervisión y control SDF. | E51: =CONCATENATE('PLAN DE ACCIÓN INSTITUCIONAL'!M55) -> Modelo Integral de Prestación del Servicio Garantizar los más altos estándares de calidad en la prestación sostenible y efectiva de los servicios | F51: =CONCATENATE('PLAN DE ACCIÓN INSTITUCIONAL'!G55)*1 -> 0.6 | G51: =CONCATENATE('PLAN DE ACCIÓN INSTITUCIONAL'!S55)*1 -> 0.08 | H51: =CONCATENATE('PLAN DE ACCIÓN INSTITUCIONAL'!T55)*1 -> 0.08 | I51: =CONCATENATE('PLAN DE ACCIÓN INSTITUCIONAL'!V55)*1 -> 0.08 | J51: =CONCATENATE('PLAN DE ACCIÓN INSTITUCIONAL'!W55)*1 -> 0.08 | K51: =CONCATENATE('PLAN DE ACCIÓN INSTITUCIONAL'!Y55)*1 -> 0.08 | L51: =CONCATENATE('PLAN DE ACCIÓN INSTITUCIONAL'!Z55)*1 -> 0.08 | M51: =CONCATENATE('PLAN DE ACCIÓN INSTITUCIONAL'!AB55)*1 -> 0.08 | N51: =CONCATENATE('PLAN DE ACCIÓN INSTITUCIONAL'!AC55)*1 -> 0.08 | O51: =CONCATENATE('PLAN DE ACCIÓN INSTITUCIONAL'!AE55)*1 -> 0.08 | P51: =CONCATENATE('PLAN DE ACCIÓN INSTITUCIONAL'!AF55)*1 -> 0 | Q51: =CONCATENATE('PLAN DE ACCIÓN INSTITUCIONAL'!AH55)*1 -> 0.08 | R51: =CONCATENATE('PLAN DE ACCIÓN INSTITUCIONAL'!AI55)*1 -> 0 | S51: =CONCATENATE('PLAN DE ACCIÓN INSTITUCIONAL'!AK55)*1 -> 0.08 | T51: =CONCATENATE('PLAN DE ACCIÓN INSTITUCIONAL'!AL55)*1 -> 0 | U51: =CONCATENATE('PLAN DE ACCIÓN INSTITUCIONAL'!AN55)*1 -> 0.08 | V51: =CONCATENATE('PLAN DE ACCIÓN INSTITUCIONAL'!AO55)*1 -> 0 | W51: =CONCATENATE('PLAN DE ACCIÓN INSTITUCIONAL'!AQ55)*1 -> 0.08 | X51: =CONCATENATE('PLAN DE ACCIÓN INSTITUCIONAL'!AR55)*1 -> 0 | Y51: =CONCATENATE('PLAN DE ACCIÓN INSTITUCIONAL'!AT55)*1 -> 0.08 | Z51: =CONCATENATE('PLAN DE ACCIÓN INSTITUCIONAL'!AU55)*1 -> 0 | AA51: =CONCATENATE('PLAN DE ACCIÓN INSTITUCIONAL'!AW55)*1 -> 0.1 | AB51: =CONCATENATE('PLAN DE ACCIÓN INSTITUCIONAL'!AX55)*1 -> 0 | AC51: =CONCATENATE('PLAN DE ACCIÓN INSTITUCIONAL'!AZ55)*1 -> 0.1 | AD51: =CONCATENATE('PLAN DE ACCIÓN INSTITUCIONAL'!BA55)*1 -> 0 | AE51: =+'PLAN DE ACCIÓN INSTITUCIONAL'!H55 -> 2020-01-01
A52: =CONCATENATE('PLAN DE ACCIÓN INSTITUCIONAL'!B56) -> SUBDIRECCIÓN DE DISPOSICIÓN FINAL - (SDF) | B52: =CONCATENATE('PLAN DE ACCIÓN INSTITUCIONAL'!C$56) -> Fortalecer la Gestión Social para la zona de influencia del Relleno Sanitario Doña Juana." | C52: =CONCATENATE('PLAN DE ACCIÓN INSTITUCIONAL'!D$56) -> Garantizar que el 90% de la población seleccionada acceda a los programas del Plan de Gestión social | D52: =CONCATENATE('PLAN DE ACCIÓN INSTITUCIONAL'!F56) -> Cumplir con las actividades asociadas al plan de gestión social | E52: =CONCATENATE('PLAN DE ACCIÓN INSTITUCIONAL'!M56) -> Modelo Integral de Prestación del Servicio Garantizar los más altos estándares de calidad en la prestación sostenible y efectiva de los servicios | F52: =CONCATENATE('PLAN DE ACCIÓN INSTITUCIONAL'!G56)*1 -> 0.6 | G52: =CONCATENATE('PLAN DE ACCIÓN INSTITUCIONAL'!S56)*1 -> 0.08 | H52: =CONCATENATE('PLAN DE ACCIÓN INSTITUCIONAL'!T56)*1 -> 0.08 | I52: =CONCATENATE('PLAN DE ACCIÓN INSTITUCIONAL'!V56)*1 -> 0.08 | J52: =CONCATENATE('PLAN DE ACCIÓN INSTITUCIONAL'!W56)*1 -> 0.08 | K52: =CONCATENATE('PLAN DE ACCIÓN INSTITUCIONAL'!Y56)*1 -> 0.08 | L52: =CONCATENATE('PLAN DE ACCIÓN INSTITUCIONAL'!Z56)*1 -> 0.08 | M52: =CONCATENATE('PLAN DE ACCIÓN INSTITUCIONAL'!AB56)*1 -> 0.08 | N52: =CONCATENATE('PLAN DE ACCIÓN INSTITUCIONAL'!AC56)*1 -> 0.08 | O52: =CONCATENATE('PLAN DE ACCIÓN INSTITUCIONAL'!AE56)*1 -> 0.08 | P52: =CONCATENATE('PLAN DE ACCIÓN INSTITUCIONAL'!AF56)*1 -> 0 | Q52: =CONCATENATE('PLAN DE ACCIÓN INSTITUCIONAL'!AH56)*1 -> 0.08 | R52: =CONCATENATE('PLAN DE ACCIÓN INSTITUCIONAL'!AI56)*1 -> 0 | S52: =CONCATENATE('PLAN DE ACCIÓN INSTITUCIONAL'!AK56)*1 -> 0.08 | T52: =CONCATENATE('PLAN DE ACCIÓN INSTITUCIONAL'!AL56)*1 -> 0 | U52: =CONCATENATE('PLAN DE ACCIÓN INSTITUCIONAL'!AN56)*1 -> 0.08 | V52: =CONCATENATE('PLAN DE ACCIÓN INSTITUCIONAL'!AO56)*1 -> 0 | W52: =CONCATENATE('PLAN DE ACCIÓN INSTITUCIONAL'!AQ56)*1 -> 0.08 | X52: =CONCATENATE('PLAN DE ACCIÓN INSTITUCIONAL'!AR56)*1 -> 0 | Y52: =CONCATENATE('PLAN DE ACCIÓN INSTITUCIONAL'!AT56)*1 -> 0.08 | Z52: =CONCATENATE('PLAN DE ACCIÓN INSTITUCIONAL'!AU56)*1 -> 0 | AA52: =CONCATENATE('PLAN DE ACCIÓN INSTITUCIONAL'!AW56)*1 -> 0.1 | AB52: =CONCATENATE('PLAN DE ACCIÓN INSTITUCIONAL'!AX56)*1 -> 0 | AC52: =CONCATENATE('PLAN DE ACCIÓN INSTITUCIONAL'!AZ56)*1 -> 0.1 | AD52: =CONCATENATE('PLAN DE ACCIÓN INSTITUCIONAL'!BA56)*1 -> 0 | AE52: =+'PLAN DE ACCIÓN INSTITUCIONAL'!H56 -> 2020-01-01
A53: =CONCATENATE('PLAN DE ACCIÓN INSTITUCIONAL'!B57) -> SUBDIRECCIÓN DE DISPOSICIÓN FINAL - (SDF) | B53: =CONCATENATE('PLAN DE ACCIÓN INSTITUCIONAL'!C$56) -> Fortalecer la Gestión Social para la zona de influencia del Relleno Sanitario Doña Juana." | C53: =CONCATENATE('PLAN DE ACCIÓN INSTITUCIONAL'!D$56) -> Garantizar que el 90% de la población seleccionada acceda a los programas del Plan de Gestión social | D53: =CONCATENATE('PLAN DE ACCIÓN INSTITUCIONAL'!F57) -> Cumplir con las actividades establecidas en el Plan de acción y seguimiento de gestión social | E53: =CONCATENATE('PLAN DE ACCIÓN INSTITUCIONAL'!M57) -> Modelo Integral de Prestación del Servicio Garantizar los más altos estándares de calidad en la prestación sostenible y efectiva de los servicios | F53: =CONCATENATE('PLAN DE ACCIÓN INSTITUCIONAL'!G57)*1 -> 0.4 | G53: =CONCATENATE('PLAN DE ACCIÓN INSTITUCIONAL'!S57)*1 -> 0.08 | H53: =CONCATENATE('PLAN DE ACCIÓN INSTITUCIONAL'!T57)*1 -> 0.08 | I53: =CONCATENATE('PLAN DE ACCIÓN INSTITUCIONAL'!V57)*1 -> 0.08 | J53: =CONCATENATE('PLAN DE ACCIÓN INSTITUCIONAL'!W57)*1 -> 0.08 | K53: =CONCATENATE('PLAN DE ACCIÓN INSTITUCIONAL'!Y57)*1 -> 0.08 | L53: =CONCATENATE('PLAN DE ACCIÓN INSTITUCIONAL'!Z57)*1 -> 0.08 | M53: =CONCATENATE('PLAN DE ACCIÓN INSTITUCIONAL'!AB57)*1 -> 0.08 | N53: =CONCATENATE('PLAN DE ACCIÓN INSTITUCIONAL'!AC57)*1 -> 0.08 | O53: =CONCATENATE('PLAN DE ACCIÓN INSTITUCIONAL'!AE57)*1 -> 0.08 | P53: =CONCATENATE('PLAN DE ACCIÓN INSTITUCIONAL'!AF57)*1 -> 0 | Q53: =CONCATENATE('PLAN DE ACCIÓN INSTITUCIONAL'!AH57)*1 -> 0.08 | R53: =CONCATENATE('PLAN DE ACCIÓN INSTITUCIONAL'!AI57)*1 -> 0 | S53: =CONCATENATE('PLAN DE ACCIÓN INSTITUCIONAL'!AK57)*1 -> 0.08 | T53: =CONCATENATE('PLAN DE ACCIÓN INSTITUCIONAL'!AL57)*1 -> 0 | U53: =CONCATENATE('PLAN DE ACCIÓN INSTITUCIONAL'!AN57)*1 -> 0.08 | V53: =CONCATENATE('PLAN DE ACCIÓN INSTITUCIONAL'!AO57)*1 -> 0 | W53: =CONCATENATE('PLAN DE ACCIÓN INSTITUCIONAL'!AQ57)*1 -> 0.08 | X53: =CONCATENATE('PLAN DE ACCIÓN INSTITUCIONAL'!AR57)*1 -> 0 | Y53: =CONCATENATE('PLAN DE ACCIÓN INSTITUCIONAL'!AT57)*1 -> 0.08 | Z53: =CONCATENATE('PLAN DE ACCIÓN INSTITUCIONAL'!AU57)*1 -> 0 | AA53: =CONCATENATE('PLAN DE ACCIÓN INSTITUCIONAL'!AW57)*1 -> 0.1 | AB53: =CONCATENATE('PLAN DE ACCIÓN INSTITUCIONAL'!AX57)*1 -> 0 | AC53: =CONCATENATE('PLAN DE ACCIÓN INSTITUCIONAL'!AZ57)*1 -> 0.1 | AD53: =CONCATENATE('PLAN DE ACCIÓN INSTITUCIONAL'!BA57)*1 -> 0 | AE53: =+'PLAN DE ACCIÓN INSTITUCIONAL'!H57 -> 2020-01-01
A54: =CONCATENATE('PLAN DE ACCIÓN INSTITUCIONAL'!B58) -> SUBDIRECCIÓN DE APROVECHAMIENTO (SAP) | B54: =CONCATENATE('PLAN DE ACCIÓN INSTITUCIONAL'!C58) -> Mejorar y fortalecer la capacidad operativa para el aprovechamiento | C54: =CONCATENATE('PLAN DE ACCIÓN INSTITUCIONAL'!D58) -> Facilitar el espacio que permita el funcionamiento de 1 ECA en la ciudad, para la operación de 2 organizaciones de recicladores. | D54: =CONCATENATE('PLAN DE ACCIÓN INSTITUCIONAL'!F58) -> Adquirir y/o rentar 1 predio para la implementación de ECAS | E54: =CONCATENATE('PLAN DE ACCIÓN INSTITUCIONAL'!M58) -> Modelo Integral de Prestación del Servicio Garantizar los más altos estándares de calidad en la prestación sostenible y efectiva de los servicios | F54: =CONCATENATE('PLAN DE ACCIÓN INSTITUCIONAL'!G58)*1 -> 1 | G54: =CONCATENATE('PLAN DE ACCIÓN INSTITUCIONAL'!S58)*1 ->  | H54: =CONCATENATE('PLAN DE ACCIÓN INSTITUCIONAL'!T58)*1 -> 0 | I54: =CONCATENATE('PLAN DE ACCIÓN INSTITUCIONAL'!V58)*1 ->  | J54: =CONCATENATE('PLAN DE ACCIÓN INSTITUCIONAL'!W58)*1 -> 0 | K54: =CONCATENATE('PLAN DE ACCIÓN INSTITUCIONAL'!Y58)*1 ->  | L54: =CONCATENATE('PLAN DE ACCIÓN INSTITUCIONAL'!Z58)*1 -> 0 | M54: =CONCATENATE('PLAN DE ACCIÓN INSTITUCIONAL'!AB58)*1 ->  | N54: =CONCATENATE('PLAN DE ACCIÓN INSTITUCIONAL'!AC58)*1 -> 0 | O54: =CONCATENATE('PLAN DE ACCIÓN INSTITUCIONAL'!AE58)*1 ->  | P54: =CONCATENATE('PLAN DE ACCIÓN INSTITUCIONAL'!AF58)*1 -> 0 | Q54: =CONCATENATE('PLAN DE ACCIÓN INSTITUCIONAL'!AH58)*1 -> 1 | R54: =CONCATENATE('PLAN DE ACCIÓN INSTITUCIONAL'!AI58)*1 -> 0 | S54: =CONCATENATE('PLAN DE ACCIÓN INSTITUCIONAL'!AK58)*1 ->  | T54: =CONCATENATE('PLAN DE ACCIÓN INSTITUCIONAL'!AL58)*1 -> 0 | U54: =CONCATENATE('PLAN DE ACCIÓN INSTITUCIONAL'!AN58)*1 ->  | V54: =CONCATENATE('PLAN DE ACCIÓN INSTITUCIONAL'!AO58)*1 -> 0 | W54: =CONCATENATE('PLAN DE ACCIÓN INSTITUCIONAL'!AQ58)*1 ->  | X54: =CONCATENATE('PLAN DE ACCIÓN INSTITUCIONAL'!AR58)*1 -> 0 | Y54: =CONCATENATE('PLAN DE ACCIÓN INSTITUCIONAL'!AT58)*1 ->  | Z54: =CONCATENATE('PLAN DE ACCIÓN INSTITUCIONAL'!AU58)*1 -> 0 | AA54: =CONCATENATE('PLAN DE ACCIÓN INSTITUCIONAL'!AW58)*1 ->  | AB54: =CONCATENATE('PLAN DE ACCIÓN INSTITUCIONAL'!AX58)*1 -> 0 | AC54: =CONCATENATE('PLAN DE ACCIÓN INSTITUCIONAL'!AZ58)*1 ->  | AD54: =CONCATENATE('PLAN DE ACCIÓN INSTITUCIONAL'!BA58)*1 -> 0 | AE54: =+'PLAN DE ACCIÓN INSTITUCIONAL'!H58 -> 2020-01-01
A55: =CONCATENATE('PLAN DE ACCIÓN INSTITUCIONAL'!B59) -> SUBDIRECCIÓN DE APROVECHAMIENTO (SAP) | B55: =CONCATENATE('PLAN DE ACCIÓN INSTITUCIONAL'!C59) -> Promover y fortalecer el esquema de aprovechamiento en el servicio de aseo | C55: =CONCATENATE('PLAN DE ACCIÓN INSTITUCIONAL'!D59) -> Desarrollar capacitaciones para la sensibilización de los usuarios en separación en la fuente. | D55: =CONCATENATE('PLAN DE ACCIÓN INSTITUCIONAL'!F59) -> Fortalecer la cultura ciudadana en el manejo de residuos sólidos aprovechables. | E55: =CONCATENATE('PLAN DE ACCIÓN INSTITUCIONAL'!M59) -> Modelo Integral de Prestación del Servicio Garantizar los más altos estándares de calidad en la prestación sostenible y efectiva de los servicios | F55: =CONCATENATE('PLAN DE ACCIÓN INSTITUCIONAL'!G59)*1 -> 1 | G55: =CONCATENATE('PLAN DE ACCIÓN INSTITUCIONAL'!S59)*1 ->  | H55: =CONCATENATE('PLAN DE ACCIÓN INSTITUCIONAL'!T59)*1 -> 0 | I55: =CONCATENATE('PLAN DE ACCIÓN INSTITUCIONAL'!V59)*1 -> 0.1 | J55: =CONCATENATE('PLAN DE ACCIÓN INSTITUCIONAL'!W59)*1 -> 0.1 | K55: =CONCATENATE('PLAN DE ACCIÓN INSTITUCIONAL'!Y59)*1 -> 0.1 | L55: =CONCATENATE('PLAN DE ACCIÓN INSTITUCIONAL'!Z59)*1 -> 0.1 | M55: =CONCATENATE('PLAN DE ACCIÓN INSTITUCIONAL'!AB59)*1 -> 0.1 | N55: =CONCATENATE('PLAN DE ACCIÓN INSTITUCIONAL'!AC59)*1 -> 0 | O55: =CONCATENATE('PLAN DE ACCIÓN INSTITUCIONAL'!AE59)*1 -> 0.1 | P55: =CONCATENATE('PLAN DE ACCIÓN INSTITUCIONAL'!AF59)*1 -> 0 | Q55: =CONCATENATE('PLAN DE ACCIÓN INSTITUCIONAL'!AH59)*1 -> 0.1 | R55: =CONCATENATE('PLAN DE ACCIÓN INSTITUCIONAL'!AI59)*1 -> 0 | S55: =CONCATENATE('PLAN DE ACCIÓN INSTITUCIONAL'!AK59)*1 -> 0.1 | T55: =CONCATENATE('PLAN DE ACCIÓN INSTITUCIONAL'!AL59)*1 -> 0 | U55: =CONCATENATE('PLAN DE ACCIÓN INSTITUCIONAL'!AN59)*1 -> 0.1 | V55: =CONCATENATE('PLAN DE ACCIÓN INSTITUCIONAL'!AO59)*1 -> 0 | W55: =CONCATENATE('PLAN DE ACCIÓN INSTITUCIONAL'!AQ59)*1 -> 0.1 | X55: =CONCATENATE('PLAN DE ACCIÓN INSTITUCIONAL'!AR59)*1 -> 0 | Y55: =CONCATENATE('PLAN DE ACCIÓN INSTITUCIONAL'!AT59)*1 -> 0.1 | Z55: =CONCATENATE('PLAN DE ACCIÓN INSTITUCIONAL'!AU59)*1 -> 0 | AA55: =CONCATENATE('PLAN DE ACCIÓN INSTITUCIONAL'!AW59)*1 -> 0.1 | AB55: =CONCATENATE('PLAN DE ACCIÓN INSTITUCIONAL'!AX59)*1 -> 0 | AC55: =CONCATENATE('PLAN DE ACCIÓN INSTITUCIONAL'!AZ59)*1 ->  | AD55: =CONCATENATE('PLAN DE ACCIÓN INSTITUCIONAL'!BA59)*1 -> 0 | AE55: =+'PLAN DE ACCIÓN INSTITUCIONAL'!H59 -> 2020-01-01
A56: =CONCATENATE('PLAN DE ACCIÓN INSTITUCIONAL'!B60) -> SUBDIRECCIÓN DE APROVECHAMIENTO (SAP) | B56: =CONCATENATE('PLAN DE ACCIÓN INSTITUCIONAL'!C$60) -> Dignificar la labor de la población recicladora de oficio | C56: =CONCATENATE('PLAN DE ACCIÓN INSTITUCIONAL'!D$60) -> Mejorar las condiciones de trabajo y prestación del servicio de la población recicladora de oficio | D56: =CONCATENATE('PLAN DE ACCIÓN INSTITUCIONAL'!F60) -> Dotar a la población recicladora de oficio con vehículos que faciliten la recolección y transporte de material aprovechable | E56: =CONCATENATE('PLAN DE ACCIÓN INSTITUCIONAL'!M60) -> Empoderamiento Ciudadano: Fomentar una cultura ciudadana comprometida con la sostenibilidad de la prestación de los servicios, orientada al embellecimiento y sentido de pertenencia con Bogotá. | F56: =CONCATENATE('PLAN DE ACCIÓN INSTITUCIONAL'!G60)*1 -> 0.8 | G56: =CONCATENATE('PLAN DE ACCIÓN INSTITUCIONAL'!S60)*1 ->  | H56: =CONCATENATE('PLAN DE ACCIÓN INSTITUCIONAL'!T60)*1 -> 0 | I56: =CONCATENATE('PLAN DE ACCIÓN INSTITUCIONAL'!V60)*1 ->  | J56: =CONCATENATE('PLAN DE ACCIÓN INSTITUCIONAL'!W60)*1 -> 0 | K56: =CONCATENATE('PLAN DE ACCIÓN INSTITUCIONAL'!Y60)*1 -> 0.5 | L56: =CONCATENATE('PLAN DE ACCIÓN INSTITUCIONAL'!Z60)*1 -> 0.5 | M56: =CONCATENATE('PLAN DE ACCIÓN INSTITUCIONAL'!AB60)*1 ->  | N56: =CONCATENATE('PLAN DE ACCIÓN INSTITUCIONAL'!AC60)*1 -> 0 | O56: =CONCATENATE('PLAN DE ACCIÓN INSTITUCIONAL'!AE60)*1 ->  | P56: =CONCATENATE('PLAN DE ACCIÓN INSTITUCIONAL'!AF60)*1 -> 0 | Q56: =CONCATENATE('PLAN DE ACCIÓN INSTITUCIONAL'!AH60)*1 -> 0.5 | R56: =CONCATENATE('PLAN DE ACCIÓN INSTITUCIONAL'!AI60)*1 -> 0 | S56: =CONCATENATE('PLAN DE ACCIÓN INSTITUCIONAL'!AK60)*1 ->  | T56: =CONCATENATE('PLAN DE ACCIÓN INSTITUCIONAL'!AL60)*1 -> 0 | U56: =CONCATENATE('PLAN DE ACCIÓN INSTITUCIONAL'!AN60)*1 ->  | V56: =CONCATENATE('PLAN DE ACCIÓN INSTITUCIONAL'!AO60)*1 -> 0 | W56: =CONCATENATE('PLAN DE ACCIÓN INSTITUCIONAL'!AQ60)*1 ->  | X56: =CONCATENATE('PLAN DE ACCIÓN INSTITUCIONAL'!AR60)*1 -> 0 | Y56: =CONCATENATE('PLAN DE ACCIÓN INSTITUCIONAL'!AT60)*1 ->  | Z56: =CONCATENATE('PLAN DE ACCIÓN INSTITUCIONAL'!AU60)*1 -> 0 | AA56: =CONCATENATE('PLAN DE ACCIÓN INSTITUCIONAL'!AW60)*1 ->  | AB56: =CONCATENATE('PLAN DE ACCIÓN INSTITUCIONAL'!AX60)*1 -> 0 | AC56: =CONCATENATE('PLAN DE ACCIÓN INSTITUCIONAL'!AZ60)*1 ->  | AD56: =CONCATENATE('PLAN DE ACCIÓN INSTITUCIONAL'!BA60)*1 -> 0 | AE56: =+'PLAN DE ACCIÓN INSTITUCIONAL'!H60 -> 2020-01-01
A57: =CONCATENATE('PLAN DE ACCIÓN INSTITUCIONAL'!B61) -> SUBDIRECCIÓN DE APROVECHAMIENTO (SAP) | B57: =CONCATENATE('PLAN DE ACCIÓN INSTITUCIONAL'!C$60) -> Dignificar la labor de la población recicladora de oficio | C57: =CONCATENATE('PLAN DE ACCIÓN INSTITUCIONAL'!D$60) -> Mejorar las condiciones de trabajo y prestación del servicio de la población recicladora de oficio | D57: =CONCATENATE('PLAN DE ACCIÓN INSTITUCIONAL'!F61) -> Dotar de herramientas tecnológicas a las organizaciones recicladoras | E57: =CONCATENATE('PLAN DE ACCIÓN INSTITUCIONAL'!M61) -> Empoderamiento Ciudadano: Fomentar una cultura ciudadana comprometida con la sostenibilidad de la prestación de los servicios, orientada al embellecimiento y sentido de pertenencia con Bogotá. | F57: =CONCATENATE('PLAN DE ACCIÓN INSTITUCIONAL'!G61)*1 -> 0.1 | G57: =CONCATENATE('PLAN DE ACCIÓN INSTITUCIONAL'!S61)*1 ->  | H57: =CONCATENATE('PLAN DE ACCIÓN INSTITUCIONAL'!T61)*1 -> 0 | I57: =CONCATENATE('PLAN DE ACCIÓN INSTITUCIONAL'!V61)*1 ->  | J57: =CONCATENATE('PLAN DE ACCIÓN INSTITUCIONAL'!W61)*1 -> 0 | K57: =CONCATENATE('PLAN DE ACCIÓN INSTITUCIONAL'!Y61)*1 -> 0.3 | L57: =CONCATENATE('PLAN DE ACCIÓN INSTITUCIONAL'!Z61)*1 -> 0.3 | M57: =CONCATENATE('PLAN DE ACCIÓN INSTITUCIONAL'!AB61)*1 ->  | N57: =CONCATENATE('PLAN DE ACCIÓN INSTITUCIONAL'!AC61)*1 -> 0 | O57: =CONCATENATE('PLAN DE ACCIÓN INSTITUCIONAL'!AE61)*1 ->  | P57: =CONCATENATE('PLAN DE ACCIÓN INSTITUCIONAL'!AF61)*1 -> 0 | Q57: =CONCATENATE('PLAN DE ACCIÓN INSTITUCIONAL'!AH61)*1 -> 0.3 | R57: =CONCATENATE('PLAN DE ACCIÓN INSTITUCIONAL'!AI61)*1 -> 0 | S57: =CONCATENATE('PLAN DE ACCIÓN INSTITUCIONAL'!AK61)*1 ->  | T57: =CONCATENATE('PLAN DE ACCIÓN INSTITUCIONAL'!AL61)*1 -> 0 | U57: =CONCATENATE('PLAN DE ACCIÓN INSTITUCIONAL'!AN61)*1 ->  | V57: =CONCATENATE('PLAN DE ACCIÓN INSTITUCIONAL'!AO61)*1 -> 0 | W57: =CONCATENATE('PLAN DE ACCIÓN INSTITUCIONAL'!AQ61)*1 -> 0.3 | X57: =CONCATENATE('PLAN DE ACCIÓN INSTITUCIONAL'!AR61)*1 -> 0 | Y57: =CONCATENATE('PLAN DE ACCIÓN INSTITUCIONAL'!AT61)*1 ->  | Z57: =CONCATENATE('PLAN DE ACCIÓN INSTITUCIONAL'!AU61)*1 -> 0 | AA57: =CONCATENATE('PLAN DE ACCIÓN INSTITUCIONAL'!AW61)*1 ->  | AB57: =CONCATENATE('PLAN DE ACCIÓN INSTITUCIONAL'!AX61)*1 -> 0 | AC57: =CONCATENATE('PLAN DE ACCIÓN INSTITUCIONAL'!AZ61)*1 -> 0.1 | AD57: =CONCATENATE('PLAN DE ACCIÓN INSTITUCIONAL'!BA61)*1 -> 0 | AE57: =+'PLAN DE ACCIÓN INSTITUCIONAL'!H61 -> 2020-01-01
A58: =CONCATENATE('PLAN DE ACCIÓN INSTITUCIONAL'!B62) -> SUBDIRECCIÓN DE APROVECHAMIENTO (SAP) | B58: =CONCATENATE('PLAN DE ACCIÓN INSTITUCIONAL'!C$60) -> Dignificar la labor de la población recicladora de oficio | C58: =CONCATENATE('PLAN DE ACCIÓN INSTITUCIONAL'!D$60) -> Mejorar las condiciones de trabajo y prestación del servicio de la población recicladora de oficio | D58: =CONCATENATE('PLAN DE ACCIÓN INSTITUCIONAL'!F62) -> Actualizar el censo de la población recicladora de oficio inscrita en el RURO | E58: =CONCATENATE('PLAN DE ACCIÓN INSTITUCIONAL'!M62) -> Empoderamiento Ciudadano: Fomentar una cultura ciudadana comprometida con la sostenibilidad de la prestación de los servicios, orientada al embellecimiento y sentido de pertenencia con Bogotá. | F58: =CONCATENATE('PLAN DE ACCIÓN INSTITUCIONAL'!G62)*1 -> 0.1 | G58: =CONCATENATE('PLAN DE ACCIÓN INSTITUCIONAL'!S62)*1 ->  | H58: =CONCATENATE('PLAN DE ACCIÓN INSTITUCIONAL'!T62)*1 -> 0 | I58: =CONCATENATE('PLAN DE ACCIÓN INSTITUCIONAL'!V62)*1 -> 0.2 | J58: =CONCATENATE('PLAN DE ACCIÓN INSTITUCIONAL'!W62)*1 -> 0.2 | K58: =CONCATENATE('PLAN DE ACCIÓN INSTITUCIONAL'!Y62)*1 ->  | L58: =CONCATENATE('PLAN DE ACCIÓN INSTITUCIONAL'!Z62)*1 -> 0 | M58: =CONCATENATE('PLAN DE ACCIÓN INSTITUCIONAL'!AB62)*1 -> 0.2 | N58: =CONCATENATE('PLAN DE ACCIÓN INSTITUCIONAL'!AC62)*1 -> 0 | O58: =CONCATENATE('PLAN DE ACCIÓN INSTITUCIONAL'!AE62)*1 ->  | P58: =CONCATENATE('PLAN DE ACCIÓN INSTITUCIONAL'!AF62)*1 -> 0 | Q58: =CONCATENATE('PLAN DE ACCIÓN INSTITUCIONAL'!AH62)*1 -> 0.2 | R58: =CONCATENATE('PLAN DE ACCIÓN INSTITUCIONAL'!AI62)*1 -> 0 | S58: =CONCATENATE('PLAN DE ACCIÓN INSTITUCIONAL'!AK62)*1 ->  | T58: =CONCATENATE('PLAN DE ACCIÓN INSTITUCIONAL'!AL62)*1 -> 0 | U58: =CONCATENATE('PLAN DE ACCIÓN INSTITUCIONAL'!AN62)*1 -> 0.2 | V58: =CONCATENATE('PLAN DE ACCIÓN INSTITUCIONAL'!AO62)*1 -> 0 | W58: =CONCATENATE('PLAN DE ACCIÓN INSTITUCIONAL'!AQ62)*1 ->  | X58: =CONCATENATE('PLAN DE ACCIÓN INSTITUCIONAL'!AR62)*1 -> 0 | Y58: =CONCATENATE('PLAN DE ACCIÓN INSTITUCIONAL'!AT62)*1 -> 0.2 | Z58: =CONCATENATE('PLAN DE ACCIÓN INSTITUCIONAL'!AU62)*1 -> 0 | AA58: =CONCATENATE('PLAN DE ACCIÓN INSTITUCIONAL'!AW62)*1 ->  | AB58: =CONCATENATE('PLAN DE ACCIÓN INSTITUCIONAL'!AX62)*1 -> 0 | AC58: =CONCATENATE('PLAN DE ACCIÓN INSTITUCIONAL'!AZ62)*1 ->  | AD58: =CONCATENATE('PLAN DE ACCIÓN INSTITUCIONAL'!BA62)*1 -> 0 | AE58: =+'PLAN DE ACCIÓN INSTITUCIONAL'!H62 -> 2020-01-01
A59: =CONCATENATE('PLAN DE ACCIÓN INSTITUCIONAL'!B63) -> SUBDIRECCIÓN DE APROVECHAMIENTO (SAP) | B59: =CONCATENATE('PLAN DE ACCIÓN INSTITUCIONAL'!C63) -> Promover el fortalecimiento empresarial para las organizaciones de recicladores. | C59: =CONCATENATE('PLAN DE ACCIÓN INSTITUCIONAL'!D63) -> Apoyar el cumplimiento de las fases de formalización de las organizaciones de recicladores de oficio conforme al Decreto 596 de 2016. | D59: =CONCATENATE('PLAN DE ACCIÓN INSTITUCIONAL'!F63) -> Desarrollar capacitaciones dirigidas a organizaciones de recicladores de oficio. | E59: =CONCATENATE('PLAN DE ACCIÓN INSTITUCIONAL'!M63) -> Empoderamiento Ciudadano: Fomentar una cultura ciudadana comprometida con la sostenibilidad de la prestación de los servicios, orientada al embellecimiento y sentido de pertenencia con Bogotá. | F59: =CONCATENATE('PLAN DE ACCIÓN INSTITUCIONAL'!G63)*1 -> 1 | G59: =CONCATENATE('PLAN DE ACCIÓN INSTITUCIONAL'!S63)*1 ->  | H59: =CONCATENATE('PLAN DE ACCIÓN INSTITUCIONAL'!T63)*1 -> 0 | I59: =CONCATENATE('PLAN DE ACCIÓN INSTITUCIONAL'!V63)*1 ->  | J59: =CONCATENATE('PLAN DE ACCIÓN INSTITUCIONAL'!W63)*1 -> 0 | K59: =CONCATENATE('PLAN DE ACCIÓN INSTITUCIONAL'!Y63)*1 -> 0.25 | L59: =CONCATENATE('PLAN DE ACCIÓN INSTITUCIONAL'!Z63)*1 -> 0 | M59: =CONCATENATE('PLAN DE ACCIÓN INSTITUCIONAL'!AB63)*1 ->  | N59: =CONCATENATE('PLAN DE ACCIÓN INSTITUCIONAL'!AC63)*1 -> 0 | O59: =CONCATENATE('PLAN DE ACCIÓN INSTITUCIONAL'!AE63)*1 ->  | P59: =CONCATENATE('PLAN DE ACCIÓN INSTITUCIONAL'!AF63)*1 -> 0 | Q59: =CONCATENATE('PLAN DE ACCIÓN INSTITUCIONAL'!AH63)*1 -> 0.25 | R59: =CONCATENATE('PLAN DE ACCIÓN INSTITUCIONAL'!AI63)*1 -> 0 | S59: =CONCATENATE('PLAN DE ACCIÓN INSTITUCIONAL'!AK63)*1 ->  | T59: =CONCATENATE('PLAN DE ACCIÓN INSTITUCIONAL'!AL63)*1 -> 0 | U59: =CONCATENATE('PLAN DE ACCIÓN INSTITUCIONAL'!AN63)*1 ->  | V59: =CONCATENATE('PLAN DE ACCIÓN INSTITUCIONAL'!AO63)*1 -> 0 | W59: =CONCATENATE('PLAN DE ACCIÓN INSTITUCIONAL'!AQ63)*1 -> 0.25 | X59: =CONCATENATE('PLAN DE ACCIÓN INSTITUCIONAL'!AR63)*1 -> 0 | Y59: =CONCATENATE('PLAN DE ACCIÓN INSTITUCIONAL'!AT63)*1 ->  | Z59: =CONCATENATE('PLAN DE ACCIÓN INSTITUCIONAL'!AU63)*1 -> 0 | AA59: =CONCATENATE('PLAN DE ACCIÓN INSTITUCIONAL'!AW63)*1 ->  | AB59: =CONCATENATE('PLAN DE ACCIÓN INSTITUCIONAL'!AX63)*1 -> 0 | AC59: =CONCATENATE('PLAN DE ACCIÓN INSTITUCIONAL'!AZ63)*1 -> 0.25 | AD59: =CONCATENATE('PLAN DE ACCIÓN INSTITUCIONAL'!BA63)*1 -> 0 | AE59: =+'PLAN DE ACCIÓN INSTITUCIONAL'!H63 -> 2020-01-01
A60: =CONCATENATE('PLAN DE ACCIÓN INSTITUCIONAL'!B64) -> SUBDIRECCIÓN DE SERVICIOS FUNERARIOS Y ALUMBRADO PÚBLICO (SSFAP) | B60: =CONCATENATE('PLAN DE ACCIÓN INSTITUCIONAL'!C64) -> Modernizar y Actualizar las luminarias en Parques y Vías | C60: =CONCATENATE('PLAN DE ACCIÓN INSTITUCIONAL'!D64) -> Instalación de 30.000 bombillas de tecnología LED y/o CMH instaladas y la actualización de 200 parques. | D60: =CONCATENATE('PLAN DE ACCIÓN INSTITUCIONAL'!F64) -> Modernización de 15,000 Luminarias entre los meses de enero a mayo de 2020 en algunas Zonas del Distrito Capital | E60: =CONCATENATE('PLAN DE ACCIÓN INSTITUCIONAL'!M64) -> Modelo Integral de Prestación del Servicio Garantizar los más altos estándares de calidad en la prestación sostenible y efectiva de los servicios | F60: =CONCATENATE('PLAN DE ACCIÓN INSTITUCIONAL'!G64)*1 -> 1 | G60: =CONCATENATE('PLAN DE ACCIÓN INSTITUCIONAL'!S64)*1 -> 0.2 | H60: =CONCATENATE('PLAN DE ACCIÓN INSTITUCIONAL'!T64)*1 -> 0.2 | I60: =CONCATENATE('PLAN DE ACCIÓN INSTITUCIONAL'!V64)*1 -> 0.2 | J60: =CONCATENATE('PLAN DE ACCIÓN INSTITUCIONAL'!W64)*1 -> 0.2 | K60: =CONCATENATE('PLAN DE ACCIÓN INSTITUCIONAL'!Y64)*1 -> 0.2 | L60: =CONCATENATE('PLAN DE ACCIÓN INSTITUCIONAL'!Z64)*1 -> 0 | M60: =CONCATENATE('PLAN DE ACCIÓN INSTITUCIONAL'!AB64)*1 -> 0.2 | N60: =CONCATENATE('PLAN DE ACCIÓN INSTITUCIONAL'!AC64)*1 -> 0 | O60: =CONCATENATE('PLAN DE ACCIÓN INSTITUCIONAL'!AE64)*1 -> 0.2 | P60: =CONCATENATE('PLAN DE ACCIÓN INSTITUCIONAL'!AF64)*1 -> 0 | Q60: =CONCATENATE('PLAN DE ACCIÓN INSTITUCIONAL'!AH64)*1 ->  | R60: =CONCATENATE('PLAN DE ACCIÓN INSTITUCIONAL'!AI64)*1 -> 0 | S60: =CONCATENATE('PLAN DE ACCIÓN INSTITUCIONAL'!AK64)*1 ->  | T60: =CONCATENATE('PLAN DE ACCIÓN INSTITUCIONAL'!AL64)*1 -> 0 | U60: =CONCATENATE('PLAN DE ACCIÓN INSTITUCIONAL'!AN64)*1 ->  | V60: =CONCATENATE('PLAN DE ACCIÓN INSTITUCIONAL'!AO64)*1 -> 0 | W60: =CONCATENATE('PLAN DE ACCIÓN INSTITUCIONAL'!AQ64)*1 ->  | X60: =CONCATENATE('PLAN DE ACCIÓN INSTITUCIONAL'!AR64)*1 -> 0 | Y60: =CONCATENATE('PLAN DE ACCIÓN INSTITUCIONAL'!AT64)*1 ->  | Z60: =CONCATENATE('PLAN DE ACCIÓN INSTITUCIONAL'!AU64)*1 -> 0 | AA60: =CONCATENATE('PLAN DE ACCIÓN INSTITUCIONAL'!AW64)*1 ->  | AB60: =CONCATENATE('PLAN DE ACCIÓN INSTITUCIONAL'!AX64)*1 -> 0 | AC60: =CONCATENATE('PLAN DE ACCIÓN INSTITUCIONAL'!AZ64)*1 ->  | AD60: =CONCATENATE('PLAN DE ACCIÓN INSTITUCIONAL'!BA64)*1 -> 0 | AE60: =+'PLAN DE ACCIÓN INSTITUCIONAL'!H64 -> 2020-02-01
A61: =CONCATENATE('PLAN DE ACCIÓN INSTITUCIONAL'!B65) -> SUBDIRECCIÓN DE SERVICIOS FUNERARIOS Y ALUMBRADO PÚBLICO (SSFAP) | B61: =CONCATENATE('PLAN DE ACCIÓN INSTITUCIONAL'!C$65) -> Fortalecer la prestación del Servicio de Alumbrado Publico en el Distrito Capital | C61: =CONCATENATE('PLAN DE ACCIÓN INSTITUCIONAL'!D$65) -> Garantizar que la prestación del servicio de alumbrado público se adecue al cumplimiento de la normatividad y regulación vigente | D61: =CONCATENATE('PLAN DE ACCIÓN INSTITUCIONAL'!F65) -> Realización del Comité de seguimiento Instancia de Coordinación - Resolución 233 de 2018 | E61: =CONCATENATE('PLAN DE ACCIÓN INSTITUCIONAL'!M65) -> Modelo Integral de Prestación del Servicio Garantizar los más altos estándares de calidad en la prestación sostenible y efectiva de los servicios | F61: =CONCATENATE('PLAN DE ACCIÓN INSTITUCIONAL'!G65)*1 -> 0.3 | G61: =CONCATENATE('PLAN DE ACCIÓN INSTITUCIONAL'!S65)*1 ->  | H61: =CONCATENATE('PLAN DE ACCIÓN INSTITUCIONAL'!T65)*1 -> 0 | I61: =CONCATENATE('PLAN DE ACCIÓN INSTITUCIONAL'!V65)*1 ->  | J61: =CONCATENATE('PLAN DE ACCIÓN INSTITUCIONAL'!W65)*1 -> 0 | K61: =CONCATENATE('PLAN DE ACCIÓN INSTITUCIONAL'!Y65)*1 ->  | L61: =CONCATENATE('PLAN DE ACCIÓN INSTITUCIONAL'!Z65)*1 -> 0 | M61: =CONCATENATE('PLAN DE ACCIÓN INSTITUCIONAL'!AB65)*1 -> 1 | N61: =CONCATENATE('PLAN DE ACCIÓN INSTITUCIONAL'!AC65)*1 -> 0 | O61: =CONCATENATE('PLAN DE ACCIÓN INSTITUCIONAL'!AE65)*1 ->  | P61: =CONCATENATE('PLAN DE ACCIÓN INSTITUCIONAL'!AF65)*1 -> 0 | Q61: =CONCATENATE('PLAN DE ACCIÓN INSTITUCIONAL'!AH65)*1 ->  | R61: =CONCATENATE('PLAN DE ACCIÓN INSTITUCIONAL'!AI65)*1 -> 0 | S61: =CONCATENATE('PLAN DE ACCIÓN INSTITUCIONAL'!AK65)*1 ->  | T61: =CONCATENATE('PLAN DE ACCIÓN INSTITUCIONAL'!AL65)*1 -> 0 | U61: =CONCATENATE('PLAN DE ACCIÓN INSTITUCIONAL'!AN65)*1 ->  | V61: =CONCATENATE('PLAN DE ACCIÓN INSTITUCIONAL'!AO65)*1 -> 0 | W61: =CONCATENATE('PLAN DE ACCIÓN INSTITUCIONAL'!AQ65)*1 ->  | X61: =CONCATENATE('PLAN DE ACCIÓN INSTITUCIONAL'!AR65)*1 -> 0 | Y61: =CONCATENATE('PLAN DE ACCIÓN INSTITUCIONAL'!AT65)*1 ->  | Z61: =CONCATENATE('PLAN DE ACCIÓN INSTITUCIONAL'!AU65)*1 -> 0 | AA61: =CONCATENATE('PLAN DE ACCIÓN INSTITUCIONAL'!AW65)*1 ->  | AB61: =CONCATENATE('PLAN DE ACCIÓN INSTITUCIONAL'!AX65)*1 -> 0 | AC61: =CONCATENATE('PLAN DE ACCIÓN INSTITUCIONAL'!AZ65)*1 ->  | AD61: =CONCATENATE('PLAN DE ACCIÓN INSTITUCIONAL'!BA65)*1 -> 0 | AE61: =+'PLAN DE ACCIÓN INSTITUCIONAL'!H65 -> 2020-02-01
A62: =CONCATENATE('PLAN DE ACCIÓN INSTITUCIONAL'!B66) -> SUBDIRECCIÓN DE SERVICIOS FUNERARIOS Y ALUMBRADO PÚBLICO (SSFAP) | B62: =CONCATENATE('PLAN DE ACCIÓN INSTITUCIONAL'!C$65) -> Fortalecer la prestación del Servicio de Alumbrado Publico en el Distrito Capital | C62: =CONCATENATE('PLAN DE ACCIÓN INSTITUCIONAL'!D$65) -> Garantizar que la prestación del servicio de alumbrado público se adecue al cumplimiento de la normatividad y regulación vigente | D62: =CONCATENATE('PLAN DE ACCIÓN INSTITUCIONAL'!F66) -> Presentación de informes de supervisión y control al Contrato de Interventoría en la prestación del Servicio de Alumbrado en el Distrito Capital con el cumplimiento estricto de los contratos asociado | E62: =CONCATENATE('PLAN DE ACCIÓN INSTITUCIONAL'!M66) -> Modelo Integral de Prestación del Servicio Garantizar los más altos estándares de calidad en la prestación sostenible y efectiva de los servicios | F62: =CONCATENATE('PLAN DE ACCIÓN INSTITUCIONAL'!G66)*1 -> 0.35 | G62: =CONCATENATE('PLAN DE ACCIÓN INSTITUCIONAL'!S66)*1 -> 0.2 | H62: =CONCATENATE('PLAN DE ACCIÓN INSTITUCIONAL'!T66)*1 -> 0.2 | I62: =CONCATENATE('PLAN DE ACCIÓN INSTITUCIONAL'!V66)*1 -> 0.2 | J62: =CONCATENATE('PLAN DE ACCIÓN INSTITUCIONAL'!W66)*1 -> 0 | K62: =CONCATENATE('PLAN DE ACCIÓN INSTITUCIONAL'!Y66)*1 -> 0.2 | L62: =CONCATENATE('PLAN DE ACCIÓN INSTITUCIONAL'!Z66)*1 -> 0 | M62: =CONCATENATE('PLAN DE ACCIÓN INSTITUCIONAL'!AB66)*1 -> 0.2 | N62: =CONCATENATE('PLAN DE ACCIÓN INSTITUCIONAL'!AC66)*1 -> 0 | O62: =CONCATENATE('PLAN DE ACCIÓN INSTITUCIONAL'!AE66)*1 -> 0.2 | P62: =CONCATENATE('PLAN DE ACCIÓN INSTITUCIONAL'!AF66)*1 -> 0 | Q62: =CONCATENATE('PLAN DE ACCIÓN INSTITUCIONAL'!AH66)*1 ->  | R62: =CONCATENATE('PLAN DE ACCIÓN INSTITUCIONAL'!AI66)*1 -> 0 | S62: =CONCATENATE('PLAN DE ACCIÓN INSTITUCIONAL'!AK66)*1 ->  | T62: =CONCATENATE('PLAN DE ACCIÓN INSTITUCIONAL'!AL66)*1 -> 0 | U62: =CONCATENATE('PLAN DE ACCIÓN INSTITUCIONAL'!AN66)*1 ->  | V62: =CONCATENATE('PLAN DE ACCIÓN INSTITUCIONAL'!AO66)*1 -> 0 | W62: =CONCATENATE('PLAN DE ACCIÓN INSTITUCIONAL'!AQ66)*1 ->  | X62: =CONCATENATE('PLAN DE ACCIÓN INSTITUCIONAL'!AR66)*1 -> 0 | Y62: =CONCATENATE('PLAN DE ACCIÓN INSTITUCIONAL'!AT66)*1 ->  | Z62: =CONCATENATE('PLAN DE ACCIÓN INSTITUCIONAL'!AU66)*1 -> 0 | AA62: =CONCATENATE('PLAN DE ACCIÓN INSTITUCIONAL'!AW66)*1 ->  | AB62: =CONCATENATE('PLAN DE ACCIÓN INSTITUCIONAL'!AX66)*1 -> 0 | AC62: =CONCATENATE('PLAN DE ACCIÓN INSTITUCIONAL'!AZ66)*1 ->  | AD62: =CONCATENATE('PLAN DE ACCIÓN INSTITUCIONAL'!BA66)*1 -> 0 | AE62: =+'PLAN DE ACCIÓN INSTITUCIONAL'!H66 -> 2020-02-01
A63: =CONCATENATE('PLAN DE ACCIÓN INSTITUCIONAL'!B67) -> SUBDIRECCIÓN DE SERVICIOS FUNERARIOS Y ALUMBRADO PÚBLICO (SSFAP) | B63: =CONCATENATE('PLAN DE ACCIÓN INSTITUCIONAL'!C$65) -> Fortalecer la prestación del Servicio de Alumbrado Publico en el Distrito Capital | C63: =CONCATENATE('PLAN DE ACCIÓN INSTITUCIONAL'!D$65) -> Garantizar que la prestación del servicio de alumbrado público se adecue al cumplimiento de la normatividad y regulación vigente | D63: =CONCATENATE('PLAN DE ACCIÓN INSTITUCIONAL'!F67) -> Revisión para la actualización y/o adecuación del modelo de conformidad a la normatividad pertinente del modelo de prestación del servicio de alumbrado público | E63: =CONCATENATE('PLAN DE ACCIÓN INSTITUCIONAL'!M67) -> Modelo Integral de Prestación del Servicio Garantizar los más altos estándares de calidad en la prestación sostenible y efectiva de los servicios | F63: =CONCATENATE('PLAN DE ACCIÓN INSTITUCIONAL'!G67)*1 -> 0.35 | G63: =CONCATENATE('PLAN DE ACCIÓN INSTITUCIONAL'!S67)*1 -> 0.2 | H63: =CONCATENATE('PLAN DE ACCIÓN INSTITUCIONAL'!T67)*1 -> 0.2 | I63: =CONCATENATE('PLAN DE ACCIÓN INSTITUCIONAL'!V67)*1 -> 0.2 | J63: =CONCATENATE('PLAN DE ACCIÓN INSTITUCIONAL'!W67)*1 -> 0.2 | K63: =CONCATENATE('PLAN DE ACCIÓN INSTITUCIONAL'!Y67)*1 -> 0.2 | L63: =CONCATENATE('PLAN DE ACCIÓN INSTITUCIONAL'!Z67)*1 -> 0 | M63: =CONCATENATE('PLAN DE ACCIÓN INSTITUCIONAL'!AB67)*1 -> 0.2 | N63: =CONCATENATE('PLAN DE ACCIÓN INSTITUCIONAL'!AC67)*1 -> 0 | O63: =CONCATENATE('PLAN DE ACCIÓN INSTITUCIONAL'!AE67)*1 -> 0.2 | P63: =CONCATENATE('PLAN DE ACCIÓN INSTITUCIONAL'!AF67)*1 -> 0 | Q63: =CONCATENATE('PLAN DE ACCIÓN INSTITUCIONAL'!AH67)*1 ->  | R63: =CONCATENATE('PLAN DE ACCIÓN INSTITUCIONAL'!AI67)*1 -> 0 | S63: =CONCATENATE('PLAN DE ACCIÓN INSTITUCIONAL'!AK67)*1 ->  | T63: =CONCATENATE('PLAN DE ACCIÓN INSTITUCIONAL'!AL67)*1 -> 0 | U63: =CONCATENATE('PLAN DE ACCIÓN INSTITUCIONAL'!AN67)*1 ->  | V63: =CONCATENATE('PLAN DE ACCIÓN INSTITUCIONAL'!AO67)*1 -> 0 | W63: =CONCATENATE('PLAN DE ACCIÓN INSTITUCIONAL'!AQ67)*1 ->  | X63: =CONCATENATE('PLAN DE ACCIÓN INSTITUCIONAL'!AR67)*1 -> 0 | Y63: =CONCATENATE('PLAN DE ACCIÓN INSTITUCIONAL'!AT67)*1 ->  | Z63: =CONCATENATE('PLAN DE ACCIÓN INSTITUCIONAL'!AU67)*1 -> 0 | AA63: =CONCATENATE('PLAN DE ACCIÓN INSTITUCIONAL'!AW67)*1 ->  | AB63: =CONCATENATE('PLAN DE ACCIÓN INSTITUCIONAL'!AX67)*1 -> 0 | AC63: =CONCATENATE('PLAN DE ACCIÓN INSTITUCIONAL'!AZ67)*1 ->  | AD63: =CONCATENATE('PLAN DE ACCIÓN INSTITUCIONAL'!BA67)*1 -> 0 | AE63: =+'PLAN DE ACCIÓN INSTITUCIONAL'!H67 -> 2020-02-01
A64: =CONCATENATE('PLAN DE ACCIÓN INSTITUCIONAL'!B68) -> SUBDIRECCIÓN DE SERVICIOS FUNERARIOS Y ALUMBRADO PÚBLICO (SSFAP) | B64: =CONCATENATE('PLAN DE ACCIÓN INSTITUCIONAL'!C$68) -> Garantizar que la prestación de los servicios funerarios | C64: =CONCATENATE('PLAN DE ACCIÓN INSTITUCIONAL'!D$68) -> Fortalecer la prestación del Servicios funerarios en el Distrito Capital | D64: =CONCATENATE('PLAN DE ACCIÓN INSTITUCIONAL'!F68) -> Presentación de informes de supervisión y control al Contrato de Interventoría a la prestación de los Servicios Funerarios en el Distrito Capital con el cumplimiento estricto de los contratos asociados | E64: =CONCATENATE('PLAN DE ACCIÓN INSTITUCIONAL'!M68) -> Modelo Integral de Prestación del Servicio Garantizar los más altos estándares de calidad en la prestación sostenible y efectiva de los servicios | F64: =CONCATENATE('PLAN DE ACCIÓN INSTITUCIONAL'!G68)*1 -> 0.7 | G64: =CONCATENATE('PLAN DE ACCIÓN INSTITUCIONAL'!S68)*1 -> 0.2 | H64: =CONCATENATE('PLAN DE ACCIÓN INSTITUCIONAL'!T68)*1 -> 0.2 | I64: =CONCATENATE('PLAN DE ACCIÓN INSTITUCIONAL'!V68)*1 -> 0.2 | J64: =CONCATENATE('PLAN DE ACCIÓN INSTITUCIONAL'!W68)*1 -> 0 | K64: =CONCATENATE('PLAN DE ACCIÓN INSTITUCIONAL'!Y68)*1 -> 0.2 | L64: =CONCATENATE('PLAN DE ACCIÓN INSTITUCIONAL'!Z68)*1 -> 0 | M64: =CONCATENATE('PLAN DE ACCIÓN INSTITUCIONAL'!AB68)*1 -> 0.2 | N64: =CONCATENATE('PLAN DE ACCIÓN INSTITUCIONAL'!AC68)*1 -> 0 | O64: =CONCATENATE('PLAN DE ACCIÓN INSTITUCIONAL'!AE68)*1 -> 0.2 | P64: =CONCATENATE('PLAN DE ACCIÓN INSTITUCIONAL'!AF68)*1 -> 0 | Q64: =CONCATENATE('PLAN DE ACCIÓN INSTITUCIONAL'!AH68)*1 ->  | R64: =CONCATENATE('PLAN DE ACCIÓN INSTITUCIONAL'!AI68)*1 -> 0 | S64: =CONCATENATE('PLAN DE ACCIÓN INSTITUCIONAL'!AK68)*1 ->  | T64: =CONCATENATE('PLAN DE ACCIÓN INSTITUCIONAL'!AL68)*1 -> 0 | U64: =CONCATENATE('PLAN DE ACCIÓN INSTITUCIONAL'!AN68)*1 ->  | V64: =CONCATENATE('PLAN DE ACCIÓN INSTITUCIONAL'!AO68)*1 -> 0 | W64: =CONCATENATE('PLAN DE ACCIÓN INSTITUCIONAL'!AQ68)*1 ->  | X64: =CONCATENATE('PLAN DE ACCIÓN INSTITUCIONAL'!AR68)*1 -> 0 | Y64: =CONCATENATE('PLAN DE ACCIÓN INSTITUCIONAL'!AT68)*1 ->  | Z64: =CONCATENATE('PLAN DE ACCIÓN INSTITUCIONAL'!AU68)*1 -> 0 | AA64: =CONCATENATE('PLAN DE ACCIÓN INSTITUCIONAL'!AW68)*1 ->  | AB64: =CONCATENATE('PLAN DE ACCIÓN INSTITUCIONAL'!AX68)*1 -> 0 | AC64: =CONCATENATE('PLAN DE ACCIÓN INSTITUCIONAL'!AZ68)*1 ->  | AD64: =CONCATENATE('PLAN DE ACCIÓN INSTITUCIONAL'!BA68)*1 -> 0 | AE64: =+'PLAN DE ACCIÓN INSTITUCIONAL'!H68 -> 2020-02-01
A65: =CONCATENATE('PLAN DE ACCIÓN INSTITUCIONAL'!B69) ->  | B65: =CONCATENATE('PLAN DE ACCIÓN INSTITUCIONAL'!C$68) -> Garantizar que la prestación de los servicios funerarios | C65: =CONCATENATE('PLAN DE ACCIÓN INSTITUCIONAL'!D$68) -> Fortalecer la prestación del Servicios funerarios en el Distrito Capital | D65: =CONCATENATE('PLAN DE ACCIÓN INSTITUCIONAL'!F69) -> Realización del Comité de seguimiento Instancia de Coordinación - Resolución 233 de 2018 | E65: =CONCATENATE('PLAN DE ACCIÓN INSTITUCIONAL'!M69) -> Modelo Integral de Prestación del Servicio Garantizar los más altos estándares de calidad en la prestación sostenible y efectiva de los servicios | F65: =CONCATENATE('PLAN DE ACCIÓN INSTITUCIONAL'!G69)*1 -> 0.3 | G65: =CONCATENATE('PLAN DE ACCIÓN INSTITUCIONAL'!S69)*1 ->  | H65: =CONCATENATE('PLAN DE ACCIÓN INSTITUCIONAL'!T69)*1 -> 0 | I65: =CONCATENATE('PLAN DE ACCIÓN INSTITUCIONAL'!V69)*1 ->  | J65: =CONCATENATE('PLAN DE ACCIÓN INSTITUCIONAL'!W69)*1 -> 0 | K65: =CONCATENATE('PLAN DE ACCIÓN INSTITUCIONAL'!Y69)*1 ->  | L65: =CONCATENATE('PLAN DE ACCIÓN INSTITUCIONAL'!Z69)*1 -> 0 | M65: =CONCATENATE('PLAN DE ACCIÓN INSTITUCIONAL'!AB69)*1 -> 1 | N65: =CONCATENATE('PLAN DE ACCIÓN INSTITUCIONAL'!AC69)*1 -> 0 | O65: =CONCATENATE('PLAN DE ACCIÓN INSTITUCIONAL'!AE69)*1 ->  | P65: =CONCATENATE('PLAN DE ACCIÓN INSTITUCIONAL'!AF69)*1 -> 0 | Q65: =CONCATENATE('PLAN DE ACCIÓN INSTITUCIONAL'!AH69)*1 ->  | R65: =CONCATENATE('PLAN DE ACCIÓN INSTITUCIONAL'!AI69)*1 -> 0 | S65: =CONCATENATE('PLAN DE ACCIÓN INSTITUCIONAL'!AK69)*1 ->  | T65: =CONCATENATE('PLAN DE ACCIÓN INSTITUCIONAL'!AL69)*1 -> 0 | U65: =CONCATENATE('PLAN DE ACCIÓN INSTITUCIONAL'!AN69)*1 ->  | V65: =CONCATENATE('PLAN DE ACCIÓN INSTITUCIONAL'!AO69)*1 -> 0 | W65: =CONCATENATE('PLAN DE ACCIÓN INSTITUCIONAL'!AQ69)*1 ->  | X65: =CONCATENATE('PLAN DE ACCIÓN INSTITUCIONAL'!AR69)*1 -> 0 | Y65: =CONCATENATE('PLAN DE ACCIÓN INSTITUCIONAL'!AT69)*1 ->  | Z65: =CONCATENATE('PLAN DE ACCIÓN INSTITUCIONAL'!AU69)*1 -> 0 | AA65: =CONCATENATE('PLAN DE ACCIÓN INSTITUCIONAL'!AW69)*1 ->  | AB65: =CONCATENATE('PLAN DE ACCIÓN INSTITUCIONAL'!AX69)*1 -> 0 | AC65: =CONCATENATE('PLAN DE ACCIÓN INSTITUCIONAL'!AZ69)*1 ->  | AD65: =CONCATENATE('PLAN DE ACCIÓN INSTITUCIONAL'!BA69)*1 -> 0 | AE65: =+'PLAN DE ACCIÓN INSTITUCIONAL'!H69 -> 2020-02-01
A66: =CONCATENATE('PLAN DE ACCIÓN INSTITUCIONAL'!B70) -> SUBDIRECCIÓN DE SERVICIOS FUNERARIOS Y ALUMBRADO PÚBLICO (SSFAP) | B66: =CONCATENATE('PLAN DE ACCIÓN INSTITUCIONAL'!C$70) -> Revitalizar los Cementerios de propiedad del Distrito Capital | C66: =CONCATENATE('PLAN DE ACCIÓN INSTITUCIONAL'!D70) -> Cumplir las intervenciones programadas y viabilizadas frente a la revitalización de los cementerios de propiedad del Distrito | D66: =CONCATENATE('PLAN DE ACCIÓN INSTITUCIONAL'!F70) -> Procesos de obra gestionados | E66: =CONCATENATE('PLAN DE ACCIÓN INSTITUCIONAL'!M70) -> Modelo Integral de Prestación del Servicio Garantizar los más altos estándares de calidad en la prestación sostenible y efectiva de los servicios | F66: =CONCATENATE('PLAN DE ACCIÓN INSTITUCIONAL'!G70)*1 -> 0.3 | G66: =CONCATENATE('PLAN DE ACCIÓN INSTITUCIONAL'!S70)*1 -> 0.1 | H66: =CONCATENATE('PLAN DE ACCIÓN INSTITUCIONAL'!T70)*1 -> 0 | I66: =CONCATENATE('PLAN DE ACCIÓN INSTITUCIONAL'!V70)*1 -> 0.1 | J66: =CONCATENATE('PLAN DE ACCIÓN INSTITUCIONAL'!W70)*1 -> 0 | K66: =CONCATENATE('PLAN DE ACCIÓN INSTITUCIONAL'!Y70)*1 -> 0.1 | L66: =CONCATENATE('PLAN DE ACCIÓN INSTITUCIONAL'!Z70)*1 -> 0 | M66: =CONCATENATE('PLAN DE ACCIÓN INSTITUCIONAL'!AB70)*1 -> 0.1 | N66: =CONCATENATE('PLAN DE ACCIÓN INSTITUCIONAL'!AC70)*1 -> 0 | O66: =CONCATENATE('PLAN DE ACCIÓN INSTITUCIONAL'!AE70)*1 -> 0.1 | P66: =CONCATENATE('PLAN DE ACCIÓN INSTITUCIONAL'!AF70)*1 -> 0 | Q66: =CONCATENATE('PLAN DE ACCIÓN INSTITUCIONAL'!AH70)*1 -> 0.1 | R66: =CONCATENATE('PLAN DE ACCIÓN INSTITUCIONAL'!AI70)*1 -> 0 | S66: =CONCATENATE('PLAN DE ACCIÓN INSTITUCIONAL'!AK70)*1 -> 0.1 | T66: =CONCATENATE('PLAN DE ACCIÓN INSTITUCIONAL'!AL70)*1 -> 0 | U66: =CONCATENATE('PLAN DE ACCIÓN INSTITUCIONAL'!AN70)*1 -> 0.1 | V66: =CONCATENATE('PLAN DE ACCIÓN INSTITUCIONAL'!AO70)*1 -> 0 | W66: =CONCATENATE('PLAN DE ACCIÓN INSTITUCIONAL'!AQ70)*1 -> 0.1 | X66: =CONCATENATE('PLAN DE ACCIÓN INSTITUCIONAL'!AR70)*1 -> 0 | Y66: =CONCATENATE('PLAN DE ACCIÓN INSTITUCIONAL'!AT70)*1 -> 0.1 | Z66: =CONCATENATE('PLAN DE ACCIÓN INSTITUCIONAL'!AU70)*1 -> 0 | AA66: =CONCATENATE('PLAN DE ACCIÓN INSTITUCIONAL'!AW70)*1 -> 0.1 | AB66: =CONCATENATE('PLAN DE ACCIÓN INSTITUCIONAL'!AX70)*1 -> 0 | AC66: =CONCATENATE('PLAN DE ACCIÓN INSTITUCIONAL'!AZ70)*1 ->  | AD66: =CONCATENATE('PLAN DE ACCIÓN INSTITUCIONAL'!BA70)*1 -> 0 | AE66: =+'PLAN DE ACCIÓN INSTITUCIONAL'!H70 -> 2020-02-01
A67: =CONCATENATE('PLAN DE ACCIÓN INSTITUCIONAL'!B71) -> SUBDIRECCIÓN DE SERVICIOS FUNERARIOS Y ALUMBRADO PÚBLICO (SSFAP) | B67: =CONCATENATE('PLAN DE ACCIÓN INSTITUCIONAL'!C$70) -> Revitalizar los Cementerios de propiedad del Distrito Capital | C67: =CONCATENATE('PLAN DE ACCIÓN INSTITUCIONAL'!D71) -> Cumplir las intervenciones programadas y viabilizadas frente a la revitalización de los cementerios de propiedad del Distrito | D67: =CONCATENATE('PLAN DE ACCIÓN INSTITUCIONAL'!F71) -> Procesos de obra ejecutados. | E67: =CONCATENATE('PLAN DE ACCIÓN INSTITUCIONAL'!M71) -> Modelo Integral de Prestación del Servicio Garantizar los más altos estándares de calidad en la prestación sostenible y efectiva de los servicios | F67: =CONCATENATE('PLAN DE ACCIÓN INSTITUCIONAL'!G71)*1 -> 0.3 | G67: =CONCATENATE('PLAN DE ACCIÓN INSTITUCIONAL'!S71)*1 -> 0.1 | H67: =CONCATENATE('PLAN DE ACCIÓN INSTITUCIONAL'!T71)*1 -> 0.1 | I67: =CONCATENATE('PLAN DE ACCIÓN INSTITUCIONAL'!V71)*1 -> 0.1 | J67: =CONCATENATE('PLAN DE ACCIÓN INSTITUCIONAL'!W71)*1 -> 0.1 | K67: =CONCATENATE('PLAN DE ACCIÓN INSTITUCIONAL'!Y71)*1 -> 0.1 | L67: =CONCATENATE('PLAN DE ACCIÓN INSTITUCIONAL'!Z71)*1 -> 0.1 | M67: =CONCATENATE('PLAN DE ACCIÓN INSTITUCIONAL'!AB71)*1 -> 0.1 | N67: =CONCATENATE('PLAN DE ACCIÓN INSTITUCIONAL'!AC71)*1 -> 0 | O67: =CONCATENATE('PLAN DE ACCIÓN INSTITUCIONAL'!AE71)*1 -> 0.1 | P67: =CONCATENATE('PLAN DE ACCIÓN INSTITUCIONAL'!AF71)*1 -> 0 | Q67: =CONCATENATE('PLAN DE ACCIÓN INSTITUCIONAL'!AH71)*1 -> 0.1 | R67: =CONCATENATE('PLAN DE ACCIÓN INSTITUCIONAL'!AI71)*1 -> 0 | S67: =CONCATENATE('PLAN DE ACCIÓN INSTITUCIONAL'!AK71)*1 -> 0.1 | T67: =CONCATENATE('PLAN DE ACCIÓN INSTITUCIONAL'!AL71)*1 -> 0 | U67: =CONCATENATE('PLAN DE ACCIÓN INSTITUCIONAL'!AN71)*1 -> 0.1 | V67: =CONCATENATE('PLAN DE ACCIÓN INSTITUCIONAL'!AO71)*1 -> 0 | W67: =CONCATENATE('PLAN DE ACCIÓN INSTITUCIONAL'!AQ71)*1 -> 0.1 | X67: =CONCATENATE('PLAN DE ACCIÓN INSTITUCIONAL'!AR71)*1 -> 0 | Y67: =CONCATENATE('PLAN DE ACCIÓN INSTITUCIONAL'!AT71)*1 -> 0.1 | Z67: =CONCATENATE('PLAN DE ACCIÓN INSTITUCIONAL'!AU71)*1 -> 0 | AA67: =CONCATENATE('PLAN DE ACCIÓN INSTITUCIONAL'!AW71)*1 -> 0.1 | AB67: =CONCATENATE('PLAN DE ACCIÓN INSTITUCIONAL'!AX71)*1 -> 0 | AC67: =CONCATENATE('PLAN DE ACCIÓN INSTITUCIONAL'!AZ71)*1 ->  | AD67: =CONCATENATE('PLAN DE ACCIÓN INSTITUCIONAL'!BA71)*1 -> 0 | AE67: =+'PLAN DE ACCIÓN INSTITUCIONAL'!H71 -> 2020-02-01
A68: =CONCATENATE('PLAN DE ACCIÓN INSTITUCIONAL'!B72) -> SUBDIRECCIÓN DE SERVICIOS FUNERARIOS Y ALUMBRADO PÚBLICO (SSFAP) | B68: =CONCATENATE('PLAN DE ACCIÓN INSTITUCIONAL'!C$70) -> Revitalizar los Cementerios de propiedad del Distrito Capital | C68: =CONCATENATE('PLAN DE ACCIÓN INSTITUCIONAL'!D$72) -> Realizar estudios relacionados con con la prestación de los Servicios Funerarios en los cementerios de propiedad del distrito | D68: =CONCATENATE('PLAN DE ACCIÓN INSTITUCIONAL'!F72) -> Proceso precontractual, contractual o la ejecución para el desarrollo de los estudios de olores generados al interior de los Cementerios propiedad del Distrito | E68: =CONCATENATE('PLAN DE ACCIÓN INSTITUCIONAL'!M72) -> Modelo Integral de Prestación del Servicio Garantizar los más altos estándares de calidad en la prestación sostenible y efectiva de los servicios | F68: =CONCATENATE('PLAN DE ACCIÓN INSTITUCIONAL'!G72)*1 -> 0.2 | G68: =CONCATENATE('PLAN DE ACCIÓN INSTITUCIONAL'!S72)*1 ->  | H68: =CONCATENATE('PLAN DE ACCIÓN INSTITUCIONAL'!T72)*1 -> 0 | I68: =CONCATENATE('PLAN DE ACCIÓN INSTITUCIONAL'!V72)*1 -> 0.1 | J68: =CONCATENATE('PLAN DE ACCIÓN INSTITUCIONAL'!W72)*1 -> 0 | K68: =CONCATENATE('PLAN DE ACCIÓN INSTITUCIONAL'!Y72)*1 -> 0.1 | L68: =CONCATENATE('PLAN DE ACCIÓN INSTITUCIONAL'!Z72)*1 -> 0 | M68: =CONCATENATE('PLAN DE ACCIÓN INSTITUCIONAL'!AB72)*1 -> 0.1 | N68: =CONCATENATE('PLAN DE ACCIÓN INSTITUCIONAL'!AC72)*1 -> 0 | O68: =CONCATENATE('PLAN DE ACCIÓN INSTITUCIONAL'!AE72)*1 -> 0.1 | P68: =CONCATENATE('PLAN DE ACCIÓN INSTITUCIONAL'!AF72)*1 -> 0 | Q68: =CONCATENATE('PLAN DE ACCIÓN INSTITUCIONAL'!AH72)*1 -> 0.1 | R68: =CONCATENATE('PLAN DE ACCIÓN INSTITUCIONAL'!AI72)*1 -> 0 | S68: =CONCATENATE('PLAN DE ACCIÓN INSTITUCIONAL'!AK72)*1 -> 0.1 | T68: =CONCATENATE('PLAN DE ACCIÓN INSTITUCIONAL'!AL72)*1 -> 0 | U68: =CONCATENATE('PLAN DE ACCIÓN INSTITUCIONAL'!AN72)*1 -> 0.1 | V68: =CONCATENATE('PLAN DE ACCIÓN INSTITUCIONAL'!AO72)*1 -> 0 | W68: =CONCATENATE('PLAN DE ACCIÓN INSTITUCIONAL'!AQ72)*1 -> 0.1 | X68: =CONCATENATE('PLAN DE ACCIÓN INSTITUCIONAL'!AR72)*1 -> 0 | Y68: =CONCATENATE('PLAN DE ACCIÓN INSTITUCIONAL'!AT72)*1 -> 0.1 | Z68: =CONCATENATE('PLAN DE ACCIÓN INSTITUCIONAL'!AU72)*1 -> 0 | AA68: =CONCATENATE('PLAN DE ACCIÓN INSTITUCIONAL'!AW72)*1 -> 0.1 | AB68: =CONCATENATE('PLAN DE ACCIÓN INSTITUCIONAL'!AX72)*1 -> 0 | AC68: =CONCATENATE('PLAN DE ACCIÓN INSTITUCIONAL'!AZ72)*1 ->  | AD68: =CONCATENATE('PLAN DE ACCIÓN INSTITUCIONAL'!BA72)*1 -> 0 | AE68: =+'PLAN DE ACCIÓN INSTITUCIONAL'!H73 -> 2020-02-01
A69: =CONCATENATE('PLAN DE ACCIÓN INSTITUCIONAL'!B73) -> SUBDIRECCIÓN DE SERVICIOS FUNERARIOS Y ALUMBRADO PÚBLICO (SSFAP) | B69: =CONCATENATE('PLAN DE ACCIÓN INSTITUCIONAL'!C$70) -> Revitalizar los Cementerios de propiedad del Distrito Capital | C69: =CONCATENATE('PLAN DE ACCIÓN INSTITUCIONAL'!D$72) -> Realizar estudios relacionados con con la prestación de los Servicios Funerarios en los cementerios de propiedad del distrito | D69: =CONCATENATE('PLAN DE ACCIÓN INSTITUCIONAL'!F73) -> Proceso precontractual, contractual o la ejecución para el desarrollo del estudio para el diseño de la planta de aguas residual del cementerio parque serafín | E69: =CONCATENATE('PLAN DE ACCIÓN INSTITUCIONAL'!M73) -> Modelo Integral de Prestación del Servicio Garantizar los más altos estándares de calidad en la prestación sostenible y efectiva de los servicios | F69: =CONCATENATE('PLAN DE ACCIÓN INSTITUCIONAL'!G73)*1 -> 0.2 | G69: =CONCATENATE('PLAN DE ACCIÓN INSTITUCIONAL'!S73)*1 ->  | H69: =CONCATENATE('PLAN DE ACCIÓN INSTITUCIONAL'!T73)*1 -> 0 | I69: =CONCATENATE('PLAN DE ACCIÓN INSTITUCIONAL'!V73)*1 -> 0.1 | J69: =CONCATENATE('PLAN DE ACCIÓN INSTITUCIONAL'!W73)*1 -> 0 | K69: =CONCATENATE('PLAN DE ACCIÓN INSTITUCIONAL'!Y73)*1 -> 0.1 | L69: =CONCATENATE('PLAN DE ACCIÓN INSTITUCIONAL'!Z73)*1 -> 0 | M69: =CONCATENATE('PLAN DE ACCIÓN INSTITUCIONAL'!AB73)*1 -> 0.1 | N69: =CONCATENATE('PLAN DE ACCIÓN INSTITUCIONAL'!AC73)*1 -> 0 | O69: =CONCATENATE('PLAN DE ACCIÓN INSTITUCIONAL'!AE73)*1 -> 0.1 | P69: =CONCATENATE('PLAN DE ACCIÓN INSTITUCIONAL'!AF73)*1 -> 0 | Q69: =CONCATENATE('PLAN DE ACCIÓN INSTITUCIONAL'!AH73)*1 -> 0.1 | R69: =CONCATENATE('PLAN DE ACCIÓN INSTITUCIONAL'!AI73)*1 -> 0 | S69: =CONCATENATE('PLAN DE ACCIÓN INSTITUCIONAL'!AK73)*1 -> 0.1 | T69: =CONCATENATE('PLAN DE ACCIÓN INSTITUCIONAL'!AL73)*1 -> 0 | U69: =CONCATENATE('PLAN DE ACCIÓN INSTITUCIONAL'!AN73)*1 -> 0.1 | V69: =CONCATENATE('PLAN DE ACCIÓN INSTITUCIONAL'!AO73)*1 -> 0 | W69: =CONCATENATE('PLAN DE ACCIÓN INSTITUCIONAL'!AQ73)*1 -> 0.1 | X69: =CONCATENATE('PLAN DE ACCIÓN INSTITUCIONAL'!AR73)*1 -> 0 | Y69: =CONCATENATE('PLAN DE ACCIÓN INSTITUCIONAL'!AT73)*1 -> 0.1 | Z69: =CONCATENATE('PLAN DE ACCIÓN INSTITUCIONAL'!AU73)*1 -> 0 | AA69: =CONCATENATE('PLAN DE ACCIÓN INSTITUCIONAL'!AW73)*1 -> 0.1 | AB69: =CONCATENATE('PLAN DE ACCIÓN INSTITUCIONAL'!AX73)*1 -> 0 | AC69: =CONCATENATE('PLAN DE ACCIÓN INSTITUCIONAL'!AZ73)*1 ->  | AD69: =CONCATENATE('PLAN DE ACCIÓN INSTITUCIONAL'!BA73)*1 -> 0 | AE69: =+'PLAN DE ACCIÓN INSTITUCIONAL'!H74 -> 2020-02-01
A70: =CONCATENATE('PLAN DE ACCIÓN INSTITUCIONAL'!B74) -> SUBDIRECCIÓN DE SERVICIOS FUNERARIOS Y ALUMBRADO PÚBLICO (SSFAP) | B70: =CONCATENATE('PLAN DE ACCIÓN INSTITUCIONAL'!C$74) -> Consolidar la prestación de los Servicios Funerarios Integrales en los cementerios del distrito | C70: =CONCATENATE('PLAN DE ACCIÓN INSTITUCIONAL'!D$74) -> Tener 26 servicios integrales bajo el Modelo de prestación de servicios funerarios de destino final y complementarios, en los cementerios de propiedad del Distrito Capital | D70: =CONCATENATE('PLAN DE ACCIÓN INSTITUCIONAL'!F74) -> Presentación de los informes de los servicios Funerarios de destino final y complementarios, prestados en los Cementerios de propiedad del Distrito | E70: =CONCATENATE('PLAN DE ACCIÓN INSTITUCIONAL'!M74) -> Modelo Integral de Prestación del Servicio Garantizar los más altos estándares de calidad en la prestación sostenible y efectiva de los servicios | F70: =CONCATENATE('PLAN DE ACCIÓN INSTITUCIONAL'!G74)*1 -> 0.5 | G70: =CONCATENATE('PLAN DE ACCIÓN INSTITUCIONAL'!S74)*1 -> 0.1 | H70: =CONCATENATE('PLAN DE ACCIÓN INSTITUCIONAL'!T74)*1 -> 0.1 | I70: =CONCATENATE('PLAN DE ACCIÓN INSTITUCIONAL'!V74)*1 -> 0.1 | J70: =CONCATENATE('PLAN DE ACCIÓN INSTITUCIONAL'!W74)*1 -> 0.1 | K70: =CONCATENATE('PLAN DE ACCIÓN INSTITUCIONAL'!Y74)*1 -> 0.1 | L70: =CONCATENATE('PLAN DE ACCIÓN INSTITUCIONAL'!Z74)*1 -> 0 | M70: =CONCATENATE('PLAN DE ACCIÓN INSTITUCIONAL'!AB74)*1 -> 0.1 | N70: =CONCATENATE('PLAN DE ACCIÓN INSTITUCIONAL'!AC74)*1 -> 0 | O70: =CONCATENATE('PLAN DE ACCIÓN INSTITUCIONAL'!AE74)*1 -> 0.1 | P70: =CONCATENATE('PLAN DE ACCIÓN INSTITUCIONAL'!AF74)*1 -> 0 | Q70: =CONCATENATE('PLAN DE ACCIÓN INSTITUCIONAL'!AH74)*1 ->  | R70: =CONCATENATE('PLAN DE ACCIÓN INSTITUCIONAL'!AI74)*1 -> 0 | S70: =CONCATENATE('PLAN DE ACCIÓN INSTITUCIONAL'!AK74)*1 ->  | T70: =CONCATENATE('PLAN DE ACCIÓN INSTITUCIONAL'!AL74)*1 -> 0 | U70: =CONCATENATE('PLAN DE ACCIÓN INSTITUCIONAL'!AN74)*1 ->  | V70: =CONCATENATE('PLAN DE ACCIÓN INSTITUCIONAL'!AO74)*1 -> 0 | W70: =CONCATENATE('PLAN DE ACCIÓN INSTITUCIONAL'!AQ74)*1 ->  | X70: =CONCATENATE('PLAN DE ACCIÓN INSTITUCIONAL'!AR74)*1 -> 0 | Y70: =CONCATENATE('PLAN DE ACCIÓN INSTITUCIONAL'!AT74)*1 ->  | Z70: =CONCATENATE('PLAN DE ACCIÓN INSTITUCIONAL'!AU74)*1 -> 0 | AA70: =CONCATENATE('PLAN DE ACCIÓN INSTITUCIONAL'!AW74)*1 ->  | AB70: =CONCATENATE('PLAN DE ACCIÓN INSTITUCIONAL'!AX74)*1 -> 0 | AC70: =CONCATENATE('PLAN DE ACCIÓN INSTITUCIONAL'!AZ74)*1 ->  | AD70: =CONCATENATE('PLAN DE ACCIÓN INSTITUCIONAL'!BA74)*1 -> 0 | AE70: =+'PLAN DE ACCIÓN INSTITUCIONAL'!H75 -> 2020-02-01
A71: =CONCATENATE('PLAN DE ACCIÓN INSTITUCIONAL'!B75) -> SUBDIRECCIÓN DE SERVICIOS FUNERARIOS Y ALUMBRADO PÚBLICO (SSFAP) | B71: =CONCATENATE('PLAN DE ACCIÓN INSTITUCIONAL'!C$74) -> Consolidar la prestación de los Servicios Funerarios Integrales en los cementerios del distrito | C71: =CONCATENATE('PLAN DE ACCIÓN INSTITUCIONAL'!D$74) -> Tener 26 servicios integrales bajo el Modelo de prestación de servicios funerarios de destino final y complementarios, en los cementerios de propiedad del Distrito Capital | D71: =CONCATENATE('PLAN DE ACCIÓN INSTITUCIONAL'!F75) -> Mantener e incrementar los servicios de Culto en el Cementerio Central y Salas de Velación en el Cementerios Parque Serafin. | E71: =CONCATENATE('PLAN DE ACCIÓN INSTITUCIONAL'!M75) -> Modelo Integral de Prestación del Servicio Garantizar los más altos estándares de calidad en la prestación sostenible y efectiva de los servicios | F71: =CONCATENATE('PLAN DE ACCIÓN INSTITUCIONAL'!G75)*1 -> 0.5 | G71: =CONCATENATE('PLAN DE ACCIÓN INSTITUCIONAL'!S75)*1 ->  | H71: =CONCATENATE('PLAN DE ACCIÓN INSTITUCIONAL'!T75)*1 -> 0 | I71: =CONCATENATE('PLAN DE ACCIÓN INSTITUCIONAL'!V75)*1 ->  | J71: =CONCATENATE('PLAN DE ACCIÓN INSTITUCIONAL'!W75)*1 -> 0 | K71: =CONCATENATE('PLAN DE ACCIÓN INSTITUCIONAL'!Y75)*1 ->  | L71: =CONCATENATE('PLAN DE ACCIÓN INSTITUCIONAL'!Z75)*1 -> 0 | M71: =CONCATENATE('PLAN DE ACCIÓN INSTITUCIONAL'!AB75)*1 ->  | N71: =CONCATENATE('PLAN DE ACCIÓN INSTITUCIONAL'!AC75)*1 -> 0 | O71: =CONCATENATE('PLAN DE ACCIÓN INSTITUCIONAL'!AE75)*1 -> 0.5 | P71: =CONCATENATE('PLAN DE ACCIÓN INSTITUCIONAL'!AF75)*1 -> 0 | Q71: =CONCATENATE('PLAN DE ACCIÓN INSTITUCIONAL'!AH75)*1 ->  | R71: =CONCATENATE('PLAN DE ACCIÓN INSTITUCIONAL'!AI75)*1 -> 0 | S71: =CONCATENATE('PLAN DE ACCIÓN INSTITUCIONAL'!AK75)*1 ->  | T71: =CONCATENATE('PLAN DE ACCIÓN INSTITUCIONAL'!AL75)*1 -> 0 | U71: =CONCATENATE('PLAN DE ACCIÓN INSTITUCIONAL'!AN75)*1 ->  | V71: =CONCATENATE('PLAN DE ACCIÓN INSTITUCIONAL'!AO75)*1 -> 0 | W71: =CONCATENATE('PLAN DE ACCIÓN INSTITUCIONAL'!AQ75)*1 ->  | X71: =CONCATENATE('PLAN DE ACCIÓN INSTITUCIONAL'!AR75)*1 -> 0 | Y71: =CONCATENATE('PLAN DE ACCIÓN INSTITUCIONAL'!AT75)*1 ->  | Z71: =CONCATENATE('PLAN DE ACCIÓN INSTITUCIONAL'!AU75)*1 -> 0 | AA71: =CONCATENATE('PLAN DE ACCIÓN INSTITUCIONAL'!AW75)*1 ->  | AB71: =CONCATENATE('PLAN DE ACCIÓN INSTITUCIONAL'!AX75)*1 -> 0 | AC71: =CONCATENATE('PLAN DE ACCIÓN INSTITUCIONAL'!AZ75)*1 ->  | AD71: =CONCATENATE('PLAN DE ACCIÓN INSTITUCIONAL'!BA75)*1 -> 0 | AE71: =+'PLAN DE ACCIÓN INSTITUCIONAL'!H76 -> 2020-01-01
A72: =CONCATENATE('PLAN DE ACCIÓN INSTITUCIONAL'!B76) -> SUBDIRECCIÓN DE SERVICIOS FUNERARIOS Y ALUMBRADO PÚBLICO (SSFAP) | B72: =CONCATENATE('PLAN DE ACCIÓN INSTITUCIONAL'!C$76) -> Otorgar subsidios funerarios a población en estado de vulnerabilidad | C72: =CONCATENATE('PLAN DE ACCIÓN INSTITUCIONAL'!D$76) -> Otorgar 1,500 subsidios funerarios entregados | D72: =CONCATENATE('PLAN DE ACCIÓN INSTITUCIONAL'!F76) -> Garantizar el pago oportuno de los subsidios funerarios autorizados y prestados | E72: =CONCATENATE('PLAN DE ACCIÓN INSTITUCIONAL'!M76) -> Modelo Integral de Prestación del Servicio Garantizar los más altos estándares de calidad en la prestación sostenible y efectiva de los servicios | F72: =CONCATENATE('PLAN DE ACCIÓN INSTITUCIONAL'!G76)*1 -> 0.5 | G72: =CONCATENATE('PLAN DE ACCIÓN INSTITUCIONAL'!S76)*1 -> 0.1 | H72: =CONCATENATE('PLAN DE ACCIÓN INSTITUCIONAL'!T76)*1 -> 0.1 | I72: =CONCATENATE('PLAN DE ACCIÓN INSTITUCIONAL'!V76)*1 -> 0.1 | J72: =CONCATENATE('PLAN DE ACCIÓN INSTITUCIONAL'!W76)*1 -> 0.1 | K72: =CONCATENATE('PLAN DE ACCIÓN INSTITUCIONAL'!Y76)*1 -> 0.1 | L72: =CONCATENATE('PLAN DE ACCIÓN INSTITUCIONAL'!Z76)*1 -> 0.1 | M72: =CONCATENATE('PLAN DE ACCIÓN INSTITUCIONAL'!AB76)*1 -> 0.1 | N72: =CONCATENATE('PLAN DE ACCIÓN INSTITUCIONAL'!AC76)*1 -> 0 | O72: =CONCATENATE('PLAN DE ACCIÓN INSTITUCIONAL'!AE76)*1 -> 0.1 | P72: =CONCATENATE('PLAN DE ACCIÓN INSTITUCIONAL'!AF76)*1 -> 0 | Q72: =CONCATENATE('PLAN DE ACCIÓN INSTITUCIONAL'!AH76)*1 ->  | R72: =CONCATENATE('PLAN DE ACCIÓN INSTITUCIONAL'!AI76)*1 -> 0 | S72: =CONCATENATE('PLAN DE ACCIÓN INSTITUCIONAL'!AK76)*1 ->  | T72: =CONCATENATE('PLAN DE ACCIÓN INSTITUCIONAL'!AL76)*1 -> 0 | U72: =CONCATENATE('PLAN DE ACCIÓN INSTITUCIONAL'!AN76)*1 ->  | V72: =CONCATENATE('PLAN DE ACCIÓN INSTITUCIONAL'!AO76)*1 -> 0 | W72: =CONCATENATE('PLAN DE ACCIÓN INSTITUCIONAL'!AQ76)*1 ->  | X72: =CONCATENATE('PLAN DE ACCIÓN INSTITUCIONAL'!AR76)*1 -> 0 | Y72: =CONCATENATE('PLAN DE ACCIÓN INSTITUCIONAL'!AT76)*1 ->  | Z72: =CONCATENATE('PLAN DE ACCIÓN INSTITUCIONAL'!AU76)*1 -> 0 | AA72: =CONCATENATE('PLAN DE ACCIÓN INSTITUCIONAL'!AW76)*1 ->  | AB72: =CONCATENATE('PLAN DE ACCIÓN INSTITUCIONAL'!AX76)*1 -> 0 | AC72: =CONCATENATE('PLAN DE ACCIÓN INSTITUCIONAL'!AZ76)*1 ->  | AD72: =CONCATENATE('PLAN DE ACCIÓN INSTITUCIONAL'!BA76)*1 -> 0 | AE72: =+'PLAN DE ACCIÓN INSTITUCIONAL'!H77 -> 2020-01-01
A73: =CONCATENATE('PLAN DE ACCIÓN INSTITUCIONAL'!B77) -> SUBDIRECCIÓN DE SERVICIOS FUNERARIOS Y ALUMBRADO PÚBLICO (SSFAP) | B73: =CONCATENATE('PLAN DE ACCIÓN INSTITUCIONAL'!C$76) -> Otorgar subsidios funerarios a población en estado de vulnerabilidad | C73: =CONCATENATE('PLAN DE ACCIÓN INSTITUCIONAL'!D$76) -> Otorgar 1,500 subsidios funerarios entregados | D73: =CONCATENATE('PLAN DE ACCIÓN INSTITUCIONAL'!F77) -> Autorizaciones de subsidios funerarios aprobados | E73: =CONCATENATE('PLAN DE ACCIÓN INSTITUCIONAL'!M77) -> Modelo Integral de Prestación del Servicio Garantizar los más altos estándares de calidad en la prestación sostenible y efectiva de los servicios | F73: =CONCATENATE('PLAN DE ACCIÓN INSTITUCIONAL'!G77)*1 -> 0.5 | G73: =CONCATENATE('PLAN DE ACCIÓN INSTITUCIONAL'!S77)*1 -> 0.1 | H73: =CONCATENATE('PLAN DE ACCIÓN INSTITUCIONAL'!T77)*1 -> 0.1 | I73: =CONCATENATE('PLAN DE ACCIÓN INSTITUCIONAL'!V77)*1 -> 0.1 | J73: =CONCATENATE('PLAN DE ACCIÓN INSTITUCIONAL'!W77)*1 -> 0.1 | K73: =CONCATENATE('PLAN DE ACCIÓN INSTITUCIONAL'!Y77)*1 -> 0.1 | L73: =CONCATENATE('PLAN DE ACCIÓN INSTITUCIONAL'!Z77)*1 -> 0.1 | M73: =CONCATENATE('PLAN DE ACCIÓN INSTITUCIONAL'!AB77)*1 -> 0.1 | N73: =CONCATENATE('PLAN DE ACCIÓN INSTITUCIONAL'!AC77)*1 -> 0 | O73: =CONCATENATE('PLAN DE ACCIÓN INSTITUCIONAL'!AE77)*1 -> 0.1 | P73: =CONCATENATE('PLAN DE ACCIÓN INSTITUCIONAL'!AF77)*1 -> 0 | Q73: =CONCATENATE('PLAN DE ACCIÓN INSTITUCIONAL'!AH77)*1 -> 0.1 | R73: =CONCATENATE('PLAN DE ACCIÓN INSTITUCIONAL'!AI77)*1 -> 0 | S73: =CONCATENATE('PLAN DE ACCIÓN INSTITUCIONAL'!AK77)*1 -> 0.1 | T73: =CONCATENATE('PLAN DE ACCIÓN INSTITUCIONAL'!AL77)*1 -> 0 | U73: =CONCATENATE('PLAN DE ACCIÓN INSTITUCIONAL'!AN77)*1 -> 0.1 | V73: =CONCATENATE('PLAN DE ACCIÓN INSTITUCIONAL'!AO77)*1 -> 0 | W73: =CONCATENATE('PLAN DE ACCIÓN INSTITUCIONAL'!AQ77)*1 -> 0.1 | X73: =CONCATENATE('PLAN DE ACCIÓN INSTITUCIONAL'!AR77)*1 -> 0 | Y73: =CONCATENATE('PLAN DE ACCIÓN INSTITUCIONAL'!AT77)*1 -> 0.1 | Z73: =CONCATENATE('PLAN DE ACCIÓN INSTITUCIONAL'!AU77)*1 -> 0 | AA73: =CONCATENATE('PLAN DE ACCIÓN INSTITUCIONAL'!AW77)*1 -> 0.1 | AB73: =CONCATENATE('PLAN DE ACCIÓN INSTITUCIONAL'!AX77)*1 -> 0 | AC73: =CONCATENATE('PLAN DE ACCIÓN INSTITUCIONAL'!AZ77)*1 -> 0.1 | AD73: =CONCATENATE('PLAN DE ACCIÓN INSTITUCIONAL'!BA77)*1 -> 0 | AE73: =+'PLAN DE ACCIÓN INSTITUCIONAL'!H78 -> 00:00:00

Sheet Mes (hidden)
A1: Cod M | B1: Mes
A2: 1 | B2: Enero
A3: 2 | B3: Febrero
A4: 3 | B4: Marzo
A5: 4 | B5: Abril
A6: 5 | B6: Mayo
A7: 6 | B7: Junio
A8: 7 | B8: Julio
A9: 8 | B9: Agosto
A10: 9 | B10: Septiembre
A11: 10 | B11: Octubre
A12: 11 | B12: Noviembre
A13: 12 | B13: Diciembre

Sheet Dependencia (hidden)
A1: Cod M | B1: COD | C1: DEPENDENCIA
A2: 1 | B2: 5 | C2: SUBDIRECCIÓN DE ASUNTOS LEGALES - (SAL)
A3: 1 | B3: 6 | C3: SUBDIRECCIÓN ADMINISTRATIVA Y FINANCIERA (SAF)
A4: 1 | B4: 7 | C4: SUBDIRECCIÓN DE RECOLECCIÓN BARRIDO Y LIMPIEZA (SRBL)
A5: 1 | B5: 8 | C5: SUBDIRECCIÓN DE DISPOSICIÓN FINAL - (SDF)
A6: 1 | B6: 10 | C6: SUBDIRECCIÓN DE SERVICIOS FUNERARIOS Y ALUMBRADO PÚBLICO (SSFAP)
A7: 2 | B7: 1 | C7: OFICINA ASESORA DE PLANEACIÓN - (OAP)
A8: 2 | B8: 2 | C8: OFICNA DE CONTROL INETRNO - (OCI)
A9: 2 | B9: 3 | C9: OFICINA ASESORA DE TECNOLOGIAS DE LA INFORMACIÓN - (TIC)
A10: 2 | B10: 4 | C10: SUBDIRECCIÓN DE ASUNTOS LEGALES - (SAL)
A11: 2 | B11: 5 | C11: SUBDIRECCIÓN ADMINISTRATIVA Y FINANCIERA (SAF)
A12: 2 | B12: 6 | C12: SUBDIRECCIÓN DE RECOLECCIÓN BARRIDO Y LIMPIEZA (SRBL)
A13: 2 | B13: 7 | C13: SUBDIRECCIÓN DE DISPOSICIÓN FINAL - (SDF)
A14: 2 | B14: 8 | C14: SUBDIRECCIÓN DE APROVECHAMIENTO (SAP)
A15: 2 | B15: 9 | C15: SUBDIRECCIÓN DE SERVICIOS FUNERARIOS Y ALUMBRADO PÚBLICO (SSFAP)
A16: 3 | B16: 1 | C16: OFICINA ASESORA DE PLANEACIÓN - (OAP)
A17: 3 | B17: 3 | C17: OFICINA ASESORA DE TECNOLOGIAS DE LA INFORMACIÓN - (TIC)
A18: 3 | B18: 4 | C18: OFICINA ASESORA DE COMUNICAIONES - (OAC)
A19: 3 | B19: 5 | C19: SUBDIRECCIÓN DE ASUNTOS LEGALES - (SAL)
A20: 3 | B20: 6 | C20: SUBDIRECCIÓN ADMINISTRATIVA Y FINANCIERA (SAF)
A21: 3 | B21: 7 | C21: SUBDIRECCIÓN DE RECOLECCIÓN BARRIDO Y LIMPIEZA (SRBL)
A22: 3 | B22: 8 | C22: SUBDIRECCIÓN DE DISPOSICIÓN FINAL - (SDF)
A23: 3 | B23: 9 | C23: SUBDIRECCIÓN DE APROVECHAMIENTO (SAP)
A24: 3 | B24: 10 | C24: SUBDIRECCIÓN DE SERVICIOS FUNERARIOS Y ALUMBRADO PÚBLICO (SSFAP)
A25: 4 | B25: 1 | C25: OFICINA ASESORA DE PLANEACIÓN - (OAP)
A26: 4 | B26: 2 | C26: OFICNA DE CONTROL INETRNO - (OCI)
A27: 4 | B27: 3 | C27: OFICINA ASESORA DE TECNOLOGIAS DE LA INFORMACIÓN - (TIC)
A28: 4 | B28: 5 | C28: SUBDIRECCIÓN DE ASUNTOS LEGALES - (SAL)
A29: 4 | B29: 6 | C29: SUBDIRECCIÓN ADMINISTRATIVA Y FINANCIERA (SAF)
A30: 4 | B30: 7 | C30: SUBDIRECCIÓN DE RECOLECCIÓN BARRIDO Y LIMPIEZA (SRBL)
A31: 4 | B31: 8 | C31: SUBDIRECCIÓN DE DISPOSICIÓN FINAL - (SDF)
A32: 4 | B32: 9 | C32: SUBDIRECCIÓN DE APROVECHAMIENTO (SAP)
A33: 4 | B33: 10 | C33: SUBDIRECCIÓN DE SERVICIOS FUNERARIOS Y ALUMBRADO PÚBLICO (SSFAP)
A34: 5 | B34: 1 | C34: OFICINA ASESORA DE PLANEACIÓN - (OAP)
A35: 5 | B35: 3 | C35: OFICINA ASESORA DE TECNOLOGIAS DE LA INFORMACIÓN - (TIC)
A36: 5 | B36: 5 | C36: SUBDIRECCIÓN DE ASUNTOS LEGALES - (SAL)
A37: 5 | B37: 6 | C37: SUBDIRECCIÓN ADMINISTRATIVA Y FINANCIERA (SAF)
A38: 5 | B38: 7 | C38: SUBDIRECCIÓN DE RECOLECCIÓN BARRIDO Y LIMPIEZA (SRBL)
A39: 5 | B39: 8 | C39: SUBDIRECCIÓN DE DISPOSICIÓN FINAL - (SDF)
A40: 5 | B40: 9 | C40: SUBDIRECCIÓN DE APROVECHAMIENTO (SAP)
A41: 5 | B41: 10 | C41: SUBDIRECCIÓN DE SERVICIOS FUNERARIOS Y ALUMBRADO PÚBLICO (SSFAP)
A42: 6 | B42: 1 | C42: OFICINA ASESORA DE PLANEACIÓN - (OAP)
A43: 6 | B43: 2 | C43: OFICNA DE CONTROL INETRNO - (OCI)
A44: 6 | B44: 3 | C44: OFICINA ASESORA DE TECNOLOGIAS DE LA INFORMACIÓN - (TIC)
A45: 6 | B45: 4 | C45: OFICINA ASESORA DE COMUNICAIONES - (OAC)
A46: 6 | B46: 5 | C46: SUBDIRECCIÓN DE ASUNTOS LEGALES - (SAL)
A47: 6 | B47: 6 | C47: SUBDIRECCIÓN ADMINISTRATIVA Y FINANCIERA (SAF)
A48: 6 | B48: 7 | C48: SUBDIRECCIÓN DE RECOLECCIÓN BARRIDO Y LIMPIEZA (SRBL)
A49: 6 | B49: 8 | C49: SUBDIRECCIÓN DE DISPOSICIÓN FINAL - (SDF)
A50: 6 | B50: 9 | C50: SUBDIRECCIÓN DE APROVECHAMIENTO (SAP)
A51: 6 | B51: 10 | C51: SUBDIRECCIÓN DE SERVICIOS FUNERARIOS Y ALUMBRADO PÚBLICO (SSFAP)
A52: 7 | B52: 1 | C52: OFICINA ASESORA DE PLANEACIÓN - (OAP)
A53: 7 | B53: 3 | C53: OFICINA ASESORA DE TECNOLOGIAS DE LA INFORMACIÓN - (TIC)
A54: 7 | B54: 5 | C54: SUBDIRECCIÓN DE ASUNTOS LEGALES - (SAL)
A55: 7 | B55: 6 | C55: SUBDIRECCIÓN ADMINISTRATIVA Y FINANCIERA (SAF)
A56: 7 | B56: 7 | C56: SUBDIRECCIÓN DE RECOLECCIÓN BARRIDO Y LIMPIEZA (SRBL)
A57: 7 | B57: 8 | C57: SUBDIRECCIÓN DE DISPOSICIÓN FINAL - (SDF)
A58: 7 | B58: 9 | C58: SUBDIRECCIÓN DE APROVECHAMIENTO (SAP)
A59: 7 | B59: 10 | C59: SUBDIRECCIÓN DE SERVICIOS FUNERARIOS Y ALUMBRADO PÚBLICO (SSFAP)
A60: 8 | B60: 1 | C60: OFICINA ASESORA DE PLANEACIÓN - (OAP)
A61: 8 | B61: 2 | C61: OFICNA DE CONTROL INETRNO - (OCI)
A62: 8 | B62: 3 | C62: OFICINA ASESORA DE TECNOLOGIAS DE LA INFORMACIÓN - (TIC)
A63: 8 | B63: 5 | C63: SUBDIRECCIÓN DE ASUNTOS LEGALES - (SAL)
A64: 8 | B64: 6 | C64: SUBDIRECCIÓN ADMINISTRATIVA Y FINANCIERA (SAF)
A65: 8 | B65: 7 | C65: SUBDIRECCIÓN DE RECOLECCIÓN BARRIDO Y LIMPIEZA (SRBL)
A66: 8 | B66: 8 | C66: SUBDIRECCIÓN DE DISPOSICIÓN FINAL - (SDF)
A67: 8 | B67: 9 | C67: SUBDIRECCIÓN DE APROVECHAMIENTO (SAP)
A68: 8 | B68: 10 | C68: SUBDIRECCIÓN DE SERVICIOS FUNERARIOS Y ALUMBRADO PÚBLICO (SSFAP)
A69: 9 | B69: 1 | C69: OFICINA ASESORA DE PLANEACIÓN - (OAP)
A70: 9 | B70: 3 | C70: OFICINA ASESORA DE TECNOLOGIAS DE LA INFORMACIÓN - (TIC)
A71: 9 | B71: 4 | C71: OFICINA ASESORA DE COMUNICAIONES - (OAC)
A72: 9 | B72: 5 | C72: SUBDIRECCIÓN DE ASUNTOS LEGALES - (SAL)
A73: 9 | B73: 6 | C73: SUBDIRECCIÓN ADMINISTRATIVA Y FINANCIERA (SAF)
A74: 9 | B74: 7 | C74: SUBDIRECCIÓN DE RECOLECCIÓN BARRIDO Y LIMPIEZA (SRBL)
A75: 9 | B75: 8 | C75: SUBDIRECCIÓN DE DISPOSICIÓN FINAL - (SDF)
A76: 9 | B76: 9 | C76: SUBDIRECCIÓN DE APROVECHAMIENTO (SAP)
A77: 9 | B77: 10 | C77: SUBDIRECCIÓN DE SERVICIOS FUNERARIOS Y ALUMBRADO PÚBLICO (SSFAP)
A78: 10 | B78: 1 | C78: OFICINA ASESORA DE PLANEACIÓN - (OAP)
A79: 10 | B79: 2 | C79: OFICNA DE CONTROL INETRNO - (OCI)
A80: 10 | B80: 3 | C80: OFICINA ASESORA DE TECNOLOGIAS DE LA INFORMACIÓN - (TIC)
A81: 10 | B81: 5 | C81: SUBDIRECCIÓN DE ASUNTOS LEGALES - (SAL)
A82: 10 | B82: 6 | C82: SUBDIRECCIÓN ADMINISTRATIVA Y FINANCIERA (SAF)
A83: 10 | B83: 7 | C83: SUBDIRECCIÓN DE RECOLECCIÓN BARRIDO Y LIMPIEZA (SRBL)
A84: 10 | B84: 8 | C84: SUBDIRECCIÓN DE DISPOSICIÓN FINAL - (SDF)
A85: 10 | B85: 9 | C85: SUBDIRECCIÓN DE APROVECHAMIENTO (SAP)
A86: 10 | B86: 10 | C86: SUBDIRECCIÓN DE SERVICIOS FUNERARIOS Y ALUMBRADO PÚBLICO (SSFAP)
A87: 11 | B87: 1 | C87: OFICINA ASESORA DE PLANEACIÓN - (OAP)
A88: 11 | B88: 3 | C88: OFICINA ASESORA DE TECNOLOGIAS DE LA INFORMACIÓN - (TIC)
A89: 11 | B89: 5 | C89: SUBDIRECCIÓN DE ASUNTOS LEGALES - (SAL)
A90: 11 | B90: 6 | C90: SUBDIRECCIÓN ADMINISTRATIVA Y FINANCIERA (SAF)
A91: 11 | B91: 7 | C91: SUBDIRECCIÓN DE RECOLECCIÓN BARRIDO Y LIMPIEZA (SRBL)
A92: 11 | B92: 8 | C92: SUBDIRECCIÓN DE DISPOSICIÓN FINAL - (SDF)
A93: 11 | B93: 9 | C93: SUBDIRECCIÓN DE APROVECHAMIENTO (SAP)
A94: 11 | B94: 10 | C94: SUBDIRECCIÓN DE SERVICIOS FUNERARIOS Y ALUMBRADO PÚBLICO (SSFAP)
A95: 12 | B95: 1 | C95: OFICINA ASESORA DE PLANEACIÓN - (OAP)
A96: 12 | B96: 2 | C96: OFICNA DE CONTROL INETRNO - (OCI)
A97: 12 | B97: 3 | C97: OFICINA ASESORA DE TECNOLOGIAS DE LA INFORMACIÓN - (TIC)
A98: 12 | B98: 4 | C98: OFICINA ASESORA DE COMUNICAIONES - (OAC)
A99: 12 | B99: 5 | C99: SUBDIRECCIÓN DE ASUNTOS LEGALES - (SAL)
A100: 12 | B100: 6 | C100: SUBDIRECCIÓN ADMINISTRATIVA Y FINANCIERA (SAF)
A101: 12 | B101: 7 | C101: SUBDIRECCIÓN DE RECOLECCIÓN BARRIDO Y LIMPIEZA (SRBL)
A102: 12 | B102: 8 | C102: SUBDIRECCIÓN DE DISPOSICIÓN FINAL - (SDF)
A103: 12 | B103: 9 | C103: SUBDIRECCIÓN DE APROVECHAMIENTO (SAP)
A104: 12 | B104: 10 | C104: SUBDIRECCIÓN DE SERVICIOS FUNERARIOS Y ALUMBRADO PÚBLICO (SSFAP)

Sheet Iniciativa (hidden)
A1: Cod M | B1: COD D | C1: COD I | D1: Iniciativa
A2: 1 | B2: 1 | C2: 1 | D2: Asegurar en lo jurídico el fortalecimiento del modelo de transformación organizacional
A3: 1 | B3: 2 | C3: 1 | D3: Fortalecer el Sistema Integrado de Gestión Financiera SI-CAPITAL.
A4: 1 | B4: 3 | C4: 1 | D4: Garantizar una adecuada prestación del servicio de aseo
A5: 1 | B5: 4 | C5: 1 | D5: Fortalecer la gestión de la operación del Relleno Sanitario Doña Juana (RSDJ)
A6: 1 | B6: 4 | C6: 2 | D6: Fortalecer la Gestión Social para la zona de influencia del Relleno Sanitario Doña Juana."
A7: 1 | B7: 5 | C7: 1 | D7: Modernizar y Actualizar las luminarias en Parques y Vías
A8: 1 | B8: 5 | C8: 2 | D8: Fortalecer la prestación del Servicio de Alumbrado Publico en el Distrito Capital
A9: 1 | B9: 5 | C9: 3 | D9: Garantizar que la prestación de los servicios funerarios
A10: 1 | B10: 5 | C10: 4 | D10: Revitalizar los Cementerios de propiedad del Distrito Capital
A11: 1 | B11: 5 | C11: 5 | D11: Consolidar la prestación de los Servicios Funerarios Integrales en los cementerios del distrito
A12: 1 | B12: 5 | C12: 6 | D12: 'Otorgar subsidios funerarios a población en estado de vulnerabilidad
A13: 2 | B13: 1 | C13: 1 | D13: Fortalecer los estándares de transparencia y de acceso a la información pública
A14: 2 | B14: 1 | C14: 2 | D14: Fortalecer el Modelo de Transformación Organizacional articulado con el Modelo Integrado de Planeación y Gestión (MIPG)
A15: 2 | B15: 2 | C15: 1 | D15: Soporte estratégico para la toma de decisiones, agregando valor al desempeño institucional
A16: 2 | B16: 2 | C16: 2 | D16: Asesoría y formulación de recomendaciones con alcance preventivo y de fomento a la cultura del control
A17: 2 | B17: 3 | C17: 1 | D17: Fortalecer la gestión de las plataformas tecnológicas de la entidad (hardware y software)
A18: 2 | B18: 3 | C18: 2 | D18: Implementar los lineamientos que fortalezcan la política de Gobierno Digital en la entidad
A19: 2 | B19: 4 | C19: 1 | D19: Asegurar en lo jurídico el fortalecimiento del modelo de transformación organizacional
A20: 2 | B20: 5 | C20: 1 | D20: Fortalecer el Sistema Integrado de Gestión Financiera SI-CAPITAL.
A21: 2 | B21: 6 | C21: 1 | D21: Garantizar una adecuada prestación del servicio de aseo
A22: 2 | B22: 7 | C22: 1 | D22: Fortalecer la gestión de la operación del Relleno Sanitario Doña Juana (RSDJ)
A23: 2 | B23: 7 | C23: 2 | D23: Fortalecer la Gestión Social para la zona de influencia del Relleno Sanitario Doña Juana."
A24: 2 | B24: 8 | C24: 1 | D24: Promover y fortalecer el esquema de aprovechamiento en el servicio de aseo
A25: 2 | B25: 8 | C25: 2 | D25: Dignificar la labor de la población recicladora de oficio
A26: 2 | B26: 9 | C26: 1 | D26: Modernizar y Actualizar las luminarias en Parques y Vías
A27: 2 | B27: 9 | C27: 2 | D27: Fortalecer la prestación del Servicio de Alumbrado Publico en el Distrito Capital
A28: 2 | B28: 9 | C28: 3 | D28: Garantizar que la prestación de los servicios funerarios
A29: 2 | B29: 9 | C29: 4 | D29: Revitalizar los Cementerios de propiedad del Distrito Capital
A30: 2 | B30: 9 | C30: 5 | D30: 'Consolidar la prestación de los Servicios Funerarios Integrales en los cementerios del distrito
A31: 2 | B31: 9 | C31: 6 | D31: 'Otorgar subsidios funerarios a población en estado de vulnerabilidad
A32: 3 | B32: 1 | C32: 1 | D32: Fortalecer los estándares de transparencia y de acceso a la información pública
A33: 3 | B33: 1 | C33: 2 | D33: Fortalecer el Modelo de Transformación Organizacional articulado con el Modelo Integrado de Planeación y Gestión (MIPG)
A34: 3 | B34: 2 | C34: 1 | D34: Fortalecer la gestión de las plataformas tecnológicas de la entidad (hardware y software)
A35: 3 | B35: 2 | C35: 2 | D35: Implementar los lineamientos que fortalezcan la política de Gobierno Digital en la entidad
A36: 3 | B36: 3 | C36: 1 | D36: Mantener el reconocimiento institucional
A37: 3 | B37: 4 | C37: 1 | D37: Asegurar en lo jurídico el fortalecimiento del modelo de transformación organizacional
A38: 3 | B38: 5 | C38: 1 | D38: Foralecer la Gestión documental integral
A39: 3 | B39: 5 | C39: 2 | D39: Fortalecer el Sistema Integrado de Gestión Financiera SI-CAPITAL.
A40: 3 | B40: 5 | C40: 3 | D40: Hacer de la UAESP un referente en el Distrito, por su ambiente laboral
A41: 3 | B41: 6 | C41: 1 | D41: Establecer altos estándares de limpieza integral en el Distrito Capital
A42: 3 | B42: 6 | C42: 2 | D42: Garantizar una adecuada prestación del servicio de aseo
A43: 3 | B43: 7 | C43: 1 | D43: Fortalecer la gestión de la operación del Relleno Sanitario Doña Juana (RSDJ)
A44: 3 | B44: 7 | C44: 2 | D44: Fortalecer la Gestión Social para la zona de influencia del Relleno Sanitario Doña Juana."
A45: 3 | B45: 8 | C45: 1 | D45: Promover y fortalecer el esquema de aprovechamiento en el servicio de aseo
A46: 3 | B46: 8 | C46: 2 | D46: Dignificar la labor de la población recicladora de oficio
A47: 3 | B47: 8 | C47: 3 | D47: Promover el fortalecimiento empresarial para las organizaciones de recicladores.
A48: 3 | B48: 9 | C48: 1 | D48: Modernizar y Actualizar las luminarias en Parques y Vías
A49: 3 | B49: 9 | C49: 2 | D49: Fortalecer la prestación del Servicio de Alumbrado Publico en el Distrito Capital
A50: 3 | B50: 9 | C50: 3 | D50: Garantizar que la prestación de los servicios funerarios
A51: 3 | B51: 9 | C51: 4 | D51: Revitalizar los Cementerios de propiedad del Distrito Capital
A52: 3 | B52: 9 | C52: 5 | D52: Consolidar la prestación de los Servicios Funerarios Integrales en los cementerios del distrito
A53: 3 | B53: 9 | C53: 6 | D53: Otorgar subsidios funerarios a población en estado de vulnerabilidad
A54: 4 | B54: 1 | C54: 1 | D54: Fortalecer los estándares de transparencia y de acceso a la información pública
A55: 4 | B55: 1 | C55: 2 | D55: Fortalecer el Modelo de Transformación Organizacional articulado con el Modelo Integrado de Planeación y Gestión (MIPG)
A56: 4 | B56: 2 | C56: 1 | D56: Soporte estratégico para la toma de decisiones, agregando valor al desempeño institucional
A57: 4 | B57: 2 | C57: 2 | D57: Asesoría y formulación de recomendaciones con alcance preventivo y de fomento a la cultura del control
A58: 4 | B58: 3 | C58: 1 | D58: Fortalecer la gestión de las plataformas tecnológicas de la entidad (hardware y software)
A59: 4 | B59: 3 | C59: 2 | D59: Implementar los lineamientos que fortalezcan la política de Gobierno Digital en la entidad
A60: 4 | B60: 4 | C60: 1 | D60: Asegurar en lo jurídico el fortalecimiento del modelo de transformación organizacional
A61: 4 | B61: 5 | C61: 1 | D61: Foralecer la Gestión documental integral
A62: 4 | B62: 5 | C62: 2 | D62: Fortalecer la Gestión de atención al ciudadano
A63: 4 | B63: 5 | C63: 3 | D63: Fortalecer el Sistema Integrado de Gestión Financiera SI-CAPITAL.
A64: 4 | B64: 6 | C64: 1 | D64: Garantizar una adecuada prestación del servicio de aseo
A65: 4 | B65: 7 | C65: 1 | D65: Fortalecer la gestión de la operación del Relleno Sanitario Doña Juana (RSDJ)
A66: 4 | B66: 7 | C66: 2 | D66: Fortalecer la Gestión Social para la zona de influencia del Relleno Sanitario Doña Juana."
A67: 4 | B67: 8 | C67: 1 | D67: Promover y fortalecer el esquema de aprovechamiento en el servicio de aseo
A68: 4 | B68: 8 | C68: 2 | D68: Dignificar la labor de la población recicladora de oficio
A69: 4 | B69: 9 | C69: 1 | D69: Modernizar y Actualizar las luminarias en Parques y Vías
A70: 4 | B70: 9 | C70: 2 | D70: Fortalecer la prestación del Servicio de Alumbrado Publico en el Distrito Capital
A71: 4 | B71: 9 | C71: 3 | D71: Garantizar que la prestación de los servicios funerarios
A72: 4 | B72: 9 | C72: 4 | D72: Revitalizar los Cementerios de propiedad del Distrito Capital
A73: 4 | B73: 9 | C73: 5 | D73: Consolidar la prestación de los Servicios Funerarios Integrales en los cementerios del distrito
A74: 4 | B74: 9 | C74: 6 | D74: Otorgar subsidios funerarios a población en estado de vulnerabilidad
A75: 5 | B75: 1 | C75: 1 | D75: Fortalecer el Modelo de Transformación Organizacional articulado con el Modelo Integrado de Planeación y Gestión (MIPG)
A76: 5 | B76: 2 | C76: 1 | D76: Fortalecer la gestión de las plataformas tecnológicas de la entidad (hardware y software)
A77: 5 | B77: 2 | C77: 2 | D77: Implementar los lineamientos que fortalezcan la política de Gobierno Digital en la entidad
A78: 5 | B78: 3 | C78: 1 | D78: Asegurar en lo jurídico el fortalecimiento del modelo de transformación organizacional
A79: 5 | B79: 4 | C79: 1 | D79: Foralecer la Gestión documental integral
A80: 5 | B80: 4 | C80: 2 | D80: Fortalecer el Sistema Integrado de Gestión Financiera SI-CAPITAL.
A81: 5 | B81: 5 | C81: 1 | D81: Garantizar una adecuada prestación del servicio de aseo
A82: 5 | B82: 6 | C82: 1 | D82: Fortalecer la gestión de la operación del Relleno Sanitario Doña Juana (RSDJ)
A83: 5 | B83: 6 | C83: 2 | D83: Fortalecer la Gestión Social para la zona de influencia del Relleno Sanitario Doña Juana."
A84: 5 | B84: 7 | C84: 1 | D84: Promover y fortalecer el esquema de aprovechamiento en el servicio de aseo
A85: 5 | B85: 8 | C85: 1 | D85: Modernizar y Actualizar las luminarias en Parques y Vías
A86: 5 | B86: 8 | C86: 2 | D86: Fortalecer la prestación del Servicio de Alumbrado Publico en el Distrito Capital
A87: 5 | B87: 8 | C87: 3 | D87: Garantizar que la prestación de los servicios funerarios
A88: 5 | B88: 8 | C88: 4 | D88: Revitalizar los Cementerios de propiedad del Distrito Capital
A89: 5 | B89: 8 | C89: 5 | D89: Consolidar la prestación de los Servicios Funerarios Integrales en los cementerios del distrito
A90: 5 | B90: 8 | C90: 6 | D90: Otorgar subsidios funerarios a población en estado de vulnerabilidad
A91: 6 | B91: 1 | C91: 1 | D91: Fortalecer los estándares de transparencia y de acceso a la información pública
A92: 6 | B92: 1 | C92: 2 | D92: Fortalecer el Modelo de Transformación Organizacional articulado con el Modelo Integrado de Planeación y Gestión (MIPG)
A93: 6 | B93: 2 | C93: 1 | D93: Soporte estratégico para la toma de decisiones, agregando valor al desempeño institucional
A94: 6 | B94: 2 | C94: 2 | D94: Asesoría y formulación de recomendaciones con alcance preventivo y de fomento a la cultura del control
A95: 6 | B95: 3 | C95: 1 | D95: Fortalecer la gestión de las plataformas tecnológicas de la entidad (hardware y software)
A96: 6 | B96: 3 | C96: 2 | D96: Implementar los lineamientos que fortalezcan la política de Gobierno Digital en la entidad
A97: 6 | B97: 4 | C97: 1 | D97: Mantener el reconocimiento institucional
A98: 6 | B98: 5 | C98: 1 | D98: Asegurar en lo jurídico el fortalecimiento del modelo de transformación organizacional
A99: 6 | B99: 6 | C99: 1 | D99: Foralecer la Gestión documental integral
A100: 6 | B100: 6 | C100: 2 | D100: Fortalecer el Sistema Integrado de Gestión Financiera SI-CAPITAL.
A101: 6 | B101: 6 | C101: 3 | D101: Hacer de la UAESP un referente en el Distrito, por su ambiente laboral
A102: 6 | B102: 6 | C102: 4 | D102: Coordinar acciones que promuevan la austeridad en el gasto
A103: 6 | B103: 7 | C103: 1 | D103: Establecer altos estándares de limpieza integral en el Distrito Capital
A104: 6 | B104: 7 | C104: 2 | D104: Garantizar una adecuada prestación del servicio de aseo
A105: 6 | B105: 7 | C105: 3 | D105: Garantizar el cumplimiento de las Instancias de Coordinación enfocadas en el desarrollo del Decreto Distrital 190 de 2006 (PMIRS) y sus modificaciones
A106: 6 | B106: 8 | C106: 1 | D106: Fortalecer la gestión de la operación del Relleno Sanitario Doña Juana (RSDJ)
A107: 6 | B107: 8 | C107: 2 | D107: Fortalecer la Gestión Social para la zona de influencia del Relleno Sanitario Doña Juana."
A108: 6 | B108: 9 | C108: 1 | D108: Mejorar y fortalecer la capacidad operativa para el aprovechamiento
A109: 6 | B109: 9 | C109: 2 | D109: Promover y fortalecer el esquema de aprovechamiento en el servicio de aseo
A110: 6 | B110: 9 | C110: 3 | D110: Dignificar la labor de la población recicladora de oficio
A111: 6 | B111: 9 | C111: 4 | D111: Promover el fortalecimiento empresarial para las organizaciones de recicladores.
A112: 6 | B112: 10 | C112: 1 | D112: Revitalizar los Cementerios de propiedad del Distrito Capital
A113: 6 | B113: 10 | C113: 2 | D113: Otorgar subsidios funerarios a población en estado de vulnerabilidad
A114: 7 | B114: 1 | C114: 1 | D114: Fortalecer los estándares de transparencia y de acceso a la información pública
A115: 7 | B115: 1 | C115: 2 | D115: Fortalecer el Modelo de Transformación Organizacional articulado con el Modelo Integrado de Planeación y Gestión (MIPG)
A116: 7 | B116: 2 | C116: 1 | D116: Fortalecer la gestión de las plataformas tecnológicas de la entidad (hardware y software)
A117: 7 | B117: 3 | C117: 1 | D117: Asegurar en lo jurídico el fortalecimiento del modelo de transformación organizacional
A118: 7 | B118: 4 | C118: 1 | D118: Foralecer la Gestión documental integral
A119: 7 | B119: 4 | C119: 2 | D119: Fortalecer la Gestión de atención al ciudadano
A120: 7 | B120: 4 | C120: 3 | D120: Fortalecer el Sistema Integrado de Gestión Financiera SI-CAPITAL.
A121: 7 | B121: 4 | C121: 4 | D121: Fortalecer la Infraestructura de todas las sedes que estén a cargo de la entidad en el marco de los requisitos legales.
A122: 7 | B122: 5 | C122: 1 | D122: Garantizar una adecuada prestación del servicio de aseo
A123: 7 | B123: 6 | C123: 1 | D123: Fortalecer la gestión de la operación del Relleno Sanitario Doña Juana (RSDJ)
A124: 7 | B124: 6 | C124: 2 | D124: Fortalecer la Gestión Social para la zona de influencia del Relleno Sanitario Doña Juana."
A125: 7 | B125: 6 | C125: 1 | D125: Promover y fortalecer el esquema de aprovechamiento en el servicio de aseo
A126: 7 | B126: 7 | C126: 1 | D126: Revitalizar los Cementerios de propiedad del Distrito Capital
A127: 7 | B127: 7 | C127: 1 | D127: Otorgar subsidios funerarios a población en estado de vulnerabilidad
A128: 8 | B128: 1 | C128: 1 | D128: Fortalecer los estándares de transparencia y de acceso a la información pública
A129: 8 | B129: 1 | C129: 2 | D129: Fortalecer el Modelo de Transformación Organizacional articulado con el Modelo Integrado de Planeación y Gestión (MIPG)
A130: 8 | B130: 2 | C130: 1 | D130: Soporte estratégico para la toma de decisiones, agregando valor al desempeño institucional
A131: 8 | B131: 2 | C131: 2 | D131: Asesoría y formulación de recomendaciones con alcance preventivo y de fomento a la cultura del control
A132: 8 | B132: 3 | C132: 1 | D132: Fortalecer la gestión de las plataformas tecnológicas de la entidad (hardware y software)
A133: 8 | B133: 3 | C133: 2 | D133: Implementar los lineamientos que fortalezcan la política de Gobierno Digital en la entidad
A134: 8 | B134: 4 | C134: 1 | D134: Asegurar en lo jurídico el fortalecimiento del modelo de transformación organizacional
A135: 8 | B135: 5 | C135: 1 | D135: Foralecer la Gestión documental integral
A136: 8 | B136: 5 | C136: 2 | D136: Fortalecer el Sistema Integrado de Gestión Financiera SI-CAPITAL.
A137: 8 | B137: 6 | C137: 1 | D137: Garantizar una adecuada prestación del servicio de aseo
A138: 8 | B138: 7 | C138: 1 | D138: Fortalecer la gestión de la operación del Relleno Sanitario Doña Juana (RSDJ)
A139: 8 | B139: 7 | C139: 2 | D139: Fortalecer la Gestión Social para la zona de influencia del Relleno Sanitario Doña Juana."
A140: 8 | B140: 8 | C140: 1 | D140: Promover y fortalecer el esquema de aprovechamiento en el servicio de aseo
A141: 8 | B141: 8 | C141: 2 | D141: Dignificar la labor de la población recicladora de oficio
A142: 8 | B142: 9 | C142: 1 | D142: Revitalizar los Cementerios de propiedad del Distrito Capital
A143: 8 | B143: 9 | C143: 2 | D143: Otorgar subsidios funerarios a población en estado de vulnerabilidad
A144: 9 | B144: 1 | C144: 1 | D144: Fortalecer los estándares de transparencia y de acceso a la información pública
A145: 9 | B145: 1 | C145: 2 | D145: Fortalecer el Modelo de Transformación Organizacional articulado con el Modelo Integrado de Planeación y Gestión (MIPG)
A146: 9 | B146: 2 | C146: 1 | D146: Fortalecer la gestión de las plataformas tecnológicas de la entidad (hardware y software)
A147: 9 | B147: 2 | C147: 2 | D147: Implementar los lineamientos que fortalezcan la política de Gobierno Digital en la entidad
A148: 9 | B148: 3 | C148: 1 | D148: Mantener el reconocimiento institucional
A149: 9 | B149: 4 | C149: 1 | D149: Asegurar en lo jurídico el fortalecimiento del modelo de transformación organizacional
A150: 9 | B150: 5 | C150: 1 | D150: Foralecer la Gestión documental integral
A151: 9 | B151: 5 | C151: 2 | D151: Fortalecer el Sistema Integrado de Gestión Financiera SI-CAPITAL.
A152: 9 | B152: 5 | C152: 3 | D152: Hacer de la UAESP un referente en el Distrito, por su ambiente laboral
A153: 9 | B153: 6 | C153: 1 | D153: Establecer altos estándares de limpieza integral en el Distrito Capital
A154: 9 | B154: 6 | C154: 2 | D154: Garantizar una adecuada prestación del servicio de aseo
A155: 9 | B155: 6 | C155: 3 | D155: Garantizar el cumplimiento de las Instancias de Coordinación enfocadas en el desarrollo del Decreto Distrital 190 de 2006 (PMIRS) y sus modificaciones
A156: 9 | B156: 7 | C156: 1 | D156: Fortalecer la gestión de la operación del Relleno Sanitario Doña Juana (RSDJ)
A157: 9 | B157: 7 | C157: 2 | D157: Fortalecer la Gestión Social para la zona de influencia del Relleno Sanitario Doña Juana."
A158: 9 | B158: 8 | C158: 1 | D158: Promover y fortalecer el esquema de aprovechamiento en el servicio de aseo
A159: 9 | B159: 8 | C159: 2 | D159: Dignificar la labor de la población recicladora de oficio
A160: 9 | B160: 9 | C160: 1 | D160: Promover el fortalecimiento empresarial para las organizaciones de recicladores.
A161: 9 | B161: 9 | C161: 2 | D161: Revitalizar los Cementerios de propiedad del Distrito Capital
A162: 9 | B162: 9 | C162: 3 | D162: Otorgar subsidios funerarios a población en estado de vulnerabilidad
A163: 10 | B163: 1 | C163: 1 | D163: Fortalecer los estándares de transparencia y de acceso a la información pública
A164: 10 | B164: 1 | C164: 2 | D164: Fortalecer el Modelo de Transformación Organizacional articulado con el Modelo Integrado de Planeación y Gestión (MIPG)
A165: 10 | B165: 2 | C165: 1 | D165: Soporte estratégico para la toma de decisiones, agregando valor al desempeño institucional
A166: 10 | B166: 2 | C166: 2 | D166: Asesoría y formulación de recomendaciones con alcance preventivo y de fomento a la cultura del control
A167: 10 | B167: 3 | C167: 1 | D167: Fortalecer la gestión de las plataformas tecnológicas de la entidad (hardware y software)
A168: 10 | B168: 3 | C168: 2 | D168: Implementar los lineamientos que fortalezcan la política de Gobierno Digital en la entidad
A169: 10 | B169: 4 | C169: 1 | D169: Asegurar en lo jurídico el fortalecimiento del modelo de transformación organizacional
A170: 10 | B170: 5 | C170: 1 | D170: Foralecer la Gestión documental integral
A171: 10 | B171: 5 | C171: 2 | D171: Fortalecer el Sistema Integrado de Gestión Financiera SI-CAPITAL.
A172: 10 | B172: 6 | C172: 1 | D172: Garantizar una adecuada prestación del servicio de aseo
A173: 10 | B173: 7 | C173: 1 | D173: Fortalecer la gestión de la operación del Relleno Sanitario Doña Juana (RSDJ)
A174: 10 | B174: 7 | C174: 2 | D174: Fortalecer la Gestión Social para la zona de influencia del Relleno Sanitario Doña Juana."
A175: 10 | B175: 8 | C175: 1 | D175: Promover y fortalecer el esquema de aprovechamiento en el servicio de aseo
A176: 10 | B176: 8 | C176: 2 | D176: Dignificar la labor de la población recicladora de oficio
A177: 10 | B177: 9 | C177: 1 | D177: Revitalizar los Cementerios de propiedad del Distrito Capital
A178: 10 | B178: 9 | C178: 2 | D178: Otorgar subsidios funerarios a población en estado de vulnerabilidad
A179: 11 | B179: 1 | C179: 1 | D179: Fortalecer el Modelo de Transformación Organizacional articulado con el Modelo Integrado de Planeación y Gestión (MIPG)
A180: 11 | B180: 2 | C180: 1 | D180: Fortalecer la gestión de las plataformas tecnológicas de la entidad (hardware y software)
A181: 11 | B181: 2 | C181: 2 | D181: Implementar los lineamientos que fortalezcan la política de Gobierno Digital en la entidad
A182: 11 | B182: 3 | C182: 1 | D182: Asegurar en lo jurídico el fortalecimiento del modelo de transformación organizacional
A183: 11 | B183: 4 | C183: 1 | D183: Foralecer la Gestión documental integral
A184: 11 | B184: 4 | C184: 2 | D184: Fortalecer el Sistema Integrado de Gestión Financiera SI-CAPITAL.
A185: 11 | B185: 5 | C185: 1 | D185: Garantizar una adecuada prestación del servicio de aseo
A186: 11 | B186: 6 | C186: 1 | D186: Fortalecer la gestión de la operación del Relleno Sanitario Doña Juana (RSDJ)
A187: 11 | B187: 6 | C187: 2 | D187: Fortalecer la Gestión Social para la zona de influencia del Relleno Sanitario Doña Juana."
A188: 11 | B188: 7 | C188: 1 | D188: Promover y fortalecer el esquema de aprovechamiento en el servicio de aseo
A189: 11 | B189: 8 | C189: 1 | D189: Revitalizar los Cementerios de propiedad del Distrito Capital
A190: 11 | B190: 8 | C190: 2 | D190: Otorgar subsidios funerarios a población en estado de vulnerabilidad
A191: 12 | B191: 1 | C191: 1 | D191: Fortalecer los estándares de transparencia y de acceso a la información pública
A192: 12 | B192: 1 | C192: 2 | D192: Fortalecer el Modelo de Transformación Organizacional articulado con el Modelo Integrado de Planeación y Gestión (MIPG)
A193: 12 | B193: 2 | C193: 1 | D193: Soporte estratégico para la toma de decisiones, agregando valor al desempeño institucional
A194: 12 | B194: 2 | C194: 2 | D194: Asesoría y formulación de recomendaciones con alcance preventivo y de fomento a la cultura del control
A195: 12 | B195: 3 | C195: 1 | D195: Fortalecer la gestión de las plataformas tecnológicas de la entidad (hardware y software)
A196: 12 | B196: 3 | C196: 2 | D196: Implementar los lineamientos que fortalezcan la política de Gobierno Digital en la entidad
A197: 12 | B197: 4 | C197: 1 | D197: Mantener el reconocimiento institucional
A198: 12 | B198: 5 | C198: 1 | D198: Asegurar en lo jurídico el fortalecimiento del modelo de transformación organizacional
A199: 12 | B199: 6 | C199: 1 | D199: Foralecer la Gestión documental integral
A200: 12 | B200: 6 | C200: 2 | D200: Fortalecer la Gestión de atención al ciudadano
... 11 more rows

Sheet PLAN DE ACCIÓN INSTITUCIONAL
B1: UNIDAD ADMINISTRATIVA ESPECIAL DE SERVICIOS PÚBLICOS- UAESP
B2: PROCESO DE DIRECCIONAMIENTO ESTRATÉGICO
B3: PLAN DE ACCIÓN INSTITUCIONAL VIGENCIA 2019 - Versión 2
K4: PLAN ESTRATÉGICO INSTITUCIONAL | O4: PLAN DE DESARROLLO | S4: ENERO | V4: FEBRERO | X4: MARZO | AA4: ABRIL | AD4: MAYO | AG4: JUNIO | AJ4: JULIO | AM4: AGOSTO | AQ4: SEPTIEMBRE | AS4: OCTUBRE | AW4: NOVIEMBRE | AZ4: DICIEMBRE | BB4: ACUMULADO FRENTE AL CUMPLIMIENTO DEL HITO | BC4: ACUMULADO FRENTE AL CUMPLIMIENTO DE LA INICIATIVA
B5: Dependencia | C5: Iniciativa (Plan o Proyecto) | D5: Meta | E5: Indicador de la meta | F5: Hitos Claves | G5: % incidencia en la meta | H5: Fecha inicio del hito | I5: Fecha final del hito | J5: Entregable del hito | K5: Proyecto de inversión | L5: Meta proyecto de inversión | M5: Objetivo estratégico | N5: Integración y asociación a los planes de la entidad. | O5: Pilar / Eje | P5: Programa | Q5: Meta PDD | R5: Descripción cualitativa del avance | S5: % Programado respecto al Hito | T5: % ejecutado | U5: Descripción cualitativa del avance | V5: % Programado respecto al Hito | W5: % Ejecutado | X5: Descripción cualitativa del avance | Y5: % Programado respecto al Hito | Z5: % Ejecutado | AA5: Descripción cualitativa del avance | AB5: % Programado respecto al Hito | AC5: % Ejecutado | AD5: Descripción cualitativa del avance | AE5: % Programado respecto al Hito | AF5: % Ejecutado | AG5: Descripción cualitativa del avance | AH5: % Programado respecto al Hito | AI5: % Ejecutado | AJ5: Descripción cualitativa del avance | AK5: % Programado respecto al Hito | AL5: % Ejecutado | AM5: Descripción cualitativa del avance | AN5: % Programado respecto al Hito | AO5: % Ejecutado | AP5: Descripción cualitativa del avance | AQ5: % Programado respecto al Hito | AR5: % Ejecutado | AS5: Descripción cualitativa del avance | AT5: % Programado respecto al Hito | AU5: % Ejecutado | AV5: Descripción cualitativa del avance | AW5: % Programado respecto al Hito | AX5: % Ejecutado | AY5: Descripción cualitativa del avance | AZ5: % Programado respecto al Hito | BA5: % Ejecutado
B6: OFICINA ASESORA DE PLANEACIÓN - (OAP) | C6: Fortalecer los estándares de transparencia y de acceso a la información pública | D6: Mantener y/o disminuir el nivel del riesgo del índice de transparencia a de Bogotá D.C. | E6: Resultado del índice de transparencia | F6: Cumplir con los estándares del índice de transparencia de Bogotá | G6: 1 | H6: 2020-01-01 | I6: 2020-12-31 | J6: 1 Informe semestral de seguimiento al Índice de Transparencia | K6: 1042-Fortalecimiento institucional en la gestión pública | L6: Desarrollar y fortalecer el modelo el transformación organizacional de la entidad. | M6: Fortalecimiento Institucional: Consolidar una entidad moderna y efectiva constituida por un equipo comprometido con el logro de los objetivos institucionales | N6: Plan Anticorrupción y de Atención al Ciudadano | O6: Eje 7 - Gobierno Legítimo, fortalecimiento local y eficiencia | P6: 42 - Transparencia, gestión pública y servicio a la ciudadanía. | Q6: Gestionar el 100% del plan de adecuación y sostenibilidad SIG-MIPG | R6: =IFERROR(VLOOKUP($F6,Datos!$G:$AP,3,0),"") ->  | T6: =IFERROR(VLOOKUP($F6,Datos!$G:$AP,2,0)/100,"0") -> 0 | U6: =IFERROR(VLOOKUP($F6,Datos!$J:$AP,3,0),"") ->  | W6: =IFERROR(VLOOKUP($F6,Datos!$J:$AP,2,0)/100,"0") -> 0 | X6: =IFERROR(VLOOKUP($F6,Datos!$M:$AP,3,0),"") -> Se realizó seguimiento a la matriz de seguimiento al Índice de transparencia con corte a 31 de marzo de 2020 | Y6: 0.3 | Z6: =IFERROR(VLOOKUP($F6,Datos!$M:$AP,2,0)/100,"0") -> 0.3 | AA6: =IFERROR(VLOOKUP($F6,Datos!$P:$AP,3,0),"") ->  | AB6: 0.14 | AC6: =IFERROR(VLOOKUP($F6,Datos!$P:$AP,2,0)/100,"0") -> 0 | AD6: =IFERROR(VLOOKUP($F6,Datos!$S:$AP,3,0),"") ->  | AF6: =IFERROR(VLOOKUP($F6,Datos!$S:$AP,2,0)/100,"0") -> 0 | AG6: =IFERROR(VLOOKUP($F6,Datos!$V:$AP,3,0),"") ->  | AH6: 0.14 | AI6: =IFERROR(VLOOKUP($F6,Datos!$V:$AP,2,0)/100,"0") -> 0 | AJ6: =IFERROR(VLOOKUP($F6,Datos!$Y:$AP,3,0),"") ->  | AL6: =IFERROR(VLOOKUP($F6,Datos!$Y:$AP,2,0)/100,"0") -> 0 | AM6: =IFERROR(VLOOKUP($F6,Datos!$AB:$AP,3,0),"") ->  | AN6: 0.14 | AO6: =IFERROR(VLOOKUP($F6,Datos!$AB:$AP,2,0)/100,"0") -> 0 | AP6: =IFERROR(VLOOKUP($F6,Datos!$AE:$AP,3,0),"") ->  | AR6: =IFERROR(VLOOKUP($F6,Datos!$AE:$AP,2,0)/100,"0") -> 0 | AS6: =IFERROR(VLOOKUP($F6,Datos!$AH:$AP,3,0),"") ->  | AT6: 0.14 | AU6: =IFERROR(VLOOKUP($F6,Datos!$AH:$AP,2,0)/100,"0") -> 0 | AV6: =IFERROR(VLOOKUP($F6,Datos!$AK:$AP,3,0),"") ->  | AX6: =IFERROR(VLOOKUP($F6,Datos!$AK:$AP,2,0)/100,"0") -> 0 | AY6: =IFERROR(VLOOKUP($F6,Datos!$AN:$AP,3,0),"") ->  | AZ6: 0.14 | BA6: =IFERROR(VLOOKUP($F6,Datos!$AN:$AP,2,0)/100,"0") -> 0 | BB6: =T6+W6+Z6+AC6+AF6+AI6+AL6+AO6+AR6+AU6+AX6+BA6 -> 0.3 | BC6: =((T6+W6+Z6+AC6+AF6+AI6+AL6+AO6+AR6+AU6+AX6+BA6)*G6) -> 0.3
B7: OFICINA ASESORA DE PLANEACIÓN - (OAP) | D7: Cumplimiento del 100% de la estrategia de rendición de cuentas | E7: Informe de seguimiento de la estrategia de rendición de cuentas publicado | F7: Formular, implementar y realizar seguimiento a la estrategia de rendición de cuentas | G7: 1 | H7: 2020-01-01 | I7: 2020-12-31 | J7: Informe de seguimiento a la estrategia de rendición de cuentas de la Unidad | K7: 1042-Fortalecimiento institucional en la gestión pública | L7: Desarrollar y fortalecer el modelo el transformación organizacional de la entidad. | M7: Fortalecimiento Institucional: Consolidar una entidad moderna y efectiva constituida por un equipo comprometido con el logro de los objetivos institucionales | N7: Plan Anticorrupción y de Atención al Ciudadano | O7: Eje 7 - Gobierno Legítimo, fortalecimiento local y eficiencia | P7: 42 - Transparencia, gestión pública y servicio a la ciudadanía. | Q7: Gestionar el 100% del plan de adecuación y sostenibilidad SIG-MIPG | R7: =IFERROR(VLOOKUP($F7,Datos!$G:$AP,3,0),"") ->  | T7: =IFERROR(VLOOKUP($F7,Datos!$G:$AP,2,0)/100,"0") -> 0 | U7: =IFERROR(VLOOKUP($F7,Datos!$J:$AP,3,0),"") ->  | W7: =IFERROR(VLOOKUP($F7,Datos!$J:$AP,2,0)/100,"0") -> 0 | X7: =IFERROR(VLOOKUP($F7,Datos!$M:$AP,3,0),"") -> El 30 de enero se aprueba la estrategia de rendición de cuentas dentro del componente 3 del Plan Anticorrupción y de Atención al Ciudadano, por el Comité Institucional de Gestión y Desempeño. EL acta se encuentra en el archivo de gestión de la OAP. La publicación del documento se encuentra en: http://www.uaesp.gov.co/transparencia/planeacion/planes Así mismo, se publica el informe de resultados de la Estrategia de Rendición de Cuentas 2019. Teniendo en cuenta la cuarenta preventiva obligatoria, no se ha definido por parte de la Veeduría Distrital la programación para la Rendición de Cuentas para el Distrito. | Y7: 0.25 | Z7: =IFERROR(VLOOKUP($F7,Datos!$M:$AP,2,0)/100,"0") -> 0.25 | AA7: =IFERROR(VLOOKUP($F7,Datos!$P:$AP,3,0),"") ->  | AC7: =IFERROR(VLOOKUP($F7,Datos!$P:$AP,2,0)/100,"0") -> 0 | AD7: =IFERROR(VLOOKUP($F7,Datos!$S:$AP,3,0),"") ->  | AF7: =IFERROR(VLOOKUP($F7,Datos!$S:$AP,2,0)/100,"0") -> 0 | AG7: =IFERROR(VLOOKUP($F7,Datos!$V:$AP,3,0),"") ->  | AH7: 0.25 | AI7: =IFERROR(VLOOKUP($F7,Datos!$V:$AP,2,0)/100,"0") -> 0 | AJ7: =IFERROR(VLOOKUP($F7,Datos!$Y:$AP,3,0),"") ->  | AL7: =IFERROR(VLOOKUP($F7,Datos!$Y:$AP,2,0)/100,"0") -> 0 | AM7: =IFERROR(VLOOKUP($F7,Datos!$AB:$AP,3,0),"") ->  | AO7: =IFERROR(VLOOKUP($F7,Datos!$AB:$AP,2,0)/100,"0") -> 0 | AP7: =IFERROR(VLOOKUP($F7,Datos!$AE:$AP,3,0),"") ->  | AQ7: 0.25 | AR7: =IFERROR(VLOOKUP($F7,Datos!$AE:$AP,2,0)/100,"0") -> 0 | AS7: =IFERROR(VLOOKUP($F7,Datos!$AH:$AP,3,0),"") ->  | AU7: =IFERROR(VLOOKUP($F7,Datos!$AH:$AP,2,0)/100,"0") -> 0 | AV7: =IFERROR(VLOOKUP($F7,Datos!$AK:$AP,3,0),"") ->  | AX7: =IFERROR(VLOOKUP($F7,Datos!$AK:$AP,2,0)/100,"0") -> 0 | AY7: =IFERROR(VLOOKUP($F7,Datos!$AN:$AP,3,0),"") ->  | AZ7: 0.25 | BA7: =IFERROR(VLOOKUP($F7,Datos!$AN:$AP,2,0)/100,"0") -> 0 | BB7: =T7+W7+Z7+AC7+AF7+AI7+AL7+AO7+AR7+AU7+AX7+BA7 -> 0.25 | BC7: =((T7+W7+Z7+AC7+AF7+AI7+AL7+AO7+AR7+AU7+AX7+BA7)*G7) -> 0.25
B8: OFICINA ASESORA DE PLANEACIÓN - (OAP) | D8: Fortalecer la implementación del PAAC | E8: Monitoreos realizados | F8: Formular y monitorear el Plan Anticorrupción y Atención al Ciudadano | G8: 1 | H8: 2020-01-01 | I8: 2020-12-31 | J8: Evidencias de monitoreo realizado al PAAC | K8: 1042-Fortalecimiento institucional en la gestión pública | L8: Desarrollar y fortalecer el modelo el transformación organizacional de la entidad. | M8: Fortalecimiento Institucional: Consolidar una entidad moderna y efectiva constituida por un equipo comprometido con el logro de los objetivos institucionales | N8: Plan Anticorrupción y de Atención al Ciudadano | O8: Eje 7 - Gobierno Legítimo, fortalecimiento local y eficiencia | P8: 42 - Transparencia, gestión pública y servicio a la ciudadanía. | Q8: Gestionar el 100% del plan de adecuación y sostenibilidad SIG-MIPG | R8: =IFERROR(VLOOKUP($F8,Datos!$G:$AP,3,0),"") ->  | T8: =IFERROR(VLOOKUP($F8,Datos!$G:$AP,2,0)/100,"0") -> 0 | U8: =IFERROR(VLOOKUP($F8,Datos!$J:$AP,3,0),"") -> El 24 de febrero se solicita el reporte del mes de febrero y marzo y se presentan los lineamientos de reporte de las actividades del PAAC y del seguimiento a los riesgos de corrupción. Se reporta consolidado el reporte de los procesos: Direccionamiento Estratégico, Gestión de Comunicaciones, Gestión Integral de Residuos Sólidos, Gestión de Asuntos Legales, Evaluación y Mejora. Los riesgos con seguimientos fueron consolidados y cada uno se actualizó y se envío a publicar en los procesos que reportaron. | V8: 0.3 | W8: 0.3 | X8: =IFERROR(VLOOKUP($F8,Datos!$M:$AP,3,0),"") ->  | Z8: =IFERROR(VLOOKUP($F8,Datos!$M:$AP,2,0)/100,"0") -> 0 | AA8: =IFERROR(VLOOKUP($F8,Datos!$P:$AP,3,0),"") -> Se cuenta con una primera versión del Plan de Acción de Participación Ciudadana y de la estrategia de participación ciudadana, los cuales serán objeto de revisión y actualización de acuerdo con lo que se establezca en el PDD 2020 - 2024 que requiera se contemplado en este documento. Se modificó la matriz de caracterización de grupos de interés de la UAESP y está en revisión por parte del jefe de la OAP. | AB8: 0.14 | AC8: =IFERROR(VLOOKUP($F8,Datos!$P:$AP,2,0)/100,"0") -> 0.25 | AD8: =IFERROR(VLOOKUP($F8,Datos!$S:$AP,3,0),"") ->  | AF8: =IFERROR(VLOOKUP($F8,Datos!$S:$AP,2,0)/100,"0") -> 0 | AG8: =IFERROR(VLOOKUP($F8,Datos!$V:$AP,3,0),"") ->  | AH8: 0.14 | AI8: =IFERROR(VLOOKUP($F8,Datos!$V:$AP,2,0)/100,"0") -> 0 | AJ8: =IFERROR(VLOOKUP($F8,Datos!$Y:$AP,3,0),"") ->  | AL8: =IFERROR(VLOOKUP($F8,Datos!$Y:$AP,2,0)/100,"0") -> 0 | AM8: =IFERROR(VLOOKUP($F8,Datos!$AB:$AP,3,0),"") ->  | AN8: 0.14 | AO8: =IFERROR(VLOOKUP($F8,Datos!$AB:$AP,2,0)/100,"0") -> 0 | AP8: =IFERROR(VLOOKUP($F8,Datos!$AE:$AP,3,0),"") ->  | AR8: =IFERROR(VLOOKUP($F8,Datos!$AE:$AP,2,0)/100,"0") -> 0 | AS8: =IFERROR(VLOOKUP($F8,Datos!$AH:$AP,3,0),"") ->  | AT8: 0.14 | AU8: =IFERROR(VLOOKUP($F8,Datos!$AH:$AP,2,0)/100,"0") -> 0 | AV8: =IFERROR(VLOOKUP($F8,Datos!$AK:$AP,3,0),"") ->  | AX8: =IFERROR(VLOOKUP($F8,Datos!$AK:$AP,2,0)/100,"0") -> 0 | AY8: =IFERROR(VLOOKUP($F8,Datos!$AN:$AP,3,0),"") ->  | AZ8: 0.14 | BA8: =IFERROR(VLOOKUP($F8,Datos!$AN:$AP,2,0)/100,"0") -> 0 | BB8: 0.55 | BC8: 0.55
B9: OFICINA ASESORA DE PLANEACIÓN - (OAP) | D9: Fortalecer la participación ciudadana de la entidad . | E9: Monitoreos realizados | F9: Formular, implementar y realizar seguimiento al Plan de Acción de Participación Ciudadana. | G9: 1 | H9: 2020-01-01 | I9: 2020-12-31 | J9: Informe de seguimiento al Plan de Acción de Participación Ciudadana | K9: 1042-Fortalecimiento institucional en la gestión pública | L9: Desarrollar y fortalecer el modelo el transformación organizacional de la entidad. | M9: Fortalecimiento Institucional: Consolidar una entidad moderna y efectiva constituida por un equipo comprometido con el logro de los objetivos institucionales | N9: Plan Anticorrupción y de Atención al Ciudadano | O9: Eje 7 - Gobierno Legítimo, fortalecimiento local y eficiencia | P9: 42 - Transparencia, gestión pública y servicio a la ciudadanía. | Q9: Gestionar el 100% del plan de adecuación y sostenibilidad SIG-MIPG | R9: =IFERROR(VLOOKUP($F9,Datos!$G:$AP,3,0),"") ->  | T9: =IFERROR(VLOOKUP($F9,Datos!$G:$AP,2,0)/100,"0") -> 0 | U9: =IFERROR(VLOOKUP($F9,Datos!$J:$AP,3,0),"") ->  | W9: =IFERROR(VLOOKUP($F9,Datos!$J:$AP,2,0)/100,"0") -> 0 | X9: =IFERROR(VLOOKUP($F9,Datos!$M:$AP,3,0),"") ->  | Z9: =IFERROR(VLOOKUP($F9,Datos!$M:$AP,2,0)/100,"0") -> 0 | AA9: =IFERROR(VLOOKUP($F9,Datos!$P:$AP,3,0),"") ->  | AB9: 0.25 | AC9: =IFERROR(VLOOKUP($F9,Datos!$P:$AP,2,0)/100,"0") -> 0 | AD9: =IFERROR(VLOOKUP($F9,Datos!$S:$AP,3,0),"") ->  | AF9: =IFERROR(VLOOKUP($F9,Datos!$S:$AP,2,0)/100,"0") -> 0 | AG9: =IFERROR(VLOOKUP($F9,Datos!$V:$AP,3,0),"") ->  | AI9: =IFERROR(VLOOKUP($F9,Datos!$V:$AP,2,0)/100,"0") -> 0 | AJ9: =IFERROR(VLOOKUP($F9,Datos!$Y:$AP,3,0),"") ->  | AK9: 0.25 | AL9: =IFERROR(VLOOKUP($F9,Datos!$Y:$AP,2,0)/100,"0") -> 0 | AM9: =IFERROR(VLOOKUP($F9,Datos!$AB:$AP,3,0),"") ->  | AO9: =IFERROR(VLOOKUP($F9,Datos!$AB:$AP,2,0)/100,"0") -> 0 | AP9: =IFERROR(VLOOKUP($F9,Datos!$AE:$AP,3,0),"") ->  | AR9: =IFERROR(VLOOKUP($F9,Datos!$AE:$AP,2,0)/100,"0") -> 0 | AS9: =IFERROR(VLOOKUP($F9,Datos!$AH:$AP,3,0),"") ->  | AT9: 0.25 | AU9: =IFERROR(VLOOKUP($F9,Datos!$AH:$AP,2,0)/100,"0") -> 0 | AV9: =IFERROR(VLOOKUP($F9,Datos!$AK:$AP,3,0),"") ->  | AX9: =IFERROR(VLOOKUP($F9,Datos!$AK:$AP,2,0)/100,"0") -> 0 | AY9: =IFERROR(VLOOKUP($F9,Datos!$AN:$AP,3,0),"") ->  | AZ9: 0.25 | BA9: =IFERROR(VLOOKUP($F9,Datos!$AN:$AP,2,0)/100,"0") -> 0 | BB9: 0 | BC9: 0
B10: OFICINA ASESORA DE PLANEACIÓN - (OAP) | C10: Fortalecer el Modelo de Transformación Organizacional articulado con el Modelo Integrado de Planeación y Gestión (MIPG) | D10: Implementación de MIPG en la UAESP de acuerdo con el Plan de Desarrollo de la Vigencia | E10: Mantenimiento y sostenibilidad del MIPG | F10: Seguimiento a la implementación de las 17 políticas de gestión y desempeño institucional | G10: 0.5 | H10: 2020-01-02 | I10: 2020-12-31 | J10: 1 informe de avance trimestral del cumplimiento de los estándares del MIPG | K10: 1042-Fortalecimiento institucional en la gestión pública | L10: Desarrollar y fortalecer el modelo el transformación organizacional de la entidad. | M10: Fortalecimiento Institucional: Consolidar una entidad moderna y efectiva constituida por un equipo comprometido con el logro de los objetivos institucionales | N10: Plan Anticorrupción y de Atención al Ciudadano | O10: Eje 7 - Gobierno Legítimo, fortalecimiento local y eficiencia | P10: 42 - Transparencia, gestión pública y servicio a la ciudadanía. | Q10: Gestionar el 100% del plan de adecuación y sostenibilidad SIG-MIPG | R10: =IFERROR(VLOOKUP($F10,Datos!$G:$AP,3,0),"") ->  | T10: =IFERROR(VLOOKUP($F10,Datos!$G:$AP,2,0)/100,"0") -> 0 | U10: =IFERROR(VLOOKUP($F10,Datos!$J:$AP,3,0),"") ->  | W10: =IFERROR(VLOOKUP($F10,Datos!$J:$AP,2,0)/100,"0") -> 0 | X10: =IFERROR(VLOOKUP($F10,Datos!$M:$AP,3,0),"") -> Los seguimientos se han realizado de acuerdo al Plan de acción del MIPG 2020. | Y10: 0.25 | Z10: =IFERROR(VLOOKUP($F10,Datos!$M:$AP,2,0)/100,"0") -> 0.25 | AA10: =IFERROR(VLOOKUP($F10,Datos!$P:$AP,3,0),"") ->  | AC10: =IFERROR(VLOOKUP($F10,Datos!$P:$AP,2,0)/100,"0") -> 0 | AD10: =IFERROR(VLOOKUP($F10,Datos!$S:$AP,3,0),"") ->  | AF10: =IFERROR(VLOOKUP($F10,Datos!$S:$AP,2,0)/100,"0") -> 0 | AG10: =IFERROR(VLOOKUP($F10,Datos!$V:$AP,3,0),"") ->  | AH10: 0.25 | AI10: =IFERROR(VLOOKUP($F10,Datos!$V:$AP,2,0)/100,"0") -> 0 | AJ10: =IFERROR(VLOOKUP($F10,Datos!$Y:$AP,3,0),"") ->  | AL10: =IFERROR(VLOOKUP($F10,Datos!$Y:$AP,2,0)/100,"0") -> 0 | AM10: =IFERROR(VLOOKUP($F10,Datos!$AB:$AP,3,0),"") ->  | AO10: =IFERROR(VLOOKUP($F10,Datos!$AB:$AP,2,0)/100,"0") -> 0 | AP10: =IFERROR(VLOOKUP($F10,Datos!$AE:$AP,3,0),"") ->  | AQ10: 0.25 | AR10: =IFERROR(VLOOKUP($F10,Datos!$AE:$AP,2,0)/100,"0") -> 0 | AS10: =IFERROR(VLOOKUP($F10,Datos!$AH:$AP,3,0),"") ->  | AU10: =IFERROR(VLOOKUP($F10,Datos!$AH:$AP,2,0)/100,"0") -> 0 | AV10: =IFERROR(VLOOKUP($F10,Datos!$AK:$AP,3,0),"") ->  | AX10: =IFERROR(VLOOKUP($F10,Datos!$AK:$AP,2,0)/100,"0") -> 0 | AY10: =IFERROR(VLOOKUP($F10,Datos!$AN:$AP,3,0),"") ->  | AZ10: 0.25 | BA10: =IFERROR(VLOOKUP($F10,Datos!$AN:$AP,2,0)/100,"0") -> 0 | BB10: 0.25 | BC10: 0.125
B11: OFICINA ASESORA DE PLANEACIÓN - (OAP) | F11: Divulgar los avances de la implementación del MIPG | G11: 0.5 | H11: 2020-01-02 | I11: 2020-12-31 | K11: 1042-Fortalecimiento institucional en la gestión pública | L11: Desarrollar y fortalecer el modelo el transformación organizacional de la entidad. | M11: Fortalecimiento Institucional: Consolidar una entidad moderna y efectiva constituida por un equipo comprometido con el logro de los objetivos institucionales | N11: Plan Anual de Adquisiciones | O11: Eje 7 - Gobierno Legítimo, fortalecimiento local y eficiencia | P11: 42 - Transparencia, gestión pública y servicio a la ciudadanía. | Q11: Gestionar el 100% del plan de adecuación y sostenibilidad SIG-MIPG | R11: =IFERROR(VLOOKUP($F11,Datos!$G:$AP,3,0),"") ->  | T11: =IFERROR(VLOOKUP($F11,Datos!$G:$AP,2,0)/100,"0") -> 0 | U11: =IFERROR(VLOOKUP($F11,Datos!$J:$AP,3,0),"") ->  | W11: =IFERROR(VLOOKUP($F11,Datos!$J:$AP,2,0)/100,"0") -> 0 | X11: =IFERROR(VLOOKUP($F11,Datos!$M:$AP,3,0),"") -> Los avances del plan de acción del MIPG se publicaron en la página web - link de transparencia. | Y11: 0.25 | Z11: =IFERROR(VLOOKUP($F11,Datos!$M:$AP,2,0)/100,"0") -> 0.25 | AA11: =IFERROR(VLOOKUP($F11,Datos!$P:$AP,3,0),"") ->  | AC11: =IFERROR(VLOOKUP($F11,Datos!$P:$AP,2,0)/100,"0") -> 0 | AD11: =IFERROR(VLOOKUP($F11,Datos!$S:$AP,3,0),"") ->  | AF11: =IFERROR(VLOOKUP($F11,Datos!$S:$AP,2,0)/100,"0") -> 0 | AG11: =IFERROR(VLOOKUP($F11,Datos!$V:$AP,3,0),"") ->  | AH11: 0.25 | AI11: =IFERROR(VLOOKUP($F11,Datos!$V:$AP,2,0)/100,"0") -> 0 | AJ11: =IFERROR(VLOOKUP($F11,Datos!$Y:$AP,3,0),"") ->  | AL11: =IFERROR(VLOOKUP($F11,Datos!$Y:$AP,2,0)/100,"0") -> 0 | AM11: =IFERROR(VLOOKUP($F11,Datos!$AB:$AP,3,0),"") ->  | AO11: =IFERROR(VLOOKUP($F11,Datos!$AB:$AP,2,0)/100,"0") -> 0 | AP11: =IFERROR(VLOOKUP($F11,Datos!$AE:$AP,3,0),"") ->  | AQ11: 0.25 | AR11: =IFERROR(VLOOKUP($F11,Datos!$AE:$AP,2,0)/100,"0") -> 0 | AS11: =IFERROR(VLOOKUP($F11,Datos!$AH:$AP,3,0),"") ->  | AU11: =IFERROR(VLOOKUP($F11,Datos!$AH:$AP,2,0)/100,"0") -> 0 | AV11: =IFERROR(VLOOKUP($F11,Datos!$AK:$AP,3,0),"") ->  | AX11: =IFERROR(VLOOKUP($F11,Datos!$AK:$AP,2,0)/100,"0") -> 0 | AY11: =IFERROR(VLOOKUP($F11,Datos!$AN:$AP,3,0),"") ->  | AZ11: 0.25 | BA11: =IFERROR(VLOOKUP($F11,Datos!$AN:$AP,2,0)/100,"0") -> 0 | BB11: 0.25 | BC11: 0.125
B12: OFICINA ASESORA DE PLANEACIÓN - (OAP) | D12: Sostenibilidad del MTO | E12: Informe de seguimiento de Sostenibilidad del MTO | F12: Seguimiento a la ejecución de las actividades establecidad en el Plan de Sostenibilidad del MTO | G12: 1 | H12: 2020-02-01 | I12: 2020-12-31 | J12: Informe semestral del índice de madurez del MTO | K12: 1042-Fortalecimiento institucional en la gestión pública | L12: Desarrollar y fortalecer el modelo el transformación organizacional de la entidad. | M12: Fortalecimiento Institucional: Consolidar una entidad moderna y efectiva constituida por un equipo comprometido con el logro de los objetivos institucionales | N12: Plan Anual de Adquisiciones | O12: Eje 7 - Gobierno Legítimo, fortalecimiento local y eficiencia | P12: 42 - Transparencia, gestión pública y servicio a la ciudadanía. | Q12: Gestionar el 100% del plan de adecuación y sostenibilidad SIG-MIPG | R12: =IFERROR(VLOOKUP($F12,Datos!$G:$AP,3,0),"") ->  | T12: =IFERROR(VLOOKUP($F12,Datos!$G:$AP,2,0)/100,"0") -> 0 | U12: =IFERROR(VLOOKUP($F12,Datos!$J:$AP,3,0),"") ->  | V12: 0.08 | W12: =IFERROR(VLOOKUP($F12,Datos!$J:$AP,2,0)/100,"0") -> 0 | X12: =IFERROR(VLOOKUP($F12,Datos!$M:$AP,3,0),"") -> A marzo el seguimiento al mantenimiento del MTO, muestra un avance del 26% ejecutado de un 40% programado, que es equivalente para el seguimiento al Plan de Acción a un 10.4% de ejecución de un 16% programado para el trimestre así: Si 40% es equivalente a 16%; a cuanto equivale el 26%, (26*16)/40= 10.4 | Y12: 0.08 | Z12: =IFERROR(VLOOKUP($F12,Datos!$M:$AP,2,0)/100,"0") -> 0.104 | AA12: =IFERROR(VLOOKUP($F12,Datos!$P:$AP,3,0),"") ->  | AB12: 0.08 | AC12: =IFERROR(VLOOKUP($F12,Datos!$P:$AP,2,0)/100,"0") -> 0 | AD12: =IFERROR(VLOOKUP($F12,Datos!$S:$AP,3,0),"") ->  | AE12: 0.08 | AF12: =IFERROR(VLOOKUP($F12,Datos!$S:$AP,2,0)/100,"0") -> 0 | AG12: =IFERROR(VLOOKUP($F12,Datos!$V:$AP,3,0),"") ->  | AH12: 0.08 | AI12: =IFERROR(VLOOKUP($F12,Datos!$V:$AP,2,0)/100,"0") -> 0 | AJ12: =IFERROR(VLOOKUP($F12,Datos!$Y:$AP,3,0),"") ->  | AK12: 0.08 | AL12: =IFERROR(VLOOKUP($F12,Datos!$Y:$AP,2,0)/100,"0") -> 0 | AM12: =IFERROR(VLOOKUP($F12,Datos!$AB:$AP,3,0),"") ->  | AN12: 0.08 | AO12: =IFERROR(VLOOKUP($F12,Datos!$AB:$AP,2,0)/100,"0") -> 0 | AP12: =IFERROR(VLOOKUP($F12,Datos!$AE:$AP,3,0),"") ->  | AQ12: 0.08 | AR12: =IFERROR(VLOOKUP($F12,Datos!$AE:$AP,2,0)/100,"0") -> 0 | AS12: =IFERROR(VLOOKUP($F12,Datos!$AH:$AP,3,0),"") ->  | AT12: 0.08 | AU12: =IFERROR(VLOOKUP($F12,Datos!$AH:$AP,2,0)/100,"0") -> 0 | AV12: =IFERROR(VLOOKUP($F12,Datos!$AK:$AP,3,0),"") ->  | AW12: 0.08 | AX12: =IFERROR(VLOOKUP($F12,Datos!$AK:$AP,2,0)/100,"0") -> 0 | AY12: =IFERROR(VLOOKUP($F12,Datos!$AN:$AP,3,0),"") ->  | AZ12: 0.2 | BA12: =IFERROR(VLOOKUP($F12,Datos!$AN:$AP,2,0)/100,"0") -> 0 | BB12: 0.104 | BC12: 0.104
B13: OFICINA DE CONTROL INTERNO - (OCI) | C13: Soporte estratégico para la toma de decisiones, agregando valor al desempeño institucional | D13: Incrementar en 5 puntos porcentuales los resultado de medición en FURAG | E13: Resultado vigencia actual - Resultado vigencia anterior | F13: 100% Informes de auditoría interna realizados y divulgados | G13: 0.5 | H13: 2020-01-02 | I13: 2020-12-31 | J13: • Solicitud de necesidades de formación al Equipo de Trabajo 2020. • Jornadas de re - entrenamiento previo realización de Auditorías Internas. • Informes de auditoría comunicados a lideres de proceso, representante legal y CICCI. • Publicar informes de Auditoria en Página Web | K13: 1042-Fortalecimiento institucional en la gestión pública | L13: Desarrollar y fortalecer el modelo el transformación organizacional de la entidad. | M13: Fortalecimiento Institucional: Consolidar una entidad moderna y efectiva constituida por un equipo comprometido con el logro de los objetivos institucionales | N13: PLANES Y PROGRAMAS | O13: Eje 7 - Gobierno Legítimo, fortalecimiento local y eficiencia | P13: 42 - Transparencia, gestión pública y servicio a la ciudadanía. | Q13: Gestionar el 100% del plan de adecuación y sostenibilidad SIG-MIPG | R13: =IFERROR(VLOOKUP($F13,Datos!$G:$AP,3,0),"") ->  | T13: =IFERROR(VLOOKUP($F13,Datos!$G:$AP,2,0)/100,"0") -> 0 | U13: =IFERROR(VLOOKUP($F13,Datos!$J:$AP,3,0),"") -> PAA 2020, para los meses de enero y febrero, se programaron 7 ejercicios de auditorias, de las cuales se ejecutaron 6 auditorias, en las cuales se trataron las siguientes temáticas: 1. Auditoria No2: Informe pormenorizado: Se realizo el 31 de enero y publicado en la pagina web. 2. Auditoria No.4 PAAC y Auditoria No. 6 Evaluación de gestión por dependencias: Estas auditorias se realizaron de manera combinada mediante radicados Nos: 20201100005103, 20201100005053, 20201100005753, 20201100005863, 20201100005903, 20201100006043, 20201100006153, 20201100006273, 20201100006493 3. Auditoria No. 5 Sistema de control Interno Contable: se informo mediante radicado No. 20201100008433 4. Auditoria No. 7: Información litigiosa: La OCI realizo la respectiva verificación y cumplimiento SIPROJ-WEB tomando muestra representativa y se envió la aprobación a la SAL mediante correo electrónico 22-01-2020 a la SAL. 5. Auditoria 13: Comités primarios: se realizo con radicado No. 20201100009773 6. Auditoria 9: Procesos de Contratación. Por solicitud de dirección General se adelantó para el mes de febrero con radicado No. 20201100007303 la cual estaba programada según PAA para el mes de marzo. Por lo anterior las siguientes dos auditorias fueron postergadas para el mes de marzo: Auditoria No.3 Servicio al Ciudadano . Auditoria No.8 Austeridad en el gasto. | V13: 0.166 | W13: 0.17 | X13: =IFERROR(VLOOKUP($F13,Datos!$M:$AP,3,0),"") ->  | Z13: =IFERROR(VLOOKUP($F13,Datos!$M:$AP,2,0)/100,"0") -> 0 | AA13: =IFERROR(VLOOKUP($F13,Datos!$P:$AP,3,0),"") -> Según PAA 2020, para los meses de marzo y abril, se programaron 5 ejercicios de auditorías, las cuales fueron ejecutadas para un 100%, y se trataron las siguientes temáticas: 1. Auditoria No3: Servicio al ciudadano: Se informó el 11-03-2020 mediante radicado No. 20201100012493. 2. Auditoria No.8 Austeridad en el Gasto: Se informó el 27-03-2020 mediante radicado No. 20201100015183. 3. Auditoria No.10 y 5 Procesos relacionados con directrices para prevenir conductas irregulares y Sistema de control Interno Contable: estas dos auditorías se realizaros de manera integrada y se informó mediante radicado No. 20201100019163 el 21-04-2020. 4. Auditoria No. 1: Gestión del talento Humano: Se realizó y se informó el 30-04-2020 mediante radicado No. 20201100020453. | AB13: 0.166 | AC13: =IFERROR(VLOOKUP($F13,Datos!$P:$AP,2,0)/100,"0") -> 0.17 | AD13: =IFERROR(VLOOKUP($F13,Datos!$S:$AP,3,0),"") ->  | AF13: =IFERROR(VLOOKUP($F13,Datos!$S:$AP,2,0)/100,"0") -> 0 | AG13: =IFERROR(VLOOKUP($F13,Datos!$V:$AP,3,0),"") ->  | AH13: 0.166 | AI13: =IFERROR(VLOOKUP($F13,Datos!$V:$AP,2,0)/100,"0") -> 0 | AJ13: =IFERROR(VLOOKUP($F13,Datos!$Y:$AP,3,0),"") ->  | AL13: =IFERROR(VLOOKUP($F13,Datos!$Y:$AP,2,0)/100,"0") -> 0 | AM13: =IFERROR(VLOOKUP($F13,Datos!$AB:$AP,3,0),"") ->  | AN13: 0.166 | AO13: =IFERROR(VLOOKUP($F13,Datos!$AB:$AP,2,0)/100,"0") -> 0 | AP13: =IFERROR(VLOOKUP($F13,Datos!$AE:$AP,3,0),"") ->  | AR13: =IFERROR(VLOOKUP($F13,Datos!$AE:$AP,2,0)/100,"0") -> 0 | AS13: =IFERROR(VLOOKUP($F13,Datos!$AH:$AP,3,0),"") ->  | AT13: 0.166 | AU13: =IFERROR(VLOOKUP($F13,Datos!$AH:$AP,2,0)/100,"0") -> 0 | AV13: =IFERROR(VLOOKUP($F13,Datos!$AK:$AP,3,0),"") ->  | AX13: =IFERROR(VLOOKUP($F13,Datos!$AK:$AP,2,0)/100,"0") -> 0 | AY13: =IFERROR(VLOOKUP($F13,Datos!$AN:$AP,3,0),"") ->  | AZ13: 0.1667 | BA13: =IFERROR(VLOOKUP($F13,Datos!$AN:$AP,2,0)/100,"0") -> 0 | BB13: 0.34 | BC13: 0.17
B14: OFICINA DE CONTROL INTERNO - (OCI) | F14: Documentos relacionados con el procedimiento de Auditoría Interna, analizados y actualizados | G14: 0.15 | H14: 2020-01-02 | I14: 2020-12-31 | J14: • Documentos del Procedimiento de Auditorías internas validados por el equipo auditor designado. • Solicitud de creación y/o modificación de documentos el procedimientos, si es necesario, producto de análisis | K14: 1042-Fortalecimiento institucional en la gestión pública | L14: Desarrollar y fortalecer el modelo el transformación organizacional de la entidad. | M14: Fortalecimiento Institucional: Consolidar una entidad moderna y efectiva constituida por un equipo comprometido con el logro de los objetivos institucionales | N14: PLANES Y PROGRAMAS | O14: Eje 7 - Gobierno Legítimo, fortalecimiento local y eficiencia | P14: 42 - Transparencia, gestión pública y servicio a la ciudadanía. | Q14: Gestionar el 100% del plan de adecuación y sostenibilidad SIG-MIPG | R14: =IFERROR(VLOOKUP($F14,Datos!$G:$AP,3,0),"") ->  | T14: =IFERROR(VLOOKUP($F14,Datos!$G:$AP,2,0)/100,"0") -> 0 | V14: 0 | W14: =IFERROR(VLOOKUP($F14,Datos!$J:$AP,2,0)/100,"0") -> 0 | X14: =IFERROR(VLOOKUP($F14,Datos!$M:$AP,3,0),"") ->  | Z14: =IFERROR(VLOOKUP($F14,Datos!$M:$AP,2,0)/100,"0") -> 0 | AA14: =IFERROR(VLOOKUP($F14,Datos!$P:$AP,3,0),"") -> En el mes de abril, el equipo de trabajo de la Oficina de Control Interno realizó la gestión de revisión y análisis de los 12 formatos vigentes del proceso de Evaluación y Mejora, con el propósito de verificar si estos se encuentran actualizados. Se evidencia matriz de consolidación con la verificación realizada. | AB14: 0.2 | AC14: =IFERROR(VLOOKUP($F14,Datos!$P:$AP,2,0)/100,"0") -> 0.2 | AD14: =IFERROR(VLOOKUP($F14,Datos!$S:$AP,3,0),"") ->  | AF14: =IFERROR(VLOOKUP($F14,Datos!$S:$AP,2,0)/100,"0") -> 0 | AG14: =IFERROR(VLOOKUP($F14,Datos!$V:$AP,3,0),"") ->  | AH14: 0.3 | AI14: =IFERROR(VLOOKUP($F14,Datos!$V:$AP,2,0)/100,"0") -> 0 | AJ14: =IFERROR(VLOOKUP($F14,Datos!$Y:$AP,3,0),"") ->  | AL14: =IFERROR(VLOOKUP($F14,Datos!$Y:$AP,2,0)/100,"0") -> 0 | AM14: =IFERROR(VLOOKUP($F14,Datos!$AB:$AP,3,0),"") ->  | AO14: =IFERROR(VLOOKUP($F14,Datos!$AB:$AP,2,0)/100,"0") -> 0 | AP14: =IFERROR(VLOOKUP($F14,Datos!$AE:$AP,3,0),"") ->  | AR14: =IFERROR(VLOOKUP($F14,Datos!$AE:$AP,2,0)/100,"0") -> 0 | AS14: =IFERROR(VLOOKUP($F14,Datos!$AH:$AP,3,0),"") ->  | AT14: 0.5 | AU14: =IFERROR(VLOOKUP($F14,Datos!$AH:$AP,2,0)/100,"0") -> 0 | AV14: =IFERROR(VLOOKUP($F14,Datos!$AK:$AP,3,0),"") ->  | AX14: =IFERROR(VLOOKUP($F14,Datos!$AK:$AP,2,0)/100,"0") -> 0 | AY14: =IFERROR(VLOOKUP($F14,Datos!$AN:$AP,3,0),"") ->  | BA14: =IFERROR(VLOOKUP($F14,Datos!$AN:$AP,2,0)/100,"0") -> 0 | BB14: 0.2 | BC14: 0.03
B15: OFICINA DE CONTROL INTERNO - (OCI) | F15: "Mapa de Aseguramiento" basado en las tres líneas de defensa, propuesto. | G15: 0.2 | H15: 2020-04-01 | I15: 2020-12-31 | J15: • Documento "Mapa de Aseguramiento" • Mesas de trabajo con procesos de la UAESP. | K15: 1042-Fortalecimiento institucional en la gestión pública | L15: Desarrollar y fortalecer el modelo el transformación organizacional de la entidad. | M15: Fortalecimiento Institucional: Consolidar una entidad moderna y efectiva constituida por un equipo comprometido con el logro de los objetivos institucionales | N15: PLANES Y PROGRAMAS | O15: Eje 7 - Gobierno Legítimo, fortalecimiento local y eficiencia | P15: 42 - Transparencia, gestión pública y servicio a la ciudadanía. | Q15: Gestionar el 100% del plan de adecuación y sostenibilidad SIG-MIPG | R15: =IFERROR(VLOOKUP($F15,Datos!$G:$AP,3,0),"") ->  | T15: =IFERROR(VLOOKUP($F15,Datos!$G:$AP,2,0)/100,"0") -> 0 | V15: 0 | W15: =IFERROR(VLOOKUP($F15,Datos!$J:$AP,2,0)/100,"0") -> 0 | X15: =IFERROR(VLOOKUP($F15,Datos!$M:$AP,3,0),"") ->  | Z15: =IFERROR(VLOOKUP($F15,Datos!$M:$AP,2,0)/100,"0") -> 0 | AA15: =IFERROR(VLOOKUP($F15,Datos!$P:$AP,3,0),"") -> Considerando para el avance de esta actividad, realizarse por medio de apoyo externo (contratista), la actividad se limitó a realizar recopilación de información y lineamientos distritales frente a esta temática. | AB15: 0.1 | AC15: =IFERROR(VLOOKUP($F15,Datos!$P:$AP,2,0)/100,"0") -> 0.1 | AD15: =IFERROR(VLOOKUP($F15,Datos!$S:$AP,3,0),"") ->  | AF15: =IFERROR(VLOOKUP($F15,Datos!$S:$AP,2,0)/100,"0") -> 0 | AG15: =IFERROR(VLOOKUP($F15,Datos!$V:$AP,3,0),"") ->  | AH15: 0.2 | AI15: =IFERROR(VLOOKUP($F15,Datos!$V:$AP,2,0)/100,"0") -> 0 | AJ15: =IFERROR(VLOOKUP($F15,Datos!$Y:$AP,3,0),"") ->  | AL15: =IFERROR(VLOOKUP($F15,Datos!$Y:$AP,2,0)/100,"0") -> 0 | AM15: =IFERROR(VLOOKUP($F15,Datos!$AB:$AP,3,0),"") ->  | AN15: 0.3 | AO15: =IFERROR(VLOOKUP($F15,Datos!$AB:$AP,2,0)/100,"0") -> 0 | AP15: =IFERROR(VLOOKUP($F15,Datos!$AE:$AP,3,0),"") ->  | AR15: =IFERROR(VLOOKUP($F15,Datos!$AE:$AP,2,0)/100,"0") -> 0 | AS15: =IFERROR(VLOOKUP($F15,Datos!$AH:$AP,3,0),"") ->  | AT15: 0.3 | AU15: =IFERROR(VLOOKUP($F15,Datos!$AH:$AP,2,0)/100,"0") -> 0 | AV15: =IFERROR(VLOOKUP($F15,Datos!$AK:$AP,3,0),"") ->  | AX15: =IFERROR(VLOOKUP($F15,Datos!$AK:$AP,2,0)/100,"0") -> 0 | AY15: =IFERROR(VLOOKUP($F15,Datos!$AN:$AP,3,0),"") ->  | AZ15: 0.1 | BA15: =IFERROR(VLOOKUP($F15,Datos!$AN:$AP,2,0)/100,"0") -> 0 | BB15: 0.1 | BC15: 0.02
B16: OFICINA DE CONTROL INTERNO - (OCI) | F16: Plan de mejoramiento institucional operando de forma sistematizada | G16: 0.15 | H16: 2020-02-01 | I16: 2020-12-31 | J16: • Pruebas piloto del funcionamiento de PM de forma sistematizada. • Procedimientos ajustados, conforme a operacionalización sistematizada. | K16: 1042-Fortalecimiento institucional en la gestión pública | L16: Desarrollar y fortalecer el modelo el transformación organizacional de la entidad. | M16: Fortalecimiento Institucional: Consolidar una entidad moderna y efectiva constituida por un equipo comprometido con el logro de los objetivos institucionales | N16: PLANES Y PROGRAMAS | O16: Eje 7 - Gobierno Legítimo, fortalecimiento local y eficiencia | P16: 42 - Transparencia, gestión pública y servicio a la ciudadanía. | Q16: Gestionar el 100% del plan de adecuación y sostenibilidad SIG-MIPG | R16: =IFERROR(VLOOKUP($F16,Datos!$G:$AP,3,0),"") ->  | T16: =IFERROR(VLOOKUP($F16,Datos!$G:$AP,2,0)/100,"0") -> 0 | U16: =IFERROR(VLOOKUP($F16,Datos!$J:$AP,3,0),"") -> Se planifico la Contratación del Ingeniero de sistemas, con el fin de dar continuidad al Proyecto. En CICCI, según Acta No 1 de 2020, se aprobaron los recursos, entre otros, la del ingeniero. Se está a la Espera de Instrucciones respecto al manejo de la Plataforma Talento No Palanca. | V16: 0.166 | W16: =IFERROR(VLOOKUP($F16,Datos!$J:$AP,2,0)/100,"0") -> 0.167 | X16: =IFERROR(VLOOKUP($F16,Datos!$M:$AP,3,0),"") ->  | Z16: =IFERROR(VLOOKUP($F16,Datos!$M:$AP,2,0)/100,"0") -> 0 | AA16: =IFERROR(VLOOKUP($F16,Datos!$P:$AP,3,0),"") -> Se tienen candidatos para la contratación, pero debido a las restricciones para realizar entrevistas y pruebas, la actividad esta pausada. | AB16: 0.166 | AC16: =IFERROR(VLOOKUP($F16,Datos!$P:$AP,2,0)/100,"0") -> 0 | AD16: =IFERROR(VLOOKUP($F16,Datos!$S:$AP,3,0),"") ->  | AF16: =IFERROR(VLOOKUP($F16,Datos!$S:$AP,2,0)/100,"0") -> 0 | AG16: =IFERROR(VLOOKUP($F16,Datos!$V:$AP,3,0),"") ->  | AH16: 0.166 | AI16: =IFERROR(VLOOKUP($F16,Datos!$V:$AP,2,0)/100,"0") -> 0 | AJ16: =IFERROR(VLOOKUP($F16,Datos!$Y:$AP,3,0),"") ->  | AL16: =IFERROR(VLOOKUP($F16,Datos!$Y:$AP,2,0)/100,"0") -> 0 | AM16: =IFERROR(VLOOKUP($F16,Datos!$AB:$AP,3,0),"") ->  | AN16: 0.166 | AO16: =IFERROR(VLOOKUP($F16,Datos!$AB:$AP,2,0)/100,"0") -> 0 | AP16: =IFERROR(VLOOKUP($F16,Datos!$AE:$AP,3,0),"") ->  | AR16: =IFERROR(VLOOKUP($F16,Datos!$AE:$AP,2,0)/100,"0") -> 0 | AS16: =IFERROR(VLOOKUP($F16,Datos!$AH:$AP,3,0),"") ->  | AT16: 0.166 | AU16: =IFERROR(VLOOKUP($F16,Datos!$AH:$AP,2,0)/100,"0") -> 0 | AV16: =IFERROR(VLOOKUP($F16,Datos!$AK:$AP,3,0),"") ->  | AX16: =IFERROR(VLOOKUP($F16,Datos!$AK:$AP,2,0)/100,"0") -> 0 | AY16: =IFERROR(VLOOKUP($F16,Datos!$AN:$AP,3,0),"") ->  | AZ16: 0.1667 | BA16: =IFERROR(VLOOKUP($F16,Datos!$AN:$AP,2,0)/100,"0") -> 0 | BB16: 0.167 | BC16: 0.02505
B17: OFICINA DE CONTROL INTERNO - (OCI) | C17: Asesoría y formulación de recomendaciones con alcance preventivo y de fomento a la cultura del control | D17: 80% de actividades de prevención desarrolladas | E17: Actividades realizadas / actividades programadas * 100 | F17: 80% de No Conformidades tratadas por los procesos de la Entidad. | G17: 0.25 | H17: 2019-01-02 | I17: 2020-12-31 | J17: • Email de solicitud de presentación dentro de los 10 días (si aplica) • Plan de Mejoramiento Interno Actualizado • Plan de Mejoramiento publicado en página WEB | K17: 1042-Fortalecimiento institucional en la gestión pública | L17: Desarrollar y fortalecer el modelo el transformación organizacional de la entidad. | M17: Fortalecimiento Institucional: Consolidar una entidad moderna y efectiva constituida por un equipo comprometido con el logro de los objetivos institucionales | N17: PLANES Y PROGRAMAS | O17: Eje 7 - Gobierno Legítimo, fortalecimiento local y eficiencia | P17: 42 - Transparencia, gestión pública y servicio a la ciudadanía. | Q17: Gestionar el 100% del plan de adecuación y sostenibilidad SIG-MIPG | R17: =IFERROR(VLOOKUP($F17,Datos!$G:$AP,3,0),"") ->  | T17: =IFERROR(VLOOKUP($F17,Datos!$G:$AP,2,0)/100,"0") -> 0 | U17: =IFERROR(VLOOKUP($F17,Datos!$J:$AP,3,0),"") -> De acuerdo con la Auditoría Gestión por dependencias realizada a comienzos de 2019 y en la que se evaluó la gestión de cada una de la dependencia de la unidad con corte a 31/12/2020; en esta se evaluó la gestión realizada a los Planes de Mejoramiento de la Unidad (internos y externos) y, una vez depurados; es decir, no incluir las acciones cerradas a 31/12/2020, se obtuvo el siguiente resultado: en el Plan de mejoramiento Interno, se encuentran identificados 67 hallazgos, de los cuales, 30 corresponden a No Conformidades – NC. Para los Planes de Mejoramiento Externo, 85 NC contiene el de la Contraloría de Bogotá y 14 NC el de la Contraloría General; en total son 129 No Conformidades, de las cuales 12 del Plan de Mejoramiento Interno no presentan tratamiento por parte de los auditados. Por lo anterior, se concluye que el 91% de las No Conformidades cuentan con el tratamiento respectivo y tan solo el 9%, se encuentran sin tratamiento (12 de 129). | V17: 0.166 | W17: =IFERROR(VLOOKUP($F17,Datos!$J:$AP,2,0)/100,"0") -> 0.155 | X17: =IFERROR(VLOOKUP($F17,Datos!$M:$AP,3,0),"") ->  | Z17: =IFERROR(VLOOKUP($F17,Datos!$M:$AP,2,0)/100,"0") -> 0 | AA17: =IFERROR(VLOOKUP($F17,Datos!$P:$AP,3,0),"") -> Con corte a 30/04/2020; en el Plan de mejoramiento Interno se encuentran identificados 68 hallazgos, (31 corresponden a No Conformidades – NC y 37 a observaciones). Para los Planes de Mejoramiento Externo, 85 NC contiene el de la Contraloría de Bogotá y 14 NC el de la Contraloría General. En total son 167 Hallazgos; de los cuales 13 del Plan de Mejoramiento Interno, no presentan tratamiento por parte de los auditados. Por lo anterior, se concluye que el 92,21% (154) de los Hallazgos cuentan con el tratamiento respectivo y tan solo el 7,78%, se encuentran sin tratamiento (13 de 167). En este sentido, se infiere que se viene dando cumplimiento a lo establecido en el Hito Clave del PAI de la OCI. | AB17: 0.166 | AC17: =IFERROR(VLOOKUP($F17,Datos!$P:$AP,2,0)/100,"0") -> 0.15 | AD17: =IFERROR(VLOOKUP($F17,Datos!$S:$AP,3,0),"") ->  | AF17: =IFERROR(VLOOKUP($F17,Datos!$S:$AP,2,0)/100,"0") -> 0 | AG17: =IFERROR(VLOOKUP($F17,Datos!$V:$AP,3,0),"") ->  | AH17: 0.166 | AI17: =IFERROR(VLOOKUP($F17,Datos!$V:$AP,2,0)/100,"0") -> 0 | AJ17: =IFERROR(VLOOKUP($F17,Datos!$Y:$AP,3,0),"") ->  | AL17: =IFERROR(VLOOKUP($F17,Datos!$Y:$AP,2,0)/100,"0") -> 0 | AM17: =IFERROR(VLOOKUP($F17,Datos!$AB:$AP,3,0),"") ->  | AN17: 0.166 | AO17: =IFERROR(VLOOKUP($F17,Datos!$AB:$AP,2,0)/100,"0") -> 0 | AP17: =IFERROR(VLOOKUP($F17,Datos!$AE:$AP,3,0),"") ->  | AR17: =IFERROR(VLOOKUP($F17,Datos!$AE:$AP,2,0)/100,"0") -> 0 | AS17: =IFERROR(VLOOKUP($F17,Datos!$AH:$AP,3,0),"") ->  | AT17: 0.166 | AU17: =IFERROR(VLOOKUP($F17,Datos!$AH:$AP,2,0)/100,"0") -> 0 | AV17: =IFERROR(VLOOKUP($F17,Datos!$AK:$AP,3,0),"") ->  | AX17: =IFERROR(VLOOKUP($F17,Datos!$AK:$AP,2,0)/100,"0") -> 0 | AY17: =IFERROR(VLOOKUP($F17,Datos!$AN:$AP,3,0),"") ->  | AZ17: 0.1667 | BA17: =IFERROR(VLOOKUP($F17,Datos!$AN:$AP,2,0)/100,"0") -> 0 | BB17: 0.305 | BC17: 0.07625
B18: OFICINA DE CONTROL INTERNO - (OCI) | F18: “80% de las Acciones Correctivas evaluadas como cerradas, respecto a programación de cierre, producto de auditorias internas y externas”. | G18: 0.25 | H18: 2019-01-02 | I18: 2020-12-31 | J18: • Plan de Mejoramiento Interno Actualizado • Plan de mejoramiento publicado en página WEB | K18: 1042-Fortalecimiento institucional en la gestión pública | L18: Desarrollar y fortalecer el modelo el transformación organizacional de la entidad. | M18: Fortalecimiento Institucional: Consolidar una entidad moderna y efectiva constituida por un equipo comprometido con el logro de los objetivos institucionales | N18: PLANES Y PROGRAMAS | O18: Eje 7 - Gobierno Legítimo, fortalecimiento local y eficiencia | P18: 42 - Transparencia, gestión pública y servicio a la ciudadanía. | Q18: Gestionar el 100% del plan de adecuación y sostenibilidad SIG-MIPG | R18: =IFERROR(VLOOKUP($F18,Datos!$G:$AP,3,0),"") ->  | T18: =IFERROR(VLOOKUP($F18,Datos!$G:$AP,2,0)/100,"0") -> 0 | U18: =IFERROR(VLOOKUP($F18,Datos!$J:$AP,3,0),"") ->  | V18: 0.166 | W18: =IFERROR(VLOOKUP($F18,Datos!$J:$AP,2,0)/100,"0") -> 0 | X18: =IFERROR(VLOOKUP($F18,Datos!$M:$AP,3,0),"") ->  | Z18: =IFERROR(VLOOKUP($F18,Datos!$M:$AP,2,0)/100,"0") -> 0 | AA18: =IFERROR(VLOOKUP($F18,Datos!$P:$AP,3,0),"") -> Se observa un total de 191 acciones para los planes de mejoramiento de la Unidad, discriminadas de la siguiente manera: Plan de mejoramiento Interno: 86 acciones Plan de Mejoramiento Contraloría de Bogotá: 86 acciones Plan de Mejoramiento Contraloría General: 19 acciones De las 191 acciones; con corte al 30 de abril de 2020, se observa que se deben cerrar 132 acciones. Para el Plan de mejoramiento Interno se debieron cerrar 31 acciones pero a la fecha 20 continúan en proceso y 11 no han comunicado tratamiento, debido a la falta de gestión de los procesos responsables. Para el Plan de Mejoramiento Contraloría de Bogotá se debieron cerrar 82 acciones, se observan 65 acciones para recomendación de cierre ante el ente de control y 17 incumplidas con corte a 30/04/2020. Para el Plan de Mejoramiento Contraloría General se debieron cerrar 19 acciones y se observan 19 acciones para recomendación de cierre ante el ente de control. En total, con corte a 30 de abril de 2020 se observa gestión solicitando la recomendación de cierre de 84 acciones equivalente al 63.63% de 132 acciones. | AB18: 0.166 | AC18: =IFERROR(VLOOKUP($F18,Datos!$P:$AP,2,0)/100,"0") -> 0.11 | AD18: =IFERROR(VLOOKUP($F18,Datos!$S:$AP,3,0),"") ->  | AF18: =IFERROR(VLOOKUP($F18,Datos!$S:$AP,2,0)/100,"0") -> 0 | AG18: =IFERROR(VLOOKUP($F18,Datos!$V:$AP,3,0),"") ->  | AH18: 0.166 | AI18: =IFERROR(VLOOKUP($F18,Datos!$V:$AP,2,0)/100,"0") -> 0 | AJ18: =IFERROR(VLOOKUP($F18,Datos!$Y:$AP,3,0),"") ->  | AL18: =IFERROR(VLOOKUP($F18,Datos!$Y:$AP,2,0)/100,"0") -> 0 | AM18: =IFERROR(VLOOKUP($F18,Datos!$AB:$AP,3,0),"") ->  | AN18: 0.166 | AO18: =IFERROR(VLOOKUP($F18,Datos!$AB:$AP,2,0)/100,"0") -> 0 | AP18: =IFERROR(VLOOKUP($F18,Datos!$AE:$AP,3,0),"") ->  | AR18: =IFERROR(VLOOKUP($F18,Datos!$AE:$AP,2,0)/100,"0") -> 0 | AS18: =IFERROR(VLOOKUP($F18,Datos!$AH:$AP,3,0),"") ->  | AT18: 0.166 | AU18: =IFERROR(VLOOKUP($F18,Datos!$AH:$AP,2,0)/100,"0") -> 0 | AV18: =IFERROR(VLOOKUP($F18,Datos!$AK:$AP,3,0),"") ->  | AX18: =IFERROR(VLOOKUP($F18,Datos!$AK:$AP,2,0)/100,"0") -> 0 | AY18: =IFERROR(VLOOKUP($F18,Datos!$AN:$AP,3,0),"") ->  | AZ18: 0.1667 | BA18: =IFERROR(VLOOKUP($F18,Datos!$AN:$AP,2,0)/100,"0") -> 0 | BB18: 0.11 | BC18: 0.0275
B19: OFICINA DE CONTROL INTERNO - (OCI) | F19: 80% Acompañamientos efectuados, según solicitud y demanda. | G19: 0.15 | H19: 2019-01-02 | I19: 2020-12-31 | J19: • Registros en Calendario OCI • Actas de visita. • Registros de alertas, acompañamientos, asesorías o recomendaciones | K19: 1042-Fortalecimiento institucional en la gestión pública | L19: Desarrollar y fortalecer el modelo el transformación organizacional de la entidad. | M19: Fortalecimiento Institucional: Consolidar una entidad moderna y efectiva constituida por un equipo comprometido con el logro de los objetivos institucionales | N19: PLANES Y PROGRAMAS | O19: Eje 7 - Gobierno Legítimo, fortalecimiento local y eficiencia | P19: 42 - Transparencia, gestión pública y servicio a la ciudadanía. | Q19: Gestionar el 100% del plan de adecuación y sostenibilidad SIG-MIPG | R19: =IFERROR(VLOOKUP($F19,Datos!$G:$AP,3,0),"") ->  | T19: =IFERROR(VLOOKUP($F19,Datos!$G:$AP,2,0)/100,"0") -> 0 | U19: =IFERROR(VLOOKUP($F19,Datos!$J:$AP,3,0),"") -> En los meses de enero y febrero de la presente anualidad la OCI recibió y asistió a 14 solicitudes de acompañamiento así: Comités de contratación en las fechas 15/01/20020, 23/01/2020 y 30/01/2020, CICCI el 24/01/2020, Comité Distrital de Auditorías el 24/01/2020 Comité Piga el 28/01/2020 Comité de Planeación Institucional el 30/01/2020 Una (1) Invitación Socialización temas MPG – Iván Sierra - 12/02/2020 Una (1) Participación Video Integridad – Dr. Andrés Pabón – 12/02/2020 Una (1) Invitación Jornada sensibilización seguridad informática – (Todos) 18/02/2020 Una (1) Participación Medición de la Gestión y Desempeño Institucional a través del FURAG, DAFP – Iván Sierra- 19/02/2020. Un (1) Acompañamiento intervención de inmueble del predio los Manzanos – Abel Osorio – 27/02/2020 Una (1) Invitación socialización circular 014/2020 Bogotá te Escucha – José Pinzón 28/02/2020 Un (1). Comité de Conciliación – Harold Puentes - 28/02/2020 Acompañamientos 7/7 | V19: 0.166 | W19: =IFERROR(VLOOKUP($F19,Datos!$J:$AP,2,0)/100,"0") -> 0.166 | X19: =IFERROR(VLOOKUP($F19,Datos!$M:$AP,3,0),"") ->  | Z19: =IFERROR(VLOOKUP($F19,Datos!$M:$AP,2,0)/100,"0") -> 0 | AA19: =IFERROR(VLOOKUP($F19,Datos!$P:$AP,3,0),"") -> "Durante el bimestre marzo abril se solicitaron 29 acompañamientos Asi: 1 Monitoreo Plan Anticorrupción y de Atención al Ciudadano -PAAC 2020 3/03/2020, Todos 2 Capacitación lineamientos reporte FURAG, 4/03/2020 Iván 3 Comité de Contratación, 4/03/2020, Dr. Andrés. 4 Comité de Sostenibilidad 5/03/2020 5 Reunión PGIR, 9/03/2020 Iván 6 Comte de Contratación – Aseo, 9/03/2020 7 Esquema de Contratación CPS, 9/03/2020 8 Reunión con el equipo de la Contraloría y Dirección, 10/03/2020Dr. Andrés 9 Reunión PGIR, 9/03/2020, Iván 10 Reunión de Personal extraordinaria, 11/03/2020, dr. Andrés 11 Taller ANDESCO. 12/03/2020 12 Curso de actualización normativa y regulatoria del servicio Público de aseo. 12/03/2020 Dr. Andrés y Harold 13 Comité de Conciliación 13/03/2020 14 Comte de Contratación – Aseo y cafetería 17/03/2020 15 Documentación de controles. 19/03/2020 16 Reunión recomendaciones OAP al proceso E y M. 26/03/2020. Todos 17 Comité de Contratación, 30/03/2020, Dr. Andrés 18 Comité de conciliación virtual 31/03/2020 19 Sesión capacitación usuarios hellpeople 1/04/2020 20 Comité de contratación. 17/04/2020 21 Comité de desempeño y gestión institucional, presentación MIPG 17/04/2020 Dr. Andrés. 22 Comité de Conciliación y Defensa Judicial. 17/04/2020 Dr. Andrés. 23 Capacitación Teams – UAESP 17/04/2020 24 Reunión virtual tema PAI. 21/04/202 Edgar Ortiz 25 Presentación de la Plataforma colaborativa “Enfoques poblacional diferencial y de género en proyectos de Inversión. 21/04/2020 Andrés Pabón 26 Comité y gestión institucional, Teams para directivos. 22/04/2020 Dr. Andrés. 27 Comité Distrital de Auditoria. 27/04/2020, Dr. Andrés 28 Comité de conciliación y defensa judicial. 27/05/2020 Dr. Andrés. 29 Comité de Contratación. 29/04/202 30 Comité de Seguimiento y Control Financiero 29/04/2020 Dr. Andrés 31 Comité de Seguimiento y Control Financiero 29/04/2020 Dr. Andrés 32 Capacitación usuarios hellpeople 30/04/2020 Todos Acompañamientos solicitados Vs acompañamientos realizados 29/29" | AB19: 0.166 | AC19: =IFERROR(VLOOKUP($F19,Datos!$P:$AP,2,0)/100,"0") -> 0.17 | AD19: =IFERROR(VLOOKUP($F19,Datos!$S:$AP,3,0),"") ->  | AF19: =IFERROR(VLOOKUP($F19,Datos!$S:$AP,2,0)/100,"0") -> 0 | AG19: =IFERROR(VLOOKUP($F19,Datos!$V:$AP,3,0),"") ->  | AH19: 0.166 | AI19: =IFERROR(VLOOKUP($F19,Datos!$V:$AP,2,0)/100,"0") -> 0 | AJ19: =IFERROR(VLOOKUP($F19,Datos!$Y:$AP,3,0),"") ->  | AL19: =IFERROR(VLOOKUP($F19,Datos!$Y:$AP,2,0)/100,"0") -> 0 | AM19: =IFERROR(VLOOKUP($F19,Datos!$AB:$AP,3,0),"") ->  | AN19: 0.166 | AO19: =IFERROR(VLOOKUP($F19,Datos!$AB:$AP,2,0)/100,"0") -> 0 | AP19: =IFERROR(VLOOKUP($F19,Datos!$AE:$AP,3,0),"") ->  | AR19: =IFERROR(VLOOKUP($F19,Datos!$AE:$AP,2,0)/100,"0") -> 0 | AS19: =IFERROR(VLOOKUP($F19,Datos!$AH:$AP,3,0),"") ->  | AT19: 0.166 | AU19: =IFERROR(VLOOKUP($F19,Datos!$AH:$AP,2,0)/100,"0") -> 0 | AV19: =IFERROR(VLOOKUP($F19,Datos!$AK:$AP,3,0),"") ->  | AX19: =IFERROR(VLOOKUP($F19,Datos!$AK:$AP,2,0)/100,"0") -> 0 | AY19: =IFERROR(VLOOKUP($F19,Datos!$AN:$AP,3,0),"") ->  | AZ19: 0.1667 | BA19: =IFERROR(VLOOKUP($F19,Datos!$AN:$AP,2,0)/100,"0") -> 0 | BB19: 0.336 | BC19: 0.0504
B20: OFICINA DE CONTROL INTERNO - (OCI) | F20: 100% Actividades de prevención y fomento de la cultura del control realizados. | G20: 0.15 | H20: 2019-01-02 | I20: 2020-12-31 | J20: • Actividades realizadas frente elementos de control referentes a la "Planificación" y propósito de "auditorias internas" | K20: 1042-Fortalecimiento institucional en la gestión pública | L20: Desarrollar y fortalecer el modelo el transformación organizacional de la entidad. | M20: Fortalecimiento Institucional: Consolidar una entidad moderna y efectiva constituida por un equipo comprometido con el logro de los objetivos institucionales | N20: PLANES Y PROGRAMAS | O20: Eje 7 - Gobierno Legítimo, fortalecimiento local y eficiencia | P20: 42 - Transparencia, gestión pública y servicio a la ciudadanía. | Q20: Gestionar el 100% del plan de adecuación y sostenibilidad SIG-MIPG | R20: =IFERROR(VLOOKUP($F20,Datos!$G:$AP,3,0),"") ->  | T20: =IFERROR(VLOOKUP($F20,Datos!$G:$AP,2,0)/100,"0") -> 0 | U20: =IFERROR(VLOOKUP($F20,Datos!$J:$AP,3,0),"") -> En el bimestre enero-febrero de 2020, se desarrollaron tres actividades, las cuales se describen a continuación: 1. Se publicó el 2 de enero del 2020, nuevamente el video sobre la definición de Acciones Correctivas y Preventivas en el marco de la prevención y fomento de la CULTURA DE CONTROL en las pantallas de los Televisores de la UAESP. 2. El 12 febrero de 2020 se grabó video por parte del Jefe de la Oficina de Control Interno sobre la gestión en las auditorias 2020. 3. El 19 de febrero se grabaron las capsulas de los Gestores de Integridad con colaboración del jefe de Control Interno. | V20: 0.166 | W20: =IFERROR(VLOOKUP($F20,Datos!$J:$AP,2,0)/100,"0") -> 0.166 | X20: =IFERROR(VLOOKUP($F20,Datos!$M:$AP,3,0),"") ->  | Z20: =IFERROR(VLOOKUP($F20,Datos!$M:$AP,2,0)/100,"0") -> 0 | AA20: =IFERROR(VLOOKUP($F20,Datos!$P:$AP,3,0),"") -> En el bimestre marzo-abril de 2020, se desarrolló una actividad, descrita a continuación: 1. El día 11 de marzo se publica en las pantallas de la entidad un video sobre gestión en las auditorias, como parte de la cultura de control que se promueve desde la Oficina de Control Interno. | AB20: 0.166 | AC20: =IFERROR(VLOOKUP($F20,Datos!$P:$AP,2,0)/100,"0") -> 0.17 | AF20: =IFERROR(VLOOKUP($F20,Datos!$S:$AP,2,0)/100,"0") -> 0 | AG20: =IFERROR(VLOOKUP($F20,Datos!$V:$AP,3,0),"") ->  | AH20: 0.166 | AI20: =IFERROR(VLOOKUP($F20,Datos!$V:$AP,2,0)/100,"0") -> 0 | AJ20: =IFERROR(VLOOKUP($F20,Datos!$Y:$AP,3,0),"") ->  | AL20: =IFERROR(VLOOKUP($F20,Datos!$Y:$AP,2,0)/100,"0") -> 0 | AM20: =IFERROR(VLOOKUP($F20,Datos!$AB:$AP,3,0),"") ->  | AN20: 0.166 | AO20: =IFERROR(VLOOKUP($F20,Datos!$AB:$AP,2,0)/100,"0") -> 0 | AP20: =IFERROR(VLOOKUP($F20,Datos!$AE:$AP,3,0),"") ->  | AR20: =IFERROR(VLOOKUP($F20,Datos!$AE:$AP,2,0)/100,"0") -> 0 | AS20: =IFERROR(VLOOKUP($F20,Datos!$AH:$AP,3,0),"") ->  | AT20: 0.166 | AU20: =IFERROR(VLOOKUP($F20,Datos!$AH:$AP,2,0)/100,"0") -> 0 | AV20: =IFERROR(VLOOKUP($F20,Datos!$AK:$AP,3,0),"") ->  | AX20: =IFERROR(VLOOKUP($F20,Datos!$AK:$AP,2,0)/100,"0") -> 0 | AY20: =IFERROR(VLOOKUP($F20,Datos!$AN:$AP,3,0),"") ->  | AZ20: 0.1667 | BA20: =IFERROR(VLOOKUP($F20,Datos!$AN:$AP,2,0)/100,"0") -> 0 | BB20: 0.336 | BC20: 0.0504
B21: OFICINA DE CONTROL INTERNO - (OCI) | F21: 100% de requerimientos de entes externos de control gestionados. | G21: 0.2 | H21: 2019-01-02 | I21: 2020-12-31 | J21: • Matriz de respuesta a entes de control actualizada y estados comunicados a lideres de proceso. • Registros de comunicación a lideres de proceso frente a requerimientos, rendición de la Cuenta, entre otros. | K21: 1042-Fortalecimiento institucional en la gestión pública | L21: Desarrollar y fortalecer el modelo el transformación organizacional de la entidad. | M21: Fortalecimiento Institucional: Consolidar una entidad moderna y efectiva constituida por un equipo comprometido con el logro de los objetivos institucionales | N21: PLANES Y PROGRAMAS | O21: Eje 7 - Gobierno Legítimo, fortalecimiento local y eficiencia | P21: 42 - Transparencia, gestión pública y servicio a la ciudadanía. | Q21: Gestionar el 100% del plan de adecuación y sostenibilidad SIG-MIPG | R21: =IFERROR(VLOOKUP($F21,Datos!$G:$AP,3,0),"") ->  | T21: =IFERROR(VLOOKUP($F21,Datos!$G:$AP,2,0)/100,"0") -> 0 | U21: =IFERROR(VLOOKUP($F21,Datos!$J:$AP,3,0),"") -> Se realizó el registro del 100% de los requerimientos efectuados por loe entes de control e informados a la OCI, se realizó el respectivo seguimiento. Se elaboró informes de enero y febrero y se comunicó a la Dirección, Subdirectores y Jefes de Oficina mediante radicados 2020110004743 del 4/02/2020 y 20201100010263 del 3/03/2020. | V21: 0.166 | W21: =IFERROR(VLOOKUP($F21,Datos!$J:$AP,2,0)/100,"0") -> 0.17 | X21: =IFERROR(VLOOKUP($F21,Datos!$M:$AP,3,0),"") ->  | Z21: =IFERROR(VLOOKUP($F21,Datos!$M:$AP,2,0)/100,"0") -> 0 | AA21: =IFERROR(VLOOKUP($F21,Datos!$P:$AP,3,0),"") -> Se realizó el registro del 100% de los requerimientos efectuados por los entes de control e informados a la OCI, se realizó el respectivo seguimiento. Se elaboró informes de Marzo y abril y se comunicó a la Dirección, Subdirectores y Jefes de Oficina mediante radicados Nos. 20201100016543del 3/04/2020 y 20201100020953 del 6/05/2020. | AB21: 0.166 | AC21: =IFERROR(VLOOKUP($F21,Datos!$P:$AP,2,0)/100,"0") -> 0.17 | AD21: =IFERROR(VLOOKUP($F21,Datos!$S:$AP,3,0),"") ->  | AF21: =IFERROR(VLOOKUP($F21,Datos!$S:$AP,2,0)/100,"0") -> 0 | AG21: =IFERROR(VLOOKUP($F21,Datos!$V:$AP,3,0),"") ->  | AH21: 0.166 | AI21: =IFERROR(VLOOKUP($F21,Datos!$V:$AP,2,0)/100,"0") -> 0 | AJ21: =IFERROR(VLOOKUP($F21,Datos!$Y:$AP,3,0),"") ->  | AL21: =IFERROR(VLOOKUP($F21,Datos!$Y:$AP,2,0)/100,"0") -> 0 | AM21: =IFERROR(VLOOKUP($F21,Datos!$AB:$AP,3,0),"") ->  | AN21: 0.166 | AO21: =IFERROR(VLOOKUP($F21,Datos!$AB:$AP,2,0)/100,"0") -> 0 | AP21: =IFERROR(VLOOKUP($F21,Datos!$AE:$AP,3,0),"") ->  | AR21: =IFERROR(VLOOKUP($F21,Datos!$AE:$AP,2,0)/100,"0") -> 0 | AS21: =IFERROR(VLOOKUP($F21,Datos!$AH:$AP,3,0),"") ->  | AT21: 0.166 | AU21: =IFERROR(VLOOKUP($F21,Datos!$AH:$AP,2,0)/100,"0") -> 0 | AV21: =IFERROR(VLOOKUP($F21,Datos!$AK:$AP,3,0),"") ->  | AX21: =IFERROR(VLOOKUP($F21,Datos!$AK:$AP,2,0)/100,"0") -> 0 | AY21: =IFERROR(VLOOKUP($F21,Datos!$AN:$AP,3,0),"") ->  | AZ21: 0.1667 | BA21: =IFERROR(VLOOKUP($F21,Datos!$AN:$AP,2,0)/100,"0") -> 0 | BB21: 0.34 | BC21: 0.068
B22: OFICINA ASESORA DE TECNOLOGÍAS DE LA INFORMACIÓN - (TIC) | C22: Fortalecer la gestión de las plataformas tecnológicas de la entidad (hardware y software) | D22: Atender las necesidades tecnológicas de la entidad | E22: Número de necesidades tecnológicas atendidas | F22: Cumplimiento de la Resolución 2710 de 2017 (Viene de 2019) | G22: 0.1 | H22: 2020-02-01 | I22: 2020-12-31 | J22: Informes de ejecución de la Fase II: Implementación del Protocolo IPV6 que evidencia el avance de cumplimiento de la resolución ( Estándares) | K22: 1042-Fortalecimiento institucional en la gestión pública | L22: Garantizar el 100% de la arquitectura tecnológica de la entidad | M22: Fortalecimiento Institucional: Consolidar una entidad moderna y efectiva constituida por un equipo comprometido con el logro de los objetivos institucionales | N22: Plan Estratégico de Tecnologías de la Información y las Comunicaciones -PETI | O22: Eje 7 - Gobierno Legítimo, fortalecimiento local y eficiencia | P22: 42 - Transparencia, gestión pública y servicio a la ciudadanía. | Q22: Gestionar el 100% del plan de adecuación y sostenibilidad SIG-MIPG | R22: =IFERROR(VLOOKUP($F22,Datos!$G:$AP,3,0),"") ->  | T22: =IFERROR(VLOOKUP($F22,Datos!$G:$AP,2,0)/100,"0") -> 0 | U22: =IFERROR(VLOOKUP($F22,Datos!$J:$AP,3,0),"") -> En el mes de febrero se realizaron las capacitaciones como lo establece la Resolución 2710 de 2017. Se realizo el analisis de cumplimiento del protocolo IPV6 del hardware y software, donde se define cuales cumplen y cuales no y se hacen las recomendaciones a aquello que no cumple con el Protocolo. | V22: 0.3 | W22: =IFERROR(VLOOKUP($F22,Datos!$J:$AP,2,0)/100,"0") -> 0.3 | X22: =IFERROR(VLOOKUP($F22,Datos!$M:$AP,3,0),"") ->  | Z22: =IFERROR(VLOOKUP($F22,Datos!$M:$AP,2,0)/100,"0") -> 0 | AA22: =IFERROR(VLOOKUP($F22,Datos!$P:$AP,3,0),"") ->  | AC22: =IFERROR(VLOOKUP($F22,Datos!$P:$AP,2,0)/100,"0") -> 0 | AD22: =IFERROR(VLOOKUP($F22,Datos!$S:$AP,3,0),"") ->  | AE22: 0.3 | AF22: =IFERROR(VLOOKUP($F22,Datos!$S:$AP,2,0)/100,"0") -> 0 | AG22: =IFERROR(VLOOKUP($F22,Datos!$V:$AP,3,0),"") ->  | AH22: 0 | AI22: =IFERROR(VLOOKUP($F22,Datos!$V:$AP,2,0)/100,"0") -> 0 | AJ22: =IFERROR(VLOOKUP($F22,Datos!$Y:$AP,3,0),"") ->  | AL22: =IFERROR(VLOOKUP($F22,Datos!$Y:$AP,2,0)/100,"0") -> 0 | AM22: =IFERROR(VLOOKUP($F22,Datos!$AB:$AP,3,0),"") ->  | AO22: =IFERROR(VLOOKUP($F22,Datos!$AB:$AP,2,0)/100,"0") -> 0 | AP22: =IFERROR(VLOOKUP($F22,Datos!$AE:$AP,3,0),"") ->  | AQ22: 0.3 | AR22: =IFERROR(VLOOKUP($F22,Datos!$AE:$AP,2,0)/100,"0") -> 0 | AS22: =IFERROR(VLOOKUP($F22,Datos!$AH:$AP,3,0),"") ->  | AU22: =IFERROR(VLOOKUP($F22,Datos!$AH:$AP,2,0)/100,"0") -> 0 | AV22: =IFERROR(VLOOKUP($F22,Datos!$AK:$AP,3,0),"") ->  | AX22: =IFERROR(VLOOKUP($F22,Datos!$AK:$AP,2,0)/100,"0") -> 0 | AY22: =IFERROR(VLOOKUP($F22,Datos!$AN:$AP,3,0),"") ->  | AZ22: 0.1 | BA22: =IFERROR(VLOOKUP($F22,Datos!$AN:$AP,2,0)/100,"0") -> 0 | BB22: 0.3 | BC22: 0.03
B23: OFICINA ASESORA DE TECNOLOGÍAS DE LA INFORMACIÓN - (TIC) | F23: Garantizar el servicio de conectividad de la Entidad | G23: 0.2 | H23: 2020-01-01 | I23: 2020-12-31 | J23: Contrato suscrito | K23: 1042-Fortalecimiento institucional en la gestión pública | L23: Garantizar el 100% de la arquitectura tecnológica de la entidad | M23: Fortalecimiento Institucional: Consolidar una entidad moderna y efectiva constituida por un equipo comprometido con el logro de los objetivos institucionales | N23: Plan Estratégico de Tecnologías de la Información y las Comunicaciones -PETI | O23: Eje 7 - Gobierno Legítimo, fortalecimiento local y eficiencia | P23: 42 - Transparencia, gestión pública y servicio a la ciudadanía. | Q23: Gestionar el 100% del plan de adecuación y sostenibilidad SIG-MIPG | R23: =IFERROR(VLOOKUP($F23,Datos!$G:$AP,3,0),"") ->  | T23: =IFERROR(VLOOKUP($F23,Datos!$G:$AP,2,0)/100,"0") -> 0 | U23: =IFERROR(VLOOKUP($F23,Datos!$J:$AP,3,0),"") -> Actualmente la UAESP cuenta con el servicio de conectividad a través de varios canales de datos y canales dedicados, que comunican la Unidad. Es por esto que estos canales son indispensables para la entidad y cualquier falla o ausencia en su funcionamiento repercutirá en un grave impacto sobre las actividades diarias de la UAESP, por lo que se debe garantizar la continua prestación del servicio de los mismos. Actualmente los canales de comunicación se encuentran en funcionamiento y soportados por la Empresa de Telecomunicaciones de Bogotá ETB. En el mes de diciembre se realizó una adición y prorroga al contrato UAESP-CD-84-2019 Anexo 10 por tres (3) meses para garantizar este servicio | V23: 0.05 | W23: =IFERROR(VLOOKUP($F23,Datos!$J:$AP,2,0)/100,"0") -> 0.05 | X23: =IFERROR(VLOOKUP($F23,Datos!$M:$AP,3,0),"") -> Actualmente la UAESP cuenta con el servicio de conectividad a través de varios canales de datos y canales dedicados, que comunican la Unidad. Es por esto que estos canales son indispensables para la entidad y cualquier falla o ausencia en su funcionamiento repercutirá en un grave impacto sobre las actividades diarias de la UAESP, por lo que se debe garantizar la continua prestación del servicio de los mismos. Actualmente los canales de comunicación se encuentran en funcionamiento y soportados por la Empresa de Telecomunicaciones de Bogotá ETB. En el mes de marzo se realizó el trámite para el proceso de contratación del servicio de conectividad por doce (12) meses en la modalidad de contratación directa con oferta. | Y23: 0.05 | Z23: =IFERROR(VLOOKUP($F23,Datos!$M:$AP,2,0)/100,"0") -> 0.05 | AA23: =IFERROR(VLOOKUP($F23,Datos!$P:$AP,3,0),"") -> Para el mes de abril se realizó el nuevo contrato de conectividad UAESP-087 -2020 con un plazo de ejecución de doce (12) meses, el cual garantiza la continua prestación del servicio. Actualmente los canales de comunicación se encuentran en funcionamiento y soportados por la Empresa de Telecomunicaciones de Bogotá ETB. | AB23: 0.1 | AC23: =IFERROR(VLOOKUP($F23,Datos!$P:$AP,2,0)/100,"0") -> 0.1 | AD23: =IFERROR(VLOOKUP($F23,Datos!$S:$AP,3,0),"") ->  | AE23: 0.1 | AF23: =IFERROR(VLOOKUP($F23,Datos!$S:$AP,2,0)/100,"0") -> 0 | AG23: =IFERROR(VLOOKUP($F23,Datos!$V:$AP,3,0),"") ->  | AH23: 0.1 | AI23: =IFERROR(VLOOKUP($F23,Datos!$V:$AP,2,0)/100,"0") -> 0 | AJ23: =IFERROR(VLOOKUP($F23,Datos!$Y:$AP,3,0),"") ->  | AK23: 0.1 | AL23: =IFERROR(VLOOKUP($F23,Datos!$Y:$AP,2,0)/100,"0") -> 0 | AM23: =IFERROR(VLOOKUP($F23,Datos!$AB:$AP,3,0),"") ->  | AN23: 0.1 | AO23: =IFERROR(VLOOKUP($F23,Datos!$AB:$AP,2,0)/100,"0") -> 0 | AP23: =IFERROR(VLOOKUP($F23,Datos!$AE:$AP,3,0),"") ->  | AQ23: 0.1 | AR23: =IFERROR(VLOOKUP($F23,Datos!$AE:$AP,2,0)/100,"0") -> 0 | AS23: =IFERROR(VLOOKUP($F23,Datos!$AH:$AP,3,0),"") ->  | AT23: 0.1 | AU23: =IFERROR(VLOOKUP($F23,Datos!$AH:$AP,2,0)/100,"0") -> 0 | AV23: =IFERROR(VLOOKUP($F23,Datos!$AK:$AP,3,0),"") ->  | AW23: 0.1 | AX23: =IFERROR(VLOOKUP($F23,Datos!$AK:$AP,2,0)/100,"0") -> 0 | AY23: =IFERROR(VLOOKUP($F23,Datos!$AN:$AP,3,0),"") ->  | AZ23: 0.1 | BA23: =IFERROR(VLOOKUP($F23,Datos!$AN:$AP,2,0)/100,"0") -> 0 | BB23: 0.2 | BC23: 0.04
B24: OFICINA ASESORA DE TECNOLOGÍAS DE LA INFORMACIÓN - (TIC) | F24: Garantizar el suministro tecnológica de la entidad | G24: 0.2 | H24: 2020-02-01 | I24: 2020-12-31 | J24: Registro de entrega de Infraestructura tecnológica en funcionamiento | K24: 1042-Fortalecimiento institucional en la gestión pública | L24: Garantizar el 100% de la arquitectura tecnológica de la entidad | M24: Fortalecimiento Institucional: Consolidar una entidad moderna y efectiva constituida por un equipo comprometido con el logro de los objetivos institucionales | N24: Plan Estratégico de Tecnologías de la Información y las Comunicaciones -PETI | O24: Eje 7 - Gobierno Legítimo, fortalecimiento local y eficiencia | P24: 42 - Transparencia, gestión pública y servicio a la ciudadanía. | Q24: Gestionar el 100% del plan de adecuación y sostenibilidad SIG-MIPG | R24: =IFERROR(VLOOKUP($F24,Datos!$G:$AP,3,0),"") ->  | T24: =IFERROR(VLOOKUP($F24,Datos!$G:$AP,2,0)/100,"0") -> 0 | U24: =IFERROR(VLOOKUP($F24,Datos!$J:$AP,3,0),"") -> Actualmente se está garantizando la infraestructura tecnológica la cual agrupa y organiza el conjunto de elementos tecnológicos como son: las licencias, los equipos de cómputo y demás elementos que ayudan a soportar las operaciones de la entidad. | V24: 0.05 | W24: =IFERROR(VLOOKUP($F24,Datos!$J:$AP,2,0)/100,"0") -> 0.05 | X24: =IFERROR(VLOOKUP($F24,Datos!$M:$AP,3,0),"") -> Actualmente se cuenta con toda la infraestructura tecnología garantizando el servicio y desarrollo de las actividades de los funcionarios y/o contratistas. En el mes de marzo se realizó el proceso de arrendamiento de impresoras, por un periodo de doce (12) meses, con la modalidad de contratación de acuerdo marco de precios. CDP: 157 del 06 de marzo de 2020 | Y24: 0.05 | Z24: =IFERROR(VLOOKUP($F24,Datos!$M:$AP,2,0)/100,"0") -> 0.05 | AA24: =IFERROR(VLOOKUP($F24,Datos!$P:$AP,3,0),"") -> Para el mes de abril se realizó el contrato de arrendamiento de impresoras OC-46768-2020, garantizando así el suministro de tecnología a la entidad, este contrato tiene un término de ejecución de doce (12) meses. | AB24: 0.1 | AC24: =IFERROR(VLOOKUP($F24,Datos!$P:$AP,2,0)/100,"0") -> 0.1 | AD24: =IFERROR(VLOOKUP($F24,Datos!$S:$AP,3,0),"") ->  | AE24: 0.1 | AF24: =IFERROR(VLOOKUP($F24,Datos!$S:$AP,2,0)/100,"0") -> 0 | AG24: =IFERROR(VLOOKUP($F24,Datos!$V:$AP,3,0),"") ->  | AH24: 0.1 | AI24: =IFERROR(VLOOKUP($F24,Datos!$V:$AP,2,0)/100,"0") -> 0 | AJ24: =IFERROR(VLOOKUP($F24,Datos!$Y:$AP,3,0),"") ->  | AK24: 0.1 | AL24: =IFERROR(VLOOKUP($F24,Datos!$Y:$AP,2,0)/100,"0") -> 0 | AM24: =IFERROR(VLOOKUP($F24,Datos!$AB:$AP,3,0),"") ->  | AN24: 0.1 | AO24: =IFERROR(VLOOKUP($F24,Datos!$AB:$AP,2,0)/100,"0") -> 0 | AP24: =IFERROR(VLOOKUP($F24,Datos!$AE:$AP,3,0),"") ->  | AQ24: 0.1 | AR24: =IFERROR(VLOOKUP($F24,Datos!$AE:$AP,2,0)/100,"0") -> 0 | AS24: =IFERROR(VLOOKUP($F24,Datos!$AH:$AP,3,0),"") ->  | AT24: 0.1 | AU24: =IFERROR(VLOOKUP($F24,Datos!$AH:$AP,2,0)/100,"0") -> 0 | AV24: =IFERROR(VLOOKUP($F24,Datos!$AK:$AP,3,0),"") ->  | AW24: 0.1 | AX24: =IFERROR(VLOOKUP($F24,Datos!$AK:$AP,2,0)/100,"0") -> 0 | AY24: =IFERROR(VLOOKUP($F24,Datos!$AN:$AP,3,0),"") ->  | AZ24: 0.1 | BA24: =IFERROR(VLOOKUP($F24,Datos!$AN:$AP,2,0)/100,"0") -> 0 | BB24: 0.2 | BC24: 0.04
B25: OFICINA ASESORA DE TECNOLOGÍAS DE LA INFORMACIÓN - (TIC) | F25: Implementación de esquema de replicación de servidores críticos | G25: 0.3 | H25: 2020-05-01 | I25: 2020-12-31 | J25: Informe de puesta en marcha | K25: 1042-Fortalecimiento institucional en la gestión pública | L25: Garantizar el 100% de la arquitectura tecnológica de la entidad | M25: Fortalecimiento Institucional: Consolidar una entidad moderna y efectiva constituida por un equipo comprometido con el logro de los objetivos institucionales | N25: Plan Estratégico de Tecnologías de la Información y las Comunicaciones -PETI | O25: Eje 7 - Gobierno Legítimo, fortalecimiento local y eficiencia | P25: 42 - Transparencia, gestión pública y servicio a la ciudadanía. | Q25: Gestionar el 100% del plan de adecuación y sostenibilidad SIG-MIPG | R25: =IFERROR(VLOOKUP($F25,Datos!$G:$AP,3,0),"") ->  | T25: =IFERROR(VLOOKUP($F25,Datos!$G:$AP,2,0)/100,"0") -> 0 | U25: =IFERROR(VLOOKUP($F25,Datos!$J:$AP,3,0),"") ->  | W25: =IFERROR(VLOOKUP($F25,Datos!$J:$AP,2,0)/100,"0") -> 0 | X25: =IFERROR(VLOOKUP($F25,Datos!$M:$AP,3,0),"") ->  | Z25: =IFERROR(VLOOKUP($F25,Datos!$M:$AP,2,0)/100,"0") -> 0 | AA25: =IFERROR(VLOOKUP($F25,Datos!$P:$AP,3,0),"") ->  | AC25: =IFERROR(VLOOKUP($F25,Datos!$P:$AP,2,0)/100,"0") -> 0 | AD25: =IFERROR(VLOOKUP($F25,Datos!$S:$AP,3,0),"") ->  | AE25: 0.1 | AF25: =IFERROR(VLOOKUP($F25,Datos!$S:$AP,2,0)/100,"0") -> 0 | AG25: =IFERROR(VLOOKUP($F25,Datos!$V:$AP,3,0),"") ->  | AH25: 0.1 | AI25: =IFERROR(VLOOKUP($F25,Datos!$V:$AP,2,0)/100,"0") -> 0 | AJ25: =IFERROR(VLOOKUP($F25,Datos!$Y:$AP,3,0),"") ->  | AK25: 0.1 | AL25: =IFERROR(VLOOKUP($F25,Datos!$Y:$AP,2,0)/100,"0") -> 0 | AM25: =IFERROR(VLOOKUP($F25,Datos!$AB:$AP,3,0),"") ->  | AO25: =IFERROR(VLOOKUP($F25,Datos!$AB:$AP,2,0)/100,"0") -> 0 | AP25: =IFERROR(VLOOKUP($F25,Datos!$AE:$AP,3,0),"") ->  | AQ25: 0.4 | AR25: =IFERROR(VLOOKUP($F25,Datos!$AE:$AP,2,0)/100,"0") -> 0 | AS25: =IFERROR(VLOOKUP($F25,Datos!$AH:$AP,3,0),"") ->  | AU25: =IFERROR(VLOOKUP($F25,Datos!$AH:$AP,2,0)/100,"0") -> 0 | AV25: =IFERROR(VLOOKUP($F25,Datos!$AK:$AP,3,0),"") ->  | AX25: =IFERROR(VLOOKUP($F25,Datos!$AK:$AP,2,0)/100,"0") -> 0 | AY25: =IFERROR(VLOOKUP($F25,Datos!$AN:$AP,3,0),"") ->  | AZ25: 0.3 | BA25: =IFERROR(VLOOKUP($F25,Datos!$AN:$AP,2,0)/100,"0") -> 0 | BB25: 0 | BC25: 0
B26: OFICINA ASESORA DE TECNOLOGÍAS DE LA INFORMACIÓN - (TIC) | F26: Mantenimiento de infraestructura | G26: 0.2 | H26: 2020-04-01 | I26: 2020-12-31 | J26: Informe de mantenimiento | K26: 1042-Fortalecimiento institucional en la gestión pública | L26: Garantizar el 100% de la arquitectura tecnológica de la entidad | M26: Fortalecimiento Institucional: Consolidar una entidad moderna y efectiva constituida por un equipo comprometido con el logro de los objetivos institucionales | N26: Plan Estratégico de Tecnologías de la Información y las Comunicaciones -PETI | O26: Eje 7 - Gobierno Legítimo, fortalecimiento local y eficiencia | P26: 42 - Transparencia, gestión pública y servicio a la ciudadanía. | Q26: Gestionar el 100% del plan de adecuación y sostenibilidad SIG-MIPG | R26: =IFERROR(VLOOKUP($F26,Datos!$G:$AP,3,0),"") ->  | T26: =IFERROR(VLOOKUP($F26,Datos!$G:$AP,2,0)/100,"0") -> 0 | U26: =IFERROR(VLOOKUP($F26,Datos!$J:$AP,3,0),"") ->  | W26: =IFERROR(VLOOKUP($F26,Datos!$J:$AP,2,0)/100,"0") -> 0 | X26: =IFERROR(VLOOKUP($F26,Datos!$M:$AP,3,0),"") ->  | Z26: =IFERROR(VLOOKUP($F26,Datos!$M:$AP,2,0)/100,"0") -> 0 | AA26: =IFERROR(VLOOKUP($F26,Datos!$P:$AP,3,0),"") -> En el marco de las funciones de la Oficina de Tic, se debe promover el funcionamiento, mantenimiento y adecuación de la infraestructura tecnológica de la Entidad. Se realizó el mantenimiento correctivo de la planta eléctrica, logrando la solución de posibles fallas que se presenten garantizando que la Entidad cuente con respaldo eléctrico en caso de ausencia de energía eléctrica comercial. | AB26: 0.1 | AC26: =IFERROR(VLOOKUP($F26,Datos!$P:$AP,2,0)/100,"0") -> 0.1 | AD26: =IFERROR(VLOOKUP($F26,Datos!$S:$AP,3,0),"") ->  | AE26: 0.1 | AF26: =IFERROR(VLOOKUP($F26,Datos!$S:$AP,2,0)/100,"0") -> 0 | AG26: =IFERROR(VLOOKUP($F26,Datos!$V:$AP,3,0),"") ->  | AH26: 0.1 | AI26: =IFERROR(VLOOKUP($F26,Datos!$V:$AP,2,0)/100,"0") -> 0 | AJ26: =IFERROR(VLOOKUP($F26,Datos!$Y:$AP,3,0),"") ->  | AK26: 0.1 | AL26: =IFERROR(VLOOKUP($F26,Datos!$Y:$AP,2,0)/100,"0") -> 0 | AM26: =IFERROR(VLOOKUP($F26,Datos!$AB:$AP,3,0),"") ->  | AO26: =IFERROR(VLOOKUP($F26,Datos!$AB:$AP,2,0)/100,"0") -> 0 | AP26: =IFERROR(VLOOKUP($F26,Datos!$AE:$AP,3,0),"") ->  | AR26: =IFERROR(VLOOKUP($F26,Datos!$AE:$AP,2,0)/100,"0") -> 0 | AS26: =IFERROR(VLOOKUP($F26,Datos!$AH:$AP,3,0),"") ->  | AT26: 0.3 | AU26: =IFERROR(VLOOKUP($F26,Datos!$AH:$AP,2,0)/100,"0") -> 0 | AV26: =IFERROR(VLOOKUP($F26,Datos!$AK:$AP,3,0),"") ->  | AX26: =IFERROR(VLOOKUP($F26,Datos!$AK:$AP,2,0)/100,"0") -> 0 | AY26: =IFERROR(VLOOKUP($F26,Datos!$AN:$AP,3,0),"") ->  | AZ26: 0.3 | BA26: =IFERROR(VLOOKUP($F26,Datos!$AN:$AP,2,0)/100,"0") -> 0 | BB26: 0.1 | BC26: 0.02
B27: OFICINA ASESORA DE TECNOLOGÍAS DE LA INFORMACIÓN - (TIC) | D27: Fortalecer el servicio de la mesa de ayuda de la entidad | E27: Personal sensibilizado | F27: Sensibilizar el 100% en el uso de la herramienta HELP PEOPLE al personal de la entidad. | G27: 1 | H27: 2020-02-02 | I27: 2020-12-31 | J27: Lista de asistencia | K27: 1042-Fortalecimiento institucional en la gestión pública | L27: Garantizar el 100% de la arquitectura tecnológica de la entidad | M27: Fortalecimiento Institucional: Consolidar una entidad moderna y efectiva constituida por un equipo comprometido con el logro de los objetivos institucionales | N27: Plan Estratégico de Tecnologías de la Información y las Comunicaciones -PETI | O27: Eje 7 - Gobierno Legítimo, fortalecimiento local y eficiencia | P27: 42 - Transparencia, gestión pública y servicio a la ciudadanía. | Q27: Gestionar el 100% del plan de adecuación y sostenibilidad SIG-MIPG | R27: =IFERROR(VLOOKUP($F27,Datos!$G:$AP,3,0),"") ->  | T27: =IFERROR(VLOOKUP($F27,Datos!$G:$AP,2,0)/100,"0") -> 0 | U27: =IFERROR(VLOOKUP($F27,Datos!$J:$AP,3,0),"") -> Se está realizando la sensibilización de la herramienta HelpPeople, logrando que los usuarios la conozcan y realicen sus solicitudes por ese medio. | V27: 0.05 | W27: =IFERROR(VLOOKUP($F27,Datos!$J:$AP,2,0)/100,"0") -> 0.05 | X27: =IFERROR(VLOOKUP($F27,Datos!$M:$AP,3,0),"") -> Se está logrando que las personas utilicen la herramienta, al hacer una solicitud por soporte. Técnico los re-direcciona a la herramienta hel-ppeople, logrando así que el usuario conozca y comience a hacer las solicitudes por este medio | Y27: 0.05 | Z27: =IFERROR(VLOOKUP($F27,Datos!$M:$AP,2,0)/100,"0") -> 0.05 | AA27: =IFERROR(VLOOKUP($F27,Datos!$P:$AP,3,0),"") -> Se realizó una capacitación a los funcionarios y contratistas sobre la herramienta Helppeople, con el fin de que la conozcan y comiencen a realizar las solicitudes relacionadas con tecnología por este medio. | AB27: 0.1 | AC27: =IFERROR(VLOOKUP($F27,Datos!$P:$AP,2,0)/100,"0") -> 0.1 | AD27: =IFERROR(VLOOKUP($F27,Datos!$S:$AP,3,0),"") ->  | AE27: 0.1 | AF27: =IFERROR(VLOOKUP($F27,Datos!$S:$AP,2,0)/100,"0") -> 0 | AG27: =IFERROR(VLOOKUP($F27,Datos!$V:$AP,3,0),"") ->  | AH27: 0.1 | AI27: =IFERROR(VLOOKUP($F27,Datos!$V:$AP,2,0)/100,"0") -> 0 | AJ27: =IFERROR(VLOOKUP($F27,Datos!$Y:$AP,3,0),"") ->  | AK27: 0.1 | AL27: =IFERROR(VLOOKUP($F27,Datos!$Y:$AP,2,0)/100,"0") -> 0 | AM27: =IFERROR(VLOOKUP($F27,Datos!$AB:$AP,3,0),"") ->  | AN27: 0.1 | AO27: =IFERROR(VLOOKUP($F27,Datos!$AB:$AP,2,0)/100,"0") -> 0 | AP27: =IFERROR(VLOOKUP($F27,Datos!$AE:$AP,3,0),"") ->  | AQ27: 0.1 | AR27: =IFERROR(VLOOKUP($F27,Datos!$AE:$AP,2,0)/100,"0") -> 0 | AS27: =IFERROR(VLOOKUP($F27,Datos!$AH:$AP,3,0),"") ->  | AT27: 0.1 | AU27: =IFERROR(VLOOKUP($F27,Datos!$AH:$AP,2,0)/100,"0") -> 0 | AV27: =IFERROR(VLOOKUP($F27,Datos!$AK:$AP,3,0),"") ->  | AW27: 0.1 | AX27: =IFERROR(VLOOKUP($F27,Datos!$AK:$AP,2,0)/100,"0") -> 0 | AY27: =IFERROR(VLOOKUP($F27,Datos!$AN:$AP,3,0),"") ->  | AZ27: 0.1 | BA27: =IFERROR(VLOOKUP($F27,Datos!$AN:$AP,2,0)/100,"0") -> 0 | BB27: 0.2 | BC27: 0.2
B28: OFICINA ASESORA DE TECNOLOGÍAS DE LA INFORMACIÓN - (TIC) | C28: Implementar los lineamientos que fortalezcan la política de Gobierno Digital en la entidad | D28: Aumentar en un 10% con respecto a la vigencia anterior al cumplimiento del Modelo de Privacidad y Seguridad de la Información-MSPI | E28: Procedimientos formulados y presentados | F28: Implementación del MSPI dentro de la Entidad | G28: 1 | H28: 2020-02-01 | I28: 2020-12-31 | J28: Implementación del 10% adicional del MSPI a través de los procedimientos aprobados | K28: 1042-Fortalecimiento institucional en la gestión pública | L28: Garantizar el 100% de la arquitectura tecnológica de la entidad | M28: Fortalecimiento Institucional: Consolidar una entidad moderna y efectiva constituida por un equipo comprometido con el logro de los objetivos institucionales | N28: Plan de tratamiento de riesgos de seguridad y privacidad de la Información | O28: Eje 7 - Gobierno Legítimo, fortalecimiento local y eficiencia | P28: 42 - Transparencia, gestión pública y servicio a la ciudadanía. | Q28: Gestionar el 100% del plan de adecuación y sostenibilidad SIG-MIPG | R28: =IFERROR(VLOOKUP($F28,Datos!$G:$AP,3,0),"") ->  | T28: =IFERROR(VLOOKUP($F28,Datos!$G:$AP,2,0)/100,"0") -> 0 | U28: =IFERROR(VLOOKUP($F28,Datos!$J:$AP,3,0),"") -> Se adelantaron los procedimientos: Disposición móviles y Datos Abiertos | V28: 0.05 | W28: =IFERROR(VLOOKUP($F28,Datos!$J:$AP,2,0)/100,"0") -> 0.05 | X28: =IFERROR(VLOOKUP($F28,Datos!$M:$AP,3,0),"") -> El 30 de marzo se realizó el primer Comité de Seguridad de la Información y Gobierno Digital, dando cumplimiento a lo establecido en la Resolución 696 de 2017; como todos los miembros del Comité son nuevos, se hizo una pequeña presentación sobre las funciones del Comité y los avances realizados a la fecha | Y28: 0.05 | Z28: =IFERROR(VLOOKUP($F28,Datos!$M:$AP,2,0)/100,"0") -> 0.05 | AA28: =IFERROR(VLOOKUP($F28,Datos!$P:$AP,3,0),"") -> Se realizó el seguimiento del avance del procedimiento y se trabajó en el procedimiento Activos de Información. | AB28: 0.1 | AC28: =IFERROR(VLOOKUP($F28,Datos!$P:$AP,2,0)/100,"0") -> 0.1 | AD28: =IFERROR(VLOOKUP($F28,Datos!$S:$AP,3,0),"") ->  | AE28: 0.1 | AF28: =IFERROR(VLOOKUP($F28,Datos!$S:$AP,2,0)/100,"0") -> 0 | AG28: =IFERROR(VLOOKUP($F28,Datos!$V:$AP,3,0),"") ->  | AH28: 0.1 | AI28: =IFERROR(VLOOKUP($F28,Datos!$V:$AP,2,0)/100,"0") -> 0 | AJ28: =IFERROR(VLOOKUP($F28,Datos!$Y:$AP,3,0),"") ->  | AK28: 0.1 | AL28: =IFERROR(VLOOKUP($F28,Datos!$Y:$AP,2,0)/100,"0") -> 0 | AM28: =IFERROR(VLOOKUP($F28,Datos!$AB:$AP,3,0),"") ->  | AN28: 0.1 | AO28: =IFERROR(VLOOKUP($F28,Datos!$AB:$AP,2,0)/100,"0") -> 0 | AP28: =IFERROR(VLOOKUP($F28,Datos!$AE:$AP,3,0),"") ->  | AQ28: 0.1 | AR28: =IFERROR(VLOOKUP($F28,Datos!$AE:$AP,2,0)/100,"0") -> 0 | AS28: =IFERROR(VLOOKUP($F28,Datos!$AH:$AP,3,0),"") ->  | AT28: 0.1 | AU28: =IFERROR(VLOOKUP($F28,Datos!$AH:$AP,2,0)/100,"0") -> 0 | AV28: =IFERROR(VLOOKUP($F28,Datos!$AK:$AP,3,0),"") ->  | AW28: 0.1 | AX28: =IFERROR(VLOOKUP($F28,Datos!$AK:$AP,2,0)/100,"0") -> 0 | AY28: =IFERROR(VLOOKUP($F28,Datos!$AN:$AP,3,0),"") ->  | AZ28: 0.1 | BA28: =IFERROR(VLOOKUP($F28,Datos!$AN:$AP,2,0)/100,"0") -> 0 | BB28: 0.2 | BC28: 0.2
B29: OFICINA ASESORA DE COMUNICACIONES - (OAC) | C29: Mantener el reconocimiento institucional | D29: Fortalecer la imagen de la entidad | E29: Número de contenidos entregados a la ciudad. | F29: Implementar el Plan de Comunicaciones | G29: 0.5 | H29: 2020-01-01 | I29: 2020-12-31 | J29: Informe trimestral del desarrollo del trabajo periodístico. | K29: 1042-Fortalecimiento institucional en la gestión pública | L29: Divulgar y posicionar en los diferentes grupos de interés de la ciudad el 100% de los planes, programas y proyecto de la entidad | M29: Fortalecimiento Institucional: Consolidar una entidad moderna y efectiva constituida por un equipo comprometido con el logro de los objetivos institucionales | N29: N/A | O29: Eje 7 - Gobierno Legítimo, fortalecimiento local y eficiencia | P29: 42 - Transparencia, gestión pública y servicio a la ciudadanía. | Q29: Gestionar el 100% del plan de adecuación y sostenibilidad SIG-MIPG | R29: =IFERROR(VLOOKUP($F29,Datos!$G:$AP,3,0),"") ->  | T29: =IFERROR(VLOOKUP($F29,Datos!$G:$AP,2,0)/100,"0") -> 0 | U29: =IFERROR(VLOOKUP($F29,Datos!$J:$AP,3,0),"") ->  | W29: =IFERROR(VLOOKUP($F29,Datos!$J:$AP,2,0)/100,"0") -> 0 | X29: =IFERROR(VLOOKUP($F29,Datos!$M:$AP,3,0),"") -> "El Plan Estrategico de Comunicaciones ya fue elaborado. En la actualidad se implementan acciones de comunicación interna, externa, digital, diseño, producción audiovisual y eventos, sin embargo, esta pendiente de la aprobación por parte de la Dirección General. Por esta razón, para el periodo comprendido entre enero y marzo, se mantuvieron las estrategias del 2018. Estrategia1. Posicionamiento y fortalecimiento de la imagen institucional: 32 contenidos Estrategia 2. Gestión y logros de las acciones desarrolladas por la entidad: 24 contenidos Estrategia3. Promover el sentido de pertenencia hacia la Uaesp por parte de los funcionarios y/o contratistas: 30 contenidos." | Y29: 0.25 | Z29: =IFERROR(VLOOKUP($F29,Datos!$M:$AP,2,0)/100,"0") -> 0.25 | AA29: =IFERROR(VLOOKUP($F29,Datos!$P:$AP,3,0),"") ->  | AC29: =IFERROR(VLOOKUP($F29,Datos!$P:$AP,2,0)/100,"0") -> 0 | AD29: =IFERROR(VLOOKUP($F29,Datos!$S:$AP,3,0),"") ->  | AF29: =IFERROR(VLOOKUP($F29,Datos!$S:$AP,2,0)/100,"0") -> 0 | AG29: =IFERROR(VLOOKUP($F29,Datos!$V:$AP,3,0),"") ->  | AH29: 0.25 | AI29: =IFERROR(VLOOKUP($F29,Datos!$V:$AP,2,0)/100,"0") -> 0 | AJ29: =IFERROR(VLOOKUP($F29,Datos!$Y:$AP,3,0),"") ->  | AL29: =IFERROR(VLOOKUP($F29,Datos!$Y:$AP,2,0)/100,"0") -> 0 | AM29: =IFERROR(VLOOKUP($F29,Datos!$AB:$AP,3,0),"") ->  | AO29: =IFERROR(VLOOKUP($F29,Datos!$AB:$AP,2,0)/100,"0") -> 0 | AP29: =IFERROR(VLOOKUP($F29,Datos!$AE:$AP,3,0),"") ->  | AQ29: 0.25 | AR29: =IFERROR(VLOOKUP($F29,Datos!$AE:$AP,2,0)/100,"0") -> 0 | AS29: =IFERROR(VLOOKUP($F29,Datos!$AH:$AP,3,0),"") ->  | AU29: =IFERROR(VLOOKUP($F29,Datos!$AH:$AP,2,0)/100,"0") -> 0 | AV29: =IFERROR(VLOOKUP($F29,Datos!$AK:$AP,3,0),"") ->  | AX29: =IFERROR(VLOOKUP($F29,Datos!$AK:$AP,2,0)/100,"0") -> 0 | AY29: =IFERROR(VLOOKUP($F29,Datos!$AN:$AP,3,0),"") ->  | AZ29: 0.25 | BA29: =IFERROR(VLOOKUP($F29,Datos!$AN:$AP,2,0)/100,"0") -> 0 | BB29: 0.25 | BC29: 0.125
B30: OFICINA ASESORA DE COMUNICACIONES - (OAC) | F30: Generar contenidos de los planes programas y proyectos de la entidad de acuerdo con la programación establecida. | G30: 0.5 | H30: 2020-01-01 | I30: 2020-12-31 | J30: Informe trimestral de impactos en medios y de contenidos generados | K30: 1042-Fortalecimiento institucional en la gestión pública | L30: Divulgar y posicionar en los diferentes grupos de interés de la ciudad el 100% de los planes, programas y proyecto de la entidad | M30: Fortalecimiento Institucional: Consolidar una entidad moderna y efectiva constituida por un equipo comprometido con el logro de los objetivos institucionales | N30: N/A | O30: Eje 7 - Gobierno Legítimo, fortalecimiento local y eficiencia | P30: 42 - Transparencia, gestión pública y servicio a la ciudadanía. | Q30: Gestionar el 100% del plan de adecuación y sostenibilidad SIG-MIPG | R30: =IFERROR(VLOOKUP($F30,Datos!$G:$AP,3,0),"") ->  | T30: =IFERROR(VLOOKUP($F30,Datos!$G:$AP,2,0)/100,"0") -> 0 | U30: =IFERROR(VLOOKUP($F30,Datos!$J:$AP,3,0),"") ->  | W30: =IFERROR(VLOOKUP($F30,Datos!$J:$AP,2,0)/100,"0") -> 0 | X30: =IFERROR(VLOOKUP($F30,Datos!$M:$AP,3,0),"") -> "En el primer trimestre de 2020 se publicaron 171 noticias, de las cuales, el 19 % fueron positivas. A continuación, se relacionan la cantidad de noticias de acuerdo con los temas misionales de la Entidad: RBL: 47 noticias Aprovechamiento: 70 noticias Disp.Final: 13 noticias Alumbrado/Funerarios: 21 noticias Otros: 20 noticias" | Y30: 0.25 | Z30: =IFERROR(VLOOKUP($F30,Datos!$M:$AP,2,0)/100,"0") -> 0.25 | AA30: =IFERROR(VLOOKUP($F30,Datos!$P:$AP,3,0),"") ->  | AC30: =IFERROR(VLOOKUP($F30,Datos!$P:$AP,2,0)/100,"0") -> 0 | AD30: =IFERROR(VLOOKUP($F30,Datos!$S:$AP,3,0),"") ->  | AF30: =IFERROR(VLOOKUP($F30,Datos!$S:$AP,2,0)/100,"0") -> 0 | AG30: =IFERROR(VLOOKUP($F30,Datos!$V:$AP,3,0),"") ->  | AH30: 0.25 | AI30: =IFERROR(VLOOKUP($F30,Datos!$V:$AP,2,0)/100,"0") -> 0 | AJ30: =IFERROR(VLOOKUP($F30,Datos!$Y:$AP,3,0),"") ->  | AL30: =IFERROR(VLOOKUP($F30,Datos!$Y:$AP,2,0)/100,"0") -> 0 | AM30: =IFERROR(VLOOKUP($F30,Datos!$AB:$AP,3,0),"") ->  | AO30: =IFERROR(VLOOKUP($F30,Datos!$AB:$AP,2,0)/100,"0") -> 0 | AP30: =IFERROR(VLOOKUP($F30,Datos!$AE:$AP,3,0),"") ->  | AQ30: 0.25 | AR30: =IFERROR(VLOOKUP($F30,Datos!$AE:$AP,2,0)/100,"0") -> 0 | AS30: =IFERROR(VLOOKUP($F30,Datos!$AH:$AP,3,0),"") ->  | AU30: =IFERROR(VLOOKUP($F30,Datos!$AH:$AP,2,0)/100,"0") -> 0 | AV30: =IFERROR(VLOOKUP($F30,Datos!$AK:$AP,3,0),"") ->  | AX30: =IFERROR(VLOOKUP($F30,Datos!$AK:$AP,2,0)/100,"0") -> 0 | AY30: =IFERROR(VLOOKUP($F30,Datos!$AN:$AP,3,0),"") ->  | AZ30: 0.25 | BA30: =IFERROR(VLOOKUP($F30,Datos!$AN:$AP,2,0)/100,"0") -> 0 | BB30: 0.25 | BC30: 0.125
B31: SUBDIRECCIÓN DE ASUNTOS LEGALES - (SAL) | C31: Asegurar en lo jurídico el fortalecimiento del modelo de transformación organizacional | D31: Publicar el 100% de las actuaciones derivadas de los contratos suscritos por la Unidad | E31: Actuaciones contractuales proyectadas / actuaciones contractuales publicadas | F31: Publicación de los procesos de contratación en el sistema de compra pública. | G31: 1 | H31: 2020-01-01 | I31: 2020-12-31 | J31: Procesos contractuales publicados | K31: 1042-Fortalecimiento institucional en la gestión pública | L31: Desarrollar y fortalecer el modelo el transformación organizacional de la entidad. | M31: Fortalecimiento Institucional: Consolidar una entidad moderna y efectiva constituida por un equipo comprometido con el logro de los objetivos institucionales | N31: Plan Anual de Adquisiciones | O31: Eje 7 - Gobierno Legítimo, fortalecimiento local y eficiencia | P31: 42 - Transparencia, gestión pública y servicio a la ciudadanía. | Q31: Gestionar el 100% del plan de adecuación y sostenibilidad SIG-MIPG | R31: =IFERROR(VLOOKUP($F31,Datos!$G:$AP,3,0),"") -> 31/01/2020: Se publicaron en el SECOP los contratos suscritos por la Unidad, durante el curso del mes de enero de 2020 | S31: 0.0833 | T31: =IFERROR(VLOOKUP($F31,Datos!$G:$AP,2,0)/100,"0") -> 0.0833 | U31: =IFERROR(VLOOKUP($F31,Datos!$J:$AP,3,0),"") -> 29/02/2020: Se publicaron en el SECOP los contratos suscritos por la Unidad, durante el curso del mes de febrero de 2020 | V31: 0.0833 | W31: =IFERROR(VLOOKUP($F31,Datos!$J:$AP,2,0)/100,"0") -> 0.0833 | X31: =IFERROR(VLOOKUP($F31,Datos!$M:$AP,3,0),"") -> 31/03/2020: Se publicaron en el SECOP los contratos suscritos por la Unidad, durante el curso del mes de marzo de 2020 | Y31: 0.0833 | Z31: =IFERROR(VLOOKUP($F31,Datos!$M:$AP,2,0)/100,"0") -> 0.0833 | AA31: =IFERROR(VLOOKUP($F31,Datos!$P:$AP,3,0),"") -> Se publicaron en el Secop II los contratos suscritos por la Unidad, durante el curso del mes de abril de 2020. | AB31: 0.0833 | AC31: =IFERROR(VLOOKUP($F31,Datos!$P:$AP,2,0)/100,"0") -> 0.0833 | AD31: =IFERROR(VLOOKUP($F31,Datos!$S:$AP,3,0),"") ->  | AE31: 0.0833 | AF31: =IFERROR(VLOOKUP($F31,Datos!$S:$AP,2,0)/100,"0") -> 0 | AH31: 0.0833 | AI31: =IFERROR(VLOOKUP($F31,Datos!$V:$AP,2,0)/100,"0") -> 0 | AJ31: =IFERROR(VLOOKUP($F31,Datos!$Y:$AP,3,0),"") ->  | AK31: 0.0833 | AL31: =IFERROR(VLOOKUP($F31,Datos!$Y:$AP,2,0)/100,"0") -> 0 | AM31: =IFERROR(VLOOKUP($F31,Datos!$AB:$AP,3,0),"") ->  | AN31: 0.0833 | AO31: =IFERROR(VLOOKUP($F31,Datos!$AB:$AP,2,0)/100,"0") -> 0 | AP31: =IFERROR(VLOOKUP($F31,Datos!$AE:$AP,3,0),"") ->  | AQ31: 0.0833 | AR31: =IFERROR(VLOOKUP($F31,Datos!$AE:$AP,2,0)/100,"0") -> 0 | AS31: =IFERROR(VLOOKUP($F31,Datos!$AH:$AP,3,0),"") ->  | AT31: 0.0833 | AU31: =IFERROR(VLOOKUP($F31,Datos!$AH:$AP,2,0)/100,"0") -> 0 | AV31: =IFERROR(VLOOKUP($F31,Datos!$AK:$AP,3,0),"") ->  | AW31: 0.0833 | AX31: =IFERROR(VLOOKUP($F31,Datos!$AK:$AP,2,0)/100,"0") -> 0 | AY31: =IFERROR(VLOOKUP($F31,Datos!$AN:$AP,3,0),"") ->  | AZ31: 0.0833 | BA31: =IFERROR(VLOOKUP($F31,Datos!$AN:$AP,2,0)/100,"0") -> 0 | BB31: 0.3332 | BC31: 0.3332
B32: SUBDIRECCIÓN DE ASUNTOS LEGALES - (SAL) | D32: Plan de trabajo para la implementación de las políticas de prevención del daño antijurídico ejecutado al 100% | E32: Plan de trabajo ejecutado / Plan de trabajo diseñado | F32: Formulación de un plan de trabajo de implementación de las políticas. | G32: 1 | H32: 2020-01-01 | I32: 2020-12-31 | J32: Modelo de gestión jurídica implementado | K32: 1042-Fortalecimiento institucional en la gestión pública | L32: Desarrollar y fortalecer el modelo el transformación organizacional de la entidad. | M32: Fortalecimiento Institucional: Consolidar una entidad moderna y efectiva constituida por un equipo comprometido con el logro de los objetivos institucionales | N32: N/A | O32: Eje 7 - Gobierno Legítimo, fortalecimiento local y eficiencia | P32: 42 - Transparencia, gestión pública y servicio a la ciudadanía. | Q32: Gestionar el 100% del plan de adecuación y sostenibilidad SIG-MIPG | R32: =IFERROR(VLOOKUP($F32,Datos!$G:$AP,3,0),"") ->  | T32: =IFERROR(VLOOKUP($F32,Datos!$G:$AP,2,0)/100,"0") -> 0 | U32: =IFERROR(VLOOKUP($F32,Datos!$J:$AP,3,0),"") -> 31/01/2020: Se diseñó el plan de trabajo para la implementación de la versión 2 del Manual de Politicas para la Prevención del Daño Antijurico. Igualmente, mediante comunicación oficial interna radicada bajo el Nº 202060000913 del 9 de enero, en respuesta al memorando 20196000080513, en el cual el Subdirector de Asuntos Legales solicita la elaboración del plan de trabajo anteriormente mencionado, se le informó al mencionado subdirector que con relación a la acción de "Revisar y ajustar el manual de contratación de la UAESP un procedimiento que se enfoque en la realización de control y supervisión en la etapa de ejecución y liquidación de los diferentes contratos…”, una vez revisado dicho manual con la líder del Grupo de Contratación de la Subdirección, se pudo constatar que el mismo contiene elementos de control que pueden utilizar los supervisores de los contratos, para ejercer control durante la ejecución y liquidación de los mismos, específicamente los contenidos en los numerales “5.6, Funciones de los supervisores, 5.61 Vigilancia jurídica, 5.6.2 Vigilancia técnica, 5.6.3 Vigilancia administrativa, 5.64 Vigilancia financiera y contable, 5.7 Evaluación de la ejecución del contrato”, (páginas 15 a 19), “Tabla 6 cesión de los contratos y/o convenios, Tabla 7 terminación anticipada y liquidación de los contratos y/o convenios, Tabla 8 Liquidación de los contratos y/o convenios, Tabla 9, Efectuar seguimiento a las actividades posteriores a la liquidación de los contratos estatales celebrados por la UAESP”, razón por la cual, esta actividad, se encuentra ejecutada. Con relación a la segunda acción, del plan de trabajo para la implemetación de la versión 2 del Manual de Politicas para la Prevención del Daño Antijurico, la profesional líder del grupo de contratación, mediante correo electrónico del 8/01/2020, le informó a los abogados que integran dicho grupo lo siguiente: "Me permito recomendar que para la contratación de prestación de servicios profesionales de los contratistas que ejerzan defensa judicial y extrajudicial de la Unidad, es importante tener en cuenta que en los estudios previos se deben incluir una obligación específica según la cual, dichos profesionales deberán adelantar su gestión dando cumplimiento a los procedimientos de representación judicial y extrajudicial que adopte la UAESP, así: "Prestar los servicios profesionales en la representación judicial y extrajudicial de todos los procesos y demás actuaciones que le sean asignadas, en las cuales la Unidad tenga interés o sea sujeto procesal, acatando las directrices y estrategias de defensa judicial, extrajudicial y administrativas de la Subdirección de Asuntos Legales, así como las relacionadas con la prevención del daño antijurídico, que sean proferidas por la Secretaria Jurídica Distrital, así como lo señalado en las demás normas Distritales y los procedimientos internos, que regulen la defensa judicial y extrajudicial en el Distrito Capital". Las áreas que contratan este tipo de contratistas son en la Subdirección de Asuntos Legales y Disposición Final. Lo anterior, con el fin de dar cumplimiento al Manual de Políticas de Daño Antijurídico". 29/02/2020: En el mes de febrero de 2020, se suscribieron los siguientes contratos de prestación de servicios profesionales para apoyo a la gestión de la defensa judicial y extrajudicial, en los cuales se les incorporó la obligación 1, arendiendo lo dispuesto en el presente plan de trabajo y plan de acción de la SAL: UAESP-10-2020 suscrito con Edith Johana Vargas Peña; UAESP-20-2020 suscrito con Carlos Alberto Álvarez Pérez; UAESP-20-2020 suscrito con Marco Andrés Mendoza Barbosa. Se acuerda con la coordinación del grupo dfe representación Judicial y Extrajudicial de la SAL, continuar en el mes de marzo de 2020, con el seguimiento y verificación del cumplimiento de esta actividad. | V32: 0.3 | W32: =IFERROR(VLOOKUP($F32,Datos!$J:$AP,2,0)/100,"0") -> 0.3 | X32: =IFERROR(VLOOKUP($F32,Datos!$M:$AP,3,0),"") -> 31/03/2020: En el mes de marzo de 2020, se suscribió el contrato de prestación de servicios profesionales y de apoyo a la gestión, número UAESP-49-2020 - Juan José Gómez, contrato al que se le incorporó la obligación 1, atendiendo lo dispuesto en el plan de trabajo para la implementación de la versión 2 del manual para la implementación de políticas de prevención del daño antijurídico y el presente plan de acción. | Y32: 0.3 | Z32: =IFERROR(VLOOKUP($F32,Datos!$M:$AP,2,0)/100,"0") -> 0.3 | AA32: =IFERROR(VLOOKUP($F32,Datos!$P:$AP,3,0),"") ->  | AC32: =IFERROR(VLOOKUP($F32,Datos!$P:$AP,2,0)/100,"0") -> 0 | AD32: =IFERROR(VLOOKUP($F32,Datos!$S:$AP,3,0),"") ->  | AF32: =IFERROR(VLOOKUP($F32,Datos!$S:$AP,2,0)/100,"0") -> 0 | AG32: =IFERROR(VLOOKUP($F32,Datos!$V:$AP,3,0),"") ->  | AH32: 0.4 | AI32: =IFERROR(VLOOKUP($F32,Datos!$V:$AP,2,0)/100,"0") -> 0 | AJ32: =IFERROR(VLOOKUP($F32,Datos!$Y:$AP,3,0),"") ->  | AL32: =IFERROR(VLOOKUP($F32,Datos!$Y:$AP,2,0)/100,"0") -> 0 | AM32: =IFERROR(VLOOKUP($F32,Datos!$AB:$AP,3,0),"") ->  | AO32: =IFERROR(VLOOKUP($F32,Datos!$AB:$AP,2,0)/100,"0") -> 0 | AP32: =IFERROR(VLOOKUP($F32,Datos!$AE:$AP,3,0),"") ->  | AQ32: =IFERROR(VLOOKUP($F32,Datos!$J:$AP,2,0)/100,"0") -> 0.3 | AR32: =IFERROR(VLOOKUP($F32,Datos!$AE:$AP,2,0)/100,"0") -> 0 | AS32: =IFERROR(VLOOKUP($F32,Datos!$AH:$AP,3,0),"") ->  | AU32: =IFERROR(VLOOKUP($F32,Datos!$AH:$AP,2,0)/100,"0") -> 0 | AV32: =IFERROR(VLOOKUP($F32,Datos!$AK:$AP,3,0),"") ->  | AX32: =IFERROR(VLOOKUP($F32,Datos!$AK:$AP,2,0)/100,"0") -> 0 | AY32: =IFERROR(VLOOKUP($F32,Datos!$AN:$AP,3,0),"") ->  | BA32: =IFERROR(VLOOKUP($F32,Datos!$AN:$AP,2,0)/100,"0") -> 0 | BB32: 0.6 | BC32: 0.6
B33: SUBDIRECCIÓN DE ASUNTOS LEGALES - (SAL) | D33: Atender el 100% de los procesos judiciales y arbitrales en los que la Entidad sea demandada o convocada, fortaleciendo la defensa jurídica de la UAESP | E33: Procesos vigentes/ Procesos atendidos | F33: Actualización permanente del SIPROJ | G33: 1 | H33: 2020-01-01 | I33: 2020-12-31 | J33: Plataforma SIPROJ actualizada | K33: 1042-Fortalecimiento institucional en la gestión pública | L33: Desarrollar y fortalecer el modelo el transformación organizacional de la entidad. | M33: Fortalecimiento Institucional: Consolidar una entidad moderna y efectiva constituida por un equipo comprometido con el logro de los objetivos institucionales | N33: N/A | O33: Eje 7 - Gobierno Legítimo, fortalecimiento local y eficiencia | P33: 42 - Transparencia, gestión pública y servicio a la ciudadanía. | Q33: Gestionar el 100% del plan de adecuación y sostenibilidad SIG-MIPG | R33: =IFERROR(VLOOKUP($F33,Datos!$G:$AP,3,0),"") ->  | S33: 0.0833 | T33: =IFERROR(VLOOKUP($F33,Datos!$G:$AP,2,0)/100,"0") -> 0 | U33: =IFERROR(VLOOKUP($F33,Datos!$J:$AP,3,0),"") -> 29/02/2020: Teniendo en cuenta que en el curso del mes de enero de 2020, esta actividad fue incorporada en el PAI, por recomendación del Comité Directivo, en este periodo, es decir, febero de 2020, la profesional líder del Grupo de Representación Judicial y Extrajudicial, abordó el tema de la actuailización del SIPROJ, en los siguientes términos: "... con relación al aplicativo SIPROJ Web y el grupo de Defensa Judicial, se reitera que cada uno de los apoderados debe dar cuenta de la información documental tanto física como virtual de los porcesos a su cargo, los cuales deben estar actualizados tanto en los expedientes creados en la Unidad, como en el plicativo SIPORJ web, todas y cada una de las actuaciones judiciales acaecidas además de mantenerse informe del estado de cada uno de los procesos y el despacho de conocimiento actualizado, el seguimiento de la información que se carga en el aplicativo SIPROJ, el archivo de defensa judicial y la citación al Comité de Conciliación y Defensa Judicial de la Unidad con la respectiva elabración de las actas del Comité estará a cargo de la funcionaria Rocío Villamil. | V33: 0.0833 | W33: =IFERROR(VLOOKUP($F33,Datos!$J:$AP,2,0)/100,"0") -> 0.17 | Y33: 0.0833 | Z33: =IFERROR(VLOOKUP($F33,Datos!$M:$AP,2,0)/100,"0") -> 0.0833 | AA33: =IFERROR(VLOOKUP($F33,Datos!$P:$AP,3,0),"") -> Se identificaron 11 procesos pendientes de actualizar al SIPROJ y un total de 119 procesos subidos al día en el SIPROJ. | AB33: 0.0833 | AC33: =IFERROR(VLOOKUP($F33,Datos!$P:$AP,2,0)/100,"0") -> 0.0833 | AE33: 0.0833 | AF33: =IFERROR(VLOOKUP($F33,Datos!$S:$AP,2,0)/100,"0") -> 0 | AH33: 0.0833 | AI33: =IFERROR(VLOOKUP($F33,Datos!$V:$AP,2,0)/100,"0") -> 0 | AK33: 0.0833 | AL33: =IFERROR(VLOOKUP($F33,Datos!$Y:$AP,2,0)/100,"0") -> 0 | AN33: 0.0833 | AO33: =IFERROR(VLOOKUP($F33,Datos!$AB:$AP,2,0)/100,"0") -> 0 | AQ33: 0.0833 | AR33: =IFERROR(VLOOKUP($F33,Datos!$AE:$AP,2,0)/100,"0") -> 0 | AT33: 0.0833 | AU33: =IFERROR(VLOOKUP($F33,Datos!$AH:$AP,2,0)/100,"0") -> 0 | AW33: 0.0833 | AX33: =IFERROR(VLOOKUP($F33,Datos!$AK:$AP,2,0)/100,"0") -> 0 | AZ33: 0.0833 | BA33: =IFERROR(VLOOKUP($F33,Datos!$AN:$AP,2,0)/100,"0") -> 0 | BB33: 0.3366 | BC33: 0.3366
